Workbook

Sheet Vect
B1: ka | C1: ktc
B2: 0.02633186604 | C2: 4 | E2: =(SIN(RADIANS(5*Table3[[#This Row],[Deg]])+4.9)+1)/2/180 -> 
C3: =SUM(Table2[Probty]) -> 1
B4: Table2 | E4: Table3 | H4: Table1
B5: Speed | C5: Probty | E5: Deg | F5: sine5 | H5: Speed | I5: Dir | J5: xval | K5: yval | L5: zval
B6: 0 | C6: =ka*EXP(-Table2[[#This Row],[Speed]]/ktc) -> 0.02633186604 | E6: 0 | F6: 7.059414314e-05 | H6: 0.1 | I6: 5 | J6: =IFERROR(ROUND(IMREAL(IMEXP(COMPLEX(LN(Table1[[#This Row],[Speed]]),RADIANS(Table1[[#This Row],[Dir]])))),2),0) -> 0.1 | K6: =IFERROR(ROUND(IMAGINARY(IMEXP(COMPLEX(LN(Table1[[#This Row],[Speed]]),RADIANS(Table1[[#This Row],[Dir]])))),2),0) -> 0.01 | L6: =1/5000 -> 0.0002
B7: 0.1 | C7: =ka*EXP(-Table2[[#This Row],[Speed]]/ktc) -> 0.02568172995 | E7: 1 | F7: 0.0001042820563 | H7: 4.4 | I7: 7 | J7: =IFERROR(ROUND(IMREAL(IMEXP(COMPLEX(LN(Table1[[#This Row],[Speed]]),RADIANS(Table1[[#This Row],[Dir]])))),2),0) -> 4.37 | K7: =IFERROR(ROUND(IMAGINARY(IMEXP(COMPLEX(LN(Table1[[#This Row],[Speed]]),RADIANS(Table1[[#This Row],[Dir]])))),2),0) -> 0.54 | L7: 0.0002
B8: 0.2 | C8: =ka*EXP(-Table2[[#This Row],[Speed]]/ktc) -> 0.02504764578 | E8: 2 | F8: 0.0001801682866 | H8: 0 | I8: 9 | J8: =IFERROR(ROUND(IMREAL(IMEXP(COMPLEX(LN(Table1[[#This Row],[Speed]]),RADIANS(Table1[[#This Row],[Dir]])))),2),0) -> 0 | K8: =IFERROR(ROUND(IMAGINARY(IMEXP(COMPLEX(LN(Table1[[#This Row],[Speed]]),RADIANS(Table1[[#This Row],[Dir]])))),2),0) -> 0 | L8: 0.0002
B9: 0.3 | C9: =ka*EXP(-Table2[[#This Row],[Speed]]/ktc) -> 0.0244292172 | E9: 3 | F9: 0.0002758238937 | H9: 2.6 | I9: 9 | J9: =IFERROR(ROUND(IMREAL(IMEXP(COMPLEX(LN(Table1[[#This Row],[Speed]]),RADIANS(Table1[[#This Row],[Dir]])))),2),0) -> 2.57 | K9: =IFERROR(ROUND(IMAGINARY(IMEXP(COMPLEX(LN(Table1[[#This Row],[Speed]]),RADIANS(Table1[[#This Row],[Dir]])))),2),0) -> 0.41 | L9: 0.0002
B10: 0.4 | C10: =ka*EXP(-Table2[[#This Row],[Speed]]/ktc) -> 0.02382605768 | E10: 4 | F10: 0.0003905208805 | H10: 1.3 | I10: 10 | J10: =IFERROR(ROUND(IMREAL(IMEXP(COMPLEX(LN(Table1[[#This Row],[Speed]]),RADIANS(Table1[[#This Row],[Dir]])))),2),0) -> 1.28 | K10: =IFERROR(ROUND(IMAGINARY(IMEXP(COMPLEX(LN(Table1[[#This Row],[Speed]]),RADIANS(Table1[[#This Row],[Dir]])))),2),0) -> 0.23 | L10: 0.0002
B11: 0.5 | C11: =ka*EXP(-Table2[[#This Row],[Speed]]/ktc) -> 0.02323779022 | E11: 5 | F11: 0.0005233863337 | H11: 2.9 | I11: 10 | J11: =IFERROR(ROUND(IMREAL(IMEXP(COMPLEX(LN(Table1[[#This Row],[Speed]]),RADIANS(Table1[[#This Row],[Dir]])))),2),0) -> 2.86 | K11: =IFERROR(ROUND(IMAGINARY(IMEXP(COMPLEX(LN(Table1[[#This Row],[Speed]]),RADIANS(Table1[[#This Row],[Dir]])))),2),0) -> 0.5 | L11: 0.0002
B12: 0.6 | C12: =ka*EXP(-Table2[[#This Row],[Speed]]/ktc) -> 0.02266404713 | E12: 6 | F12: 0.0006734090671 | H12: 0 | I12: 12 | J12: =IFERROR(ROUND(IMREAL(IMEXP(COMPLEX(LN(Table1[[#This Row],[Speed]]),RADIANS(Table1[[#This Row],[Dir]])))),2),0) -> 0 | K12: =IFERROR(ROUND(IMAGINARY(IMEXP(COMPLEX(LN(Table1[[#This Row],[Speed]]),RADIANS(Table1[[#This Row],[Dir]])))),2),0) -> 0 | L12: 0.0002
B13: 0.7 | C13: =ka*EXP(-Table2[[#This Row],[Speed]]/ktc) -> 0.02210446982 | E13: 7 | F13: 0.0008394473171 | H13: 1.5 | I13: 13 | J13: =IFERROR(ROUND(IMREAL(IMEXP(COMPLEX(LN(Table1[[#This Row],[Speed]]),RADIANS(Table1[[#This Row],[Dir]])))),2),0) -> 1.46 | K13: =IFERROR(ROUND(IMAGINARY(IMEXP(COMPLEX(LN(Table1[[#This Row],[Speed]]),RADIANS(Table1[[#This Row],[Dir]])))),2),0) -> 0.34 | L13: 0.0002
B14: 0.8 | C14: =ka*EXP(-Table2[[#This Row],[Speed]]/ktc) -> 0.02155870851 | E14: 8 | F14: 0.001020237432 | H14: 1.8 | I14: 14 | J14: =IFERROR(ROUND(IMREAL(IMEXP(COMPLEX(LN(Table1[[#This Row],[Speed]]),RADIANS(Table1[[#This Row],[Dir]])))),2),0) -> 1.75 | K14: =IFERROR(ROUND(IMAGINARY(IMEXP(COMPLEX(LN(Table1[[#This Row],[Speed]]),RADIANS(Table1[[#This Row],[Dir]])))),2),0) -> 0.44 | L14: 0.0002
B15: 0.9 | C15: =ka*EXP(-Table2[[#This Row],[Speed]]/ktc) -> 0.0210264221 | E15: 9 | F15: 0.001214403491 | H15: 2.6 | I15: 14 | J15: =IFERROR(ROUND(IMREAL(IMEXP(COMPLEX(LN(Table1[[#This Row],[Speed]]),RADIANS(Table1[[#This Row],[Dir]])))),2),0) -> 2.52 | K15: =IFERROR(ROUND(IMAGINARY(IMEXP(COMPLEX(LN(Table1[[#This Row],[Speed]]),RADIANS(Table1[[#This Row],[Dir]])))),2),0) -> 0.63 | L15: 0.0002
B16: 1 | C16: =ka*EXP(-Table2[[#This Row],[Speed]]/ktc) -> 0.02050727789 | E16: 10 | F16: 0.001420467771 | H16: 0.7 | I16: 15 | J16: =IFERROR(ROUND(IMREAL(IMEXP(COMPLEX(LN(Table1[[#This Row],[Speed]]),RADIANS(Table1[[#This Row],[Dir]])))),2),0) -> 0.68 | K16: =IFERROR(ROUND(IMAGINARY(IMEXP(COMPLEX(LN(Table1[[#This Row],[Speed]]),RADIANS(Table1[[#This Row],[Dir]])))),2),0) -> 0.18 | L16: 0.0002
B17: 1.1 | C17: =ka*EXP(-Table2[[#This Row],[Speed]]/ktc) -> 0.0200009514 | E17: 11 | F17: 0.001636862001 | H17: 3.8 | I17: 15 | J17: =IFERROR(ROUND(IMREAL(IMEXP(COMPLEX(LN(Table1[[#This Row],[Speed]]),RADIANS(Table1[[#This Row],[Dir]])))),2),0) -> 3.67 | K17: =IFERROR(ROUND(IMAGINARY(IMEXP(COMPLEX(LN(Table1[[#This Row],[Speed]]),RADIANS(Table1[[#This Row],[Dir]])))),2),0) -> 0.98 | L17: 0.0002
B18: 1.2 | C18: =ka*EXP(-Table2[[#This Row],[Speed]]/ktc) -> 0.01950712615 | E18: 12 | F18: 0.001861939288 | H18: 0 | I18: 16 | J18: =IFERROR(ROUND(IMREAL(IMEXP(COMPLEX(LN(Table1[[#This Row],[Speed]]),RADIANS(Table1[[#This Row],[Dir]])))),2),0) -> 0 | K18: =IFERROR(ROUND(IMAGINARY(IMEXP(COMPLEX(LN(Table1[[#This Row],[Speed]]),RADIANS(Table1[[#This Row],[Dir]])))),2),0) -> 0 | L18: 0.0002
B19: 1.3 | C19: =ka*EXP(-Table2[[#This Row],[Speed]]/ktc) -> 0.01902549349 | E19: 13 | F19: 0.002093986659 | H19: 1.2 | I19: 16 | J19: =IFERROR(ROUND(IMREAL(IMEXP(COMPLEX(LN(Table1[[#This Row],[Speed]]),RADIANS(Table1[[#This Row],[Dir]])))),2),0) -> 1.15 | K19: =IFERROR(ROUND(IMAGINARY(IMEXP(COMPLEX(LN(Table1[[#This Row],[Speed]]),RADIANS(Table1[[#This Row],[Dir]])))),2),0) -> 0.33 | L19: 0.0002
B20: 1.4 | C20: =ka*EXP(-Table2[[#This Row],[Speed]]/ktc) -> 0.01855575238 | E20: 14 | F20: 0.002331238094 | H20: 5.1 | I20: 16 | J20: =IFERROR(ROUND(IMREAL(IMEXP(COMPLEX(LN(Table1[[#This Row],[Speed]]),RADIANS(Table1[[#This Row],[Dir]])))),2),0) -> 4.9 | K20: =IFERROR(ROUND(IMAGINARY(IMEXP(COMPLEX(LN(Table1[[#This Row],[Speed]]),RADIANS(Table1[[#This Row],[Dir]])))),2),0) -> 1.41 | L20: 0.0002
B21: 1.5 | C21: =ka*EXP(-Table2[[#This Row],[Speed]]/ktc) -> 0.01809760922 | E21: 15 | F21: 0.002571887965 | H21: 5.5 | I21: 16 | J21: =IFERROR(ROUND(IMREAL(IMEXP(COMPLEX(LN(Table1[[#This Row],[Speed]]),RADIANS(Table1[[#This Row],[Dir]])))),2),0) -> 5.29 | K21: =IFERROR(ROUND(IMAGINARY(IMEXP(COMPLEX(LN(Table1[[#This Row],[Speed]]),RADIANS(Table1[[#This Row],[Dir]])))),2),0) -> 1.52 | L21: 0.0002
B22: 1.6 | C22: =ka*EXP(-Table2[[#This Row],[Speed]]/ktc) -> 0.01765077766 | E22: 16 | F22: 0.002814104782 | H22: 0.3 | I22: 17 | J22: =IFERROR(ROUND(IMREAL(IMEXP(COMPLEX(LN(Table1[[#This Row],[Speed]]),RADIANS(Table1[[#This Row],[Dir]])))),2),0) -> 0.29 | K22: =IFERROR(ROUND(IMAGINARY(IMEXP(COMPLEX(LN(Table1[[#This Row],[Speed]]),RADIANS(Table1[[#This Row],[Dir]])))),2),0) -> 0.09 | L22: 0.0002
B23: 1.7 | C23: =ka*EXP(-Table2[[#This Row],[Speed]]/ktc) -> 0.0172149784 | E23: 17 | F23: 0.003056045129 | H23: 1.2 | I23: 17 | J23: =IFERROR(ROUND(IMREAL(IMEXP(COMPLEX(LN(Table1[[#This Row],[Speed]]),RADIANS(Table1[[#This Row],[Dir]])))),2),0) -> 1.15 | K23: =IFERROR(ROUND(IMAGINARY(IMEXP(COMPLEX(LN(Table1[[#This Row],[Speed]]),RADIANS(Table1[[#This Row],[Dir]])))),2),0) -> 0.35 | L23: 0.0002
B24: 1.8 | C24: =ka*EXP(-Table2[[#This Row],[Speed]]/ktc) -> 0.01678993907 | E24: 18 | F24: 0.003295867693 | H24: 1.7 | I24: 17 | J24: =IFERROR(ROUND(IMREAL(IMEXP(COMPLEX(LN(Table1[[#This Row],[Speed]]),RADIANS(Table1[[#This Row],[Dir]])))),2),0) -> 1.63 | K24: =IFERROR(ROUND(IMAGINARY(IMEXP(COMPLEX(LN(Table1[[#This Row],[Speed]]),RADIANS(Table1[[#This Row],[Dir]])))),2),0) -> 0.5 | L24: 0.0002
B25: 1.9 | C25: =ka*EXP(-Table2[[#This Row],[Speed]]/ktc) -> 0.016375394 | E25: 19 | F25: 0.00353174728 | H25: 4.5 | I25: 18 | J25: =IFERROR(ROUND(IMREAL(IMEXP(COMPLEX(LN(Table1[[#This Row],[Speed]]),RADIANS(Table1[[#This Row],[Dir]])))),2),0) -> 4.28 | K25: =IFERROR(ROUND(IMAGINARY(IMEXP(COMPLEX(LN(Table1[[#This Row],[Speed]]),RADIANS(Table1[[#This Row],[Dir]])))),2),0) -> 1.39 | L25: 0.0002
B26: 2 | C26: =ka*EXP(-Table2[[#This Row],[Speed]]/ktc) -> 0.01597108408 | E26: 20 | F26: 0.003761888704 | H26: 1.2 | I26: 19 | J26: =IFERROR(ROUND(IMREAL(IMEXP(COMPLEX(LN(Table1[[#This Row],[Speed]]),RADIANS(Table1[[#This Row],[Dir]])))),2),0) -> 1.13 | K26: =IFERROR(ROUND(IMAGINARY(IMEXP(COMPLEX(LN(Table1[[#This Row],[Speed]]),RADIANS(Table1[[#This Row],[Dir]])))),2),0) -> 0.39 | L26: 0.0002
B27: 2.1 | C27: =ka*EXP(-Table2[[#This Row],[Speed]]/ktc) -> 0.01557675661 | E27: 21 | F27: 0.003984540449 | H27: 1.4 | I27: 19 | J27: =IFERROR(ROUND(IMREAL(IMEXP(COMPLEX(LN(Table1[[#This Row],[Speed]]),RADIANS(Table1[[#This Row],[Dir]])))),2),0) -> 1.32 | K27: =IFERROR(ROUND(IMAGINARY(IMEXP(COMPLEX(LN(Table1[[#This Row],[Speed]]),RADIANS(Table1[[#This Row],[Dir]])))),2),0) -> 0.46 | L27: 0.0002
B28: 2.2 | C28: =ka*EXP(-Table2[[#This Row],[Speed]]/ktc) -> 0.01519216512 | E28: 22 | F28: 0.004198008002 | H28: 5.9 | I28: 19 | J28: =IFERROR(ROUND(IMREAL(IMEXP(COMPLEX(LN(Table1[[#This Row],[Speed]]),RADIANS(Table1[[#This Row],[Dir]])))),2),0) -> 5.58 | K28: =IFERROR(ROUND(IMAGINARY(IMEXP(COMPLEX(LN(Table1[[#This Row],[Speed]]),RADIANS(Table1[[#This Row],[Dir]])))),2),0) -> 1.92 | L28: 0.0002
B29: 2.3 | C29: =ka*EXP(-Table2[[#This Row],[Speed]]/ktc) -> 0.01481706923 | E29: 23 | F29: 0.004400666745 | H29: 0.2 | I29: 20 | J29: =IFERROR(ROUND(IMREAL(IMEXP(COMPLEX(LN(Table1[[#This Row],[Speed]]),RADIANS(Table1[[#This Row],[Dir]])))),2),0) -> 0.19 | K29: =IFERROR(ROUND(IMAGINARY(IMEXP(COMPLEX(LN(Table1[[#This Row],[Speed]]),RADIANS(Table1[[#This Row],[Dir]])))),2),0) -> 0.07 | L29: 0.0002
B30: 2.4 | C30: =ka*EXP(-Table2[[#This Row],[Speed]]/ktc) -> 0.01445123448 | E30: 24 | F30: 0.004590974323 | H30: 0.9 | I30: 20 | J30: =IFERROR(ROUND(IMREAL(IMEXP(COMPLEX(LN(Table1[[#This Row],[Speed]]),RADIANS(Table1[[#This Row],[Dir]])))),2),0) -> 0.85 | K30: =IFERROR(ROUND(IMAGINARY(IMEXP(COMPLEX(LN(Table1[[#This Row],[Speed]]),RADIANS(Table1[[#This Row],[Dir]])))),2),0) -> 0.31 | L30: 0.0002
B31: 2.5 | C31: =ka*EXP(-Table2[[#This Row],[Speed]]/ktc) -> 0.01409443223 | E31: 25 | F31: 0.004767482381 | H31: 1.8 | I31: 20 | J31: =IFERROR(ROUND(IMREAL(IMEXP(COMPLEX(LN(Table1[[#This Row],[Speed]]),RADIANS(Table1[[#This Row],[Dir]])))),2),0) -> 1.69 | K31: =IFERROR(ROUND(IMAGINARY(IMEXP(COMPLEX(LN(Table1[[#This Row],[Speed]]),RADIANS(Table1[[#This Row],[Dir]])))),2),0) -> 0.62 | L31: 0.0002
B32: 2.6 | C32: =ka*EXP(-Table2[[#This Row],[Speed]]/ktc) -> 0.01374643946 | E32: 26 | F32: 0.004928847585 | H32: 6.4 | I32: 20 | J32: =IFERROR(ROUND(IMREAL(IMEXP(COMPLEX(LN(Table1[[#This Row],[Speed]]),RADIANS(Table1[[#This Row],[Dir]])))),2),0) -> 6.01 | K32: =IFERROR(ROUND(IMAGINARY(IMEXP(COMPLEX(LN(Table1[[#This Row],[Speed]]),RADIANS(Table1[[#This Row],[Dir]])))),2),0) -> 2.19 | L32: 0.0002
B33: 2.7 | C33: =ka*EXP(-Table2[[#This Row],[Speed]]/ktc) -> 0.01340703866 | E33: 27 | F33: 0.005073841849 | H33: 0.4 | I33: 21 | J33: =IFERROR(ROUND(IMREAL(IMEXP(COMPLEX(LN(Table1[[#This Row],[Speed]]),RADIANS(Table1[[#This Row],[Dir]])))),2),0) -> 0.37 | K33: =IFERROR(ROUND(IMAGINARY(IMEXP(COMPLEX(LN(Table1[[#This Row],[Speed]]),RADIANS(Table1[[#This Row],[Dir]])))),2),0) -> 0.14 | L33: 0.0002
B34: 2.8 | C34: =ka*EXP(-Table2[[#This Row],[Speed]]/ktc) -> 0.0130760177 | E34: 28 | F34: 0.00520136168 | H34: 0.7 | I34: 21 | J34: =IFERROR(ROUND(IMREAL(IMEXP(COMPLEX(LN(Table1[[#This Row],[Speed]]),RADIANS(Table1[[#This Row],[Dir]])))),2),0) -> 0.65 | K34: =IFERROR(ROUND(IMAGINARY(IMEXP(COMPLEX(LN(Table1[[#This Row],[Speed]]),RADIANS(Table1[[#This Row],[Dir]])))),2),0) -> 0.25 | L34: 0.0002
B35: 2.9 | C35: =ka*EXP(-Table2[[#This Row],[Speed]]/ktc) -> 0.01275316967 | E35: 29 | F35: 0.005310436573 | H35: 1.7 | I35: 21 | J35: =IFERROR(ROUND(IMREAL(IMEXP(COMPLEX(LN(Table1[[#This Row],[Speed]]),RADIANS(Table1[[#This Row],[Dir]])))),2),0) -> 1.59 | K35: =IFERROR(ROUND(IMAGINARY(IMEXP(COMPLEX(LN(Table1[[#This Row],[Speed]]),RADIANS(Table1[[#This Row],[Dir]])))),2),0) -> 0.61 | L35: 0.0002
B36: 3 | C36: =ka*EXP(-Table2[[#This Row],[Speed]]/ktc) -> 0.01243829279 | E36: 30 | F36: 0.005400236403 | H36: 2 | I36: 21 | J36: =IFERROR(ROUND(IMREAL(IMEXP(COMPLEX(LN(Table1[[#This Row],[Speed]]),RADIANS(Table1[[#This Row],[Dir]])))),2),0) -> 1.87 | K36: =IFERROR(ROUND(IMAGINARY(IMEXP(COMPLEX(LN(Table1[[#This Row],[Speed]]),RADIANS(Table1[[#This Row],[Dir]])))),2),0) -> 0.72 | L36: 0.0002
B37: 3.1 | C37: =ka*EXP(-Table2[[#This Row],[Speed]]/ktc) -> 0.01213119025 | E37: 31 | F37: 0.00547007774 | H37: 2.4 | I37: 21 | J37: =IFERROR(ROUND(IMREAL(IMEXP(COMPLEX(LN(Table1[[#This Row],[Speed]]),RADIANS(Table1[[#This Row],[Dir]])))),2),0) -> 2.24 | K37: =IFERROR(ROUND(IMAGINARY(IMEXP(COMPLEX(LN(Table1[[#This Row],[Speed]]),RADIANS(Table1[[#This Row],[Dir]])))),2),0) -> 0.86 | L37: 0.0002
B38: 3.2 | C38: =ka*EXP(-Table2[[#This Row],[Speed]]/ktc) -> 0.01183167009 | E38: 32 | F38: 0.005519429049 | H38: 2.6 | I38: 21 | J38: =IFERROR(ROUND(IMREAL(IMEXP(COMPLEX(LN(Table1[[#This Row],[Speed]]),RADIANS(Table1[[#This Row],[Dir]])))),2),0) -> 2.43 | K38: =IFERROR(ROUND(IMAGINARY(IMEXP(COMPLEX(LN(Table1[[#This Row],[Speed]]),RADIANS(Table1[[#This Row],[Dir]])))),2),0) -> 0.93 | L38: 0.0002
B39: 3.3 | C39: =ka*EXP(-Table2[[#This Row],[Speed]]/ktc) -> 0.01153954512 | E39: 33 | F39: 0.005547914736 | H39: 4.5 | I39: 21 | J39: =IFERROR(ROUND(IMREAL(IMEXP(COMPLEX(LN(Table1[[#This Row],[Speed]]),RADIANS(Table1[[#This Row],[Dir]])))),2),0) -> 4.2 | K39: =IFERROR(ROUND(IMAGINARY(IMEXP(COMPLEX(LN(Table1[[#This Row],[Speed]]),RADIANS(Table1[[#This Row],[Dir]])))),2),0) -> 1.61 | L39: 0.0002
B40: 3.4 | C40: =ka*EXP(-Table2[[#This Row],[Speed]]/ktc) -> 0.01125463273 | E40: 34 | F40: 0.005555318008 | H40: 6.2 | I40: 21 | J40: =IFERROR(ROUND(IMREAL(IMEXP(COMPLEX(LN(Table1[[#This Row],[Speed]]),RADIANS(Table1[[#This Row],[Dir]])))),2),0) -> 5.79 | K40: =IFERROR(ROUND(IMAGINARY(IMEXP(COMPLEX(LN(Table1[[#This Row],[Speed]]),RADIANS(Table1[[#This Row],[Dir]])))),2),0) -> 2.22 | L40: 0.0002
B41: 3.5 | C41: =ka*EXP(-Table2[[#This Row],[Speed]]/ktc) -> 0.01097675486 | E41: 35 | F41: 0.005541582522 | H41: 6.3 | I41: 21 | J41: =IFERROR(ROUND(IMREAL(IMEXP(COMPLEX(LN(Table1[[#This Row],[Speed]]),RADIANS(Table1[[#This Row],[Dir]])))),2),0) -> 5.88 | K41: =IFERROR(ROUND(IMAGINARY(IMEXP(COMPLEX(LN(Table1[[#This Row],[Speed]]),RADIANS(Table1[[#This Row],[Dir]])))),2),0) -> 2.26 | L41: 0.0002
B42: 3.6 | C42: =ka*EXP(-Table2[[#This Row],[Speed]]/ktc) -> 0.01070573782 | E42: 36 | F42: 0.005506812813 | H42: 0.5 | I42: 22 | J42: =IFERROR(ROUND(IMREAL(IMEXP(COMPLEX(LN(Table1[[#This Row],[Speed]]),RADIANS(Table1[[#This Row],[Dir]])))),2),0) -> 0.46 | K42: =IFERROR(ROUND(IMAGINARY(IMEXP(COMPLEX(LN(Table1[[#This Row],[Speed]]),RADIANS(Table1[[#This Row],[Dir]])))),2),0) -> 0.19 | L42: 0.0002
B43: 3.7 | C43: =ka*EXP(-Table2[[#This Row],[Speed]]/ktc) -> 0.01044141221 | E43: 37 | F43: 0.005451273499 | H43: 0.5 | I43: 22 | J43: =IFERROR(ROUND(IMREAL(IMEXP(COMPLEX(LN(Table1[[#This Row],[Speed]]),RADIANS(Table1[[#This Row],[Dir]])))),2),0) -> 0.46 | K43: =IFERROR(ROUND(IMAGINARY(IMEXP(COMPLEX(LN(Table1[[#This Row],[Speed]]),RADIANS(Table1[[#This Row],[Dir]])))),2),0) -> 0.19 | L43: 0.0002
B44: 3.8 | C44: =ka*EXP(-Table2[[#This Row],[Speed]]/ktc) -> 0.01018361282 | E44: 38 | F44: 0.005375387269 | H44: 3.7 | I44: 22 | J44: =IFERROR(ROUND(IMREAL(IMEXP(COMPLEX(LN(Table1[[#This Row],[Speed]]),RADIANS(Table1[[#This Row],[Dir]])))),2),0) -> 3.43 | K44: =IFERROR(ROUND(IMAGINARY(IMEXP(COMPLEX(LN(Table1[[#This Row],[Speed]]),RADIANS(Table1[[#This Row],[Dir]])))),2),0) -> 1.39 | L44: 0.0002
B45: 3.9 | C45: =ka*EXP(-Table2[[#This Row],[Speed]]/ktc) -> 0.009932178525 | E45: 39 | F45: 0.005279731662 | H45: 0.7 | I45: 23 | J45: =IFERROR(ROUND(IMREAL(IMEXP(COMPLEX(LN(Table1[[#This Row],[Speed]]),RADIANS(Table1[[#This Row],[Dir]])))),2),0) -> 0.64 | K45: =IFERROR(ROUND(IMAGINARY(IMEXP(COMPLEX(LN(Table1[[#This Row],[Speed]]),RADIANS(Table1[[#This Row],[Dir]])))),2),0) -> 0.27 | L45: 0.0002
B46: 4 | C46: =ka*EXP(-Table2[[#This Row],[Speed]]/ktc) -> 0.009686952164 | E46: 40 | F46: 0.005165034675 | H46: 1.1 | I46: 23 | J46: =IFERROR(ROUND(IMREAL(IMEXP(COMPLEX(LN(Table1[[#This Row],[Speed]]),RADIANS(Table1[[#This Row],[Dir]])))),2),0) -> 1.01 | K46: =IFERROR(ROUND(IMAGINARY(IMEXP(COMPLEX(LN(Table1[[#This Row],[Speed]]),RADIANS(Table1[[#This Row],[Dir]])))),2),0) -> 0.43 | L46: 0.0002
B47: 4.1 | C47: =ka*EXP(-Table2[[#This Row],[Speed]]/ktc) -> 0.009447780463 | E47: 41 | F47: 0.005032169222 | H47: 1.9 | I47: 23 | J47: =IFERROR(ROUND(IMREAL(IMEXP(COMPLEX(LN(Table1[[#This Row],[Speed]]),RADIANS(Table1[[#This Row],[Dir]])))),2),0) -> 1.75 | K47: =IFERROR(ROUND(IMAGINARY(IMEXP(COMPLEX(LN(Table1[[#This Row],[Speed]]),RADIANS(Table1[[#This Row],[Dir]])))),2),0) -> 0.74 | L47: 0.0002
B48: 4.2 | C48: =ka*EXP(-Table2[[#This Row],[Speed]]/ktc) -> 0.009214513932 | E48: 42 | F48: 0.004882146488 | H48: 2.8 | I48: 23 | J48: =IFERROR(ROUND(IMREAL(IMEXP(COMPLEX(LN(Table1[[#This Row],[Speed]]),RADIANS(Table1[[#This Row],[Dir]])))),2),0) -> 2.58 | K48: =IFERROR(ROUND(IMAGINARY(IMEXP(COMPLEX(LN(Table1[[#This Row],[Speed]]),RADIANS(Table1[[#This Row],[Dir]])))),2),0) -> 1.09 | L48: 0.0002
B49: 4.3 | C49: =ka*EXP(-Table2[[#This Row],[Speed]]/ktc) -> 0.008987006772 | E49: 43 | F49: 0.004716108238 | H49: 4.3 | I49: 23 | J49: =IFERROR(ROUND(IMREAL(IMEXP(COMPLEX(LN(Table1[[#This Row],[Speed]]),RADIANS(Table1[[#This Row],[Dir]])))),2),0) -> 3.96 | K49: =IFERROR(ROUND(IMAGINARY(IMEXP(COMPLEX(LN(Table1[[#This Row],[Speed]]),RADIANS(Table1[[#This Row],[Dir]])))),2),0) -> 1.68 | L49: 0.0002
B50: 4.4 | C50: =ka*EXP(-Table2[[#This Row],[Speed]]/ktc) -> 0.008765116784 | E50: 44 | F50: 0.004535318123 | H50: 4.4 | I50: 23 | J50: =IFERROR(ROUND(IMREAL(IMEXP(COMPLEX(LN(Table1[[#This Row],[Speed]]),RADIANS(Table1[[#This Row],[Dir]])))),2),0) -> 4.05 | K50: =IFERROR(ROUND(IMAGINARY(IMEXP(COMPLEX(LN(Table1[[#This Row],[Speed]]),RADIANS(Table1[[#This Row],[Dir]])))),2),0) -> 1.72 | L50: 0.0002
B51: 4.5 | C51: =ka*EXP(-Table2[[#This Row],[Speed]]/ktc) -> 0.00854870528 | E51: 45 | F51: 0.004341152065 | H51: 0.5 | I51: 24 | J51: =IFERROR(ROUND(IMREAL(IMEXP(COMPLEX(LN(Table1[[#This Row],[Speed]]),RADIANS(Table1[[#This Row],[Dir]])))),2),0) -> 0.46 | K51: =IFERROR(ROUND(IMAGINARY(IMEXP(COMPLEX(LN(Table1[[#This Row],[Speed]]),RADIANS(Table1[[#This Row],[Dir]])))),2),0) -> 0.2 | L51: 0.0002
B52: 4.6 | C52: =ka*EXP(-Table2[[#This Row],[Speed]]/ktc) -> 0.008337636994 | E52: 46 | F52: 0.004135087784 | H52: 1.3 | I52: 24 | J52: =IFERROR(ROUND(IMREAL(IMEXP(COMPLEX(LN(Table1[[#This Row],[Speed]]),RADIANS(Table1[[#This Row],[Dir]])))),2),0) -> 1.19 | K52: =IFERROR(ROUND(IMAGINARY(IMEXP(COMPLEX(LN(Table1[[#This Row],[Speed]]),RADIANS(Table1[[#This Row],[Dir]])))),2),0) -> 0.53 | L52: 0.0002
B53: 4.7 | C53: =ka*EXP(-Table2[[#This Row],[Speed]]/ktc) -> 0.008131780004 | E53: 47 | F53: 0.003918693555 | H53: 4.8 | I53: 24 | J53: =IFERROR(ROUND(IMREAL(IMEXP(COMPLEX(LN(Table1[[#This Row],[Speed]]),RADIANS(Table1[[#This Row],[Dir]])))),2),0) -> 4.39 | K53: =IFERROR(ROUND(IMAGINARY(IMEXP(COMPLEX(LN(Table1[[#This Row],[Speed]]),RADIANS(Table1[[#This Row],[Dir]])))),2),0) -> 1.95 | L53: 0.0002
B54: 4.8 | C54: =ka*EXP(-Table2[[#This Row],[Speed]]/ktc) -> 0.00793100564 | E54: 48 | F54: 0.003693616267 | H54: 0 | I54: 25 | J54: =IFERROR(ROUND(IMREAL(IMEXP(COMPLEX(LN(Table1[[#This Row],[Speed]]),RADIANS(Table1[[#This Row],[Dir]])))),2),0) -> 0 | K54: =IFERROR(ROUND(IMAGINARY(IMEXP(COMPLEX(LN(Table1[[#This Row],[Speed]]),RADIANS(Table1[[#This Row],[Dir]])))),2),0) -> 0 | L54: 0.0002
B55: 4.9 | C55: =ka*EXP(-Table2[[#This Row],[Speed]]/ktc) -> 0.007735188413 | E55: 49 | F55: 0.003461568896 | H55: 1.3 | I55: 25 | J55: =IFERROR(ROUND(IMREAL(IMEXP(COMPLEX(LN(Table1[[#This Row],[Speed]]),RADIANS(Table1[[#This Row],[Dir]])))),2),0) -> 1.18 | K55: =IFERROR(ROUND(IMAGINARY(IMEXP(COMPLEX(LN(Table1[[#This Row],[Speed]]),RADIANS(Table1[[#This Row],[Dir]])))),2),0) -> 0.55 | L55: 0.0002
B56: 5 | C56: =ka*EXP(-Table2[[#This Row],[Speed]]/ktc) -> 0.007544205931 | E56: 50 | F56: 0.003224317462 | H56: 3.3 | I56: 25 | J56: =IFERROR(ROUND(IMREAL(IMEXP(COMPLEX(LN(Table1[[#This Row],[Speed]]),RADIANS(Table1[[#This Row],[Dir]])))),2),0) -> 2.99 | K56: =IFERROR(ROUND(IMAGINARY(IMEXP(COMPLEX(LN(Table1[[#This Row],[Speed]]),RADIANS(Table1[[#This Row],[Dir]])))),2),0) -> 1.39 | L56: 0.0002
B57: 5.1 | C57: =ka*EXP(-Table2[[#This Row],[Speed]]/ktc) -> 0.007357938822 | E57: 51 | F57: 0.00298366759 | H57: 7.5 | I57: 25 | J57: =IFERROR(ROUND(IMREAL(IMEXP(COMPLEX(LN(Table1[[#This Row],[Speed]]),RADIANS(Table1[[#This Row],[Dir]])))),2),0) -> 6.8 | K57: =IFERROR(ROUND(IMAGINARY(IMEXP(COMPLEX(LN(Table1[[#This Row],[Speed]]),RADIANS(Table1[[#This Row],[Dir]])))),2),0) -> 3.17 | L57: 0.0002
B58: 5.2 | C58: =ka*EXP(-Table2[[#This Row],[Speed]]/ktc) -> 0.007176270666 | E58: 52 | F58: 0.002741450773 | H58: 0.5 | I58: 26 | J58: =IFERROR(ROUND(IMREAL(IMEXP(COMPLEX(LN(Table1[[#This Row],[Speed]]),RADIANS(Table1[[#This Row],[Dir]])))),2),0) -> 0.45 | K58: =IFERROR(ROUND(IMAGINARY(IMEXP(COMPLEX(LN(Table1[[#This Row],[Speed]]),RADIANS(Table1[[#This Row],[Dir]])))),2),0) -> 0.22 | L58: 0.0002
B59: 5.3 | C59: =ka*EXP(-Table2[[#This Row],[Speed]]/ktc) -> 0.006999087912 | E59: 53 | F59: 0.002499510427 | H59: 0.8 | I59: 26 | J59: =IFERROR(ROUND(IMREAL(IMEXP(COMPLEX(LN(Table1[[#This Row],[Speed]]),RADIANS(Table1[[#This Row],[Dir]])))),2),0) -> 0.72 | K59: =IFERROR(ROUND(IMAGINARY(IMEXP(COMPLEX(LN(Table1[[#This Row],[Speed]]),RADIANS(Table1[[#This Row],[Dir]])))),2),0) -> 0.35 | L59: 0.0002
B60: 5.4 | C60: =ka*EXP(-Table2[[#This Row],[Speed]]/ktc) -> 0.006826279815 | E60: 54 | F60: 0.002259687863 | H60: 1 | I60: 26 | J60: =IFERROR(ROUND(IMREAL(IMEXP(COMPLEX(LN(Table1[[#This Row],[Speed]]),RADIANS(Table1[[#This Row],[Dir]])))),2),0) -> 0.9 | K60: =IFERROR(ROUND(IMAGINARY(IMEXP(COMPLEX(LN(Table1[[#This Row],[Speed]]),RADIANS(Table1[[#This Row],[Dir]])))),2),0) -> 0.44 | L60: 0.0002
B61: 5.5 | C61: =ka*EXP(-Table2[[#This Row],[Speed]]/ktc) -> 0.006657738366 | E61: 55 | F61: 0.002023808276 | H61: 1.9 | I61: 26 | J61: =IFERROR(ROUND(IMREAL(IMEXP(COMPLEX(LN(Table1[[#This Row],[Speed]]),RADIANS(Table1[[#This Row],[Dir]])))),2),0) -> 1.71 | K61: =IFERROR(ROUND(IMAGINARY(IMEXP(COMPLEX(LN(Table1[[#This Row],[Speed]]),RADIANS(Table1[[#This Row],[Dir]])))),2),0) -> 0.83 | L61: 0.0002
B62: 5.6 | C62: =ka*EXP(-Table2[[#This Row],[Speed]]/ktc) -> 0.00649335822 | E62: 56 | F62: 0.001793666852 | H62: 2.5 | I62: 26 | J62: =IFERROR(ROUND(IMREAL(IMEXP(COMPLEX(LN(Table1[[#This Row],[Speed]]),RADIANS(Table1[[#This Row],[Dir]])))),2),0) -> 2.25 | K62: =IFERROR(ROUND(IMAGINARY(IMEXP(COMPLEX(LN(Table1[[#This Row],[Speed]]),RADIANS(Table1[[#This Row],[Dir]])))),2),0) -> 1.1 | L62: 0.0002
B63: 5.7 | C63: =ka*EXP(-Table2[[#This Row],[Speed]]/ktc) -> 0.006333036635 | E63: 57 | F63: 0.001571015107 | H63: 3.1 | I63: 26 | J63: =IFERROR(ROUND(IMREAL(IMEXP(COMPLEX(LN(Table1[[#This Row],[Speed]]),RADIANS(Table1[[#This Row],[Dir]])))),2),0) -> 2.79 | K63: =IFERROR(ROUND(IMAGINARY(IMEXP(COMPLEX(LN(Table1[[#This Row],[Speed]]),RADIANS(Table1[[#This Row],[Dir]])))),2),0) -> 1.36 | L63: 0.0002
B64: 5.8 | C64: =ka*EXP(-Table2[[#This Row],[Speed]]/ktc) -> 0.006176673403 | E64: 58 | F64: 0.001357547554 | H64: 3.4 | I64: 26 | J64: =IFERROR(ROUND(IMREAL(IMEXP(COMPLEX(LN(Table1[[#This Row],[Speed]]),RADIANS(Table1[[#This Row],[Dir]])))),2),0) -> 3.06 | K64: =IFERROR(ROUND(IMAGINARY(IMEXP(COMPLEX(LN(Table1[[#This Row],[Speed]]),RADIANS(Table1[[#This Row],[Dir]])))),2),0) -> 1.49 | L64: 0.0002
B65: 5.9 | C65: =ka*EXP(-Table2[[#This Row],[Speed]]/ktc) -> 0.006024170793 | E65: 59 | F65: 0.001154888811 | H65: 6.1 | I65: 26 | J65: =IFERROR(ROUND(IMREAL(IMEXP(COMPLEX(LN(Table1[[#This Row],[Speed]]),RADIANS(Table1[[#This Row],[Dir]])))),2),0) -> 5.48 | K65: =IFERROR(ROUND(IMAGINARY(IMEXP(COMPLEX(LN(Table1[[#This Row],[Speed]]),RADIANS(Table1[[#This Row],[Dir]])))),2),0) -> 2.67 | L65: 0.0002
B66: 6 | C66: =ka*EXP(-Table2[[#This Row],[Speed]]/ktc) -> 0.005875433486 | E66: 60 | F66: 0.0009645812324 | H66: 1.4 | I66: 27 | J66: =IFERROR(ROUND(IMREAL(IMEXP(COMPLEX(LN(Table1[[#This Row],[Speed]]),RADIANS(Table1[[#This Row],[Dir]])))),2),0) -> 1.25 | K66: =IFERROR(ROUND(IMAGINARY(IMEXP(COMPLEX(LN(Table1[[#This Row],[Speed]]),RADIANS(Table1[[#This Row],[Dir]])))),2),0) -> 0.64 | L66: 0.0002
B67: 6.1 | C67: =ka*EXP(-Table2[[#This Row],[Speed]]/ktc) -> 0.005730368517 | E67: 61 | F67: 0.0007880731746 | H67: 1.5 | I67: 27 | J67: =IFERROR(ROUND(IMREAL(IMEXP(COMPLEX(LN(Table1[[#This Row],[Speed]]),RADIANS(Table1[[#This Row],[Dir]])))),2),0) -> 1.34 | K67: =IFERROR(ROUND(IMAGINARY(IMEXP(COMPLEX(LN(Table1[[#This Row],[Speed]]),RADIANS(Table1[[#This Row],[Dir]])))),2),0) -> 0.68 | L67: 0.0002
B68: 6.2 | C68: =ka*EXP(-Table2[[#This Row],[Speed]]/ktc) -> 0.005588885214 | E68: 62 | F68: 0.0006267079704 | H68: 1.8 | I68: 27 | J68: =IFERROR(ROUND(IMREAL(IMEXP(COMPLEX(LN(Table1[[#This Row],[Speed]]),RADIANS(Table1[[#This Row],[Dir]])))),2),0) -> 1.6 | K68: =IFERROR(ROUND(IMAGINARY(IMEXP(COMPLEX(LN(Table1[[#This Row],[Speed]]),RADIANS(Table1[[#This Row],[Dir]])))),2),0) -> 0.82 | L68: 0.0002
B69: 6.3 | C69: =ka*EXP(-Table2[[#This Row],[Speed]]/ktc) -> 0.005450895146 | E69: 63 | F69: 0.0004817137062 | H69: 2 | I69: 27 | J69: =IFERROR(ROUND(IMREAL(IMEXP(COMPLEX(LN(Table1[[#This Row],[Speed]]),RADIANS(Table1[[#This Row],[Dir]])))),2),0) -> 1.78 | K69: =IFERROR(ROUND(IMAGINARY(IMEXP(COMPLEX(LN(Table1[[#This Row],[Speed]]),RADIANS(Table1[[#This Row],[Dir]])))),2),0) -> 0.91 | L69: 0.0002
B70: 6.4 | C70: =ka*EXP(-Table2[[#This Row],[Speed]]/ktc) -> 0.005316312066 | E70: 64 | F70: 0.000354193876 | H70: 5 | I70: 27 | J70: =IFERROR(ROUND(IMREAL(IMEXP(COMPLEX(LN(Table1[[#This Row],[Speed]]),RADIANS(Table1[[#This Row],[Dir]])))),2),0) -> 4.46 | K70: =IFERROR(ROUND(IMAGINARY(IMEXP(COMPLEX(LN(Table1[[#This Row],[Speed]]),RADIANS(Table1[[#This Row],[Dir]])))),2),0) -> 2.27 | L70: =1/5000 -> 0.0002
B71: 6.5 | C71: =ka*EXP(-Table2[[#This Row],[Speed]]/ktc) -> 0.005185051853 | E71: 65 | F71: 0.0002451189827 | H71: 1.8 | I71: 28 | J71: =IFERROR(ROUND(IMREAL(IMEXP(COMPLEX(LN(Table1[[#This Row],[Speed]]),RADIANS(Table1[[#This Row],[Dir]])))),2),0) -> 1.59 | K71: =IFERROR(ROUND(IMAGINARY(IMEXP(COMPLEX(LN(Table1[[#This Row],[Speed]]),RADIANS(Table1[[#This Row],[Dir]])))),2),0) -> 0.85 | L71: 0.0002
B72: 6.6 | C72: =ka*EXP(-Table2[[#This Row],[Speed]]/ktc) -> 0.005057032467 | E72: 66 | F72: 0.0001553191521 | H72: 3.1 | I72: 28 | J72: =IFERROR(ROUND(IMREAL(IMEXP(COMPLEX(LN(Table1[[#This Row],[Speed]]),RADIANS(Table1[[#This Row],[Dir]])))),2),0) -> 2.74 | K72: =IFERROR(ROUND(IMAGINARY(IMEXP(COMPLEX(LN(Table1[[#This Row],[Speed]]),RADIANS(Table1[[#This Row],[Dir]])))),2),0) -> 1.46 | L72: 0.0002
B73: 6.7 | C73: =ka*EXP(-Table2[[#This Row],[Speed]]/ktc) -> 0.00493217389 | E73: 67 | F73: 8.547781507e-05 | H73: 0.4 | I73: 29 | J73: =IFERROR(ROUND(IMREAL(IMEXP(COMPLEX(LN(Table1[[#This Row],[Speed]]),RADIANS(Table1[[#This Row],[Dir]])))),2),0) -> 0.35 | K73: =IFERROR(ROUND(IMAGINARY(IMEXP(COMPLEX(LN(Table1[[#This Row],[Speed]]),RADIANS(Table1[[#This Row],[Dir]])))),2),0) -> 0.19 | L73: 0.0002
B74: 6.8 | C74: =ka*EXP(-Table2[[#This Row],[Speed]]/ktc) -> 0.004810398083 | E74: 68 | F74: 3.612650645e-05 | H74: 4.6 | I74: 29 | J74: =IFERROR(ROUND(IMREAL(IMEXP(COMPLEX(LN(Table1[[#This Row],[Speed]]),RADIANS(Table1[[#This Row],[Dir]])))),2),0) -> 4.02 | K74: =IFERROR(ROUND(IMAGINARY(IMEXP(COMPLEX(LN(Table1[[#This Row],[Speed]]),RADIANS(Table1[[#This Row],[Dir]])))),2),0) -> 2.23 | L74: 0.0002
B75: 6.9 | C75: =ka*EXP(-Table2[[#This Row],[Speed]]/ktc) -> 0.004691628931 | E75: 69 | F75: 7.640819465e-06 | H75: 6.6 | I75: 29 | J75: =IFERROR(ROUND(IMREAL(IMEXP(COMPLEX(LN(Table1[[#This Row],[Speed]]),RADIANS(Table1[[#This Row],[Dir]])))),2),0) -> 5.77 | K75: =IFERROR(ROUND(IMAGINARY(IMEXP(COMPLEX(LN(Table1[[#This Row],[Speed]]),RADIANS(Table1[[#This Row],[Dir]])))),2),0) -> 3.2 | L75: 0.0002
B76: 7 | C76: =ka*EXP(-Table2[[#This Row],[Speed]]/ktc) -> 0.0045757922 | E76: 70 | F76: 2.37547383e-07 | H76: 0 | I76: 30 | J76: =IFERROR(ROUND(IMREAL(IMEXP(COMPLEX(LN(Table1[[#This Row],[Speed]]),RADIANS(Table1[[#This Row],[Dir]])))),2),0) -> 0 | K76: =IFERROR(ROUND(IMAGINARY(IMEXP(COMPLEX(LN(Table1[[#This Row],[Speed]]),RADIANS(Table1[[#This Row],[Dir]])))),2),0) -> 0 | L76: 0.0002
B77: 7.1 | C77: =ka*EXP(-Table2[[#This Row],[Speed]]/ktc) -> 0.004462815488 | E77: 71 | F77: 1.397303358e-05 | H77: 0.6 | I77: 30 | J77: =IFERROR(ROUND(IMREAL(IMEXP(COMPLEX(LN(Table1[[#This Row],[Speed]]),RADIANS(Table1[[#This Row],[Dir]])))),2),0) -> 0.52 | K77: =IFERROR(ROUND(IMAGINARY(IMEXP(COMPLEX(LN(Table1[[#This Row],[Speed]]),RADIANS(Table1[[#This Row],[Dir]])))),2),0) -> 0.3 | L77: 0.0002
B78: 7.2 | C78: =ka*EXP(-Table2[[#This Row],[Speed]]/ktc) -> 0.004352628181 | E78: 72 | F78: 4.874274271e-05 | H78: 0.7 | I78: 30 | J78: =IFERROR(ROUND(IMREAL(IMEXP(COMPLEX(LN(Table1[[#This Row],[Speed]]),RADIANS(Table1[[#This Row],[Dir]])))),2),0) -> 0.61 | K78: =IFERROR(ROUND(IMAGINARY(IMEXP(COMPLEX(LN(Table1[[#This Row],[Speed]]),RADIANS(Table1[[#This Row],[Dir]])))),2),0) -> 0.35 | L78: 0.0002
B79: 7.3 | C79: =ka*EXP(-Table2[[#This Row],[Speed]]/ktc) -> 0.004245161408 | E79: 73 | F79: 0.0001042820563 | H79: 1.6 | I79: 30 | J79: =IFERROR(ROUND(IMREAL(IMEXP(COMPLEX(LN(Table1[[#This Row],[Speed]]),RADIANS(Table1[[#This Row],[Dir]])))),2),0) -> 1.39 | K79: =IFERROR(ROUND(IMAGINARY(IMEXP(COMPLEX(LN(Table1[[#This Row],[Speed]]),RADIANS(Table1[[#This Row],[Dir]])))),2),0) -> 0.8 | L79: 0.0002
B80: 7.4 | C80: =ka*EXP(-Table2[[#This Row],[Speed]]/ktc) -> 0.004140348 | E80: 74 | F80: 0.0001801682866 | H80: 3.7 | I80: 30 | J80: =IFERROR(ROUND(IMREAL(IMEXP(COMPLEX(LN(Table1[[#This Row],[Speed]]),RADIANS(Table1[[#This Row],[Dir]])))),2),0) -> 3.2 | K80: =IFERROR(ROUND(IMAGINARY(IMEXP(COMPLEX(LN(Table1[[#This Row],[Speed]]),RADIANS(Table1[[#This Row],[Dir]])))),2),0) -> 1.85 | L80: 0.0002
B81: 7.5 | C81: =ka*EXP(-Table2[[#This Row],[Speed]]/ktc) -> 0.004038122443 | E81: 75 | F81: 0.0002758238937 | H81: 1.4 | I81: 31 | J81: =IFERROR(ROUND(IMREAL(IMEXP(COMPLEX(LN(Table1[[#This Row],[Speed]]),RADIANS(Table1[[#This Row],[Dir]])))),2),0) -> 1.2 | K81: =IFERROR(ROUND(IMAGINARY(IMEXP(COMPLEX(LN(Table1[[#This Row],[Speed]]),RADIANS(Table1[[#This Row],[Dir]])))),2),0) -> 0.72 | L81: 0.0002
B82: 7.6 | C82: =ka*EXP(-Table2[[#This Row],[Speed]]/ktc) -> 0.003938420845 | E82: 76 | F82: 0.0003905208805 | H82: 2 | I82: 31 | J82: =IFERROR(ROUND(IMREAL(IMEXP(COMPLEX(LN(Table1[[#This Row],[Speed]]),RADIANS(Table1[[#This Row],[Dir]])))),2),0) -> 1.71 | K82: =IFERROR(ROUND(IMAGINARY(IMEXP(COMPLEX(LN(Table1[[#This Row],[Speed]]),RADIANS(Table1[[#This Row],[Dir]])))),2),0) -> 1.03 | L82: 0.0002
B83: 7.7 | C83: =ka*EXP(-Table2[[#This Row],[Speed]]/ktc) -> 0.003841180888 | E83: 77 | F83: 0.0005233863337 | H83: 0.4 | I83: 32 | J83: =IFERROR(ROUND(IMREAL(IMEXP(COMPLEX(LN(Table1[[#This Row],[Speed]]),RADIANS(Table1[[#This Row],[Dir]])))),2),0) -> 0.34 | K83: =IFERROR(ROUND(IMAGINARY(IMEXP(COMPLEX(LN(Table1[[#This Row],[Speed]]),RADIANS(Table1[[#This Row],[Dir]])))),2),0) -> 0.21 | L83: 0.0002
B84: 7.8 | C84: =ka*EXP(-Table2[[#This Row],[Speed]]/ktc) -> 0.003746341794 | E84: 78 | F84: 0.0006734090671 | H84: 1.1 | I84: 32 | J84: =IFERROR(ROUND(IMREAL(IMEXP(COMPLEX(LN(Table1[[#This Row],[Speed]]),RADIANS(Table1[[#This Row],[Dir]])))),2),0) -> 0.93 | K84: =IFERROR(ROUND(IMAGINARY(IMEXP(COMPLEX(LN(Table1[[#This Row],[Speed]]),RADIANS(Table1[[#This Row],[Dir]])))),2),0) -> 0.58 | L84: 0.0002
B85: 7.9 | C85: =ka*EXP(-Table2[[#This Row],[Speed]]/ktc) -> 0.003653844285 | E85: 79 | F85: 0.0008394473171 | H85: 1.4 | I85: 32 | J85: =IFERROR(ROUND(IMREAL(IMEXP(COMPLEX(LN(Table1[[#This Row],[Speed]]),RADIANS(Table1[[#This Row],[Dir]])))),2),0) -> 1.19 | K85: =IFERROR(ROUND(IMAGINARY(IMEXP(COMPLEX(LN(Table1[[#This Row],[Speed]]),RADIANS(Table1[[#This Row],[Dir]])))),2),0) -> 0.74 | L85: 0.0002
B86: 8 | C86: =ka*EXP(-Table2[[#This Row],[Speed]]/ktc) -> 0.003563630549 | E86: 80 | F86: 0.001020237432 | H86: 1.7 | I86: 32 | J86: =IFERROR(ROUND(IMREAL(IMEXP(COMPLEX(LN(Table1[[#This Row],[Speed]]),RADIANS(Table1[[#This Row],[Dir]])))),2),0) -> 1.44 | K86: =IFERROR(ROUND(IMAGINARY(IMEXP(COMPLEX(LN(Table1[[#This Row],[Speed]]),RADIANS(Table1[[#This Row],[Dir]])))),2),0) -> 0.9 | L86: 0.0002
B87: 8.1 | C87: =ka*EXP(-Table2[[#This Row],[Speed]]/ktc) -> 0.003475644197 | E87: 81 | F87: 0.001214403491 | H87: 4.2 | I87: 32 | J87: =IFERROR(ROUND(IMREAL(IMEXP(COMPLEX(LN(Table1[[#This Row],[Speed]]),RADIANS(Table1[[#This Row],[Dir]])))),2),0) -> 3.56 | K87: =IFERROR(ROUND(IMAGINARY(IMEXP(COMPLEX(LN(Table1[[#This Row],[Speed]]),RADIANS(Table1[[#This Row],[Dir]])))),2),0) -> 2.23 | L87: 0.0002
B88: 8.2 | C88: =ka*EXP(-Table2[[#This Row],[Speed]]/ktc) -> 0.003389830236 | E88: 82 | F88: 0.001420467771 | H88: 5 | I88: 32 | J88: =IFERROR(ROUND(IMREAL(IMEXP(COMPLEX(LN(Table1[[#This Row],[Speed]]),RADIANS(Table1[[#This Row],[Dir]])))),2),0) -> 4.24 | K88: =IFERROR(ROUND(IMAGINARY(IMEXP(COMPLEX(LN(Table1[[#This Row],[Speed]]),RADIANS(Table1[[#This Row],[Dir]])))),2),0) -> 2.65 | L88: 0.0002
B89: 8.3 | C89: =ka*EXP(-Table2[[#This Row],[Speed]]/ktc) -> 0.003306135029 | E89: 83 | F89: 0.001636862001 | H89: 5.2 | I89: 32 | J89: =IFERROR(ROUND(IMREAL(IMEXP(COMPLEX(LN(Table1[[#This Row],[Speed]]),RADIANS(Table1[[#This Row],[Dir]])))),2),0) -> 4.41 | K89: =IFERROR(ROUND(IMAGINARY(IMEXP(COMPLEX(LN(Table1[[#This Row],[Speed]]),RADIANS(Table1[[#This Row],[Dir]])))),2),0) -> 2.76 | L89: 0.0002
B90: 8.4 | C90: =ka*EXP(-Table2[[#This Row],[Speed]]/ktc) -> 0.003224506264 | E90: 84 | F90: 0.001861939288 | H90: 5.7 | I90: 32 | J90: =IFERROR(ROUND(IMREAL(IMEXP(COMPLEX(LN(Table1[[#This Row],[Speed]]),RADIANS(Table1[[#This Row],[Dir]])))),2),0) -> 4.83 | K90: =IFERROR(ROUND(IMAGINARY(IMEXP(COMPLEX(LN(Table1[[#This Row],[Speed]]),RADIANS(Table1[[#This Row],[Dir]])))),2),0) -> 3.02 | L90: 0.0002
B91: 8.5 | C91: =ka*EXP(-Table2[[#This Row],[Speed]]/ktc) -> 0.003144892921 | E91: 85 | F91: 0.002093986659 | H91: 0.5 | I91: 33 | J91: =IFERROR(ROUND(IMREAL(IMEXP(COMPLEX(LN(Table1[[#This Row],[Speed]]),RADIANS(Table1[[#This Row],[Dir]])))),2),0) -> 0.42 | K91: =IFERROR(ROUND(IMAGINARY(IMEXP(COMPLEX(LN(Table1[[#This Row],[Speed]]),RADIANS(Table1[[#This Row],[Dir]])))),2),0) -> 0.27 | L91: 0.0002
B92: 8.6 | C92: =ka*EXP(-Table2[[#This Row],[Speed]]/ktc) -> 0.003067245238 | E92: 86 | F92: 0.002331238094 | H92: 2.8 | I92: 33 | J92: =IFERROR(ROUND(IMREAL(IMEXP(COMPLEX(LN(Table1[[#This Row],[Speed]]),RADIANS(Table1[[#This Row],[Dir]])))),2),0) -> 2.35 | K92: =IFERROR(ROUND(IMAGINARY(IMEXP(COMPLEX(LN(Table1[[#This Row],[Speed]]),RADIANS(Table1[[#This Row],[Dir]])))),2),0) -> 1.52 | L92: 0.0002
B93: 8.7 | C93: =ka*EXP(-Table2[[#This Row],[Speed]]/ktc) -> 0.002991514683 | E93: 87 | F93: 0.002571887965 | H93: 5 | I93: 33 | J93: =IFERROR(ROUND(IMREAL(IMEXP(COMPLEX(LN(Table1[[#This Row],[Speed]]),RADIANS(Table1[[#This Row],[Dir]])))),2),0) -> 4.19 | K93: =IFERROR(ROUND(IMAGINARY(IMEXP(COMPLEX(LN(Table1[[#This Row],[Speed]]),RADIANS(Table1[[#This Row],[Dir]])))),2),0) -> 2.72 | L93: 0.0002
B94: 8.8 | C94: =ka*EXP(-Table2[[#This Row],[Speed]]/ktc) -> 0.002917653923 | E94: 88 | F94: 0.002814104782 | H94: 8.2 | I94: 33 | J94: =IFERROR(ROUND(IMREAL(IMEXP(COMPLEX(LN(Table1[[#This Row],[Speed]]),RADIANS(Table1[[#This Row],[Dir]])))),2),0) -> 6.88 | K94: =IFERROR(ROUND(IMAGINARY(IMEXP(COMPLEX(LN(Table1[[#This Row],[Speed]]),RADIANS(Table1[[#This Row],[Dir]])))),2),0) -> 4.47 | L94: 0.0002
B95: 8.9 | C95: =ka*EXP(-Table2[[#This Row],[Speed]]/ktc) -> 0.002845616791 | E95: 89 | F95: 0.003056045129 | H95: 0.5 | I95: 34 | J95: =IFERROR(ROUND(IMREAL(IMEXP(COMPLEX(LN(Table1[[#This Row],[Speed]]),RADIANS(Table1[[#This Row],[Dir]])))),2),0) -> 0.41 | K95: =IFERROR(ROUND(IMAGINARY(IMEXP(COMPLEX(LN(Table1[[#This Row],[Speed]]),RADIANS(Table1[[#This Row],[Dir]])))),2),0) -> 0.28 | L95: 0.0002
B96: 9 | C96: =ka*EXP(-Table2[[#This Row],[Speed]]/ktc) -> 0.002775358262 | E96: 90 | F96: 0.003295867693 | H96: 0.7 | I96: 34 | J96: =IFERROR(ROUND(IMREAL(IMEXP(COMPLEX(LN(Table1[[#This Row],[Speed]]),RADIANS(Table1[[#This Row],[Dir]])))),2),0) -> 0.58 | K96: =IFERROR(ROUND(IMAGINARY(IMEXP(COMPLEX(LN(Table1[[#This Row],[Speed]]),RADIANS(Table1[[#This Row],[Dir]])))),2),0) -> 0.39 | L96: 0.0002
B97: 9.1 | C97: =ka*EXP(-Table2[[#This Row],[Speed]]/ktc) -> 0.002706834422 | E97: 91 | F97: 0.00353174728 | H97: 1 | I97: 34 | J97: =IFERROR(ROUND(IMREAL(IMEXP(COMPLEX(LN(Table1[[#This Row],[Speed]]),RADIANS(Table1[[#This Row],[Dir]])))),2),0) -> 0.83 | K97: =IFERROR(ROUND(IMAGINARY(IMEXP(COMPLEX(LN(Table1[[#This Row],[Speed]]),RADIANS(Table1[[#This Row],[Dir]])))),2),0) -> 0.56 | L97: 0.0002
B98: 9.2 | C98: =ka*EXP(-Table2[[#This Row],[Speed]]/ktc) -> 0.002640002442 | E98: 92 | F98: 0.003761888704 | H98: 2.7 | I98: 34 | J98: =IFERROR(ROUND(IMREAL(IMEXP(COMPLEX(LN(Table1[[#This Row],[Speed]]),RADIANS(Table1[[#This Row],[Dir]])))),2),0) -> 2.24 | K98: =IFERROR(ROUND(IMAGINARY(IMEXP(COMPLEX(LN(Table1[[#This Row],[Speed]]),RADIANS(Table1[[#This Row],[Dir]])))),2),0) -> 1.51 | L98: 0.0002
B99: 9.3 | C99: =ka*EXP(-Table2[[#This Row],[Speed]]/ktc) -> 0.00257482055 | E99: 93 | F99: 0.003984540449 | H99: 2.9 | I99: 34 | J99: =IFERROR(ROUND(IMREAL(IMEXP(COMPLEX(LN(Table1[[#This Row],[Speed]]),RADIANS(Table1[[#This Row],[Dir]])))),2),0) -> 2.4 | K99: =IFERROR(ROUND(IMAGINARY(IMEXP(COMPLEX(LN(Table1[[#This Row],[Speed]]),RADIANS(Table1[[#This Row],[Dir]])))),2),0) -> 1.62 | L99: 0.0002
B100: 9.4 | C100: =ka*EXP(-Table2[[#This Row],[Speed]]/ktc) -> 0.002511248004 | E100: 94 | F100: 0.004198008002 | H100: 6.1 | I100: 34 | J100: =IFERROR(ROUND(IMREAL(IMEXP(COMPLEX(LN(Table1[[#This Row],[Speed]]),RADIANS(Table1[[#This Row],[Dir]])))),2),0) -> 5.06 | K100: =IFERROR(ROUND(IMAGINARY(IMEXP(COMPLEX(LN(Table1[[#This Row],[Speed]]),RADIANS(Table1[[#This Row],[Dir]])))),2),0) -> 3.41 | L100: 0.0002
B101: 9.5 | C101: =ka*EXP(-Table2[[#This Row],[Speed]]/ktc) -> 0.00244924507 | E101: 95 | F101: 0.004400666745 | H101: 9.3 | I101: 34 | J101: =IFERROR(ROUND(IMREAL(IMEXP(COMPLEX(LN(Table1[[#This Row],[Speed]]),RADIANS(Table1[[#This Row],[Dir]])))),2),0) -> 7.71 | K101: =IFERROR(ROUND(IMAGINARY(IMEXP(COMPLEX(LN(Table1[[#This Row],[Speed]]),RADIANS(Table1[[#This Row],[Dir]])))),2),0) -> 5.2 | L101: 0.0002
B102: 9.6 | C102: =ka*EXP(-Table2[[#This Row],[Speed]]/ktc) -> 0.002388772993 | E102: 96 | F102: 0.004590974323 | H102: 1.5 | I102: 35 | J102: =IFERROR(ROUND(IMREAL(IMEXP(COMPLEX(LN(Table1[[#This Row],[Speed]]),RADIANS(Table1[[#This Row],[Dir]])))),2),0) -> 1.23 | K102: =IFERROR(ROUND(IMAGINARY(IMEXP(COMPLEX(LN(Table1[[#This Row],[Speed]]),RADIANS(Table1[[#This Row],[Dir]])))),2),0) -> 0.86 | L102: 0.0002
B103: 9.7 | C103: =ka*EXP(-Table2[[#This Row],[Speed]]/ktc) -> 0.002329793978 | E103: 97 | F103: 0.004767482381 | H103: 2.9 | I103: 35 | J103: =IFERROR(ROUND(IMREAL(IMEXP(COMPLEX(LN(Table1[[#This Row],[Speed]]),RADIANS(Table1[[#This Row],[Dir]])))),2),0) -> 2.38 | K103: =IFERROR(ROUND(IMAGINARY(IMEXP(COMPLEX(LN(Table1[[#This Row],[Speed]]),RADIANS(Table1[[#This Row],[Dir]])))),2),0) -> 1.66 | L103: 0.0002
B104: 9.8 | C104: =ka*EXP(-Table2[[#This Row],[Speed]]/ktc) -> 0.00227227116 | E104: 98 | F104: 0.004928847585 | H104: 3.2 | I104: 35 | J104: =IFERROR(ROUND(IMREAL(IMEXP(COMPLEX(LN(Table1[[#This Row],[Speed]]),RADIANS(Table1[[#This Row],[Dir]])))),2),0) -> 2.62 | K104: =IFERROR(ROUND(IMAGINARY(IMEXP(COMPLEX(LN(Table1[[#This Row],[Speed]]),RADIANS(Table1[[#This Row],[Dir]])))),2),0) -> 1.84 | L104: 0.0002
B105: 9.9 | C105: =ka*EXP(-Table2[[#This Row],[Speed]]/ktc) -> 0.002216168585 | E105: 99 | F105: 0.005073841849 | H105: 1.2 | I105: 36 | J105: =IFERROR(ROUND(IMREAL(IMEXP(COMPLEX(LN(Table1[[#This Row],[Speed]]),RADIANS(Table1[[#This Row],[Dir]])))),2),0) -> 0.97 | K105: =IFERROR(ROUND(IMAGINARY(IMEXP(COMPLEX(LN(Table1[[#This Row],[Speed]]),RADIANS(Table1[[#This Row],[Dir]])))),2),0) -> 0.71 | L105: 0.0002
B106: 10 | C106: =ka*EXP(-Table2[[#This Row],[Speed]]/ktc) -> 0.002161451188 | E106: 100 | F106: 0.00520136168 | H106: 1.8 | I106: 36 | J106: =IFERROR(ROUND(IMREAL(IMEXP(COMPLEX(LN(Table1[[#This Row],[Speed]]),RADIANS(Table1[[#This Row],[Dir]])))),2),0) -> 1.46 | K106: =IFERROR(ROUND(IMAGINARY(IMEXP(COMPLEX(LN(Table1[[#This Row],[Speed]]),RADIANS(Table1[[#This Row],[Dir]])))),2),0) -> 1.06 | L106: 0.0002
B107: 10.1 | C107: =ka*EXP(-Table2[[#This Row],[Speed]]/ktc) -> 0.002108084768 | E107: 101 | F107: 0.005310436573 | H107: 2 | I107: 36 | J107: =IFERROR(ROUND(IMREAL(IMEXP(COMPLEX(LN(Table1[[#This Row],[Speed]]),RADIANS(Table1[[#This Row],[Dir]])))),2),0) -> 1.62 | K107: =IFERROR(ROUND(IMAGINARY(IMEXP(COMPLEX(LN(Table1[[#This Row],[Speed]]),RADIANS(Table1[[#This Row],[Dir]])))),2),0) -> 1.18 | L107: 0.0002
B108: 10.2 | C108: =ka*EXP(-Table2[[#This Row],[Speed]]/ktc) -> 0.002056035969 | E108: 102 | F108: 0.005400236403 | H108: 2.5 | I108: 36 | J108: =IFERROR(ROUND(IMREAL(IMEXP(COMPLEX(LN(Table1[[#This Row],[Speed]]),RADIANS(Table1[[#This Row],[Dir]])))),2),0) -> 2.02 | K108: =IFERROR(ROUND(IMAGINARY(IMEXP(COMPLEX(LN(Table1[[#This Row],[Speed]]),RADIANS(Table1[[#This Row],[Dir]])))),2),0) -> 1.47 | L108: 0.0002
B109: 10.3 | C109: =ka*EXP(-Table2[[#This Row],[Speed]]/ktc) -> 0.00200527226 | E109: 103 | F109: 0.00547007774 | H109: 5.1 | I109: 36 | J109: =IFERROR(ROUND(IMREAL(IMEXP(COMPLEX(LN(Table1[[#This Row],[Speed]]),RADIANS(Table1[[#This Row],[Dir]])))),2),0) -> 4.13 | K109: =IFERROR(ROUND(IMAGINARY(IMEXP(COMPLEX(LN(Table1[[#This Row],[Speed]]),RADIANS(Table1[[#This Row],[Dir]])))),2),0) -> 3 | L109: 0.0002
B110: 10.4 | C110: =ka*EXP(-Table2[[#This Row],[Speed]]/ktc) -> 0.001955761912 | E110: 104 | F110: 0.005519429049 | H110: 5.4 | I110: 36 | J110: =IFERROR(ROUND(IMREAL(IMEXP(COMPLEX(LN(Table1[[#This Row],[Speed]]),RADIANS(Table1[[#This Row],[Dir]])))),2),0) -> 4.37 | K110: =IFERROR(ROUND(IMAGINARY(IMEXP(COMPLEX(LN(Table1[[#This Row],[Speed]]),RADIANS(Table1[[#This Row],[Dir]])))),2),0) -> 3.17 | L110: 0.0002
B111: 10.5 | C111: =ka*EXP(-Table2[[#This Row],[Speed]]/ktc) -> 0.001907473978 | E111: 105 | F111: 0.005547914736 | H111: 0.4 | I111: 37 | J111: =IFERROR(ROUND(IMREAL(IMEXP(COMPLEX(LN(Table1[[#This Row],[Speed]]),RADIANS(Table1[[#This Row],[Dir]])))),2),0) -> 0.32 | K111: =IFERROR(ROUND(IMAGINARY(IMEXP(COMPLEX(LN(Table1[[#This Row],[Speed]]),RADIANS(Table1[[#This Row],[Dir]])))),2),0) -> 0.24 | L111: 0.0002
B112: 10.6 | C112: =ka*EXP(-Table2[[#This Row],[Speed]]/ktc) -> 0.001860378278 | E112: 106 | F112: 0.005555318008 | H112: 2.7 | I112: 37 | J112: =IFERROR(ROUND(IMREAL(IMEXP(COMPLEX(LN(Table1[[#This Row],[Speed]]),RADIANS(Table1[[#This Row],[Dir]])))),2),0) -> 2.16 | K112: =IFERROR(ROUND(IMAGINARY(IMEXP(COMPLEX(LN(Table1[[#This Row],[Speed]]),RADIANS(Table1[[#This Row],[Dir]])))),2),0) -> 1.62 | L112: 0.0002
B113: 10.7 | C113: =ka*EXP(-Table2[[#This Row],[Speed]]/ktc) -> 0.001814445374 | E113: 107 | F113: 0.005541582522 | H113: 2.7 | I113: 37 | J113: =IFERROR(ROUND(IMREAL(IMEXP(COMPLEX(LN(Table1[[#This Row],[Speed]]),RADIANS(Table1[[#This Row],[Dir]])))),2),0) -> 2.16 | K113: =IFERROR(ROUND(IMAGINARY(IMEXP(COMPLEX(LN(Table1[[#This Row],[Speed]]),RADIANS(Table1[[#This Row],[Dir]])))),2),0) -> 1.62 | L113: 0.0002
B114: 10.8 | C114: =ka*EXP(-Table2[[#This Row],[Speed]]/ktc) -> 0.001769646559 | E114: 108 | F114: 0.005506812813 | H114: 3.2 | I114: 37 | J114: =IFERROR(ROUND(IMREAL(IMEXP(COMPLEX(LN(Table1[[#This Row],[Speed]]),RADIANS(Table1[[#This Row],[Dir]])))),2),0) -> 2.56 | K114: =IFERROR(ROUND(IMAGINARY(IMEXP(COMPLEX(LN(Table1[[#This Row],[Speed]]),RADIANS(Table1[[#This Row],[Dir]])))),2),0) -> 1.93 | L114: 0.0002
B115: 10.9 | C115: =ka*EXP(-Table2[[#This Row],[Speed]]/ktc) -> 0.001725953829 | E115: 109 | F115: 0.005451273499 | H115: 4.7 | I115: 37 | J115: =IFERROR(ROUND(IMREAL(IMEXP(COMPLEX(LN(Table1[[#This Row],[Speed]]),RADIANS(Table1[[#This Row],[Dir]])))),2),0) -> 3.75 | K115: =IFERROR(ROUND(IMAGINARY(IMEXP(COMPLEX(LN(Table1[[#This Row],[Speed]]),RADIANS(Table1[[#This Row],[Dir]])))),2),0) -> 2.83 | L115: 0.0002
B116: 11 | C116: =ka*EXP(-Table2[[#This Row],[Speed]]/ktc) -> 0.001683339877 | E116: 110 | F116: 0.005375387269 | H116: 0.2 | I116: 38 | J116: =IFERROR(ROUND(IMREAL(IMEXP(COMPLEX(LN(Table1[[#This Row],[Speed]]),RADIANS(Table1[[#This Row],[Dir]])))),2),0) -> 0.16 | K116: =IFERROR(ROUND(IMAGINARY(IMEXP(COMPLEX(LN(Table1[[#This Row],[Speed]]),RADIANS(Table1[[#This Row],[Dir]])))),2),0) -> 0.12 | L116: 0.0002
E117: 111 | F117: 0.005279731662 | H117: 0.6 | I117: 38 | J117: =IFERROR(ROUND(IMREAL(IMEXP(COMPLEX(LN(Table1[[#This Row],[Speed]]),RADIANS(Table1[[#This Row],[Dir]])))),2),0) -> 0.47 | K117: =IFERROR(ROUND(IMAGINARY(IMEXP(COMPLEX(LN(Table1[[#This Row],[Speed]]),RADIANS(Table1[[#This Row],[Dir]])))),2),0) -> 0.37 | L117: 0.0002
E118: 112 | F118: 0.005165034675 | H118: 1.1 | I118: 38 | J118: =IFERROR(ROUND(IMREAL(IMEXP(COMPLEX(LN(Table1[[#This Row],[Speed]]),RADIANS(Table1[[#This Row],[Dir]])))),2),0) -> 0.87 | K118: =IFERROR(ROUND(IMAGINARY(IMEXP(COMPLEX(LN(Table1[[#This Row],[Speed]]),RADIANS(Table1[[#This Row],[Dir]])))),2),0) -> 0.68 | L118: 0.0002
E119: 113 | F119: 0.005032169222 | H119: 1.7 | I119: 38 | J119: =IFERROR(ROUND(IMREAL(IMEXP(COMPLEX(LN(Table1[[#This Row],[Speed]]),RADIANS(Table1[[#This Row],[Dir]])))),2),0) -> 1.34 | K119: =IFERROR(ROUND(IMAGINARY(IMEXP(COMPLEX(LN(Table1[[#This Row],[Speed]]),RADIANS(Table1[[#This Row],[Dir]])))),2),0) -> 1.05 | L119: 0.0002
E120: 114 | F120: 0.004882146488 | H120: 5.8 | I120: 38 | J120: =IFERROR(ROUND(IMREAL(IMEXP(COMPLEX(LN(Table1[[#This Row],[Speed]]),RADIANS(Table1[[#This Row],[Dir]])))),2),0) -> 4.57 | K120: =IFERROR(ROUND(IMAGINARY(IMEXP(COMPLEX(LN(Table1[[#This Row],[Speed]]),RADIANS(Table1[[#This Row],[Dir]])))),2),0) -> 3.57 | L120: 0.0002
E121: 115 | F121: 0.004716108238 | H121: 5.9 | I121: 38 | J121: =IFERROR(ROUND(IMREAL(IMEXP(COMPLEX(LN(Table1[[#This Row],[Speed]]),RADIANS(Table1[[#This Row],[Dir]])))),2),0) -> 4.65 | K121: =IFERROR(ROUND(IMAGINARY(IMEXP(COMPLEX(LN(Table1[[#This Row],[Speed]]),RADIANS(Table1[[#This Row],[Dir]])))),2),0) -> 3.63 | L121: 0.0002
E122: 116 | F122: 0.004535318123 | H122: 8.5 | I122: 38 | J122: =IFERROR(ROUND(IMREAL(IMEXP(COMPLEX(LN(Table1[[#This Row],[Speed]]),RADIANS(Table1[[#This Row],[Dir]])))),2),0) -> 6.7 | K122: =IFERROR(ROUND(IMAGINARY(IMEXP(COMPLEX(LN(Table1[[#This Row],[Speed]]),RADIANS(Table1[[#This Row],[Dir]])))),2),0) -> 5.23 | L122: 0.0002
E123: 117 | F123: 0.004341152065 | H123: 10.3 | I123: 38 | J123: =IFERROR(ROUND(IMREAL(IMEXP(COMPLEX(LN(Table1[[#This Row],[Speed]]),RADIANS(Table1[[#This Row],[Dir]])))),2),0) -> 8.12 | K123: =IFERROR(ROUND(IMAGINARY(IMEXP(COMPLEX(LN(Table1[[#This Row],[Speed]]),RADIANS(Table1[[#This Row],[Dir]])))),2),0) -> 6.34 | L123: 0.0002
E124: 118 | F124: 0.004135087784 | H124: 0.1 | I124: 39 | J124: =IFERROR(ROUND(IMREAL(IMEXP(COMPLEX(LN(Table1[[#This Row],[Speed]]),RADIANS(Table1[[#This Row],[Dir]])))),2),0) -> 0.08 | K124: =IFERROR(ROUND(IMAGINARY(IMEXP(COMPLEX(LN(Table1[[#This Row],[Speed]]),RADIANS(Table1[[#This Row],[Dir]])))),2),0) -> 0.06 | L124: 0.0002
E125: 119 | F125: 0.003918693555 | H125: 1.7 | I125: 39 | J125: =IFERROR(ROUND(IMREAL(IMEXP(COMPLEX(LN(Table1[[#This Row],[Speed]]),RADIANS(Table1[[#This Row],[Dir]])))),2),0) -> 1.32 | K125: =IFERROR(ROUND(IMAGINARY(IMEXP(COMPLEX(LN(Table1[[#This Row],[Speed]]),RADIANS(Table1[[#This Row],[Dir]])))),2),0) -> 1.07 | L125: 0.0002
E126: 120 | F126: 0.003693616267 | H126: 2.8 | I126: 39 | J126: =IFERROR(ROUND(IMREAL(IMEXP(COMPLEX(LN(Table1[[#This Row],[Speed]]),RADIANS(Table1[[#This Row],[Dir]])))),2),0) -> 2.18 | K126: =IFERROR(ROUND(IMAGINARY(IMEXP(COMPLEX(LN(Table1[[#This Row],[Speed]]),RADIANS(Table1[[#This Row],[Dir]])))),2),0) -> 1.76 | L126: 0.0002
E127: 121 | F127: 0.003461568896 | H127: 4.7 | I127: 39 | J127: =IFERROR(ROUND(IMREAL(IMEXP(COMPLEX(LN(Table1[[#This Row],[Speed]]),RADIANS(Table1[[#This Row],[Dir]])))),2),0) -> 3.65 | K127: =IFERROR(ROUND(IMAGINARY(IMEXP(COMPLEX(LN(Table1[[#This Row],[Speed]]),RADIANS(Table1[[#This Row],[Dir]])))),2),0) -> 2.96 | L127: 0.0002
E128: 122 | F128: 0.003224317462 | H128: 6 | I128: 39 | J128: =IFERROR(ROUND(IMREAL(IMEXP(COMPLEX(LN(Table1[[#This Row],[Speed]]),RADIANS(Table1[[#This Row],[Dir]])))),2),0) -> 4.66 | K128: =IFERROR(ROUND(IMAGINARY(IMEXP(COMPLEX(LN(Table1[[#This Row],[Speed]]),RADIANS(Table1[[#This Row],[Dir]])))),2),0) -> 3.78 | L128: 0.0002
E129: 123 | F129: 0.00298366759 | H129: 9.3 | I129: 39 | J129: =IFERROR(ROUND(IMREAL(IMEXP(COMPLEX(LN(Table1[[#This Row],[Speed]]),RADIANS(Table1[[#This Row],[Dir]])))),2),0) -> 7.23 | K129: =IFERROR(ROUND(IMAGINARY(IMEXP(COMPLEX(LN(Table1[[#This Row],[Speed]]),RADIANS(Table1[[#This Row],[Dir]])))),2),0) -> 5.85 | L129: 0.0002
E130: 124 | F130: 0.002741450773 | H130: 0.2 | I130: 40 | J130: =IFERROR(ROUND(IMREAL(IMEXP(COMPLEX(LN(Table1[[#This Row],[Speed]]),RADIANS(Table1[[#This Row],[Dir]])))),2),0) -> 0.15 | K130: =IFERROR(ROUND(IMAGINARY(IMEXP(COMPLEX(LN(Table1[[#This Row],[Speed]]),RADIANS(Table1[[#This Row],[Dir]])))),2),0) -> 0.13 | L130: 0.0002
E131: 125 | F131: 0.002499510427 | H131: 0.3 | I131: 40 | J131: =IFERROR(ROUND(IMREAL(IMEXP(COMPLEX(LN(Table1[[#This Row],[Speed]]),RADIANS(Table1[[#This Row],[Dir]])))),2),0) -> 0.23 | K131: =IFERROR(ROUND(IMAGINARY(IMEXP(COMPLEX(LN(Table1[[#This Row],[Speed]]),RADIANS(Table1[[#This Row],[Dir]])))),2),0) -> 0.19 | L131: 0.0002
E132: 126 | F132: 0.002259687863 | H132: 0.7 | I132: 40 | J132: =IFERROR(ROUND(IMREAL(IMEXP(COMPLEX(LN(Table1[[#This Row],[Speed]]),RADIANS(Table1[[#This Row],[Dir]])))),2),0) -> 0.54 | K132: =IFERROR(ROUND(IMAGINARY(IMEXP(COMPLEX(LN(Table1[[#This Row],[Speed]]),RADIANS(Table1[[#This Row],[Dir]])))),2),0) -> 0.45 | L132: 0.0002
E133: 127 | F133: 0.002023808276 | H133: 1.7 | I133: 40 | J133: =IFERROR(ROUND(IMREAL(IMEXP(COMPLEX(LN(Table1[[#This Row],[Speed]]),RADIANS(Table1[[#This Row],[Dir]])))),2),0) -> 1.3 | K133: =IFERROR(ROUND(IMAGINARY(IMEXP(COMPLEX(LN(Table1[[#This Row],[Speed]]),RADIANS(Table1[[#This Row],[Dir]])))),2),0) -> 1.09 | L133: 0.0002
E134: 128 | F134: 0.001793666852 | H134: 1.8 | I134: 40 | J134: =IFERROR(ROUND(IMREAL(IMEXP(COMPLEX(LN(Table1[[#This Row],[Speed]]),RADIANS(Table1[[#This Row],[Dir]])))),2),0) -> 1.38 | K134: =IFERROR(ROUND(IMAGINARY(IMEXP(COMPLEX(LN(Table1[[#This Row],[Speed]]),RADIANS(Table1[[#This Row],[Dir]])))),2),0) -> 1.16 | L134: =1/5000 -> 0.0002
E135: 129 | F135: 0.001571015107 | H135: 3.2 | I135: 40 | J135: =IFERROR(ROUND(IMREAL(IMEXP(COMPLEX(LN(Table1[[#This Row],[Speed]]),RADIANS(Table1[[#This Row],[Dir]])))),2),0) -> 2.45 | K135: =IFERROR(ROUND(IMAGINARY(IMEXP(COMPLEX(LN(Table1[[#This Row],[Speed]]),RADIANS(Table1[[#This Row],[Dir]])))),2),0) -> 2.06 | L135: 0.0002
E136: 130 | F136: 0.001357547554 | H136: 3.6 | I136: 40 | J136: =IFERROR(ROUND(IMREAL(IMEXP(COMPLEX(LN(Table1[[#This Row],[Speed]]),RADIANS(Table1[[#This Row],[Dir]])))),2),0) -> 2.76 | K136: =IFERROR(ROUND(IMAGINARY(IMEXP(COMPLEX(LN(Table1[[#This Row],[Speed]]),RADIANS(Table1[[#This Row],[Dir]])))),2),0) -> 2.31 | L136: 0.0002
E137: 131 | F137: 0.001154888811 | H137: 5.4 | I137: 40 | J137: =IFERROR(ROUND(IMREAL(IMEXP(COMPLEX(LN(Table1[[#This Row],[Speed]]),RADIANS(Table1[[#This Row],[Dir]])))),2),0) -> 4.14 | K137: =IFERROR(ROUND(IMAGINARY(IMEXP(COMPLEX(LN(Table1[[#This Row],[Speed]]),RADIANS(Table1[[#This Row],[Dir]])))),2),0) -> 3.47 | L137: 0.0002
E138: 132 | F138: 0.0009645812324 | H138: 6.9 | I138: 40 | J138: =IFERROR(ROUND(IMREAL(IMEXP(COMPLEX(LN(Table1[[#This Row],[Speed]]),RADIANS(Table1[[#This Row],[Dir]])))),2),0) -> 5.29 | K138: =IFERROR(ROUND(IMAGINARY(IMEXP(COMPLEX(LN(Table1[[#This Row],[Speed]]),RADIANS(Table1[[#This Row],[Dir]])))),2),0) -> 4.44 | L138: 0.0002
E139: 133 | F139: 0.0007880731746 | H139: 8.6 | I139: 40 | J139: =IFERROR(ROUND(IMREAL(IMEXP(COMPLEX(LN(Table1[[#This Row],[Speed]]),RADIANS(Table1[[#This Row],[Dir]])))),2),0) -> 6.59 | K139: =IFERROR(ROUND(IMAGINARY(IMEXP(COMPLEX(LN(Table1[[#This Row],[Speed]]),RADIANS(Table1[[#This Row],[Dir]])))),2),0) -> 5.53 | L139: 0.0002
E140: 134 | F140: 0.0006267079704 | H140: 9.5 | I140: 40 | J140: =IFERROR(ROUND(IMREAL(IMEXP(COMPLEX(LN(Table1[[#This Row],[Speed]]),RADIANS(Table1[[#This Row],[Dir]])))),2),0) -> 7.28 | K140: =IFERROR(ROUND(IMAGINARY(IMEXP(COMPLEX(LN(Table1[[#This Row],[Speed]]),RADIANS(Table1[[#This Row],[Dir]])))),2),0) -> 6.11 | L140: 0.0002
E141: 135 | F141: 0.0004817137062 | H141: 10.7 | I141: 40 | J141: =IFERROR(ROUND(IMREAL(IMEXP(COMPLEX(LN(Table1[[#This Row],[Speed]]),RADIANS(Table1[[#This Row],[Dir]])))),2),0) -> 8.2 | K141: =IFERROR(ROUND(IMAGINARY(IMEXP(COMPLEX(LN(Table1[[#This Row],[Speed]]),RADIANS(Table1[[#This Row],[Dir]])))),2),0) -> 6.88 | L141: 0.0002
E142: 136 | F142: 0.000354193876 | H142: 0.8 | I142: 41 | J142: =IFERROR(ROUND(IMREAL(IMEXP(COMPLEX(LN(Table1[[#This Row],[Speed]]),RADIANS(Table1[[#This Row],[Dir]])))),2),0) -> 0.6 | K142: =IFERROR(ROUND(IMAGINARY(IMEXP(COMPLEX(LN(Table1[[#This Row],[Speed]]),RADIANS(Table1[[#This Row],[Dir]])))),2),0) -> 0.52 | L142: 0.0002
E143: 137 | F143: 0.0002451189827 | H143: 1.2 | I143: 41 | J143: =IFERROR(ROUND(IMREAL(IMEXP(COMPLEX(LN(Table1[[#This Row],[Speed]]),RADIANS(Table1[[#This Row],[Dir]])))),2),0) -> 0.91 | K143: =IFERROR(ROUND(IMAGINARY(IMEXP(COMPLEX(LN(Table1[[#This Row],[Speed]]),RADIANS(Table1[[#This Row],[Dir]])))),2),0) -> 0.79 | L143: 0.0002
E144: 138 | F144: 0.0001553191521 | H144: 1.3 | I144: 41 | J144: =IFERROR(ROUND(IMREAL(IMEXP(COMPLEX(LN(Table1[[#This Row],[Speed]]),RADIANS(Table1[[#This Row],[Dir]])))),2),0) -> 0.98 | K144: =IFERROR(ROUND(IMAGINARY(IMEXP(COMPLEX(LN(Table1[[#This Row],[Speed]]),RADIANS(Table1[[#This Row],[Dir]])))),2),0) -> 0.85 | L144: 0.0002
E145: 139 | F145: 8.547781507e-05 | H145: 8.9 | I145: 41 | J145: =IFERROR(ROUND(IMREAL(IMEXP(COMPLEX(LN(Table1[[#This Row],[Speed]]),RADIANS(Table1[[#This Row],[Dir]])))),2),0) -> 6.72 | K145: =IFERROR(ROUND(IMAGINARY(IMEXP(COMPLEX(LN(Table1[[#This Row],[Speed]]),RADIANS(Table1[[#This Row],[Dir]])))),2),0) -> 5.84 | L145: 0.0002
E146: 140 | F146: 3.612650645e-05 | H146: 0.5 | I146: 42 | J146: =IFERROR(ROUND(IMREAL(IMEXP(COMPLEX(LN(Table1[[#This Row],[Speed]]),RADIANS(Table1[[#This Row],[Dir]])))),2),0) -> 0.37 | K146: =IFERROR(ROUND(IMAGINARY(IMEXP(COMPLEX(LN(Table1[[#This Row],[Speed]]),RADIANS(Table1[[#This Row],[Dir]])))),2),0) -> 0.33 | L146: 0.0002
E147: 141 | F147: 7.640819465e-06 | H147: 0.9 | I147: 42 | J147: =IFERROR(ROUND(IMREAL(IMEXP(COMPLEX(LN(Table1[[#This Row],[Speed]]),RADIANS(Table1[[#This Row],[Dir]])))),2),0) -> 0.67 | K147: =IFERROR(ROUND(IMAGINARY(IMEXP(COMPLEX(LN(Table1[[#This Row],[Speed]]),RADIANS(Table1[[#This Row],[Dir]])))),2),0) -> 0.6 | L147: 0.0002
E148: 142 | F148: 2.37547383e-07 | H148: 3 | I148: 42 | J148: =IFERROR(ROUND(IMREAL(IMEXP(COMPLEX(LN(Table1[[#This Row],[Speed]]),RADIANS(Table1[[#This Row],[Dir]])))),2),0) -> 2.23 | K148: =IFERROR(ROUND(IMAGINARY(IMEXP(COMPLEX(LN(Table1[[#This Row],[Speed]]),RADIANS(Table1[[#This Row],[Dir]])))),2),0) -> 2.01 | L148: 0.0002
E149: 143 | F149: 1.397303358e-05 | H149: 3.9 | I149: 42 | J149: =IFERROR(ROUND(IMREAL(IMEXP(COMPLEX(LN(Table1[[#This Row],[Speed]]),RADIANS(Table1[[#This Row],[Dir]])))),2),0) -> 2.9 | K149: =IFERROR(ROUND(IMAGINARY(IMEXP(COMPLEX(LN(Table1[[#This Row],[Speed]]),RADIANS(Table1[[#This Row],[Dir]])))),2),0) -> 2.61 | L149: 0.0002
E150: 144 | F150: 4.874274271e-05 | H150: 0.3 | I150: 43 | J150: =IFERROR(ROUND(IMREAL(IMEXP(COMPLEX(LN(Table1[[#This Row],[Speed]]),RADIANS(Table1[[#This Row],[Dir]])))),2),0) -> 0.22 | K150: =IFERROR(ROUND(IMAGINARY(IMEXP(COMPLEX(LN(Table1[[#This Row],[Speed]]),RADIANS(Table1[[#This Row],[Dir]])))),2),0) -> 0.2 | L150: 0.0002
E151: 145 | F151: 0.0001042820563 | H151: 0.4 | I151: 43 | J151: =IFERROR(ROUND(IMREAL(IMEXP(COMPLEX(LN(Table1[[#This Row],[Speed]]),RADIANS(Table1[[#This Row],[Dir]])))),2),0) -> 0.29 | K151: =IFERROR(ROUND(IMAGINARY(IMEXP(COMPLEX(LN(Table1[[#This Row],[Speed]]),RADIANS(Table1[[#This Row],[Dir]])))),2),0) -> 0.27 | L151: 0.0002
E152: 146 | F152: 0.0001801682866 | H152: 1.7 | I152: 43 | J152: =IFERROR(ROUND(IMREAL(IMEXP(COMPLEX(LN(Table1[[#This Row],[Speed]]),RADIANS(Table1[[#This Row],[Dir]])))),2),0) -> 1.24 | K152: =IFERROR(ROUND(IMAGINARY(IMEXP(COMPLEX(LN(Table1[[#This Row],[Speed]]),RADIANS(Table1[[#This Row],[Dir]])))),2),0) -> 1.16 | L152: 0.0002
E153: 147 | F153: 0.0002758238937 | H153: 2.1 | I153: 43 | J153: =IFERROR(ROUND(IMREAL(IMEXP(COMPLEX(LN(Table1[[#This Row],[Speed]]),RADIANS(Table1[[#This Row],[Dir]])))),2),0) -> 1.54 | K153: =IFERROR(ROUND(IMAGINARY(IMEXP(COMPLEX(LN(Table1[[#This Row],[Speed]]),RADIANS(Table1[[#This Row],[Dir]])))),2),0) -> 1.43 | L153: 0.0002
E154: 148 | F154: 0.0003905208805 | H154: 3.4 | I154: 43 | J154: =IFERROR(ROUND(IMREAL(IMEXP(COMPLEX(LN(Table1[[#This Row],[Speed]]),RADIANS(Table1[[#This Row],[Dir]])))),2),0) -> 2.49 | K154: =IFERROR(ROUND(IMAGINARY(IMEXP(COMPLEX(LN(Table1[[#This Row],[Speed]]),RADIANS(Table1[[#This Row],[Dir]])))),2),0) -> 2.32 | L154: 0.0002
E155: 149 | F155: 0.0005233863337 | H155: 8.3 | I155: 43 | J155: =IFERROR(ROUND(IMREAL(IMEXP(COMPLEX(LN(Table1[[#This Row],[Speed]]),RADIANS(Table1[[#This Row],[Dir]])))),2),0) -> 6.07 | K155: =IFERROR(ROUND(IMAGINARY(IMEXP(COMPLEX(LN(Table1[[#This Row],[Speed]]),RADIANS(Table1[[#This Row],[Dir]])))),2),0) -> 5.66 | L155: 0.0002
E156: 150 | F156: 0.0006734090671 | H156: 0.1 | I156: 44 | J156: =IFERROR(ROUND(IMREAL(IMEXP(COMPLEX(LN(Table1[[#This Row],[Speed]]),RADIANS(Table1[[#This Row],[Dir]])))),2),0) -> 0.07 | K156: =IFERROR(ROUND(IMAGINARY(IMEXP(COMPLEX(LN(Table1[[#This Row],[Speed]]),RADIANS(Table1[[#This Row],[Dir]])))),2),0) -> 0.07 | L156: 0.0002
E157: 151 | F157: 0.0008394473171 | H157: 0.7 | I157: 44 | J157: =IFERROR(ROUND(IMREAL(IMEXP(COMPLEX(LN(Table1[[#This Row],[Speed]]),RADIANS(Table1[[#This Row],[Dir]])))),2),0) -> 0.5 | K157: =IFERROR(ROUND(IMAGINARY(IMEXP(COMPLEX(LN(Table1[[#This Row],[Speed]]),RADIANS(Table1[[#This Row],[Dir]])))),2),0) -> 0.49 | L157: 0.0002
E158: 152 | F158: 0.001020237432 | H158: 1.7 | I158: 44 | J158: =IFERROR(ROUND(IMREAL(IMEXP(COMPLEX(LN(Table1[[#This Row],[Speed]]),RADIANS(Table1[[#This Row],[Dir]])))),2),0) -> 1.22 | K158: =IFERROR(ROUND(IMAGINARY(IMEXP(COMPLEX(LN(Table1[[#This Row],[Speed]]),RADIANS(Table1[[#This Row],[Dir]])))),2),0) -> 1.18 | L158: 0.0002
E159: 153 | F159: 0.001214403491 | H159: 2.7 | I159: 44 | J159: =IFERROR(ROUND(IMREAL(IMEXP(COMPLEX(LN(Table1[[#This Row],[Speed]]),RADIANS(Table1[[#This Row],[Dir]])))),2),0) -> 1.94 | K159: =IFERROR(ROUND(IMAGINARY(IMEXP(COMPLEX(LN(Table1[[#This Row],[Speed]]),RADIANS(Table1[[#This Row],[Dir]])))),2),0) -> 1.88 | L159: 0.0002
E160: 154 | F160: 0.001420467771 | H160: 3.1 | I160: 44 | J160: =IFERROR(ROUND(IMREAL(IMEXP(COMPLEX(LN(Table1[[#This Row],[Speed]]),RADIANS(Table1[[#This Row],[Dir]])))),2),0) -> 2.23 | K160: =IFERROR(ROUND(IMAGINARY(IMEXP(COMPLEX(LN(Table1[[#This Row],[Speed]]),RADIANS(Table1[[#This Row],[Dir]])))),2),0) -> 2.15 | L160: 0.0002
E161: 155 | F161: 0.001636862001 | H161: 8 | I161: 44 | J161: =IFERROR(ROUND(IMREAL(IMEXP(COMPLEX(LN(Table1[[#This Row],[Speed]]),RADIANS(Table1[[#This Row],[Dir]])))),2),0) -> 5.75 | K161: =IFERROR(ROUND(IMAGINARY(IMEXP(COMPLEX(LN(Table1[[#This Row],[Speed]]),RADIANS(Table1[[#This Row],[Dir]])))),2),0) -> 5.56 | L161: 0.0002
E162: 156 | F162: 0.001861939288 | H162: 10.7 | I162: 44 | J162: =IFERROR(ROUND(IMREAL(IMEXP(COMPLEX(LN(Table1[[#This Row],[Speed]]),RADIANS(Table1[[#This Row],[Dir]])))),2),0) -> 7.7 | K162: =IFERROR(ROUND(IMAGINARY(IMEXP(COMPLEX(LN(Table1[[#This Row],[Speed]]),RADIANS(Table1[[#This Row],[Dir]])))),2),0) -> 7.43 | L162: 0.0002
E163: 157 | F163: 0.002093986659 | H163: 0.1 | I163: 45 | J163: =IFERROR(ROUND(IMREAL(IMEXP(COMPLEX(LN(Table1[[#This Row],[Speed]]),RADIANS(Table1[[#This Row],[Dir]])))),2),0) -> 0.07 | K163: =IFERROR(ROUND(IMAGINARY(IMEXP(COMPLEX(LN(Table1[[#This Row],[Speed]]),RADIANS(Table1[[#This Row],[Dir]])))),2),0) -> 0.07 | L163: 0.0002
E164: 158 | F164: 0.002331238094 | H164: 1 | I164: 45 | J164: =IFERROR(ROUND(IMREAL(IMEXP(COMPLEX(LN(Table1[[#This Row],[Speed]]),RADIANS(Table1[[#This Row],[Dir]])))),2),0) -> 0.71 | K164: =IFERROR(ROUND(IMAGINARY(IMEXP(COMPLEX(LN(Table1[[#This Row],[Speed]]),RADIANS(Table1[[#This Row],[Dir]])))),2),0) -> 0.71 | L164: 0.0002
E165: 159 | F165: 0.002571887965 | H165: 1.6 | I165: 45 | J165: =IFERROR(ROUND(IMREAL(IMEXP(COMPLEX(LN(Table1[[#This Row],[Speed]]),RADIANS(Table1[[#This Row],[Dir]])))),2),0) -> 1.13 | K165: =IFERROR(ROUND(IMAGINARY(IMEXP(COMPLEX(LN(Table1[[#This Row],[Speed]]),RADIANS(Table1[[#This Row],[Dir]])))),2),0) -> 1.13 | L165: 0.0002
E166: 160 | F166: 0.002814104782 | H166: 2.1 | I166: 45 | J166: =IFERROR(ROUND(IMREAL(IMEXP(COMPLEX(LN(Table1[[#This Row],[Speed]]),RADIANS(Table1[[#This Row],[Dir]])))),2),0) -> 1.48 | K166: =IFERROR(ROUND(IMAGINARY(IMEXP(COMPLEX(LN(Table1[[#This Row],[Speed]]),RADIANS(Table1[[#This Row],[Dir]])))),2),0) -> 1.48 | L166: 0.0002
E167: 161 | F167: 0.003056045129 | H167: 1.5 | I167: 46 | J167: =IFERROR(ROUND(IMREAL(IMEXP(COMPLEX(LN(Table1[[#This Row],[Speed]]),RADIANS(Table1[[#This Row],[Dir]])))),2),0) -> 1.04 | K167: =IFERROR(ROUND(IMAGINARY(IMEXP(COMPLEX(LN(Table1[[#This Row],[Speed]]),RADIANS(Table1[[#This Row],[Dir]])))),2),0) -> 1.08 | L167: 0.0002
E168: 162 | F168: 0.003295867693 | H168: 1.6 | I168: 46 | J168: =IFERROR(ROUND(IMREAL(IMEXP(COMPLEX(LN(Table1[[#This Row],[Speed]]),RADIANS(Table1[[#This Row],[Dir]])))),2),0) -> 1.11 | K168: =IFERROR(ROUND(IMAGINARY(IMEXP(COMPLEX(LN(Table1[[#This Row],[Speed]]),RADIANS(Table1[[#This Row],[Dir]])))),2),0) -> 1.15 | L168: 0.0002
E169: 163 | F169: 0.00353174728 | H169: 1.8 | I169: 46 | J169: =IFERROR(ROUND(IMREAL(IMEXP(COMPLEX(LN(Table1[[#This Row],[Speed]]),RADIANS(Table1[[#This Row],[Dir]])))),2),0) -> 1.25 | K169: =IFERROR(ROUND(IMAGINARY(IMEXP(COMPLEX(LN(Table1[[#This Row],[Speed]]),RADIANS(Table1[[#This Row],[Dir]])))),2),0) -> 1.29 | L169: 0.0002
E170: 164 | F170: 0.003761888704 | H170: 2.3 | I170: 46 | J170: =IFERROR(ROUND(IMREAL(IMEXP(COMPLEX(LN(Table1[[#This Row],[Speed]]),RADIANS(Table1[[#This Row],[Dir]])))),2),0) -> 1.6 | K170: =IFERROR(ROUND(IMAGINARY(IMEXP(COMPLEX(LN(Table1[[#This Row],[Speed]]),RADIANS(Table1[[#This Row],[Dir]])))),2),0) -> 1.65 | L170: 0.0002
E171: 165 | F171: 0.003984540449 | H171: 11 | I171: 46 | J171: =IFERROR(ROUND(IMREAL(IMEXP(COMPLEX(LN(Table1[[#This Row],[Speed]]),RADIANS(Table1[[#This Row],[Dir]])))),2),0) -> 7.64 | K171: =IFERROR(ROUND(IMAGINARY(IMEXP(COMPLEX(LN(Table1[[#This Row],[Speed]]),RADIANS(Table1[[#This Row],[Dir]])))),2),0) -> 7.91 | L171: 0.0002
E172: 166 | F172: 0.004198008002 | H172: 1.4 | I172: 47 | J172: =IFERROR(ROUND(IMREAL(IMEXP(COMPLEX(LN(Table1[[#This Row],[Speed]]),RADIANS(Table1[[#This Row],[Dir]])))),2),0) -> 0.95 | K172: =IFERROR(ROUND(IMAGINARY(IMEXP(COMPLEX(LN(Table1[[#This Row],[Speed]]),RADIANS(Table1[[#This Row],[Dir]])))),2),0) -> 1.02 | L172: 0.0002
E173: 167 | F173: 0.004400666745 | H173: 10.8 | I173: 47 | J173: =IFERROR(ROUND(IMREAL(IMEXP(COMPLEX(LN(Table1[[#This Row],[Speed]]),RADIANS(Table1[[#This Row],[Dir]])))),2),0) -> 7.37 | K173: =IFERROR(ROUND(IMAGINARY(IMEXP(COMPLEX(LN(Table1[[#This Row],[Speed]]),RADIANS(Table1[[#This Row],[Dir]])))),2),0) -> 7.9 | L173: 0.0002
E174: 168 | F174: 0.004590974323 | H174: 0.1 | I174: 48 | J174: =IFERROR(ROUND(IMREAL(IMEXP(COMPLEX(LN(Table1[[#This Row],[Speed]]),RADIANS(Table1[[#This Row],[Dir]])))),2),0) -> 0.07 | K174: =IFERROR(ROUND(IMAGINARY(IMEXP(COMPLEX(LN(Table1[[#This Row],[Speed]]),RADIANS(Table1[[#This Row],[Dir]])))),2),0) -> 0.07 | L174: 0.0002
E175: 169 | F175: 0.004767482381 | H175: 1 | I175: 48 | J175: =IFERROR(ROUND(IMREAL(IMEXP(COMPLEX(LN(Table1[[#This Row],[Speed]]),RADIANS(Table1[[#This Row],[Dir]])))),2),0) -> 0.67 | K175: =IFERROR(ROUND(IMAGINARY(IMEXP(COMPLEX(LN(Table1[[#This Row],[Speed]]),RADIANS(Table1[[#This Row],[Dir]])))),2),0) -> 0.74 | L175: 0.0002
E176: 170 | F176: 0.004928847585 | H176: 5.3 | I176: 48 | J176: =IFERROR(ROUND(IMREAL(IMEXP(COMPLEX(LN(Table1[[#This Row],[Speed]]),RADIANS(Table1[[#This Row],[Dir]])))),2),0) -> 3.55 | K176: =IFERROR(ROUND(IMAGINARY(IMEXP(COMPLEX(LN(Table1[[#This Row],[Speed]]),RADIANS(Table1[[#This Row],[Dir]])))),2),0) -> 3.94 | L176: 0.0002
E177: 171 | F177: 0.005073841849 | H177: 0.3 | I177: 50 | J177: =IFERROR(ROUND(IMREAL(IMEXP(COMPLEX(LN(Table1[[#This Row],[Speed]]),RADIANS(Table1[[#This Row],[Dir]])))),2),0) -> 0.19 | K177: =IFERROR(ROUND(IMAGINARY(IMEXP(COMPLEX(LN(Table1[[#This Row],[Speed]]),RADIANS(Table1[[#This Row],[Dir]])))),2),0) -> 0.23 | L177: 0.0002
E178: 172 | F178: 0.00520136168 | H178: 0.4 | I178: 50 | J178: =IFERROR(ROUND(IMREAL(IMEXP(COMPLEX(LN(Table1[[#This Row],[Speed]]),RADIANS(Table1[[#This Row],[Dir]])))),2),0) -> 0.26 | K178: =IFERROR(ROUND(IMAGINARY(IMEXP(COMPLEX(LN(Table1[[#This Row],[Speed]]),RADIANS(Table1[[#This Row],[Dir]])))),2),0) -> 0.31 | L178: 0.0002
E179: 173 | F179: 0.005310436573 | H179: 0.7 | I179: 50 | J179: =IFERROR(ROUND(IMREAL(IMEXP(COMPLEX(LN(Table1[[#This Row],[Speed]]),RADIANS(Table1[[#This Row],[Dir]])))),2),0) -> 0.45 | K179: =IFERROR(ROUND(IMAGINARY(IMEXP(COMPLEX(LN(Table1[[#This Row],[Speed]]),RADIANS(Table1[[#This Row],[Dir]])))),2),0) -> 0.54 | L179: 0.0002
E180: 174 | F180: 0.005400236403 | H180: 1.1 | I180: 50 | J180: =IFERROR(ROUND(IMREAL(IMEXP(COMPLEX(LN(Table1[[#This Row],[Speed]]),RADIANS(Table1[[#This Row],[Dir]])))),2),0) -> 0.71 | K180: =IFERROR(ROUND(IMAGINARY(IMEXP(COMPLEX(LN(Table1[[#This Row],[Speed]]),RADIANS(Table1[[#This Row],[Dir]])))),2),0) -> 0.84 | L180: 0.0002
E181: 175 | F181: 0.00547007774 | H181: 3.7 | I181: 50 | J181: =IFERROR(ROUND(IMREAL(IMEXP(COMPLEX(LN(Table1[[#This Row],[Speed]]),RADIANS(Table1[[#This Row],[Dir]])))),2),0) -> 2.38 | K181: =IFERROR(ROUND(IMAGINARY(IMEXP(COMPLEX(LN(Table1[[#This Row],[Speed]]),RADIANS(Table1[[#This Row],[Dir]])))),2),0) -> 2.83 | L181: 0.0002
E182: 176 | F182: 0.005519429049 | H182: 10.1 | I182: 50 | J182: =IFERROR(ROUND(IMREAL(IMEXP(COMPLEX(LN(Table1[[#This Row],[Speed]]),RADIANS(Table1[[#This Row],[Dir]])))),2),0) -> 6.49 | K182: =IFERROR(ROUND(IMAGINARY(IMEXP(COMPLEX(LN(Table1[[#This Row],[Speed]]),RADIANS(Table1[[#This Row],[Dir]])))),2),0) -> 7.74 | L182: 0.0002
E183: 177 | F183: 0.005547914736 | H183: 2.2 | I183: 51 | J183: =IFERROR(ROUND(IMREAL(IMEXP(COMPLEX(LN(Table1[[#This Row],[Speed]]),RADIANS(Table1[[#This Row],[Dir]])))),2),0) -> 1.38 | K183: =IFERROR(ROUND(IMAGINARY(IMEXP(COMPLEX(LN(Table1[[#This Row],[Speed]]),RADIANS(Table1[[#This Row],[Dir]])))),2),0) -> 1.71 | L183: 0.0002
E184: 178 | F184: 0.005555318008 | H184: 5.3 | I184: 51 | J184: =IFERROR(ROUND(IMREAL(IMEXP(COMPLEX(LN(Table1[[#This Row],[Speed]]),RADIANS(Table1[[#This Row],[Dir]])))),2),0) -> 3.34 | K184: =IFERROR(ROUND(IMAGINARY(IMEXP(COMPLEX(LN(Table1[[#This Row],[Speed]]),RADIANS(Table1[[#This Row],[Dir]])))),2),0) -> 4.12 | L184: 0.0002
E185: 179 | F185: 0.005541582522 | H185: 2.7 | I185: 52 | J185: =IFERROR(ROUND(IMREAL(IMEXP(COMPLEX(LN(Table1[[#This Row],[Speed]]),RADIANS(Table1[[#This Row],[Dir]])))),2),0) -> 1.66 | K185: =IFERROR(ROUND(IMAGINARY(IMEXP(COMPLEX(LN(Table1[[#This Row],[Speed]]),RADIANS(Table1[[#This Row],[Dir]])))),2),0) -> 2.13 | L185: 0.0002
E186: 180 | F186: 0.005506812813 | H186: 3.2 | I186: 52 | J186: =IFERROR(ROUND(IMREAL(IMEXP(COMPLEX(LN(Table1[[#This Row],[Speed]]),RADIANS(Table1[[#This Row],[Dir]])))),2),0) -> 1.97 | K186: =IFERROR(ROUND(IMAGINARY(IMEXP(COMPLEX(LN(Table1[[#This Row],[Speed]]),RADIANS(Table1[[#This Row],[Dir]])))),2),0) -> 2.52 | L186: 0.0002
E187: 181 | F187: 0.005451273499 | H187: 2.2 | I187: 53 | J187: =IFERROR(ROUND(IMREAL(IMEXP(COMPLEX(LN(Table1[[#This Row],[Speed]]),RADIANS(Table1[[#This Row],[Dir]])))),2),0) -> 1.32 | K187: =IFERROR(ROUND(IMAGINARY(IMEXP(COMPLEX(LN(Table1[[#This Row],[Speed]]),RADIANS(Table1[[#This Row],[Dir]])))),2),0) -> 1.76 | L187: 0.0002
E188: 182 | F188: 0.005375387269 | H188: 6.1 | I188: 53 | J188: =IFERROR(ROUND(IMREAL(IMEXP(COMPLEX(LN(Table1[[#This Row],[Speed]]),RADIANS(Table1[[#This Row],[Dir]])))),2),0) -> 3.67 | K188: =IFERROR(ROUND(IMAGINARY(IMEXP(COMPLEX(LN(Table1[[#This Row],[Speed]]),RADIANS(Table1[[#This Row],[Dir]])))),2),0) -> 4.87 | L188: 0.0002
E189: 183 | F189: 0.005279731662 | H189: 2.8 | I189: 54 | J189: =IFERROR(ROUND(IMREAL(IMEXP(COMPLEX(LN(Table1[[#This Row],[Speed]]),RADIANS(Table1[[#This Row],[Dir]])))),2),0) -> 1.65 | K189: =IFERROR(ROUND(IMAGINARY(IMEXP(COMPLEX(LN(Table1[[#This Row],[Speed]]),RADIANS(Table1[[#This Row],[Dir]])))),2),0) -> 2.27 | L189: 0.0002
E190: 184 | F190: 0.005165034675 | H190: 4.4 | I190: 54 | J190: =IFERROR(ROUND(IMREAL(IMEXP(COMPLEX(LN(Table1[[#This Row],[Speed]]),RADIANS(Table1[[#This Row],[Dir]])))),2),0) -> 2.59 | K190: =IFERROR(ROUND(IMAGINARY(IMEXP(COMPLEX(LN(Table1[[#This Row],[Speed]]),RADIANS(Table1[[#This Row],[Dir]])))),2),0) -> 3.56 | L190: 0.0002
E191: 185 | F191: 0.005032169222 | H191: 10.6 | I191: 54 | J191: =IFERROR(ROUND(IMREAL(IMEXP(COMPLEX(LN(Table1[[#This Row],[Speed]]),RADIANS(Table1[[#This Row],[Dir]])))),2),0) -> 6.23 | K191: =IFERROR(ROUND(IMAGINARY(IMEXP(COMPLEX(LN(Table1[[#This Row],[Speed]]),RADIANS(Table1[[#This Row],[Dir]])))),2),0) -> 8.58 | L191: 0.0002
E192: 186 | F192: 0.004882146488 | H192: 2 | I192: 55 | J192: =IFERROR(ROUND(IMREAL(IMEXP(COMPLEX(LN(Table1[[#This Row],[Speed]]),RADIANS(Table1[[#This Row],[Dir]])))),2),0) -> 1.15 | K192: =IFERROR(ROUND(IMAGINARY(IMEXP(COMPLEX(LN(Table1[[#This Row],[Speed]]),RADIANS(Table1[[#This Row],[Dir]])))),2),0) -> 1.64 | L192: 0.0002
E193: 187 | F193: 0.004716108238 | H193: 3 | I193: 55 | J193: =IFERROR(ROUND(IMREAL(IMEXP(COMPLEX(LN(Table1[[#This Row],[Speed]]),RADIANS(Table1[[#This Row],[Dir]])))),2),0) -> 1.72 | K193: =IFERROR(ROUND(IMAGINARY(IMEXP(COMPLEX(LN(Table1[[#This Row],[Speed]]),RADIANS(Table1[[#This Row],[Dir]])))),2),0) -> 2.46 | L193: 0.0002
E194: 188 | F194: 0.004535318123 | H194: 9.4 | I194: 55 | J194: =IFERROR(ROUND(IMREAL(IMEXP(COMPLEX(LN(Table1[[#This Row],[Speed]]),RADIANS(Table1[[#This Row],[Dir]])))),2),0) -> 5.39 | K194: =IFERROR(ROUND(IMAGINARY(IMEXP(COMPLEX(LN(Table1[[#This Row],[Speed]]),RADIANS(Table1[[#This Row],[Dir]])))),2),0) -> 7.7 | L194: 0.0002
E195: 189 | F195: 0.004341152065 | H195: 1.2 | I195: 56 | J195: =IFERROR(ROUND(IMREAL(IMEXP(COMPLEX(LN(Table1[[#This Row],[Speed]]),RADIANS(Table1[[#This Row],[Dir]])))),2),0) -> 0.67 | K195: =IFERROR(ROUND(IMAGINARY(IMEXP(COMPLEX(LN(Table1[[#This Row],[Speed]]),RADIANS(Table1[[#This Row],[Dir]])))),2),0) -> 0.99 | L195: 0.0002
E196: 190 | F196: 0.004135087784 | H196: 0.8 | I196: 57 | J196: =IFERROR(ROUND(IMREAL(IMEXP(COMPLEX(LN(Table1[[#This Row],[Speed]]),RADIANS(Table1[[#This Row],[Dir]])))),2),0) -> 0.44 | K196: =IFERROR(ROUND(IMAGINARY(IMEXP(COMPLEX(LN(Table1[[#This Row],[Speed]]),RADIANS(Table1[[#This Row],[Dir]])))),2),0) -> 0.67 | L196: 0.0002
E197: 191 | F197: 0.003918693555 | H197: 7.8 | I197: 57 | J197: =IFERROR(ROUND(IMREAL(IMEXP(COMPLEX(LN(Table1[[#This Row],[Speed]]),RADIANS(Table1[[#This Row],[Dir]])))),2),0) -> 4.25 | K197: =IFERROR(ROUND(IMAGINARY(IMEXP(COMPLEX(LN(Table1[[#This Row],[Speed]]),RADIANS(Table1[[#This Row],[Dir]])))),2),0) -> 6.54 | L197: 0.0002
E198: 192 | F198: 0.003693616267 | H198: 0.3 | I198: 59 | J198: =IFERROR(ROUND(IMREAL(IMEXP(COMPLEX(LN(Table1[[#This Row],[Speed]]),RADIANS(Table1[[#This Row],[Dir]])))),2),0) -> 0.15 | K198: =IFERROR(ROUND(IMAGINARY(IMEXP(COMPLEX(LN(Table1[[#This Row],[Speed]]),RADIANS(Table1[[#This Row],[Dir]])))),2),0) -> 0.26 | L198: =1/5000 -> 0.0002
E199: 193 | F199: 0.003461568896 | H199: 2.2 | I199: 60 | J199: =IFERROR(ROUND(IMREAL(IMEXP(COMPLEX(LN(Table1[[#This Row],[Speed]]),RADIANS(Table1[[#This Row],[Dir]])))),2),0) -> 1.1 | K199: =IFERROR(ROUND(IMAGINARY(IMEXP(COMPLEX(LN(Table1[[#This Row],[Speed]]),RADIANS(Table1[[#This Row],[Dir]])))),2),0) -> 1.91 | L199: 0.0002
E200: 194 | F200: 0.003224317462 | H200: 3.4 | I200: 60 | J200: =IFERROR(ROUND(IMREAL(IMEXP(COMPLEX(LN(Table1[[#This Row],[Speed]]),RADIANS(Table1[[#This Row],[Dir]])))),2),0) -> 1.7 | K200: =IFERROR(ROUND(IMAGINARY(IMEXP(COMPLEX(LN(Table1[[#This Row],[Speed]]),RADIANS(Table1[[#This Row],[Dir]])))),2),0) -> 2.94 | L200: 0.0002
... 4805 more rows

Sheet PT2
G5: PivotTable1
G6: Sum of zval | H6: yval
G7: xval | H7: -11--10.5 | I7: -10.5--10 | J7: -10--9.5 | K7: -9.5--9 | L7: -9--8.5 | M7: -8.5--8 | N7: -8--7.5 | O7: -7.5--7 | P7: -7--6.5 | Q7: -6.5--6 | R7: -6--5.5 | S7: -5.5--5 | T7: -5--4.5 | U7: -4.5--4 | V7: -4--3.5 | W7: -3.5--3 | X7: -3--2.5 | Y7: -2.5--2 | Z7: -2--1.5 | AA7: -1.5--1 | AB7: -1--0.5 | AC7: -0.5-0 | AD7: 0-0.5 | AE7: 0.5-1 | AF7: 1-1.5 | AG7: 1.5-2 | AH7: 2-2.5 | AI7: 2.5-3 | AJ7: 3-3.5 | AK7: 3.5-4 | AL7: 4-4.5 | AM7: 4.5-5 | AN7: 5-5.5 | AO7: 5.5-6 | AP7: 6-6.5 | AQ7: 6.5-7 | AR7: 7-7.5 | AS7: 7.5-8 | AT7: 8-8.5 | AU7: 8.5-9 | AV7: 9-9.5 | AW7: 9.5-10 | AX7: 10-10.5 | AY7: 10.5-11
G8: -11--10.5 | H8: 0 | I8: 0 | J8: 0 | K8: 0 | L8: 0 | M8: 0 | N8: 0 | O8: 0 | P8: 0 | Q8: 0 | R8: 0 | S8: 0 | T8: 0 | U8: 0 | V8: 0 | W8: 0 | X8: 0 | Y8: 0.0002 | Z8: 0.0002 | AA8: 0.0002 | AB8: 0.0002 | AC8: 0 | AD8: 0 | AE8: 0 | AF8: 0.0002 | AG8: 0 | AH8: 0 | AI8: 0 | AJ8: 0 | AK8: 0 | AL8: 0 | AM8: 0 | AN8: 0 | AO8: 0 | AP8: 0 | AQ8: 0 | AR8: 0 | AS8: 0 | AT8: 0 | AU8: 0 | AV8: 0 | AW8: 0 | AX8: 0 | AY8: 0
G9: -10.5--10 | H9: 0 | I9: 0 | J9: 0 | K9: 0 | L9: 0 | M9: 0 | N9: 0 | O9: 0 | P9: 0 | Q9: 0 | R9: 0 | S9: 0 | T9: 0 | U9: 0 | V9: 0 | W9: 0.0002 | X9: 0.0002 | Y9: 0 | Z9: 0 | AA9: 0.0004 | AB9: 0.0002 | AC9: 0 | AD9: 0 | AE9: 0 | AF9: 0.0002 | AG9: 0 | AH9: 0 | AI9: 0 | AJ9: 0.0002 | AK9: 0 | AL9: 0 | AM9: 0 | AN9: 0 | AO9: 0 | AP9: 0 | AQ9: 0 | AR9: 0 | AS9: 0 | AT9: 0 | AU9: 0 | AV9: 0 | AW9: 0 | AX9: 0 | AY9: 0
G10: -10--9.5 | H10: 0 | I10: 0 | J10: 0 | K10: 0 | L10: 0 | M10: 0 | N10: 0 | O10: 0 | P10: 0 | Q10: 0 | R10: 0 | S10: 0 | T10: 0.0002 | U10: 0 | V10: 0 | W10: 0 | X10: 0 | Y10: 0 | Z10: 0 | AA10: 0 | AB10: 0 | AC10: 0 | AD10: 0 | AE10: 0 | AF10: 0.0004 | AG10: 0 | AH10: 0 | AI10: 0.0002 | AJ10: 0.0002 | AK10: 0 | AL10: 0.0002 | AM10: 0 | AN10: 0 | AO10: 0 | AP10: 0 | AQ10: 0 | AR10: 0 | AS10: 0 | AT10: 0 | AU10: 0 | AV10: 0 | AW10: 0 | AX10: 0 | AY10: 0
G11: -9.5--9 | H11: 0 | I11: 0 | J11: 0 | K11: 0 | L11: 0 | M11: 0 | N11: 0 | O11: 0 | P11: 0 | Q11: 0 | R11: 0 | S11: 0 | T11: 0 | U11: 0 | V11: 0 | W11: 0.0002 | X11: 0.0002 | Y11: 0 | Z11: 0.0002 | AA11: 0 | AB11: 0.0002 | AC11: 0.0006 | AD11: 0 | AE11: 0 | AF11: 0 | AG11: 0 | AH11: 0 | AI11: 0.0006 | AJ11: 0 | AK11: 0.0002 | AL11: 0 | AM11: 0 | AN11: 0 | AO11: 0 | AP11: 0 | AQ11: 0 | AR11: 0 | AS11: 0 | AT11: 0 | AU11: 0 | AV11: 0 | AW11: 0 | AX11: 0 | AY11: 0
G12: -9--8.5 | H12: 0 | I12: 0 | J12: 0 | K12: 0 | L12: 0 | M12: 0 | N12: 0 | O12: 0 | P12: 0 | Q12: 0 | R12: 0 | S12: 0 | T12: 0 | U12: 0 | V12: 0 | W12: 0 | X12: 0 | Y12: 0 | Z12: 0 | AA12: 0.0002 | AB12: 0.0002 | AC12: 0.0004 | AD12: 0 | AE12: 0.0002 | AF12: 0.0004 | AG12: 0.0006 | AH12: 0.0004 | AI12: 0 | AJ12: 0 | AK12: 0 | AL12: 0 | AM12: 0 | AN12: 0.0002 | AO12: 0 | AP12: 0 | AQ12: 0 | AR12: 0 | AS12: 0 | AT12: 0 | AU12: 0 | AV12: 0 | AW12: 0 | AX12: 0 | AY12: 0
G13: -8.5--8 | H13: 0 | I13: 0 | J13: 0 | K13: 0 | L13: 0 | M13: 0 | N13: 0 | O13: 0 | P13: 0 | Q13: 0 | R13: 0 | S13: 0 | T13: 0 | U13: 0 | V13: 0 | W13: 0.0002 | X13: 0 | Y13: 0.0004 | Z13: 0.0004 | AA13: 0 | AB13: 0.0006 | AC13: 0 | AD13: 0.0002 | AE13: 0.0006 | AF13: 0.0004 | AG13: 0 | AH13: 0 | AI13: 0.0002 | AJ13: 0.0002 | AK13: 0.0002 | AL13: 0.0004 | AM13: 0 | AN13: 0 | AO13: 0 | AP13: 0 | AQ13: 0 | AR13: 0 | AS13: 0 | AT13: 0 | AU13: 0 | AV13: 0 | AW13: 0 | AX13: 0 | AY13: 0
G14: -8--7.5 | H14: 0 | I14: 0 | J14: 0 | K14: 0 | L14: 0 | M14: 0 | N14: 0 | O14: 0 | P14: 0 | Q14: 0 | R14: 0 | S14: 0 | T14: 0 | U14: 0 | V14: 0 | W14: 0 | X14: 0.0002 | Y14: 0 | Z14: 0.0002 | AA14: 0.0008 | AB14: 0.0002 | AC14: 0 | AD14: 0.0004 | AE14: 0.0002 | AF14: 0.0006 | AG14: 0 | AH14: 0.0006 | AI14: 0.0002 | AJ14: 0 | AK14: 0 | AL14: 0 | AM14: 0 | AN14: 0 | AO14: 0 | AP14: 0 | AQ14: 0 | AR14: 0 | AS14: 0 | AT14: 0 | AU14: 0 | AV14: 0 | AW14: 0 | AX14: 0 | AY14: 0
G15: -7.5--7 | H15: 0 | I15: 0 | J15: 0 | K15: 0 | L15: 0 | M15: 0 | N15: 0 | O15: 0 | P15: 0 | Q15: 0.0002 | R15: 0 | S15: 0 | T15: 0 | U15: 0 | V15: 0.0002 | W15: 0 | X15: 0 | Y15: 0.0002 | Z15: 0.0002 | AA15: 0.0004 | AB15: 0.0002 | AC15: 0.0002 | AD15: 0.0002 | AE15: 0.0006 | AF15: 0.0002 | AG15: 0.0006 | AH15: 0.0004 | AI15: 0.0004 | AJ15: 0.0002 | AK15: 0 | AL15: 0 | AM15: 0.0002 | AN15: 0 | AO15: 0 | AP15: 0 | AQ15: 0 | AR15: 0 | AS15: 0 | AT15: 0 | AU15: 0 | AV15: 0 | AW15: 0 | AX15: 0 | AY15: 0
G16: -7--6.5 | H16: 0 | I16: 0 | J16: 0 | K16: 0 | L16: 0.0002 | M16: 0.0002 | N16: 0.0002 | O16: 0 | P16: 0 | Q16: 0.0002 | R16: 0 | S16: 0 | T16: 0 | U16: 0 | V16: 0 | W16: 0 | X16: 0 | Y16: 0.0002 | Z16: 0 | AA16: 0.0002 | AB16: 0.0004 | AC16: 0.0002 | AD16: 0.0006 | AE16: 0.0006 | AF16: 0.0004 | AG16: 0.0002 | AH16: 0.0002 | AI16: 0 | AJ16: 0 | AK16: 0 | AL16: 0 | AM16: 0 | AN16: 0 | AO16: 0 | AP16: 0 | AQ16: 0 | AR16: 0 | AS16: 0 | AT16: 0 | AU16: 0 | AV16: 0 | AW16: 0 | AX16: 0 | AY16: 0
G17: -6.5--6 | H17: 0 | I17: 0 | J17: 0 | K17: 0 | L17: 0.0002 | M17: 0 | N17: 0 | O17: 0 | P17: 0 | Q17: 0 | R17: 0 | S17: 0 | T17: 0 | U17: 0 | V17: 0.0002 | W17: 0 | X17: 0 | Y17: 0.0004 | Z17: 0.0002 | AA17: 0.0006 | AB17: 0.0014 | AC17: 0.001 | AD17: 0.0014 | AE17: 0.0002 | AF17: 0.0004 | AG17: 0.0006 | AH17: 0.0004 | AI17: 0 | AJ17: 0 | AK17: 0 | AL17: 0 | AM17: 0 | AN17: 0 | AO17: 0 | AP17: 0 | AQ17: 0.0002 | AR17: 0 | AS17: 0 | AT17: 0 | AU17: 0 | AV17: 0 | AW17: 0 | AX17: 0 | AY17: 0
G18: -6--5.5 | H18: 0 | I18: 0 | J18: 0 | K18: 0.0002 | L18: 0.0004 | M18: 0 | N18: 0 | O18: 0 | P18: 0 | Q18: 0.0002 | R18: 0 | S18: 0 | T18: 0 | U18: 0 | V18: 0 | W18: 0 | X18: 0.0002 | Y18: 0 | Z18: 0.0002 | AA18: 0.0008 | AB18: 0.0008 | AC18: 0.0012 | AD18: 0.0014 | AE18: 0.001 | AF18: 0.0008 | AG18: 0.0002 | AH18: 0.0002 | AI18: 0 | AJ18: 0 | AK18: 0 | AL18: 0 | AM18: 0 | AN18: 0 | AO18: 0 | AP18: 0 | AQ18: 0 | AR18: 0 | AS18: 0.0002 | AT18: 0 | AU18: 0 | AV18: 0 | AW18: 0 | AX18: 0 | AY18: 0
G19: -5.5--5 | H19: 0 | I19: 0 | J19: 0 | K19: 0 | L19: 0 | M19: 0.0004 | N19: 0.0004 | O19: 0 | P19: 0.0002 | Q19: 0.0002 | R19: 0.0004 | S19: 0.0002 | T19: 0 | U19: 0 | V19: 0 | W19: 0 | X19: 0 | Y19: 0.0002 | Z19: 0.0002 | AA19: 0.0014 | AB19: 0.0008 | AC19: 0.0008 | AD19: 0.0008 | AE19: 0.0012 | AF19: 0.001 | AG19: 0.0002 | AH19: 0.0004 | AI19: 0 | AJ19: 0 | AK19: 0 | AL19: 0 | AM19: 0 | AN19: 0 | AO19: 0 | AP19: 0 | AQ19: 0 | AR19: 0.0002 | AS19: 0 | AT19: 0.0002 | AU19: 0 | AV19: 0 | AW19: 0 | AX19: 0 | AY19: 0
G20: -5--4.5 | H20: 0 | I20: 0 | J20: 0.0002 | K20: 0 | L20: 0 | M20: 0.0004 | N20: 0 | O20: 0.0002 | P20: 0 | Q20: 0.0004 | R20: 0.0002 | S20: 0.0002 | T20: 0.0002 | U20: 0 | V20: 0.0002 | W20: 0 | X20: 0 | Y20: 0 | Z20: 0.0002 | AA20: 0.0004 | AB20: 0.0008 | AC20: 0.0024 | AD20: 0.001 | AE20: 0.0014 | AF20: 0.0006 | AG20: 0.0008 | AH20: 0.0004 | AI20: 0 | AJ20: 0 | AK20: 0 | AL20: 0 | AM20: 0.0002 | AN20: 0 | AO20: 0 | AP20: 0 | AQ20: 0 | AR20: 0.0004 | AS20: 0.0004 | AT20: 0 | AU20: 0 | AV20: 0.0002 | AW20: 0 | AX20: 0 | AY20: 0
G21: -4.5--4 | H21: 0 | I21: 0.0004 | J21: 0 | K21: 0.0002 | L21: 0 | M21: 0 | N21: 0.0002 | O21: 0.0002 | P21: 0 | Q21: 0 | R21: 0.0002 | S21: 0.0002 | T21: 0.0004 | U21: 0.0002 | V21: 0 | W21: 0 | X21: 0 | Y21: 0.0002 | Z21: 0.0006 | AA21: 0.0008 | AB21: 0.0014 | AC21: 0.0024 | AD21: 0.0012 | AE21: 0.0022 | AF21: 0.0014 | AG21: 0.0006 | AH21: 0.0006 | AI21: 0 | AJ21: 0 | AK21: 0 | AL21: 0 | AM21: 0.0006 | AN21: 0.0004 | AO21: 0.0004 | AP21: 0.0004 | AQ21: 0 | AR21: 0 | AS21: 0.0002 | AT21: 0.0002 | AU21: 0.0004 | AV21: 0.0004 | AW21: 0 | AX21: 0.0002 | AY21: 0
G22: -4--3.5 | H22: 0 | I22: 0 | J22: 0 | K22: 0 | L22: 0 | M22: 0 | N22: 0.0004 | O22: 0.0006 | P22: 0 | Q22: 0.0004 | R22: 0 | S22: 0.0004 | T22: 0.0004 | U22: 0.0004 | V22: 0.0004 | W22: 0 | X22: 0 | Y22: 0.0002 | Z22: 0.0006 | AA22: 0.0008 | AB22: 0.0014 | AC22: 0.0012 | AD22: 0.0016 | AE22: 0.0014 | AF22: 0.0008 | AG22: 0 | AH22: 0.0002 | AI22: 0 | AJ22: 0 | AK22: 0.0002 | AL22: 0.0002 | AM22: 0.0002 | AN22: 0.0002 | AO22: 0.0002 | AP22: 0.0002 | AQ22: 0.0002 | AR22: 0.0004 | AS22: 0.0004 | AT22: 0.0004 | AU22: 0 | AV22: 0.0004 | AW22: 0 | AX22: 0 | AY22: 0
G23: -3.5--3 | H23: 0 | I23: 0 | J23: 0 | K23: 0 | L23: 0.0004 | M23: 0.0002 | N23: 0 | O23: 0 | P23: 0.0002 | Q23: 0.001 | R23: 0 | S23: 0.0006 | T23: 0.0004 | U23: 0.0006 | V23: 0 | W23: 0.0002 | X23: 0.0002 | Y23: 0 | Z23: 0.0004 | AA23: 0.001 | AB23: 0.002 | AC23: 0.0014 | AD23: 0.0032 | AE23: 0.0012 | AF23: 0.0014 | AG23: 0.0002 | AH23: 0 | AI23: 0 | AJ23: 0 | AK23: 0.0004 | AL23: 0.0002 | AM23: 0.0006 | AN23: 0.0002 | AO23: 0.0008 | AP23: 0.0002 | AQ23: 0.0006 | AR23: 0.0002 | AS23: 0 | AT23: 0.0004 | AU23: 0.0002 | AV23: 0 | AW23: 0 | AX23: 0.0004 | AY23: 0
G24: -3--2.5 | H24: 0 | I24: 0 | J24: 0 | K24: 0 | L24: 0.0006 | M24: 0.0002 | N24: 0.0002 | O24: 0.0006 | P24: 0.0006 | Q24: 0 | R24: 0.0004 | S24: 0.0006 | T24: 0.0014 | U24: 0.001 | V24: 0.001 | W24: 0.0012 | X24: 0.0008 | Y24: 0.0002 | Z24: 0.0002 | AA24: 0 | AB24: 0.0022 | AC24: 0.0022 | AD24: 0.0034 | AE24: 0.0024 | AF24: 0.0014 | AG24: 0.0006 | AH24: 0 | AI24: 0.0004 | AJ24: 0 | AK24: 0.0008 | AL24: 0.0006 | AM24: 0.0004 | AN24: 0.0006 | AO24: 0.0006 | AP24: 0 | AQ24: 0.0008 | AR24: 0.0006 | AS24: 0.0002 | AT24: 0 | AU24: 0.0002 | AV24: 0.0004 | AW24: 0 | AX24: 0.0002 | AY24: 0
G25: -2.5--2 | H25: 0 | I25: 0 | J25: 0 | K25: 0.0002 | L25: 0.0002 | M25: 0.0006 | N25: 0.0004 | O25: 0.0008 | P25: 0.0006 | Q25: 0.0004 | R25: 0.0006 | S25: 0.0018 | T25: 0.0006 | U25: 0.0034 | V25: 0.0014 | W25: 0.0016 | X25: 0.0012 | Y25: 0.0012 | Z25: 0.0002 | AA25: 0.0004 | AB25: 0.0012 | AC25: 0.0044 | AD25: 0.003 | AE25: 0.0032 | AF25: 0.0002 | AG25: 0 | AH25: 0.0002 | AI25: 0.001 | AJ25: 0.001 | AK25: 0.0006 | AL25: 0.0012 | AM25: 0.0014 | AN25: 0.0008 | AO25: 0.0004 | AP25: 0.0006 | AQ25: 0.0008 | AR25: 0.0006 | AS25: 0.0002 | AT25: 0.0002 | AU25: 0.0002 | AV25: 0 | AW25: 0.0002 | AX25: 0.0006 | AY25: 0
G26: -2--1.5 | H26: 0.0004 | I26: 0 | J26: 0 | K26: 0 | L26: 0 | M26: 0.0004 | N26: 0.0006 | O26: 0 | P26: 0.0004 | Q26: 0.0004 | R26: 0.0018 | S26: 0.001 | T26: 0.0012 | U26: 0.0004 | V26: 0.0016 | W26: 0.0022 | X26: 0.0012 | Y26: 0.0014 | Z26: 0.0006 | AA26: 0 | AB26: 0.002 | AC26: 0.006 | AD26: 0.007 | AE26: 0.002 | AF26: 0 | AG26: 0.0002 | AH26: 0.0012 | AI26: 0.0006 | AJ26: 0.0018 | AK26: 0.0018 | AL26: 0.0008 | AM26: 0.0002 | AN26: 0.0004 | AO26: 0.0008 | AP26: 0.0002 | AQ26: 0.0008 | AR26: 0.0002 | AS26: 0.0006 | AT26: 0 | AU26: 0.0004 | AV26: 0.0008 | AW26: 0.0004 | AX26: 0 | AY26: 0
G27: -1.5--1 | H27: 0.0002 | I27: 0.0002 | J27: 0 | K27: 0.0002 | L27: 0.0004 | M27: 0 | N27: 0 | O27: 0.0002 | P27: 0.0008 | Q27: 0.0004 | R27: 0.0008 | S27: 0.0006 | T27: 0.0012 | U27: 0.0016 | V27: 0.0024 | W27: 0.0018 | X27: 0.004 | Y27: 0.0028 | Z27: 0.0036 | AA27: 0.0014 | AB27: 0.0004 | AC27: 0.0066 | AD27: 0.0098 | AE27: 0.0022 | AF27: 0.0008 | AG27: 0.0026 | AH27: 0.0038 | AI27: 0.0026 | AJ27: 0.0038 | AK27: 0.0026 | AL27: 0.0012 | AM27: 0.0018 | AN27: 0.0004 | AO27: 0.0004 | AP27: 0.001 | AQ27: 0.0008 | AR27: 0.0008 | AS27: 0.0006 | AT27: 0.0002 | AU27: 0.0002 | AV27: 0.0002 | AW27: 0 | AX27: 0 | AY27: 0.0002
G28: -1--0.5 | H28: 0 | I28: 0 | J28: 0 | K28: 0.0004 | L28: 0.0004 | M28: 0 | N28: 0.0004 | O28: 0.0004 | P28: 0.001 | Q28: 0.0006 | R28: 0.0008 | S28: 0.0004 | T28: 0.001 | U28: 0.0022 | V28: 0.0014 | W28: 0.002 | X28: 0.0032 | Y28: 0.0054 | Z28: 0.0062 | AA28: 0.0066 | AB28: 0.0064 | AC28: 0.0092 | AD28: 0.014 | AE28: 0.0024 | AF28: 0.0086 | AG28: 0.0058 | AH28: 0.005 | AI28: 0.0034 | AJ28: 0.0026 | AK28: 0.0016 | AL28: 0.0014 | AM28: 0.0018 | AN28: 0.0006 | AO28: 0.0008 | AP28: 0.001 | AQ28: 0.0004 | AR28: 0.0004 | AS28: 0.0002 | AT28: 0.0004 | AU28: 0.0002 | AV28: 0 | AW28: 0 | AX28: 0.0002 | AY28: 0
G29: -0.5-0 | H29: 0 | I29: 0 | J29: 0.0002 | K29: 0 | L29: 0.0002 | M29: 0 | N29: 0 | O29: 0.0002 | P29: 0 | Q29: 0 | R29: 0.0004 | S29: 0 | T29: 0.0004 | U29: 0.001 | V29: 0.0002 | W29: 0.0036 | X29: 0.002 | Y29: 0.0032 | Z29: 0.0074 | AA29: 0.0074 | AB29: 0.0172 | AC29: 0.0332 | AD29: 0.041 | AE29: 0.016 | AF29: 0.0114 | AG29: 0.0056 | AH29: 0.0054 | AI29: 0.0034 | AJ29: 0.0016 | AK29: 0.0012 | AL29: 0.0006 | AM29: 0.001 | AN29: 0.0008 | AO29: 0.001 | AP29: 0.0006 | AQ29: 0.0008 | AR29: 0.0004 | AS29: 0.0002 | AT29: 0.0004 | AU29: 0.0006 | AV29: 0.0004 | AW29: 0 | AX29: 0 | AY29: 0
G30: 0-0.5 | H30: 0 | I30: 0 | J30: 0 | K30: 0 | L30: 0.0002 | M30: 0 | N30: 0.0002 | O30: 0 | P30: 0 | Q30: 0 | R30: 0 | S30: 0.0004 | T30: 0.0008 | U30: 0 | V30: 0.0002 | W30: 0.0008 | X30: 0.0004 | Y30: 0.0008 | Z30: 0.001 | AA30: 0.0014 | AB30: 0.003 | AC30: 0.034 | AD30: 0.0512 | AE30: 0.0054 | AF30: 0.002 | AG30: 0.0018 | AH30: 0.0032 | AI30: 0.0016 | AJ30: 0.001 | AK30: 0.0016 | AL30: 0.0012 | AM30: 0.001 | AN30: 0.0002 | AO30: 0.0002 | AP30: 0.0006 | AQ30: 0.0002 | AR30: 0 | AS30: 0.0004 | AT30: 0.0002 | AU30: 0.0002 | AV30: 0.0002 | AW30: 0 | AX30: 0 | AY30: 0
G31: 0.5-1 | H31: 0 | I31: 0 | J31: 0 | K31: 0 | L31: 0 | M31: 0 | N31: 0 | O31: 0.0004 | P31: 0 | Q31: 0 | R31: 0.0002 | S31: 0 | T31: 0 | U31: 0.0002 | V31: 0 | W31: 0 | X31: 0 | Y31: 0 | Z31: 0.0012 | AA31: 0.0034 | AB31: 0.0096 | AC31: 0.0082 | AD31: 0.0118 | AE31: 0.011 | AF31: 0.0024 | AG31: 0.0006 | AH31: 0 | AI31: 0.0002 | AJ31: 0 | AK31: 0.0002 | AL31: 0.0002 | AM31: 0.0004 | AN31: 0 | AO31: 0.0002 | AP31: 0 | AQ31: 0.0002 | AR31: 0 | AS31: 0.0002 | AT31: 0.0002 | AU31: 0.0002 | AV31: 0 | AW31: 0 | AX31: 0 | AY31: 0
G32: 1-1.5 | H32: 0 | I32: 0 | J32: 0 | K32: 0 | L32: 0 | M32: 0 | N32: 0 | O32: 0 | P32: 0 | Q32: 0 | R32: 0 | S32: 0 | T32: 0 | U32: 0 | V32: 0 | W32: 0 | X32: 0.0004 | Y32: 0.0014 | Z32: 0.0042 | AA32: 0.0066 | AB32: 0.0072 | AC32: 0.0034 | AD32: 0.0066 | AE32: 0.0086 | AF32: 0.0076 | AG32: 0.0032 | AH32: 0.0004 | AI32: 0.0002 | AJ32: 0 | AK32: 0 | AL32: 0.0002 | AM32: 0 | AN32: 0 | AO32: 0 | AP32: 0 | AQ32: 0.0002 | AR32: 0 | AS32: 0.0002 | AT32: 0 | AU32: 0.0002 | AV32: 0 | AW32: 0.0002 | AX32: 0 | AY32: 0.0002
G33: 1.5-2 | H33: 0 | I33: 0 | J33: 0 | K33: 0 | L33: 0 | M33: 0 | N33: 0 | O33: 0 | P33: 0 | Q33: 0 | R33: 0 | S33: 0.0002 | T33: 0 | U33: 0 | V33: 0 | W33: 0.0002 | X33: 0.001 | Y33: 0.002 | Z33: 0.0044 | AA33: 0.0044 | AB33: 0.0058 | AC33: 0.001 | AD33: 0.0012 | AE33: 0.006 | AF33: 0.0038 | AG33: 0.0018 | AH33: 0.0014 | AI33: 0.001 | AJ33: 0.0004 | AK33: 0 | AL33: 0 | AM33: 0 | AN33: 0 | AO33: 0 | AP33: 0 | AQ33: 0 | AR33: 0 | AS33: 0 | AT33: 0.0002 | AU33: 0 | AV33: 0 | AW33: 0.0002 | AX33: 0 | AY33: 0
G34: 2-2.5 | H34: 0 | I34: 0 | J34: 0 | K34: 0 | L34: 0 | M34: 0 | N34: 0 | O34: 0 | P34: 0 | Q34: 0.0002 | R34: 0 | S34: 0.0002 | T34: 0.0002 | U34: 0.0004 | V34: 0 | W34: 0.0006 | X34: 0.0026 | Y34: 0.0028 | Z34: 0.0022 | AA34: 0.0044 | AB34: 0.0036 | AC34: 0.0002 | AD34: 0.0004 | AE34: 0.003 | AF34: 0.0026 | AG34: 0.0042 | AH34: 0.0028 | AI34: 0.002 | AJ34: 0 | AK34: 0.0006 | AL34: 0 | AM34: 0 | AN34: 0 | AO34: 0 | AP34: 0 | AQ34: 0 | AR34: 0 | AS34: 0 | AT34: 0 | AU34: 0 | AV34: 0 | AW34: 0 | AX34: 0 | AY34: 0
G35: 2.5-3 | H35: 0 | I35: 0 | J35: 0 | K35: 0 | L35: 0 | M35: 0 | N35: 0 | O35: 0 | P35: 0 | Q35: 0 | R35: 0.0004 | S35: 0.0002 | T35: 0.0008 | U35: 0.0008 | V35: 0.0016 | W35: 0.0012 | X35: 0.0012 | Y35: 0.0032 | Z35: 0.0026 | AA35: 0.0026 | AB35: 0.0012 | AC35: 0.0008 | AD35: 0.0006 | AE35: 0.0014 | AF35: 0.003 | AG35: 0.0024 | AH35: 0.0022 | AI35: 0.0016 | AJ35: 0.0008 | AK35: 0.0006 | AL35: 0 | AM35: 0.0002 | AN35: 0 | AO35: 0 | AP35: 0 | AQ35: 0 | AR35: 0 | AS35: 0 | AT35: 0 | AU35: 0 | AV35: 0 | AW35: 0 | AX35: 0 | AY35: 0
G36: 3-3.5 | H36: 0 | I36: 0 | J36: 0 | K36: 0 | L36: 0 | M36: 0 | N36: 0 | O36: 0 | P36: 0 | Q36: 0 | R36: 0.0004 | S36: 0 | T36: 0.0002 | U36: 0.0004 | V36: 0.0012 | W36: 0.0026 | X36: 0.0016 | Y36: 0.0024 | Z36: 0.003 | AA36: 0.0016 | AB36: 0.0008 | AC36: 0.0002 | AD36: 0 | AE36: 0.0012 | AF36: 0.0014 | AG36: 0.0014 | AH36: 0.0024 | AI36: 0.001 | AJ36: 0.0008 | AK36: 0.001 | AL36: 0.0006 | AM36: 0.0002 | AN36: 0.0002 | AO36: 0 | AP36: 0.0002 | AQ36: 0 | AR36: 0.0002 | AS36: 0 | AT36: 0 | AU36: 0 | AV36: 0 | AW36: 0 | AX36: 0 | AY36: 0
G37: 3.5-4 | H37: 0 | I37: 0 | J37: 0 | K37: 0 | L37: 0 | M37: 0 | N37: 0 | O37: 0.0002 | P37: 0.0002 | Q37: 0.0002 | R37: 0 | S37: 0.0008 | T37: 0.0002 | U37: 0.0018 | V37: 0.0004 | W37: 0.001 | X37: 0.0014 | Y37: 0.002 | Z37: 0.001 | AA37: 0.001 | AB37: 0.0002 | AC37: 0 | AD37: 0.0004 | AE37: 0.0004 | AF37: 0.0008 | AG37: 0.002 | AH37: 0.0006 | AI37: 0.0016 | AJ37: 0.0004 | AK37: 0.0008 | AL37: 0.001 | AM37: 0.0004 | AN37: 0.0004 | AO37: 0 | AP37: 0 | AQ37: 0 | AR37: 0 | AS37: 0.0002 | AT37: 0 | AU37: 0 | AV37: 0 | AW37: 0 | AX37: 0 | AY37: 0
G38: 4-4.5 | H38: 0 | I38: 0 | J38: 0 | K38: 0 | L38: 0.0002 | M38: 0 | N38: 0 | O38: 0.0002 | P38: 0.0002 | Q38: 0 | R38: 0.0008 | S38: 0 | T38: 0.0002 | U38: 0.0008 | V38: 0.0008 | W38: 0.001 | X38: 0.002 | Y38: 0.0012 | Z38: 0.001 | AA38: 0.0008 | AB38: 0 | AC38: 0 | AD38: 0 | AE38: 0.0002 | AF38: 0.0018 | AG38: 0.0014 | AH38: 0.0008 | AI38: 0.0016 | AJ38: 0.0012 | AK38: 0.0008 | AL38: 0.0008 | AM38: 0.0002 | AN38: 0.0002 | AO38: 0 | AP38: 0.0004 | AQ38: 0.0002 | AR38: 0 | AS38: 0 | AT38: 0 | AU38: 0 | AV38: 0 | AW38: 0 | AX38: 0 | AY38: 0
G39: 4.5-5 | H39: 0 | I39: 0 | J39: 0 | K39: 0.0004 | L39: 0.0002 | M39: 0 | N39: 0 | O39: 0.0002 | P39: 0 | Q39: 0 | R39: 0.0002 | S39: 0.0004 | T39: 0.0004 | U39: 0.0004 | V39: 0.0008 | W39: 0.0002 | X39: 0.0012 | Y39: 0.0018 | Z39: 0.0012 | AA39: 0.0002 | AB39: 0.0002 | AC39: 0 | AD39: 0.0002 | AE39: 0.0002 | AF39: 0.0004 | AG39: 0.0002 | AH39: 0.001 | AI39: 0.0014 | AJ39: 0.0014 | AK39: 0.0014 | AL39: 0.0006 | AM39: 0.0008 | AN39: 0.0002 | AO39: 0.0004 | AP39: 0.0002 | AQ39: 0 | AR39: 0 | AS39: 0 | AT39: 0.0002 | AU39: 0 | AV39: 0 | AW39: 0 | AX39: 0 | AY39: 0
G40: 5-5.5 | H40: 0 | I40: 0 | J40: 0 | K40: 0 | L40: 0 | M40: 0 | N40: 0.0002 | O40: 0 | P40: 0.0002 | Q40: 0 | R40: 0.001 | S40: 0.0008 | T40: 0.0004 | U40: 0.0004 | V40: 0.001 | W40: 0.0014 | X40: 0.001 | Y40: 0.0002 | Z40: 0.001 | AA40: 0.0004 | AB40: 0.0002 | AC40: 0 | AD40: 0 | AE40: 0.0002 | AF40: 0.0002 | AG40: 0.001 | AH40: 0.0002 | AI40: 0.0004 | AJ40: 0.001 | AK40: 0.0002 | AL40: 0.0006 | AM40: 0.0002 | AN40: 0 | AO40: 0.0004 | AP40: 0 | AQ40: 0 | AR40: 0 | AS40: 0.0002 | AT40: 0 | AU40: 0 | AV40: 0 | AW40: 0 | AX40: 0 | AY40: 0
G41: 5.5-6 | H41: 0 | I41: 0 | J41: 0 | K41: 0.0002 | L41: 0 | M41: 0 | N41: 0 | O41: 0 | P41: 0 | Q41: 0 | R41: 0.0004 | S41: 0.0006 | T41: 0.0004 | U41: 0 | V41: 0.0006 | W41: 0.0002 | X41: 0.0004 | Y41: 0.0004 | Z41: 0 | AA41: 0 | AB41: 0 | AC41: 0 | AD41: 0.0002 | AE41: 0.0002 | AF41: 0.0004 | AG41: 0.0004 | AH41: 0.0014 | AI41: 0.0002 | AJ41: 0.0008 | AK41: 0.0006 | AL41: 0.0004 | AM41: 0.0004 | AN41: 0 | AO41: 0.0004 | AP41: 0 | AQ41: 0 | AR41: 0.0004 | AS41: 0 | AT41: 0 | AU41: 0 | AV41: 0.0002 | AW41: 0 | AX41: 0 | AY41: 0
G42: 6-6.5 | H42: 0 | I42: 0 | J42: 0 | K42: 0 | L42: 0 | M42: 0 | N42: 0 | O42: 0.0002 | P42: 0 | Q42: 0.0004 | R42: 0 | S42: 0 | T42: 0.0002 | U42: 0.0004 | V42: 0.0002 | W42: 0.0004 | X42: 0.0008 | Y42: 0 | Z42: 0.0002 | AA42: 0 | AB42: 0 | AC42: 0 | AD42: 0 | AE42: 0.0002 | AF42: 0.0006 | AG42: 0 | AH42: 0.0006 | AI42: 0.0004 | AJ42: 0.0004 | AK42: 0.0004 | AL42: 0.0002 | AM42: 0.0002 | AN42: 0.0002 | AO42: 0.0006 | AP42: 0 | AQ42: 0.0002 | AR42: 0 | AS42: 0.0002 | AT42: 0.0002 | AU42: 0.0002 | AV42: 0.0002 | AW42: 0 | AX42: 0 | AY42: 0
G43: 6.5-7 | H43: 0 | I43: 0 | J43: 0 | K43: 0 | L43: 0 | M43: 0 | N43: 0.0004 | O43: 0.0002 | P43: 0 | Q43: 0 | R43: 0.0004 | S43: 0 | T43: 0.0002 | U43: 0.0002 | V43: 0.0006 | W43: 0.0002 | X43: 0 | Y43: 0 | Z43: 0 | AA43: 0 | AB43: 0 | AC43: 0 | AD43: 0 | AE43: 0 | AF43: 0.0004 | AG43: 0.0002 | AH43: 0.0002 | AI43: 0.0002 | AJ43: 0.0006 | AK43: 0 | AL43: 0.0004 | AM43: 0.0002 | AN43: 0.001 | AO43: 0.0004 | AP43: 0.0006 | AQ43: 0.0004 | AR43: 0 | AS43: 0 | AT43: 0.0002 | AU43: 0.0002 | AV43: 0 | AW43: 0 | AX43: 0 | AY43: 0
G44: 7-7.5 | H44: 0 | I44: 0 | J44: 0 | K44: 0 | L44: 0 | M44: 0 | N44: 0.0002 | O44: 0.0004 | P44: 0 | Q44: 0 | R44: 0.0006 | S44: 0 | T44: 0.0002 | U44: 0.0004 | V44: 0.0004 | W44: 0.0002 | X44: 0 | Y44: 0 | Z44: 0 | AA44: 0 | AB44: 0 | AC44: 0 | AD44: 0 | AE44: 0.0002 | AF44: 0 | AG44: 0 | AH44: 0.0002 | AI44: 0 | AJ44: 0.0004 | AK44: 0 | AL44: 0 | AM44: 0.0004 | AN44: 0.0002 | AO44: 0.0002 | AP44: 0.0004 | AQ44: 0 | AR44: 0 | AS44: 0.0004 | AT44: 0 | AU44: 0 | AV44: 0 | AW44: 0 | AX44: 0 | AY44: 0
G45: 7.5-8 | H45: 0 | I45: 0 | J45: 0 | K45: 0 | L45: 0 | M45: 0 | N45: 0 | O45: 0 | P45: 0 | Q45: 0.0002 | R45: 0 | S45: 0.0002 | T45: 0.0002 | U45: 0 | V45: 0.0002 | W45: 0 | X45: 0.0002 | Y45: 0 | Z45: 0 | AA45: 0 | AB45: 0 | AC45: 0 | AD45: 0 | AE45: 0 | AF45: 0 | AG45: 0.0002 | AH45: 0 | AI45: 0 | AJ45: 0.0006 | AK45: 0.0004 | AL45: 0.0002 | AM45: 0.0002 | AN45: 0.0004 | AO45: 0.0006 | AP45: 0 | AQ45: 0 | AR45: 0.0004 | AS45: 0.0002 | AT45: 0 | AU45: 0 | AV45: 0 | AW45: 0 | AX45: 0 | AY45: 0
G46: 8-8.5 | H46: 0 | I46: 0 | J46: 0 | K46: 0 | L46: 0 | M46: 0 | N46: 0 | O46: 0 | P46: 0.0004 | Q46: 0.0002 | R46: 0 | S46: 0.0004 | T46: 0.0006 | U46: 0.0002 | V46: 0 | W46: 0 | X46: 0.0002 | Y46: 0 | Z46: 0 | AA46: 0 | AB46: 0.0002 | AC46: 0 | AD46: 0 | AE46: 0 | AF46: 0 | AG46: 0.0002 | AH46: 0 | AI46: 0 | AJ46: 0 | AK46: 0 | AL46: 0.0002 | AM46: 0.0002 | AN46: 0.0002 | AO46: 0.0002 | AP46: 0.0002 | AQ46: 0.0004 | AR46: 0 | AS46: 0 | AT46: 0 | AU46: 0 | AV46: 0 | AW46: 0 | AX46: 0 | AY46: 0
G47: 8.5-9 | H47: 0 | I47: 0 | J47: 0 | K47: 0 | L47: 0 | M47: 0 | N47: 0 | O47: 0 | P47: 0 | Q47: 0 | R47: 0 | S47: 0.0002 | T47: 0 | U47: 0 | V47: 0.0002 | W47: 0.0002 | X47: 0 | Y47: 0.0004 | Z47: 0 | AA47: 0 | AB47: 0 | AC47: 0 | AD47: 0 | AE47: 0 | AF47: 0 | AG47: 0.0002 | AH47: 0.0002 | AI47: 0.0002 | AJ47: 0.0002 | AK47: 0 | AL47: 0.0004 | AM47: 0 | AN47: 0 | AO47: 0 | AP47: 0.0004 | AQ47: 0 | AR47: 0 | AS47: 0 | AT47: 0 | AU47: 0 | AV47: 0 | AW47: 0 | AX47: 0 | AY47: 0
G48: 9-9.5 | H48: 0 | I48: 0 | J48: 0 | K48: 0 | L48: 0 | M48: 0 | N48: 0 | O48: 0 | P48: 0 | Q48: 0 | R48: 0.0002 | S48: 0.0004 | T48: 0.0004 | U48: 0.0002 | V48: 0.0002 | W48: 0 | X48: 0 | Y48: 0.0002 | Z48: 0 | AA48: 0 | AB48: 0 | AC48: 0 | AD48: 0 | AE48: 0 | AF48: 0.0002 | AG48: 0 | AH48: 0 | AI48: 0 | AJ48: 0.0002 | AK48: 0 | AL48: 0 | AM48: 0.0002 | AN48: 0 | AO48: 0.0002 | AP48: 0 | AQ48: 0 | AR48: 0 | AS48: 0 | AT48: 0 | AU48: 0 | AV48: 0 | AW48: 0 | AX48: 0 | AY48: 0
G49: 9.5-10 | H49: 0 | I49: 0 | J49: 0 | K49: 0 | L49: 0 | M49: 0 | N49: 0 | O49: 0 | P49: 0 | Q49: 0 | R49: 0 | S49: 0 | T49: 0.0002 | U49: 0.0004 | V49: 0.0004 | W49: 0 | X49: 0 | Y49: 0 | Z49: 0 | AA49: 0 | AB49: 0 | AC49: 0 | AD49: 0 | AE49: 0 | AF49: 0.0002 | AG49: 0 | AH49: 0 | AI49: 0 | AJ49: 0.0002 | AK49: 0 | AL49: 0.0004 | AM49: 0.0002 | AN49: 0 | AO49: 0 | AP49: 0 | AQ49: 0 | AR49: 0 | AS49: 0 | AT49: 0 | AU49: 0 | AV49: 0 | AW49: 0 | AX49: 0 | AY49: 0
G50: 10-10.5 | H50: 0 | I50: 0 | J50: 0 | K50: 0 | L50: 0 | M50: 0 | N50: 0 | O50: 0 | P50: 0 | Q50: 0 | R50: 0 | S50: 0 | T50: 0 | U50: 0 | V50: 0.0002 | W50: 0 | X50: 0 | Y50: 0 | Z50: 0 | AA50: 0 | AB50: 0 | AC50: 0 | AD50: 0 | AE50: 0 | AF50: 0 | AG50: 0 | AH50: 0 | AI50: 0.0002 | AJ50: 0 | AK50: 0 | AL50: 0 | AM50: 0 | AN50: 0 | AO50: 0 | AP50: 0 | AQ50: 0 | AR50: 0 | AS50: 0 | AT50: 0 | AU50: 0 | AV50: 0 | AW50: 0 | AX50: 0 | AY50: 0

Sheet Rose
B3: Table6
B4: Deg | C4: Spd
B5: 0 | C5: 12
B6: 1
B7: 2
B8: 3
B9: 4
B10: 5
B11: 6
B12: 7
B13: 8
B14: 9
B15: 10
B16: 11
B17: 12
B18: 13
B19: 14
B20: 15
B21: 16
B22: 17
B23: 18
B24: 19
B25: 20
B26: 21
B27: 22
B28: 23
B29: 24
B30: 25
B31: 26
B32: 27
B33: 28
B34: 29
B35: 30
B36: 31
B37: 32
B38: 33
B39: 34
B40: 35
B41: 36
B42: 37
B43: 38
B44: 39
B45: 40
B46: 41
B47: 42
B48: 43
B49: 44
B50: 45
B51: 46
B52: 47
B53: 48
B54: 49
B55: 50
B56: 51
B57: 52
B58: 53
B59: 54
B60: 55
B61: 56
B62: 57
B63: 58
B64: 59
B65: 60
B66: 61
B67: 62
B68: 63
B69: 64
B70: 65
B71: 66
B72: 67
B73: 68
B74: 69
B75: 70
B76: 71
B77: 72
B78: 73
B79: 74
B80: 75
B81: 76
B82: 77
B83: 78
B84: 79
B85: 80
B86: 81
B87: 82
B88: 83
B89: 84
B90: 85
B91: 86
B92: 87
B93: 88
B94: 89
B95: 90
B96: 91
B97: 92
B98: 93
B99: 94
B100: 95
B101: 96
B102: 97
B103: 98
B104: 99
B105: 100
B106: 101
B107: 102
B108: 103
B109: 104
B110: 105
B111: 106
B112: 107
B113: 108
B114: 109
B115: 110
B116: 111
B117: 112
B118: 113
B119: 114
B120: 115
B121: 116
B122: 117
B123: 118
B124: 119
B125: 120
B126: 121
B127: 122
B128: 123
B129: 124
B130: 125
B131: 126
B132: 127
B133: 128
B134: 129
B135: 130
B136: 131
B137: 132
B138: 133
B139: 134
B140: 135
B141: 136
B142: 137
B143: 138
B144: 139
B145: 140
B146: 141
B147: 142
B148: 143
B149: 144
B150: 145
B151: 146
B152: 147
B153: 148
B154: 149
B155: 150
B156: 151
B157: 152
B158: 153
B159: 154
B160: 155
B161: 156
B162: 157
B163: 158
B164: 159
B165: 160
B166: 161
B167: 162
B168: 163
B169: 164
B170: 165
B171: 166
B172: 167
B173: 168
B174: 169
B175: 170
B176: 171
B177: 172
B178: 173
B179: 174
B180: 175
B181: 176
B182: 177
B183: 178
B184: 179
B185: 180
B186: 181
B187: 182
B188: 183
B189: 184
B190: 185
B191: 186
B192: 187
B193: 188
B194: 189
B195: 190
B196: 191
B197: 192
B198: 193
B199: 194
B200: 195
B201: 196
B202: 197
... 162 more rows

Sheet Star5
B3: deg | C3: xval | D3: yval | E3: xwig | F3: ywig
B4: 0 | C4: =SIN(Table7[[#This Row],[deg]]) -> 0 | D4: =COS(Table7[[#This Row],[deg]]) -> 1 | E4: =(1+SIN(Table7[[#This Row],[deg]]*5)/5)*Table7[[#This Row],[xval]] -> 0 | F4: =(1+SIN(5*Table7[[#This Row],[deg]])/5)*Table7[[#This Row],[yval]] -> 1
B5: 0.1653469818 | C5: =SIN(Table7[[#This Row],[deg]]) -> 0.1645945903 | D5: =COS(Table7[[#This Row],[deg]]) -> 0.9863613034 | E5: =(1+SIN(Table7[[#This Row],[deg]]*5)/5)*Table7[[#This Row],[xval]] -> 0.1888138254 | F5: =(1+SIN(5*Table7[[#This Row],[deg]])/5)*Table7[[#This Row],[yval]] -> 1.131499222
B6: 0.3306939635 | C6: =SIN(Table7[[#This Row],[deg]]) -> 0.3246994692 | D6: =COS(Table7[[#This Row],[deg]]) -> 0.9458172417 | E6: =(1+SIN(Table7[[#This Row],[deg]]*5)/5)*Table7[[#This Row],[xval]] -> 0.3894175604 | F6: =(1+SIN(5*Table7[[#This Row],[deg]])/5)*Table7[[#This Row],[yval]] -> 1.134334601
B7: 0.4960409453 | C7: =SIN(Table7[[#This Row],[deg]]) -> 0.475947393 | D7: =COS(Table7[[#This Row],[deg]]) -> 0.8794737512 | E7: =(1+SIN(Table7[[#This Row],[deg]]*5)/5)*Table7[[#This Row],[xval]] -> 0.5344139809 | F7: =(1+SIN(5*Table7[[#This Row],[deg]])/5)*Table7[[#This Row],[yval]] -> 0.9875105429
B8: 0.6613879271 | C8: =SIN(Table7[[#This Row],[deg]]) -> 0.6142127127 | D8: =COS(Table7[[#This Row],[deg]]) -> 0.7891405094 | E8: =(1+SIN(Table7[[#This Row],[deg]]*5)/5)*Table7[[#This Row],[xval]] -> 0.5939934947 | F8: =(1+SIN(5*Table7[[#This Row],[deg]])/5)*Table7[[#This Row],[yval]] -> 0.7631628576
B9: 0.8267349088 | C9: =SIN(Table7[[#This Row],[deg]]) -> 0.7357239107 | D9: =COS(Table7[[#This Row],[deg]]) -> 0.6772815716 | E9: =(1+SIN(Table7[[#This Row],[deg]]*5)/5)*Table7[[#This Row],[xval]] -> 0.6125392316 | F9: =(1+SIN(5*Table7[[#This Row],[deg]])/5)*Table7[[#This Row],[yval]] -> 0.563882086
B10: 0.9920818906 | C10: =SIN(Table7[[#This Row],[deg]]) -> 0.8371664783 | D10: =COS(Table7[[#This Row],[deg]]) -> 0.5469481581 | E10: =(1+SIN(Table7[[#This Row],[deg]]*5)/5)*Table7[[#This Row],[xval]] -> 0.6748565969 | F10: =(1+SIN(5*Table7[[#This Row],[deg]])/5)*Table7[[#This Row],[yval]] -> 0.4409058201
B11: 1.157428872 | C11: =SIN(Table7[[#This Row],[deg]]) -> 0.9157733267 | D11: =COS(Table7[[#This Row],[deg]]) -> 0.4016954247 | E11: =(1+SIN(Table7[[#This Row],[deg]]*5)/5)*Table7[[#This Row],[xval]] -> 0.8286013412 | F11: =(1+SIN(5*Table7[[#This Row],[deg]])/5)*Table7[[#This Row],[yval]] -> 0.3634582466
B12: 1.322775854 | C12: =SIN(Table7[[#This Row],[deg]]) -> 0.9694002659 | D12: =COS(Table7[[#This Row],[deg]]) -> 0.2454854871 | E12: =(1+SIN(Table7[[#This Row],[deg]]*5)/5)*Table7[[#This Row],[xval]] -> 1.032353016 | F12: =(1+SIN(5*Table7[[#This Row],[deg]])/5)*Table7[[#This Row],[yval]] -> 0.2614272886
B13: 1.488122836 | C13: =SIN(Table7[[#This Row],[deg]]) -> 0.996584493 | D13: =COS(Table7[[#This Row],[deg]]) -> 0.08257934547 | E13: =(1+SIN(Table7[[#This Row],[deg]]*5)/5)*Table7[[#This Row],[xval]] -> 1.179113592 | F13: =(1+SIN(5*Table7[[#This Row],[deg]])/5)*Table7[[#This Row],[yval]] -> 0.09770413786
B14: 1.653469818 | C14: =SIN(Table7[[#This Row],[deg]]) -> 0.996584493 | D14: =COS(Table7[[#This Row],[deg]]) -> -0.08257934547 | E14: =(1+SIN(Table7[[#This Row],[deg]]*5)/5)*Table7[[#This Row],[xval]] -> 1.179113592 | F14: =(1+SIN(5*Table7[[#This Row],[deg]])/5)*Table7[[#This Row],[yval]] -> -0.09770413786
B15: 1.818816799 | C15: =SIN(Table7[[#This Row],[deg]]) -> 0.9694002659 | D15: =COS(Table7[[#This Row],[deg]]) -> -0.2454854871 | E15: =(1+SIN(Table7[[#This Row],[deg]]*5)/5)*Table7[[#This Row],[xval]] -> 1.032353016 | F15: =(1+SIN(5*Table7[[#This Row],[deg]])/5)*Table7[[#This Row],[yval]] -> -0.2614272886
B16: 1.984163781 | C16: =SIN(Table7[[#This Row],[deg]]) -> 0.9157733267 | D16: =COS(Table7[[#This Row],[deg]]) -> -0.4016954247 | E16: =(1+SIN(Table7[[#This Row],[deg]]*5)/5)*Table7[[#This Row],[xval]] -> 0.8286013412 | F16: =(1+SIN(5*Table7[[#This Row],[deg]])/5)*Table7[[#This Row],[yval]] -> -0.3634582466
B17: 2.149510763 | C17: =SIN(Table7[[#This Row],[deg]]) -> 0.8371664783 | D17: =COS(Table7[[#This Row],[deg]]) -> -0.5469481581 | E17: =(1+SIN(Table7[[#This Row],[deg]]*5)/5)*Table7[[#This Row],[xval]] -> 0.6748565969 | F17: =(1+SIN(5*Table7[[#This Row],[deg]])/5)*Table7[[#This Row],[yval]] -> -0.4409058201
B18: 2.314857745 | C18: =SIN(Table7[[#This Row],[deg]]) -> 0.7357239107 | D18: =COS(Table7[[#This Row],[deg]]) -> -0.6772815716 | E18: =(1+SIN(Table7[[#This Row],[deg]]*5)/5)*Table7[[#This Row],[xval]] -> 0.6125392316 | F18: =(1+SIN(5*Table7[[#This Row],[deg]])/5)*Table7[[#This Row],[yval]] -> -0.563882086
B19: 2.480204727 | C19: =SIN(Table7[[#This Row],[deg]]) -> 0.6142127127 | D19: =COS(Table7[[#This Row],[deg]]) -> -0.7891405094 | E19: =(1+SIN(Table7[[#This Row],[deg]]*5)/5)*Table7[[#This Row],[xval]] -> 0.5939934947 | F19: =(1+SIN(5*Table7[[#This Row],[deg]])/5)*Table7[[#This Row],[yval]] -> -0.7631628576
B20: 2.645551708 | C20: =SIN(Table7[[#This Row],[deg]]) -> 0.475947393 | D20: =COS(Table7[[#This Row],[deg]]) -> -0.8794737512 | E20: =(1+SIN(Table7[[#This Row],[deg]]*5)/5)*Table7[[#This Row],[xval]] -> 0.5344139809 | F20: =(1+SIN(5*Table7[[#This Row],[deg]])/5)*Table7[[#This Row],[yval]] -> -0.9875105429
B21: 2.81089869 | C21: =SIN(Table7[[#This Row],[deg]]) -> 0.3246994692 | D21: =COS(Table7[[#This Row],[deg]]) -> -0.9458172417 | E21: =(1+SIN(Table7[[#This Row],[deg]]*5)/5)*Table7[[#This Row],[xval]] -> 0.3894175604 | F21: =(1+SIN(5*Table7[[#This Row],[deg]])/5)*Table7[[#This Row],[yval]] -> -1.134334601
B22: 2.976245672 | C22: =SIN(Table7[[#This Row],[deg]]) -> 0.1645945903 | D22: =COS(Table7[[#This Row],[deg]]) -> -0.9863613034 | E22: =(1+SIN(Table7[[#This Row],[deg]]*5)/5)*Table7[[#This Row],[xval]] -> 0.1888138254 | F22: =(1+SIN(5*Table7[[#This Row],[deg]])/5)*Table7[[#This Row],[yval]] -> -1.131499222
B23: 3.141592654 | C23: =SIN(Table7[[#This Row],[deg]]) -> 1.225148455e-16 | D23: =COS(Table7[[#This Row],[deg]]) -> -1 | E23: =(1+SIN(Table7[[#This Row],[deg]]*5)/5)*Table7[[#This Row],[xval]] -> 1.225148455e-16 | F23: =(1+SIN(5*Table7[[#This Row],[deg]])/5)*Table7[[#This Row],[yval]] -> -1
B24: 3.306939635 | C24: =SIN(Table7[[#This Row],[deg]]) -> -0.1645945903 | D24: =COS(Table7[[#This Row],[deg]]) -> -0.9863613034 | E24: =(1+SIN(Table7[[#This Row],[deg]]*5)/5)*Table7[[#This Row],[xval]] -> -0.1403753552 | F24: =(1+SIN(5*Table7[[#This Row],[deg]])/5)*Table7[[#This Row],[yval]] -> -0.8412233843
B25: 3.472286617 | C25: =SIN(Table7[[#This Row],[deg]]) -> -0.3246994692 | D25: =COS(Table7[[#This Row],[deg]]) -> -0.9458172417 | E25: =(1+SIN(Table7[[#This Row],[deg]]*5)/5)*Table7[[#This Row],[xval]] -> -0.259981378 | F25: =(1+SIN(5*Table7[[#This Row],[deg]])/5)*Table7[[#This Row],[yval]] -> -0.7572998824
B26: 3.637633599 | C26: =SIN(Table7[[#This Row],[deg]]) -> -0.475947393 | D26: =COS(Table7[[#This Row],[deg]]) -> -0.8794737512 | E26: =(1+SIN(Table7[[#This Row],[deg]]*5)/5)*Table7[[#This Row],[xval]] -> -0.4174808052 | F26: =(1+SIN(5*Table7[[#This Row],[deg]])/5)*Table7[[#This Row],[yval]] -> -0.7714369595
B27: 3.802980581 | C27: =SIN(Table7[[#This Row],[deg]]) -> -0.6142127127 | D27: =COS(Table7[[#This Row],[deg]]) -> -0.7891405094 | E27: =(1+SIN(Table7[[#This Row],[deg]]*5)/5)*Table7[[#This Row],[xval]] -> -0.6344319306 | F27: =(1+SIN(5*Table7[[#This Row],[deg]])/5)*Table7[[#This Row],[yval]] -> -0.8151181612
B28: 3.968327562 | C28: =SIN(Table7[[#This Row],[deg]]) -> -0.7357239107 | D28: =COS(Table7[[#This Row],[deg]]) -> -0.6772815716 | E28: =(1+SIN(Table7[[#This Row],[deg]]*5)/5)*Table7[[#This Row],[xval]] -> -0.8589085897 | F28: =(1+SIN(5*Table7[[#This Row],[deg]])/5)*Table7[[#This Row],[yval]] -> -0.7906810572
B29: 4.133674544 | C29: =SIN(Table7[[#This Row],[deg]]) -> -0.8371664783 | D29: =COS(Table7[[#This Row],[deg]]) -> -0.5469481581 | E29: =(1+SIN(Table7[[#This Row],[deg]]*5)/5)*Table7[[#This Row],[xval]] -> -0.9994763596 | F29: =(1+SIN(5*Table7[[#This Row],[deg]])/5)*Table7[[#This Row],[yval]] -> -0.6529904961
B30: 4.299021526 | C30: =SIN(Table7[[#This Row],[deg]]) -> -0.9157733267 | D30: =COS(Table7[[#This Row],[deg]]) -> -0.4016954247 | E30: =(1+SIN(Table7[[#This Row],[deg]]*5)/5)*Table7[[#This Row],[xval]] -> -1.002945312 | F30: =(1+SIN(5*Table7[[#This Row],[deg]])/5)*Table7[[#This Row],[yval]] -> -0.4399326027
B31: 4.464368508 | C31: =SIN(Table7[[#This Row],[deg]]) -> -0.9694002659 | D31: =COS(Table7[[#This Row],[deg]]) -> -0.2454854871 | E31: =(1+SIN(Table7[[#This Row],[deg]]*5)/5)*Table7[[#This Row],[xval]] -> -0.9064475156 | F31: =(1+SIN(5*Table7[[#This Row],[deg]])/5)*Table7[[#This Row],[yval]] -> -0.2295436857
B32: 4.62971549 | C32: =SIN(Table7[[#This Row],[deg]]) -> -0.996584493 | D32: =COS(Table7[[#This Row],[deg]]) -> -0.08257934547 | E32: =(1+SIN(Table7[[#This Row],[deg]]*5)/5)*Table7[[#This Row],[xval]] -> -0.8140553937 | F32: =(1+SIN(5*Table7[[#This Row],[deg]])/5)*Table7[[#This Row],[yval]] -> -0.06745455309
B33: 4.795062471 | C33: =SIN(Table7[[#This Row],[deg]]) -> -0.996584493 | D33: =COS(Table7[[#This Row],[deg]]) -> 0.08257934547 | E33: =(1+SIN(Table7[[#This Row],[deg]]*5)/5)*Table7[[#This Row],[xval]] -> -0.8140553937 | F33: =(1+SIN(5*Table7[[#This Row],[deg]])/5)*Table7[[#This Row],[yval]] -> 0.06745455309
B34: 4.960409453 | C34: =SIN(Table7[[#This Row],[deg]]) -> -0.9694002659 | D34: =COS(Table7[[#This Row],[deg]]) -> 0.2454854871 | E34: =(1+SIN(Table7[[#This Row],[deg]]*5)/5)*Table7[[#This Row],[xval]] -> -0.9064475156 | F34: =(1+SIN(5*Table7[[#This Row],[deg]])/5)*Table7[[#This Row],[yval]] -> 0.2295436857
B35: 5.125756435 | C35: =SIN(Table7[[#This Row],[deg]]) -> -0.9157733267 | D35: =COS(Table7[[#This Row],[deg]]) -> 0.4016954247 | E35: =(1+SIN(Table7[[#This Row],[deg]]*5)/5)*Table7[[#This Row],[xval]] -> -1.002945312 | F35: =(1+SIN(5*Table7[[#This Row],[deg]])/5)*Table7[[#This Row],[yval]] -> 0.4399326027
B36: 5.291103417 | C36: =SIN(Table7[[#This Row],[deg]]) -> -0.8371664783 | D36: =COS(Table7[[#This Row],[deg]]) -> 0.5469481581 | E36: =(1+SIN(Table7[[#This Row],[deg]]*5)/5)*Table7[[#This Row],[xval]] -> -0.9994763596 | F36: =(1+SIN(5*Table7[[#This Row],[deg]])/5)*Table7[[#This Row],[yval]] -> 0.6529904961
B37: 5.456450398 | C37: =SIN(Table7[[#This Row],[deg]]) -> -0.7357239107 | D37: =COS(Table7[[#This Row],[deg]]) -> 0.6772815716 | E37: =(1+SIN(Table7[[#This Row],[deg]]*5)/5)*Table7[[#This Row],[xval]] -> -0.8589085897 | F37: =(1+SIN(5*Table7[[#This Row],[deg]])/5)*Table7[[#This Row],[yval]] -> 0.7906810572
B38: 5.62179738 | C38: =SIN(Table7[[#This Row],[deg]]) -> -0.6142127127 | D38: =COS(Table7[[#This Row],[deg]]) -> 0.7891405094 | E38: =(1+SIN(Table7[[#This Row],[deg]]*5)/5)*Table7[[#This Row],[xval]] -> -0.6344319306 | F38: =(1+SIN(5*Table7[[#This Row],[deg]])/5)*Table7[[#This Row],[yval]] -> 0.8151181612
B39: 5.787144362 | C39: =SIN(Table7[[#This Row],[deg]]) -> -0.475947393 | D39: =COS(Table7[[#This Row],[deg]]) -> 0.8794737512 | E39: =(1+SIN(Table7[[#This Row],[deg]]*5)/5)*Table7[[#This Row],[xval]] -> -0.4174808052 | F39: =(1+SIN(5*Table7[[#This Row],[deg]])/5)*Table7[[#This Row],[yval]] -> 0.7714369595
B40: 5.952491344 | C40: =SIN(Table7[[#This Row],[deg]]) -> -0.3246994692 | D40: =COS(Table7[[#This Row],[deg]]) -> 0.9458172417 | E40: =(1+SIN(Table7[[#This Row],[deg]]*5)/5)*Table7[[#This Row],[xval]] -> -0.259981378 | F40: =(1+SIN(5*Table7[[#This Row],[deg]])/5)*Table7[[#This Row],[yval]] -> 0.7572998824
B41: 6.117838325 | C41: =SIN(Table7[[#This Row],[deg]]) -> -0.1645945903 | D41: =COS(Table7[[#This Row],[deg]]) -> 0.9863613034 | E41: =(1+SIN(Table7[[#This Row],[deg]]*5)/5)*Table7[[#This Row],[xval]] -> -0.1403753552 | F41: =(1+SIN(5*Table7[[#This Row],[deg]])/5)*Table7[[#This Row],[yval]] -> 0.8412233843
B42: 6.283185307 | C42: =SIN(Table7[[#This Row],[deg]]) -> 1.531327148e-15 | D42: =COS(Table7[[#This Row],[deg]]) -> 1 | E42: =(1+SIN(Table7[[#This Row],[deg]]*5)/5)*Table7[[#This Row],[xval]] -> 1.531327148e-15 | F42: =(1+SIN(5*Table7[[#This Row],[deg]])/5)*Table7[[#This Row],[yval]] -> 1

Sheet Prob
B2: Table10 | F2: Table9 | N2: PivotTable1
B3: xval | C3: yval | D3: Norm_Inv | F3: ka | G3: kb | N3: Count of Value
B4: =_xlfn.NORM.S.DIST(Table10[[#This Row],[yval]],1) -> 3.167124183e-05 | C4: -4 | D4: =(-_xlfn.NORM.INV(Table10[[#This Row],[xval]],0,2)+ka)/kb -> 1.5 | F4: 4 | G4: 8 | N4: 18309
B5: =_xlfn.NORM.S.DIST(Table10[[#This Row],[yval]],1) -> 7.234804393e-05 | C5: -3.8 | D5: =(-_xlfn.NORM.INV(Table10[[#This Row],[xval]],0,2)+ka)/kb -> 1.45
B6: =_xlfn.NORM.S.DIST(Table10[[#This Row],[yval]],1) -> 0.0001591085902 | C6: -3.6 | D6: =(-_xlfn.NORM.INV(Table10[[#This Row],[xval]],0,2)+ka)/kb -> 1.4
B7: =_xlfn.NORM.S.DIST(Table10[[#This Row],[yval]],1) -> 0.0003369292657 | C7: -3.4 | D7: =(-_xlfn.NORM.INV(Table10[[#This Row],[xval]],0,2)+ka)/kb -> 1.35 | N7: PivotTable2
B8: =_xlfn.NORM.S.DIST(Table10[[#This Row],[yval]],1) -> 0.0006871379379 | C8: -3.2 | D8: =(-_xlfn.NORM.INV(Table10[[#This Row],[xval]],0,2)+ka)/kb -> 1.3 | N8: Count of Value
B9: =_xlfn.NORM.S.DIST(Table10[[#This Row],[yval]],1) -> 0.001349898032 | C9: -3 | D9: =(-_xlfn.NORM.INV(Table10[[#This Row],[xval]],0,2)+ka)/kb -> 1.25 | N9: 18309
B10: =_xlfn.NORM.S.DIST(Table10[[#This Row],[yval]],1) -> 0.00255513033 | C10: -2.8 | D10: =(-_xlfn.NORM.INV(Table10[[#This Row],[xval]],0,2)+ka)/kb -> 1.2
B11: =_xlfn.NORM.S.DIST(Table10[[#This Row],[yval]],1) -> 0.004661188024 | C11: -2.6 | D11: =(-_xlfn.NORM.INV(Table10[[#This Row],[xval]],0,2)+ka)/kb -> 1.15
B12: =_xlfn.NORM.S.DIST(Table10[[#This Row],[yval]],1) -> 0.008197535925 | C12: -2.4 | D12: =(-_xlfn.NORM.INV(Table10[[#This Row],[xval]],0,2)+ka)/kb -> 1.1
B13: =_xlfn.NORM.S.DIST(Table10[[#This Row],[yval]],1) -> 0.01390344751 | C13: -2.2 | D13: =(-_xlfn.NORM.INV(Table10[[#This Row],[xval]],0,2)+ka)/kb -> 1.05
B14: =_xlfn.NORM.S.DIST(Table10[[#This Row],[yval]],1) -> 0.02275013195 | C14: -2 | D14: =(-_xlfn.NORM.INV(Table10[[#This Row],[xval]],0,2)+ka)/kb -> 1
B15: =_xlfn.NORM.S.DIST(Table10[[#This Row],[yval]],1) -> 0.03593031911 | C15: -1.8 | D15: =(-_xlfn.NORM.INV(Table10[[#This Row],[xval]],0,2)+ka)/kb -> 0.95
B16: =_xlfn.NORM.S.DIST(Table10[[#This Row],[yval]],1) -> 0.0547992917 | C16: -1.6 | D16: =(-_xlfn.NORM.INV(Table10[[#This Row],[xval]],0,2)+ka)/kb -> 0.9
B17: =_xlfn.NORM.S.DIST(Table10[[#This Row],[yval]],1) -> 0.08075665923 | C17: -1.4 | D17: =(-_xlfn.NORM.INV(Table10[[#This Row],[xval]],0,2)+ka)/kb -> 0.85
B18: =_xlfn.NORM.S.DIST(Table10[[#This Row],[yval]],1) -> 0.1150696702 | C18: -1.2 | D18: =(-_xlfn.NORM.INV(Table10[[#This Row],[xval]],0,2)+ka)/kb -> 0.8
B19: =_xlfn.NORM.S.DIST(Table10[[#This Row],[yval]],1) -> 0.1586552539 | C19: -1 | D19: =(-_xlfn.NORM.INV(Table10[[#This Row],[xval]],0,2)+ka)/kb -> 0.75
B20: =_xlfn.NORM.S.DIST(Table10[[#This Row],[yval]],1) -> 0.2118553986 | C20: -0.8 | D20: =(-_xlfn.NORM.INV(Table10[[#This Row],[xval]],0,2)+ka)/kb -> 0.7
B21: =_xlfn.NORM.S.DIST(Table10[[#This Row],[yval]],1) -> 0.2742531178 | C21: -0.6 | D21: =(-_xlfn.NORM.INV(Table10[[#This Row],[xval]],0,2)+ka)/kb -> 0.65
B22: =_xlfn.NORM.S.DIST(Table10[[#This Row],[yval]],1) -> 0.3445782584 | C22: -0.4 | D22: =(-_xlfn.NORM.INV(Table10[[#This Row],[xval]],0,2)+ka)/kb -> 0.6
B23: =_xlfn.NORM.S.DIST(Table10[[#This Row],[yval]],1) -> 0.4207402906 | C23: -0.2 | D23: =(-_xlfn.NORM.INV(Table10[[#This Row],[xval]],0,2)+ka)/kb -> 0.55
B24: =_xlfn.NORM.S.DIST(Table10[[#This Row],[yval]],1) -> 0.5 | C24: 0 | D24: =(-_xlfn.NORM.INV(Table10[[#This Row],[xval]],0,2)+ka)/kb -> 0.5
B25: =_xlfn.NORM.S.DIST(Table10[[#This Row],[yval]],1) -> 0.5792597094 | C25: 0.2 | D25: =(-_xlfn.NORM.INV(Table10[[#This Row],[xval]],0,2)+ka)/kb -> 0.45
B26: =_xlfn.NORM.S.DIST(Table10[[#This Row],[yval]],1) -> 0.6554217416 | C26: 0.4 | D26: =(-_xlfn.NORM.INV(Table10[[#This Row],[xval]],0,2)+ka)/kb -> 0.4
B27: =_xlfn.NORM.S.DIST(Table10[[#This Row],[yval]],1) -> 0.7257468822 | C27: 0.6 | D27: =(-_xlfn.NORM.INV(Table10[[#This Row],[xval]],0,2)+ka)/kb -> 0.35
B28: =_xlfn.NORM.S.DIST(Table10[[#This Row],[yval]],1) -> 0.7881446014 | C28: 0.8 | D28: =(-_xlfn.NORM.INV(Table10[[#This Row],[xval]],0,2)+ka)/kb -> 0.3
B29: =_xlfn.NORM.S.DIST(Table10[[#This Row],[yval]],1) -> 0.8413447461 | C29: 1 | D29: =(-_xlfn.NORM.INV(Table10[[#This Row],[xval]],0,2)+ka)/kb -> 0.25
B30: =_xlfn.NORM.S.DIST(Table10[[#This Row],[yval]],1) -> 0.8849303298 | C30: 1.2 | D30: =(-_xlfn.NORM.INV(Table10[[#This Row],[xval]],0,2)+ka)/kb -> 0.2
B31: =_xlfn.NORM.S.DIST(Table10[[#This Row],[yval]],1) -> 0.9192433408 | C31: 1.4 | D31: =(-_xlfn.NORM.INV(Table10[[#This Row],[xval]],0,2)+ka)/kb -> 0.15
B32: =_xlfn.NORM.S.DIST(Table10[[#This Row],[yval]],1) -> 0.9452007083 | C32: 1.6 | D32: =(-_xlfn.NORM.INV(Table10[[#This Row],[xval]],0,2)+ka)/kb -> 0.1
B33: =_xlfn.NORM.S.DIST(Table10[[#This Row],[yval]],1) -> 0.9640696809 | C33: 1.8 | D33: =(-_xlfn.NORM.INV(Table10[[#This Row],[xval]],0,2)+ka)/kb -> 0.05
B34: =_xlfn.NORM.S.DIST(Table10[[#This Row],[yval]],1) -> 0.9772498681 | C34: 2 | D34: =(-_xlfn.NORM.INV(Table10[[#This Row],[xval]],0,2)+ka)/kb -> -2.553512957e-15
B35: =_xlfn.NORM.S.DIST(Table10[[#This Row],[yval]],1) -> 0.9860965525 | C35: 2.2 | D35: =(-_xlfn.NORM.INV(Table10[[#This Row],[xval]],0,2)+ka)/kb -> -0.05
B36: =_xlfn.NORM.S.DIST(Table10[[#This Row],[yval]],1) -> 0.9918024641 | C36: 2.4 | D36: =(-_xlfn.NORM.INV(Table10[[#This Row],[xval]],0,2)+ka)/kb -> -0.1
B37: =_xlfn.NORM.S.DIST(Table10[[#This Row],[yval]],1) -> 0.995338812 | C37: 2.6 | D37: =(-_xlfn.NORM.INV(Table10[[#This Row],[xval]],0,2)+ka)/kb -> -0.15
B38: =_xlfn.NORM.S.DIST(Table10[[#This Row],[yval]],1) -> 0.9974448697 | C38: 2.8 | D38: =(-_xlfn.NORM.INV(Table10[[#This Row],[xval]],0,2)+ka)/kb -> -0.2
B39: =_xlfn.NORM.S.DIST(Table10[[#This Row],[yval]],1) -> 0.998650102 | C39: 3 | D39: =(-_xlfn.NORM.INV(Table10[[#This Row],[xval]],0,2)+ka)/kb -> -0.25
B40: =_xlfn.NORM.S.DIST(Table10[[#This Row],[yval]],1) -> 0.9993128621 | C40: 3.2 | D40: =(-_xlfn.NORM.INV(Table10[[#This Row],[xval]],0,2)+ka)/kb -> -0.3
B41: =_xlfn.NORM.S.DIST(Table10[[#This Row],[yval]],1) -> 0.9996630707 | C41: 3.4 | D41: =(-_xlfn.NORM.INV(Table10[[#This Row],[xval]],0,2)+ka)/kb -> -0.35
B42: =_xlfn.NORM.S.DIST(Table10[[#This Row],[yval]],1) -> 0.9998408914 | C42: 3.6 | D42: =(-_xlfn.NORM.INV(Table10[[#This Row],[xval]],0,2)+ka)/kb -> -0.4
B43: =_xlfn.NORM.S.DIST(Table10[[#This Row],[yval]],1) -> 0.999927652 | C43: 3.8 | D43: =(-_xlfn.NORM.INV(Table10[[#This Row],[xval]],0,2)+ka)/kb -> -0.45
B44: =_xlfn.NORM.S.DIST(Table10[[#This Row],[yval]],1) -> 0.9999683288 | C44: 4 | D44: =(-_xlfn.NORM.INV(Table10[[#This Row],[xval]],0,2)+ka)/kb -> -0.5

Sheet Tempx
A1: Prob | B1: xval | C1: yval
A2: 0 | B2: 1 | C2: 0
A3: 0.0001 | B3: 0.98 | C3: 0
A4: 0.0001 | B4: 0.96 | C4: 0
A5: 0.0002 | B5: 0.94 | C5: 0
A6: 0.0004 | B6: 0.92 | C6: 0
A7: 0.0007 | B7: 0.9 | C7: 0
A8: 0.0012 | B8: 0.88 | C8: 0
A9: 0.002 | B9: 0.86 | C9: 0
A10: 0.0033 | B10: 0.84 | C10: 0
A11: 0.0052 | B11: 0.82 | C11: 0
A12: 0.0082 | B12: 0.8 | C12: 0
A13: 0.0125 | B13: 0.78 | C13: 0
A14: 0.0188 | B14: 0.76 | C14: 0
A15: 0.0274 | B15: 0.74 | C15: 0
A16: 0.0392 | B16: 0.72 | C16: 0
A17: 0.0548 | B17: 0.7 | C17: 0
A18: 0.0749 | B18: 0.68 | C18: 0
A19: 0.1003 | B19: 0.66 | C19: 0
A20: 0.1314 | B20: 0.64 | C20: 0
A21: 0.1685 | B21: 0.62 | C21: 0
A22: 0.2119 | B22: 0.6 | C22: 0
A23: 0.2611 | B23: 0.58 | C23: 0
A24: 0.3156 | B24: 0.56 | C24: 0
A25: 0.3745 | B25: 0.54 | C25: 0
A26: 0.4364 | B26: 0.52 | C26: 0
A27: 0.5 | B27: 0.5 | C27: 0
A28: 0.5636 | B28: 0.48 | C28: 0
A29: 0.6255 | B29: 0.46 | C29: 0
A30: 0.6844 | B30: 0.44 | C30: 0
A31: 0.7389 | B31: 0.42 | C31: 0
A32: 0.7881 | B32: 0.4 | C32: 0
A33: 0.8315 | B33: 0.38 | C33: 0
A34: 0.8686 | B34: 0.36 | C34: 0
A35: 0.8997 | B35: 0.34 | C35: 0
A36: 0.9251 | B36: 0.32 | C36: 0
A37: 0.9452 | B37: 0.3 | C37: 0
A38: 0.9608 | B38: 0.28 | C38: 0
A39: 0.9726 | B39: 0.26 | C39: 0
A40: 0.9812 | B40: 0.24 | C40: 0
A41: 0.9875 | B41: 0.22 | C41: 0
A42: 0.9918 | B42: 0.2 | C42: 0
A43: 0.9948 | B43: 0.18 | C43: 0
A44: 0.9967 | B44: 0.16 | C44: 0
A45: 0.998 | B45: 0.14 | C45: 0
A46: 0.9988 | B46: 0.12 | C46: 0
A47: 0.9993 | B47: 0.1 | C47: 0
A48: 0.9996 | B48: 0.08 | C48: 0
A49: 0.9998 | B49: 0.06 | C49: 0
A50: 0.9999 | B50: 0.04 | C50: 0
A51: 0.9999 | B51: 0.02 | C51: 0
A52: 1 | B52: 0 | C52: 0
A53: 0 | B53: 1.0437 | C53: 0.0183
A54: 0.0001 | B54: 1.0228 | C54: 0.018
A55: 0.0001 | B55: 1.0019 | C55: 0.0176
A56: 0.0002 | B56: 0.981 | C56: 0.0172
A57: 0.0004 | B57: 0.9602 | C57: 0.0169
A58: 0.0007 | B58: 0.9393 | C58: 0.0165
A59: 0.0012 | B59: 0.9184 | C59: 0.0161
A60: 0.002 | B60: 0.8975 | C60: 0.0158
A61: 0.0033 | B61: 0.8767 | C61: 0.0154
A62: 0.0052 | B62: 0.8558 | C62: 0.015
A63: 0.0082 | B63: 0.8349 | C63: 0.0147
A64: 0.0125 | B64: 0.8141 | C64: 0.0143
A65: 0.0188 | B65: 0.7932 | C65: 0.0139
A66: 0.0274 | B66: 0.7723 | C66: 0.0136
A67: 0.0392 | B67: 0.7514 | C67: 0.0132
A68: 0.0548 | B68: 0.7306 | C68: 0.0128
A69: 0.0749 | B69: 0.7097 | C69: 0.0125
A70: 0.1003 | B70: 0.6888 | C70: 0.0121
A71: 0.1314 | B71: 0.6679 | C71: 0.0117
A72: 0.1685 | B72: 0.6471 | C72: 0.0114
A73: 0.2119 | B73: 0.6262 | C73: 0.011
A74: 0.2611 | B74: 0.6053 | C74: 0.0106
A75: 0.3156 | B75: 0.5844 | C75: 0.0103
A76: 0.3745 | B76: 0.5636 | C76: 0.0099
A77: 0.4364 | B77: 0.5427 | C77: 0.0095
A78: 0.5 | B78: 0.5218 | C78: 0.0092
A79: 0.5636 | B79: 0.501 | C79: 0.0088
A80: 0.6255 | B80: 0.4801 | C80: 0.0084
A81: 0.6844 | B81: 0.4592 | C81: 0.0081
A82: 0.7389 | B82: 0.4383 | C82: 0.0077
A83: 0.7881 | B83: 0.4175 | C83: 0.0073
A84: 0.8315 | B84: 0.3966 | C84: 0.007
A85: 0.8686 | B85: 0.3757 | C85: 0.0066
A86: 0.8997 | B86: 0.3548 | C86: 0.0062
A87: 0.9251 | B87: 0.334 | C87: 0.0059
A88: 0.9452 | B88: 0.3131 | C88: 0.0055
A89: 0.9608 | B89: 0.2922 | C89: 0.0051
A90: 0.9726 | B90: 0.2714 | C90: 0.0048
A91: 0.9812 | B91: 0.2505 | C91: 0.0044
A92: 0.9875 | B92: 0.2296 | C92: 0.004
A93: 0.9918 | B93: 0.2087 | C93: 0.0037
A94: 0.9948 | B94: 0.1879 | C94: 0.0033
A95: 0.9967 | B95: 0.167 | C95: 0.0029
A96: 0.998 | B96: 0.1461 | C96: 0.0026
A97: 0.9988 | B97: 0.1252 | C97: 0.0022
A98: 0.9993 | B98: 0.1044 | C98: 0.0018
A99: 0.9996 | B99: 0.0835 | C99: 0.0015
A100: 0.9998 | B100: 0.0626 | C100: 0.0011
A101: 0.9999 | B101: 0.0417 | C101: 0.0007
A102: 0.9999 | B102: 0.0209 | C102: 0.0004
A103: 1 | B103: 0 | C103: 0
A104: 0 | B104: 1.0866 | C104: 0.0382
A105: 0.0001 | B105: 1.0649 | C105: 0.0374
A106: 0.0001 | B106: 1.0432 | C106: 0.0366
A107: 0.0002 | B107: 1.0214 | C107: 0.0359
A108: 0.0004 | B108: 0.9997 | C108: 0.0351
A109: 0.0007 | B109: 0.978 | C109: 0.0343
A110: 0.0012 | B110: 0.9562 | C110: 0.0336
A111: 0.002 | B111: 0.9345 | C111: 0.0328
A112: 0.0033 | B112: 0.9128 | C112: 0.0321
A113: 0.0052 | B113: 0.891 | C113: 0.0313
A114: 0.0082 | B114: 0.8693 | C114: 0.0305
A115: 0.0125 | B115: 0.8476 | C115: 0.0298
A116: 0.0188 | B116: 0.8258 | C116: 0.029
A117: 0.0274 | B117: 0.8041 | C117: 0.0282
A118: 0.0392 | B118: 0.7824 | C118: 0.0275
A119: 0.0548 | B119: 0.7606 | C119: 0.0267
A120: 0.0749 | B120: 0.7389 | C120: 0.0259
A121: 0.1003 | B121: 0.7172 | C121: 0.0252
A122: 0.1314 | B122: 0.6954 | C122: 0.0244
A123: 0.1685 | B123: 0.6737 | C123: 0.0237
A124: 0.2119 | B124: 0.652 | C124: 0.0229
A125: 0.2611 | B125: 0.6302 | C125: 0.0221
A126: 0.3156 | B126: 0.6085 | C126: 0.0214
A127: 0.3745 | B127: 0.5868 | C127: 0.0206
A128: 0.4364 | B128: 0.565 | C128: 0.0198
A129: 0.5 | B129: 0.5433 | C129: 0.0191
A130: 0.5636 | B130: 0.5216 | C130: 0.0183
A131: 0.6255 | B131: 0.4999 | C131: 0.0176
A132: 0.6844 | B132: 0.4781 | C132: 0.0168
A133: 0.7389 | B133: 0.4564 | C133: 0.016
A134: 0.7881 | B134: 0.4347 | C134: 0.0153
A135: 0.8315 | B135: 0.4129 | C135: 0.0145
A136: 0.8686 | B136: 0.3912 | C136: 0.0137
A137: 0.8997 | B137: 0.3695 | C137: 0.013
A138: 0.9251 | B138: 0.3477 | C138: 0.0122
A139: 0.9452 | B139: 0.326 | C139: 0.0114
A140: 0.9608 | B140: 0.3043 | C140: 0.0107
A141: 0.9726 | B141: 0.2825 | C141: 0.0099
A142: 0.9812 | B142: 0.2608 | C142: 0.0092
A143: 0.9875 | B143: 0.2391 | C143: 0.0084
A144: 0.9918 | B144: 0.2173 | C144: 0.0076
A145: 0.9948 | B145: 0.1956 | C145: 0.0069
A146: 0.9967 | B146: 0.1739 | C146: 0.0061
A147: 0.998 | B147: 0.1521 | C147: 0.0053
A148: 0.9988 | B148: 0.1304 | C148: 0.0046
A149: 0.9993 | B149: 0.1087 | C149: 0.0038
A150: 0.9996 | B150: 0.0869 | C150: 0.0031
A151: 0.9998 | B151: 0.0652 | C151: 0.0023
A152: 0.9999 | B152: 0.0435 | C152: 0.0015
A153: 0.9999 | B153: 0.0217 | C153: 0.0008
A154: 1 | B154: 0 | C154: 0
A155: 0 | B155: 1.1285 | C155: 0.0595
A156: 0.0001 | B156: 1.106 | C156: 0.0583
A157: 0.0001 | B157: 1.0834 | C157: 0.0571
A158: 0.0002 | B158: 1.0608 | C158: 0.0559
A159: 0.0004 | B159: 1.0383 | C159: 0.0547
A160: 0.0007 | B160: 1.0157 | C160: 0.0535
A161: 0.0012 | B161: 0.9931 | C161: 0.0523
A162: 0.002 | B162: 0.9706 | C162: 0.0511
A163: 0.0033 | B163: 0.948 | C163: 0.05
A164: 0.0052 | B164: 0.9254 | C164: 0.0488
A165: 0.0082 | B165: 0.9028 | C165: 0.0476
A166: 0.0125 | B166: 0.8803 | C166: 0.0464
A167: 0.0188 | B167: 0.8577 | C167: 0.0452
A168: 0.0274 | B168: 0.8351 | C168: 0.044
A169: 0.0392 | B169: 0.8126 | C169: 0.0428
A170: 0.0548 | B170: 0.79 | C170: 0.0416
A171: 0.0749 | B171: 0.7674 | C171: 0.0404
A172: 0.1003 | B172: 0.7448 | C172: 0.0393
A173: 0.1314 | B173: 0.7223 | C173: 0.0381
A174: 0.1685 | B174: 0.6997 | C174: 0.0369
A175: 0.2119 | B175: 0.6771 | C175: 0.0357
A176: 0.2611 | B176: 0.6546 | C176: 0.0345
A177: 0.3156 | B177: 0.632 | C177: 0.0333
A178: 0.3745 | B178: 0.6094 | C178: 0.0321
A179: 0.4364 | B179: 0.5868 | C179: 0.0309
A180: 0.5 | B180: 0.5643 | C180: 0.0297
A181: 0.5636 | B181: 0.5417 | C181: 0.0285
A182: 0.6255 | B182: 0.5191 | C182: 0.0274
A183: 0.6844 | B183: 0.4966 | C183: 0.0262
A184: 0.7389 | B184: 0.474 | C184: 0.025
A185: 0.7881 | B185: 0.4514 | C185: 0.0238
A186: 0.8315 | B186: 0.4288 | C186: 0.0226
A187: 0.8686 | B187: 0.4063 | C187: 0.0214
A188: 0.8997 | B188: 0.3837 | C188: 0.0202
A189: 0.9251 | B189: 0.3611 | C189: 0.019
A190: 0.9452 | B190: 0.3386 | C190: 0.0178
A191: 0.9608 | B191: 0.316 | C191: 0.0167
A192: 0.9726 | B192: 0.2934 | C192: 0.0155
A193: 0.9812 | B193: 0.2709 | C193: 0.0143
A194: 0.9875 | B194: 0.2483 | C194: 0.0131
A195: 0.9918 | B195: 0.2257 | C195: 0.0119
A196: 0.9948 | B196: 0.2031 | C196: 0.0107
A197: 0.9967 | B197: 0.1806 | C197: 0.0095
A198: 0.998 | B198: 0.158 | C198: 0.0083
A199: 0.9988 | B199: 0.1354 | C199: 0.0071
A200: 0.9993 | B200: 0.1129 | C200: 0.0059
... 18110 more rows

Sheet Xval
C2: -4 | D2: -3.84 | E2: -3.68 | F2: -3.52 | G2: -3.36 | H2: -3.2 | I2: -3.04 | J2: -2.88 | K2: -2.72 | L2: -2.56 | M2: -2.4 | N2: -2.24 | O2: -2.08 | P2: -1.92 | Q2: -1.76 | R2: -1.6 | S2: -1.44 | T2: -1.28 | U2: -1.12 | V2: -0.96 | W2: -0.8 | X2: -0.64 | Y2: -0.48 | Z2: -0.32 | AA2: -0.16 | AB2: 0 | AC2: 0.16 | AD2: 0.32 | AE2: 0.48 | AF2: 0.64 | AG2: 0.8 | AH2: 0.96 | AI2: 1.12 | AJ2: 1.28 | AK2: 1.44 | AL2: 1.6 | AM2: 1.76 | AN2: 1.92 | AO2: 2.08 | AP2: 2.24 | AQ2: 2.4 | AR2: 2.56 | AS2: 2.72 | AT2: 2.88 | AU2: 3.04 | AV2: 3.2 | AW2: 3.36 | AX2: 3.52 | AY2: 3.68 | AZ2: 3.84 | BA2: 4
C3: =_xlfn.NORM.S.DIST(Siegx,1) -> 3.167124183e-05 | D3: 6.151715518e-05 | E3: 0.0001166169768 | F3: 0.0002157733993 | G3: 0.0003897123626 | H3: 0.0006871379379 | I3: 0.001182890743 | J3: 0.001988375855 | K3: 0.003264095816 | L3: 0.005233608164 | M3: 0.008197535925 | N3: 0.01254546144 | O3: 0.01876276643 | P3: 0.0274289497 | Q3: 0.03920390329 | R3: 0.0547992917 | S3: 0.07493369953 | T3: 0.100272568 | U3: 0.131356881 | V3: 0.1685276075 | W3: 0.2118553986 | X3: 0.2610862997 | Y3: 0.3156136965 | Z3: 0.3744841653 | AA3: 0.4364405371 | AB3: 0.5 | AC3: 0.5635594629 | AD3: 0.6255158347 | AE3: 0.6843863035 | AF3: 0.7389137003 | AG3: 0.7881446014 | AH3: 0.8314723925 | AI3: =_xlfn.NORM.S.DIST(Siegx,1) -> 0.868643119 | AJ3: 0.899727432 | AK3: 0.9250663005 | AL3: 0.9452007083 | AM3: 0.9607960967 | AN3: 0.9725710503 | AO3: 0.9812372336 | AP3: 0.9874545386 | AQ3: 0.9918024641 | AR3: 0.9947663918 | AS3: 0.9967359042 | AT3: 0.9980116241 | AU3: 0.9988171093 | AV3: 0.9993128621 | AW3: 0.9996102876 | AX3: 0.9997842266 | AY3: 0.999883383 | AZ3: 0.9999384828 | BA3: 0.9999683288
B4: 0 | C4: =(4-_xlfn.NORM.INV(Speed,0,1))/8*COS(DirR)*(1 + 0.5*SIN(DirR*5)) -> 1 | D4: 0.98 | E4: 0.96 | F4: 0.94 | G4: 0.92 | H4: 0.9 | I4: 0.88 | J4: 0.86 | K4: 0.84 | L4: 0.82 | M4: =(4-_xlfn.NORM.INV(Speed,0,1))/8*COS(DirR)*(1 + 0.5*SIN(DirR*5)) -> 0.8 | N4: 0.78 | O4: 0.76 | P4: 0.74 | Q4: 0.72 | R4: 0.7 | S4: 0.68 | T4: 0.66 | U4: 0.64 | V4: 0.62 | W4: =(4-_xlfn.NORM.INV(Speed,0,1))/8*COS(DirR)*(1 + 0.5*SIN(DirR*5)) -> 0.6 | X4: 0.58 | Y4: 0.56 | Z4: 0.54 | AA4: 0.52 | AB4: 0.5 | AC4: 0.48 | AD4: 0.46 | AE4: 0.44 | AF4: 0.42 | AG4: =(4-_xlfn.NORM.INV(Speed,0,1))/8*COS(DirR)*(1 + 0.5*SIN(DirR*5)) -> 0.4 | AH4: 0.38 | AI4: 0.36 | AJ4: 0.34 | AK4: 0.32 | AL4: 0.3 | AM4: 0.28 | AN4: 0.26 | AO4: 0.24 | AP4: 0.22 | AQ4: =(4-_xlfn.NORM.INV(Speed,0,1))/8*COS(DirR)*(1 + 0.5*SIN(DirR*5)) -> 0.2 | AR4: 0.18 | AS4: 0.16 | AT4: 0.14 | AU4: 0.12 | AV4: 0.1 | AW4: 0.08 | AX4: 0.06 | AY4: 0.04 | AZ4: 0.02 | BA4: 5.551115123e-17
B5: 0.01755079695 | C5: 1.04365994 | D5: 1.022786741 | E5: 1.001913542 | F5: 0.9810403431 | G5: 0.9601671443 | H5: 0.9392939456 | I5: 0.9184207468 | J5: 0.897547548 | K5: 0.8766743492 | L5: 0.8558011504 | M5: 0.8349279516 | N5: 0.8140547528 | O5: 0.793181554 | P5: 0.7723083552 | Q5: 0.7514351564 | R5: 0.7305619577 | S5: 0.7096887589 | T5: 0.6888155601 | U5: 0.6679423613 | V5: 0.6470691625 | W5: 0.6261959637 | X5: 0.6053227649 | Y5: 0.5844495661 | Z5: 0.5635763673 | AA5: 0.5427031685 | AB5: 0.5218299698 | AC5: 0.500956771 | AD5: 0.4800835722 | AE5: 0.4592103734 | AF5: 0.4383371746 | AG5: 0.4174639758 | AH5: 0.396590777 | AI5: 0.3757175782 | AJ5: 0.3548443794 | AK5: 0.3339711806 | AL5: 0.3130979819 | AM5: 0.2922247831 | AN5: 0.2713515843 | AO5: 0.2504783855 | AP5: 0.2296051867 | AQ5: 0.2087319879 | AR5: 0.1878587891 | AS5: 0.1669855903 | AT5: 0.1461123915 | AU5: 0.1252391927 | AV5: 0.104365994 | AW5: 0.08349279516 | AX5: 0.06261959637 | AY5: 0.04174639758 | AZ5: 0.02087319879 | BA5: 5.793476474e-17
B6: 0.03510159389 | C6: 1.086634386 | D6: 1.064901698 | E6: 1.043169011 | F6: 1.021436323 | G6: 0.9997036353 | H6: 0.9779709476 | I6: 0.9562382599 | J6: 0.9345055721 | K6: 0.9127728844 | L6: 0.8910401967 | M6: 0.869307509 | N6: 0.8475748212 | O6: 0.8258421335 | P6: 0.8041094458 | Q6: 0.7823767581 | R6: 0.7606440703 | S6: 0.7389113826 | T6: 0.7171786949 | U6: 0.6954460072 | V6: 0.6737133194 | W6: 0.6519806317 | X6: 0.630247944 | Y6: 0.6085152563 | Z6: 0.5867825686 | AA6: 0.5650498808 | AB6: 0.5433171931 | AC6: 0.5215845054 | AD6: 0.4998518177 | AE6: 0.4781191299 | AF6: 0.4563864422 | AG6: 0.4346537545 | AH6: 0.4129210668 | AI6: 0.391188379 | AJ6: 0.3694556913 | AK6: 0.3477230036 | AL6: 0.3259903159 | AM6: 0.3042576281 | AN6: 0.2825249404 | AO6: 0.2607922527 | AP6: 0.239059565 | AQ6: 0.2173268772 | AR6: 0.1955941895 | AS6: 0.1738615018 | AT6: 0.1521288141 | AU6: 0.1303961263 | AV6: 0.1086634386 | AW6: 0.0869307509 | AX6: 0.06519806317 | AY6: 0.04346537545 | AZ6: 0.02173268772 | BA6: 6.032032575e-17
B7: 0.05265239084 | C7: 1.128549616 | D7: 1.105978623 | E7: 1.083407631 | F7: 1.060836639 | G7: 1.038265646 | H7: 1.015694654 | I7: 0.9931236618 | J7: 0.9705526695 | K7: 0.9479816772 | L7: 0.9254106849 | M7: 0.9028396925 | N7: 0.8802687002 | O7: 0.8576977079 | P7: 0.8351267156 | Q7: 0.8125557233 | R7: 0.789984731 | S7: 0.7674137387 | T7: 0.7448427464 | U7: 0.722271754 | V7: 0.6997007617 | W7: 0.6771297694 | X7: 0.6545587771 | Y7: 0.6319877848 | Z7: 0.6094167925 | AA7: 0.5868458002 | AB7: 0.5642748078 | AC7: 0.5417038155 | AD7: 0.5191328232 | AE7: 0.4965618309 | AF7: 0.4739908386 | AG7: 0.4514198463 | AH7: 0.428848854 | AI7: 0.4062778616 | AJ7: 0.3837068693 | AK7: 0.361135877 | AL7: 0.3385648847 | AM7: 0.3159938924 | AN7: 0.2934229001 | AO7: 0.2708519078 | AP7: 0.2482809155 | AQ7: 0.2257099231 | AR7: 0.2031389308 | AS7: 0.1805679385 | AT7: 0.1579969462 | AU7: 0.1354259539 | AV7: 0.1128549616 | AW7: 0.09028396925 | AX7: 0.06771297694 | AY7: 0.04514198463 | AZ7: 0.02257099231 | BA7: 6.264708839e-17
B8: 0.07020318779 | C8: 1.169039262 | D8: 1.145658477 | E8: 1.122277692 | F8: 1.098896907 | G8: 1.075516121 | H8: 1.052135336 | I8: 1.028754551 | J8: 1.005373766 | K8: 0.9819929804 | L8: 0.9586121952 | M8: 0.9352314099 | N8: 0.9118506247 | O8: 0.8884698394 | P8: 0.8650890542 | Q8: 0.8417082689 | R8: 0.8183274837 | S8: 0.7949466984 | T8: 0.7715659132 | U8: 0.7481851279 | V8: 0.7248043427 | W8: 0.7014235574 | X8: 0.6780427722 | Y8: 0.6546619869 | Z8: 0.6312812017 | AA8: 0.6079004164 | AB8: 0.5845196312 | AC8: 0.5611388459 | AD8: 0.5377580607 | AE8: 0.5143772754 | AF8: 0.4909964902 | AG8: 0.467615705 | AH8: 0.4442349197 | AI8: 0.4208541345 | AJ8: 0.3974733492 | AK8: 0.374092564 | AL8: 0.3507117787 | AM8: 0.3273309935 | AN8: 0.3039502082 | AO8: 0.280569423 | AP8: 0.2571886377 | AQ8: 0.2338078525 | AR8: 0.2104270672 | AS8: 0.187046282 | AT8: 0.1636654967 | AU8: 0.1402847115 | AV8: 0.1169039262 | AW8: 0.09352314099 | AX8: 0.07014235574 | AY8: 0.0467615705 | AZ8: 0.02338078525 | BA8: 6.489471529e-17
B9: 0.08775398474 | C9: 1.207747857 | D9: 1.1835929 | E9: 1.159437943 | F9: 1.135282986 | G9: 1.111128029 | H9: 1.086973072 | I9: 1.062818115 | J9: 1.038663157 | K9: 1.0145082 | L9: 0.9903532431 | M9: 0.9661982859 | N9: 0.9420433288 | O9: 0.9178883716 | P9: 0.8937334145 | Q9: 0.8695784573 | R9: 0.8454235002 | S9: 0.821268543 | T9: 0.7971135859 | U9: 0.7729586288 | V9: 0.7488036716 | W9: 0.7246487145 | X9: 0.7004937573 | Y9: 0.6763388002 | Z9: 0.652183843 | AA9: 0.6280288859 | AB9: 0.6038739287 | AC9: 0.5797189716 | AD9: 0.5555640144 | AE9: 0.5314090573 | AF9: 0.5072541001 | AG9: 0.483099143 | AH9: 0.4589441858 | AI9: 0.4347892287 | AJ9: 0.4106342715 | AK9: 0.3864793144 | AL9: 0.3623243572 | AM9: 0.3381694001 | AN9: 0.3140144429 | AO9: 0.2898594858 | AP9: 0.2657045286 | AQ9: 0.2415495715 | AR9: 0.2173946143 | AS9: 0.1932396572 | AT9: 0.1690847 | AU9: 0.1449297429 | AV9: 0.1207747857 | AW9: 0.09661982859 | AX9: 0.07246487145 | AY9: 0.0483099143 | AZ9: 0.02415495715 | BA9: 6.704347396e-17
B10: 0.1053047817 | C10: 1.244334254 | D10: 1.219447569 | E10: 1.194560884 | F10: 1.169674199 | G10: 1.144787514 | H10: 1.119900829 | I10: 1.095014144 | J10: 1.070127459 | K10: 1.045240774 | L10: 1.020354089 | M10: 0.9954674036 | N10: 0.9705807185 | O10: 0.9456940334 | P10: 0.9208073483 | Q10: 0.8959206632 | R10: 0.8710339781 | S10: 0.846147293 | T10: 0.8212606079 | U10: 0.7963739229 | V10: 0.7714872378 | W10: 0.7466005527 | X10: 0.7217138676 | Y10: 0.6968271825 | Z10: 0.6719404974 | AA10: 0.6470538123 | AB10: 0.6221671272 | AC10: 0.5972804421 | AD10: 0.5723937571 | AE10: 0.547507072 | AF10: 0.5226203869 | AG10: 0.4977337018 | AH10: 0.4728470167 | AI10: 0.4479603316 | AJ10: 0.4230736465 | AK10: 0.3981869614 | AL10: 0.3733002763 | AM10: 0.3484135913 | AN10: 0.3235269062 | AO10: 0.2986402211 | AP10: 0.273753536 | AQ10: 0.2488668509 | AR10: 0.2239801658 | AS10: 0.1990934807 | AT10: 0.1742067956 | AU10: 0.1493201105 | AV10: 0.1244334254 | AW10: 0.09954674036 | AX10: 0.07466005527 | AY10: 0.04977337018 | AZ10: 0.02488668509 | BA10: 6.907442698e-17
B11: 0.1228555786 | C11: 1.278474908 | D11: 1.25290541 | E11: 1.227335912 | F11: 1.201766414 | G11: 1.176196916 | H11: 1.150627417 | I11: 1.125057919 | J11: 1.099488421 | K11: 1.073918923 | L11: 1.048349425 | M11: 1.022779927 | N11: 0.9972104285 | O11: 0.9716409303 | P11: 0.9460714322 | Q11: 0.920501934 | R11: 0.8949324358 | S11: 0.8693629377 | T11: 0.8437934395 | U11: 0.8182239413 | V11: 0.7926544432 | W11: 0.767084945 | X11: 0.7415154468 | Y11: 0.7159459487 | Z11: 0.6903764505 | AA11: 0.6648069523 | AB11: 0.6392374542 | AC11: 0.613667956 | AD11: 0.5880984578 | AE11: 0.5625289597 | AF11: 0.5369594615 | AG11: 0.5113899633 | AH11: 0.4858204652 | AI11: 0.460250967 | AJ11: 0.4346814688 | AK11: 0.4091119707 | AL11: 0.3835424725 | AM11: 0.3579729743 | AN11: 0.3324034762 | AO11: 0.306833978 | AP11: 0.2812644798 | AQ11: 0.2556949817 | AR11: 0.2301254835 | AS11: 0.2045559853 | AT11: 0.1789864872 | AU11: 0.153416989 | AV11: 0.1278474908 | AW11: 0.1022779927 | AX11: 0.0767084945 | AY11: 0.05113899633 | AZ11: 0.02556949817 | BA11: 7.096961398e-17
B12: 0.1404063756 | C12: 1.309866972 | D12: 1.283669633 | E12: 1.257472293 | F12: 1.231274954 | G12: 1.205077615 | H12: 1.178880275 | I12: 1.152682936 | J12: 1.126485596 | K12: 1.100288257 | L12: 1.074090917 | M12: 1.047893578 | N12: 1.021696238 | O12: 0.995498899 | P12: 0.9693015595 | Q12: 0.9431042201 | R12: 0.9169068806 | S12: 0.8907095412 | T12: 0.8645122017 | U12: 0.8383148623 | V12: 0.8121175228 | W12: 0.7859201834 | X12: 0.7597228439 | Y12: 0.7335255045 | Z12: 0.7073281651 | AA12: 0.6811308256 | AB12: 0.6549334862 | AC12: 0.6287361467 | AD12: 0.6025388073 | AE12: 0.5763414678 | AF12: 0.5501441284 | AG12: 0.5239467889 | AH12: 0.4977494495 | AI12: 0.47155211 | AJ12: 0.4453547706 | AK12: 0.4191574311 | AL12: 0.3929600917 | AM12: 0.3667627522 | AN12: 0.3405654128 | AO12: 0.3143680734 | AP12: 0.2881707339 | AQ12: 0.2619733945 | AR12: 0.235776055 | AS12: 0.2095787156 | AT12: 0.1833813761 | AU12: 0.1571840367 | AV12: 0.1309866972 | AW12: 0.1047893578 | AX12: 0.07859201834 | AY12: 0.05239467889 | AZ12: 0.02619733945 | BA12: 7.271222359e-17
B13: 0.1579571725 | C13: 1.338231183 | D13: 1.311466559 | E13: 1.284701935 | F13: 1.257937312 | G13: 1.231172688 | H13: 1.204408065 | I13: 1.177643441 | J13: 1.150878817 | K13: 1.124114194 | L13: 1.09734957 | M13: 1.070584946 | N13: 1.043820323 | O13: 1.017055699 | P13: 0.9902910753 | Q13: 0.9635264516 | R13: 0.936761828 | S13: 0.9099972043 | T13: 0.8832325806 | U13: 0.856467957 | V13: 0.8297033333 | W13: 0.8029387097 | X13: 0.776174086 | Y13: 0.7494094624 | Z13: 0.7226448387 | AA13: 0.6958802151 | AB13: 0.6691155914 | AC13: 0.6423509677 | AD13: 0.6155863441 | AE13: 0.5888217204 | AF13: 0.5620570968 | AG13: 0.5352924731 | AH13: 0.5085278495 | AI13: 0.4817632258 | AJ13: 0.4549986022 | AK13: 0.4282339785 | AL13: 0.4014693548 | AM13: 0.3747047312 | AN13: 0.3479401075 | AO13: 0.3211754839 | AP13: 0.2944108602 | AQ13: 0.2676462366 | AR13: 0.2408816129 | AS13: 0.2141169892 | AT13: 0.1873523656 | AU13: 0.1605877419 | AV13: 0.1338231183 | AW13: 0.1070584946 | AX13: 0.08029387097 | AY13: 0.05352924731 | AZ13: 0.02676462366 | BA13: 7.428675357e-17
B14: 0.1755079695 | C14: =(4-_xlfn.NORM.INV(Speed,0,1))/8*COS(DirR)*(1 + 0.5*SIN(DirR*5)) -> 1.363314501 | D14: 1.336048211 | E14: 1.308781921 | F14: 1.281515631 | G14: 1.254249341 | H14: 1.226983051 | I14: 1.199716761 | J14: 1.172450471 | K14: 1.145184181 | L14: 1.117917891 | M14: =(4-_xlfn.NORM.INV(Speed,0,1))/8*COS(DirR)*(1 + 0.5*SIN(DirR*5)) -> 1.090651601 | N14: 1.063385311 | O14: 1.036119021 | P14: 1.008852731 | Q14: 0.9815864406 | R14: 0.9543201505 | S14: 0.9270538605 | T14: 0.8997875705 | U14: 0.8725212805 | V14: 0.8452549905 | W14: =(4-_xlfn.NORM.INV(Speed,0,1))/8*COS(DirR)*(1 + 0.5*SIN(DirR*5)) -> 0.8179887005 | X14: 0.7907224104 | Y14: 0.7634561204 | Z14: 0.7361898304 | AA14: 0.7089235404 | AB14: 0.6816572504 | AC14: 0.6543909604 | AD14: 0.6271246704 | AE14: 0.5998583803 | AF14: 0.5725920903 | AG14: =(4-_xlfn.NORM.INV(Speed,0,1))/8*COS(DirR)*(1 + 0.5*SIN(DirR*5)) -> 0.5453258003 | AH14: 0.5180595103 | AI14: 0.4907932203 | AJ14: 0.4635269303 | AK14: 0.4362606402 | AL14: 0.4089943502 | AM14: 0.3817280602 | AN14: 0.3544617702 | AO14: 0.3271954802 | AP14: 0.2999291902 | AQ14: =(4-_xlfn.NORM.INV(Speed,0,1))/8*COS(DirR)*(1 + 0.5*SIN(DirR*5)) -> 0.2726629002 | AR14: 0.2453966101 | AS14: 0.2181303201 | AT14: 0.1908640301 | AU14: 0.1635977401 | AV14: 0.1363314501 | AW14: 0.1090651601 | AX14: 0.08179887005 | AY14: 0.05453258003 | AZ14: 0.02726629002 | BA14: 7.567915743e-17
B15: 0.1930587664 | C15: 1.384892484 | D15: 1.357194634 | E15: 1.329496785 | F15: 1.301798935 | G15: 1.274101085 | H15: 1.246403236 | I15: 1.218705386 | J15: 1.191007536 | K15: 1.163309687 | L15: 1.135611837 | M15: 1.107913987 | N15: 1.080216138 | O15: 1.052518288 | P15: 1.024820438 | Q15: 0.9971225885 | R15: 0.9694247388 | S15: 0.9417268892 | T15: 0.9140290395 | U15: 0.8863311898 | V15: 0.8586333401 | W15: 0.8309354904 | X15: 0.8032376408 | Y15: 0.7755397911 | Z15: 0.7478419414 | AA15: 0.7201440917 | AB15: 0.692446242 | AC15: 0.6647483923 | AD15: 0.6370505427 | AE15: 0.609352693 | AF15: 0.5816548433 | AG15: 0.5539569936 | AH15: 0.5262591439 | AI15: 0.4985612943 | AJ15: 0.4708634446 | AK15: 0.4431655949 | AL15: 0.4154677452 | AM15: 0.3877698955 | AN15: 0.3600720459 | AO15: 0.3323741962 | AP15: 0.3046763465 | AQ15: 0.2769784968 | AR15: 0.2492806471 | AS15: 0.2215827974 | AT15: 0.1938849478 | AU15: 0.1661870981 | AV15: 0.1384892484 | AW15: 0.1107913987 | AX15: 0.08309354904 | AY15: 0.05539569936 | AZ15: 0.02769784968 | BA15: 7.687697612e-17
B16: 0.2106095634 | C16: 1.402771366 | D16: 1.374715938 | E16: 1.346660511 | F16: 1.318605084 | G16: 1.290549656 | H16: 1.262494229 | I16: 1.234438802 | J16: 1.206383374 | K16: 1.178327947 | L16: 1.15027252 | M16: 1.122217093 | N16: 1.094161665 | O16: 1.066106238 | P16: 1.038050811 | Q16: 1.009995383 | R16: 0.9819399559 | S16: 0.9538845286 | T16: 0.9258291013 | U16: 0.897773674 | V16: 0.8697182467 | W16: 0.8416628194 | X16: 0.8136073921 | Y16: 0.7855519648 | Z16: 0.7574965374 | AA16: 0.7294411101 | AB16: 0.7013856828 | AC16: 0.6733302555 | AD16: 0.6452748282 | AE16: 0.6172194009 | AF16: 0.5891639736 | AG16: 0.5611085463 | AH16: 0.5330531189 | AI16: 0.5049976916 | AJ16: 0.4769422643 | AK16: 0.448886837 | AL16: 0.4208314097 | AM16: 0.3927759824 | AN16: 0.3647205551 | AO16: 0.3366651278 | AP16: 0.3086097004 | AQ16: 0.2805542731 | AR16: 0.2524988458 | AS16: 0.2244434185 | AT16: 0.1963879912 | AU16: 0.1683325639 | AV16: 0.1402771366 | AW16: 0.1122217093 | AX16: 0.08416628194 | AY16: 0.05611085463 | AZ16: 0.02805542731 | BA16: 7.786945342e-17
B17: 0.2281603603 | C17: 1.416789817 | D17: 1.388454021 | E17: 1.360118225 | F17: 1.331782428 | G17: 1.303446632 | H17: 1.275110835 | I17: 1.246775039 | J17: 1.218439243 | K17: 1.190103446 | L17: 1.16176765 | M17: 1.133431854 | N17: 1.105096057 | O17: 1.076760261 | P17: 1.048424465 | Q17: 1.020088668 | R17: 0.991752872 | S17: 0.9634170757 | T17: 0.9350812794 | U17: 0.906745483 | V17: 0.8784096867 | W17: 0.8500738903 | X17: 0.821738094 | Y17: 0.7934022976 | Z17: 0.7650665013 | AA17: 0.7367307049 | AB17: 0.7083949086 | AC17: 0.6800591123 | AD17: 0.6517233159 | AE17: 0.6233875196 | AF17: 0.5950517232 | AG17: 0.5667159269 | AH17: 0.5383801305 | AI17: 0.5100443342 | AJ17: 0.4817085379 | AK17: 0.4533727415 | AL17: 0.4250369452 | AM17: 0.3967011488 | AN17: 0.3683653525 | AO17: 0.3400295561 | AP17: 0.3116937598 | AQ17: 0.2833579634 | AR17: 0.2550221671 | AS17: 0.2266863708 | AT17: 0.1983505744 | AU17: 0.1700147781 | AV17: 0.1416789817 | AW17: 0.1133431854 | AX17: 0.08500738903 | AY17: 0.05667159269 | AZ17: 0.02833579634 | BA17: 7.864763381e-17
B18: 0.2457111573 | C18: 1.426820381 | D18: 1.398283973 | E18: 1.369747565 | F18: 1.341211158 | G18: 1.31267475 | H18: 1.284138343 | I18: 1.255601935 | J18: 1.227065527 | K18: 1.19852912 | L18: 1.169992712 | M18: 1.141456304 | N18: 1.112919897 | O18: 1.084383489 | P18: 1.055847082 | Q18: 1.027310674 | R18: 0.9987742664 | S18: 0.9702378588 | T18: 0.9417014512 | U18: 0.9131650436 | V18: 0.8846286359 | W18: 0.8560922283 | X18: 0.8275558207 | Y18: 0.7990194131 | Z18: 0.7704830055 | AA18: 0.7419465979 | AB18: 0.7134101903 | AC18: 0.6848737827 | AD18: 0.6563373751 | AE18: 0.6278009674 | AF18: 0.5992645598 | AG18: 0.5707281522 | AH18: 0.5421917446 | AI18: 0.513655337 | AJ18: 0.4851189294 | AK18: 0.4565825218 | AL18: 0.4280461142 | AM18: 0.3995097066 | AN18: 0.3709732989 | AO18: 0.3424368913 | AP18: 0.3139004837 | AQ18: 0.2853640761 | AR18: 0.2568276685 | AS18: 0.2282912609 | AT18: 0.1997548533 | AU18: 0.1712184457 | AV18: 0.1426820381 | AW18: 0.1141456304 | AX18: 0.08560922283 | AY18: 0.05707281522 | AZ18: 0.02853640761 | BA18: 7.920444193e-17
B19: 0.2632619542 | C19: 1.432770552 | D19: 1.404115141 | E19: 1.37545973 | F19: 1.346804319 | G19: 1.318148908 | H19: 1.289493497 | I19: 1.260838086 | J19: 1.232182675 | K19: 1.203527264 | L19: 1.174871853 | M19: 1.146216442 | N19: 1.117561031 | O19: 1.08890562 | P19: 1.060250209 | Q19: 1.031594798 | R19: 1.002939387 | S19: 0.9742839756 | T19: 0.9456285645 | U19: 0.9169731535 | V19: 0.8883177425 | W19: 0.8596623314 | X19: 0.8310069204 | Y19: 0.8023515093 | Z19: 0.7736960983 | AA19: 0.7450406872 | AB19: 0.7163852762 | AC19: 0.6877298651 | AD19: 0.6590744541 | AE19: 0.630419043 | AF19: 0.601763632 | AG19: 0.5731082209 | AH19: 0.5444528099 | AI19: 0.5157973988 | AJ19: 0.4871419878 | AK19: 0.4584865768 | AL19: 0.4298311657 | AM19: 0.4011757547 | AN19: 0.3725203436 | AO19: 0.3438649326 | AP19: 0.3152095215 | AQ19: 0.2865541105 | AR19: 0.2578986994 | AS19: 0.2292432884 | AT19: 0.2005878773 | AU19: 0.1719324663 | AV19: 0.1432770552 | AW19: 0.1146216442 | AX19: 0.08596623314 | AY19: 0.05731082209 | AZ19: 0.02865541105 | BA19: 7.953474281e-17
B20: 0.2808127512 | C20: 1.434583512 | D20: 1.405891842 | E20: 1.377200172 | F20: 1.348508502 | G20: 1.319816831 | H20: 1.291125161 | I20: 1.262433491 | J20: 1.233741821 | K20: 1.20505015 | L20: 1.17635848 | M20: 1.14766681 | N20: 1.11897514 | O20: 1.090283469 | P20: 1.061591799 | Q20: 1.032900129 | R20: 1.004208459 | S20: 0.9755167884 | T20: 0.9468251181 | U20: 0.9181334479 | V20: 0.8894417776 | W20: 0.8607501074 | X20: 0.8320584371 | Y20: 0.8033667669 | Z20: 0.7746750966 | AA20: 0.7459834264 | AB20: 0.7172917562 | AC20: 0.6886000859 | AD20: 0.6599084157 | AE20: 0.6312167454 | AF20: 0.6025250752 | AG20: 0.5738334049 | AH20: 0.5451417347 | AI20: 0.5164500644 | AJ20: 0.4877583942 | AK20: 0.4590667239 | AL20: 0.4303750537 | AM20: 0.4016833834 | AN20: 0.3729917132 | AO20: 0.344300043 | AP20: 0.3156083727 | AQ20: 0.2869167025 | AR20: 0.2582250322 | AS20: 0.229533362 | AT20: 0.2008416917 | AU20: 0.1721500215 | AV20: 0.1434583512 | AW20: 0.114766681 | AX20: 0.08607501074 | AY20: 0.05738334049 | AZ20: 0.02869167025 | BA20: 7.963538231e-17
B21: 0.2983635481 | C21: 1.432238488 | D21: 1.403593718 | E21: 1.374948949 | F21: 1.346304179 | G21: 1.317659409 | H21: 1.289014639 | I21: 1.26036987 | J21: 1.2317251 | K21: 1.20308033 | L21: 1.17443556 | M21: 1.145790791 | N21: 1.117146021 | O21: 1.088501251 | P21: 1.059856481 | Q21: 1.031211711 | R21: 1.002566942 | S21: 0.9739221719 | T21: 0.9452774022 | U21: 0.9166326324 | V21: 0.8879878627 | W21: 0.8593430929 | X21: 0.8306983231 | Y21: 0.8020535534 | Z21: 0.7734087836 | AA21: 0.7447640138 | AB21: 0.7161192441 | AC21: 0.6874744743 | AD21: 0.6588297046 | AE21: 0.6301849348 | AF21: 0.601540165 | AG21: 0.5728953953 | AH21: 0.5442506255 | AI21: 0.5156058557 | AJ21: 0.486961086 | AK21: 0.4583163162 | AL21: 0.4296715464 | AM21: 0.4010267767 | AN21: 0.3723820069 | AO21: 0.3437372372 | AP21: 0.3150924674 | AQ21: 0.2864476976 | AR21: 0.2578029279 | AS21: 0.2291581581 | AT21: 0.2005133883 | AU21: 0.1718686186 | AV21: 0.1432238488 | AW21: 0.1145790791 | AX21: 0.08593430929 | AY21: 0.05728953953 | AZ21: 0.02864476976 | BA21: 7.950520732e-17
B22: 0.3159143451 | C22: 1.425750754 | D22: 1.397235739 | E22: 1.368720724 | F22: 1.340205709 | G22: 1.311690694 | H22: 1.283175679 | I22: 1.254660664 | J22: 1.226145649 | K22: 1.197630634 | L22: 1.169115619 | M22: 1.140600604 | N22: 1.112085588 | O22: 1.083570573 | P22: 1.055055558 | Q22: 1.026540543 | R22: 0.9980255281 | S22: 0.969510513 | T22: 0.9409954979 | U22: 0.9124804829 | V22: 0.8839654678 | W22: 0.8554504527 | X22: 0.8269354376 | Y22: 0.7984204225 | Z22: 0.7699054074 | AA22: 0.7413903923 | AB22: 0.7128753772 | AC22: 0.6843603621 | AD22: 0.6558453471 | AE22: 0.627330332 | AF22: 0.5988153169 | AG22: 0.5703003018 | AH22: 0.5417852867 | AI22: 0.5132702716 | AJ22: 0.4847552565 | AK22: 0.4562402414 | AL22: 0.4277252263 | AM22: 0.3992102112 | AN22: 0.3706951962 | AO22: 0.3421801811 | AP22: 0.313665166 | AQ22: 0.2851501509 | AR22: 0.2566351358 | AS22: 0.2281201207 | AT22: 0.1996051056 | AU22: 0.1710900905 | AV22: 0.1425750754 | AW22: 0.1140600604 | AX22: 0.08554504527 | AY22: 0.05703003018 | AZ22: 0.02851501509 | BA22: 7.914506575e-17
B23: 0.333465142 | C23: 1.415171267 | D23: 1.386867842 | E23: 1.358564416 | F23: 1.330260991 | G23: 1.301957566 | H23: 1.27365414 | I23: 1.245350715 | J23: 1.21704729 | K23: 1.188743864 | L23: 1.160440439 | M23: 1.132137014 | N23: 1.103833588 | O23: 1.075530163 | P23: 1.047226738 | Q23: 1.018923312 | R23: 0.9906198868 | S23: 0.9623164615 | T23: 0.9340130362 | U23: 0.9057096108 | V23: 0.8774061855 | W23: 0.8491027601 | X23: 0.8207993348 | Y23: 0.7924959095 | Z23: 0.7641924841 | AA23: 0.7358890588 | AB23: 0.7075856335 | AC23: 0.6792822081 | AD23: 0.6509787828 | AE23: 0.6226753574 | AF23: 0.5943719321 | AG23: 0.5660685068 | AH23: 0.5377650814 | AI23: 0.5094616561 | AJ23: 0.4811582308 | AK23: 0.4528548054 | AL23: 0.4245513801 | AM23: 0.3962479547 | AN23: 0.3679445294 | AO23: 0.3396411041 | AP23: 0.3113376787 | AQ23: 0.2830342534 | AR23: 0.254730828 | AS23: 0.2264274027 | AT23: 0.1981239774 | AU23: 0.169820552 | AV23: 0.1415171267 | AW23: 0.1132137014 | AX23: 0.08491027601 | AY23: 0.05660685068 | AZ23: 0.02830342534 | BA23: 7.855778622e-17
B24: 0.3510159389 | C24: =(4-_xlfn.NORM.INV(Speed,0,1))/8*COS(DirR)*(1 + 0.5*SIN(DirR*5)) -> 1.400585937 | D24: 1.372574218 | E24: 1.344562499 | F24: 1.316550781 | G24: 1.288539062 | H24: 1.260527343 | I24: 1.232515624 | J24: 1.204503906 | K24: 1.176492187 | L24: 1.148480468 | M24: =(4-_xlfn.NORM.INV(Speed,0,1))/8*COS(DirR)*(1 + 0.5*SIN(DirR*5)) -> 1.12046875 | N24: 1.092457031 | O24: 1.064445312 | P24: 1.036433593 | Q24: 1.008421875 | R24: 0.9804101558 | S24: 0.9523984371 | T24: 0.9243867183 | U24: 0.8963749996 | V24: 0.8683632809 | W24: =(4-_xlfn.NORM.INV(Speed,0,1))/8*COS(DirR)*(1 + 0.5*SIN(DirR*5)) -> 0.8403515621 | X24: 0.8123398434 | Y24: 0.7843281247 | Z24: 0.7563164059 | AA24: 0.7283046872 | AB24: 0.7002929684 | AC24: 0.6722812497 | AD24: 0.644269531 | AE24: 0.6162578122 | AF24: 0.5882460935 | AG24: =(4-_xlfn.NORM.INV(Speed,0,1))/8*COS(DirR)*(1 + 0.5*SIN(DirR*5)) -> 0.5602343748 | AH24: 0.532222656 | AI24: 0.5042109373 | AJ24: 0.4761992185 | AK24: 0.4481874998 | AL24: 0.4201757811 | AM24: 0.3921640623 | AN24: 0.3641523436 | AO24: 0.3361406249 | AP24: 0.3081289061 | AQ24: =(4-_xlfn.NORM.INV(Speed,0,1))/8*COS(DirR)*(1 + 0.5*SIN(DirR*5)) -> 0.2801171874 | AR24: 0.2521054686 | AS24: 0.2240937499 | AT24: 0.1960820312 | AU24: 0.1680703124 | AV24: 0.1400585937 | AW24: 0.112046875 | AX24: 0.08403515621 | AY24: 0.05602343748 | AZ24: 0.02801171874 | BA24: 7.774813775e-17
B25: 0.3685667359 | C25: 1.382114555 | D25: 1.354472264 | E25: 1.326829973 | F25: 1.299187682 | G25: 1.271545391 | H25: 1.2439031 | I25: 1.216260809 | J25: 1.188618518 | K25: 1.160976226 | L25: 1.133333935 | M25: 1.105691644 | N25: 1.078049353 | O25: 1.050407062 | P25: 1.022764771 | Q25: 0.9951224798 | R25: 0.9674801887 | S25: 0.9398378976 | T25: 0.9121956065 | U25: 0.8845533154 | V25: 0.8569110243 | W25: 0.8292687332 | X25: 0.8016264421 | Y25: 0.773984151 | Z25: 0.7463418599 | AA25: 0.7186995687 | AB25: 0.6910572776 | AC25: 0.6634149865 | AD25: 0.6357726954 | AE25: 0.6081304043 | AF25: 0.5804881132 | AG25: 0.5528458221 | AH25: 0.525203531 | AI25: 0.4975612399 | AJ25: 0.4699189488 | AK25: 0.4422766577 | AL25: 0.4146343666 | AM25: 0.3869920755 | AN25: 0.3593497844 | AO25: 0.3317074933 | AP25: 0.3040652022 | AQ25: 0.2764229111 | AR25: 0.24878062 | AS25: 0.2211383288 | AT25: 0.1934960377 | AU25: 0.1658537466 | AV25: 0.1382114555 | AW25: 0.1105691644 | AX25: 0.08292687332 | AY25: 0.05528458221 | AZ25: 0.02764229111 | BA25: 7.67227701e-17
B26: 0.3861175328 | C26: 1.359909378 | D26: 1.332711191 | E26: 1.305513003 | F26: 1.278314816 | G26: 1.251116628 | H26: 1.223918441 | I26: 1.196720253 | J26: 1.169522065 | K26: 1.142323878 | L26: 1.11512569 | M26: 1.087927503 | N26: 1.060729315 | O26: 1.033531128 | P26: 1.00633294 | Q26: 0.9791347525 | R26: 0.9519365649 | S26: 0.9247383773 | T26: 0.8975401897 | U26: 0.8703420022 | V26: 0.8431438146 | W26: 0.815945627 | X26: 0.7887474395 | Y26: 0.7615492519 | Z26: 0.7343510643 | AA26: 0.7071528768 | AB26: 0.6799546892 | AC26: 0.6527565016 | AD26: 0.6255583141 | AE26: 0.5983601265 | AF26: 0.5711619389 | AG26: 0.5439637514 | AH26: 0.5167655638 | AI26: 0.4895673762 | AJ26: 0.4623691887 | AK26: 0.4351710011 | AL26: 0.4079728135 | AM26: 0.380774626 | AN26: 0.3535764384 | AO26: 0.3263782508 | AP26: 0.2991800632 | AQ26: 0.2719818757 | AR26: 0.2447836881 | AS26: 0.2175855005 | AT26: 0.190387313 | AU26: 0.1631891254 | AV26: 0.1359909378 | AW26: 0.1087927503 | AX26: 0.0815945627 | AY26: 0.05439637514 | AZ26: 0.02719818757 | BA26: 7.549013517e-17
B27: 0.4036683298 | C27: 1.334153392 | D27: 1.307470324 | E27: 1.280787256 | F27: 1.254104188 | G27: 1.22742112 | H27: 1.200738053 | I27: 1.174054985 | J27: 1.147371917 | K27: 1.120688849 | L27: 1.094005781 | M27: 1.067322713 | N27: 1.040639646 | O27: 1.013956578 | P27: 0.9872735099 | Q27: 0.960590442 | R27: 0.9339073742 | S27: 0.9072243063 | T27: 0.8805412385 | U27: 0.8538581707 | V27: 0.8271751028 | W27: 0.800492035 | X27: 0.7738089672 | Y27: 0.7471258993 | Z27: 0.7204428315 | AA27: 0.6937597637 | AB27: 0.6670766958 | AC27: 0.640393628 | AD27: 0.6137105602 | AE27: 0.5870274923 | AF27: 0.5603444245 | AG27: 0.5336613567 | AH27: 0.5069782888 | AI27: 0.480295221 | AJ27: 0.4536121532 | AK27: 0.4269290853 | AL27: 0.4002460175 | AM27: 0.3735629497 | AN27: 0.3468798818 | AO27: 0.320196814 | AP27: 0.2935137462 | AQ27: 0.2668306783 | AR27: 0.2401476105 | AS27: 0.2134645427 | AT27: 0.1867814748 | AU27: 0.160098407 | AV27: 0.1334153392 | AW27: 0.1067322713 | AX27: 0.0800492035 | AY27: 0.05336613567 | AZ27: 0.02668306783 | BA27: 7.406039069e-17
B28: 0.4212191267 | C28: 1.305058271 | D28: 1.278957106 | E28: 1.252855941 | F28: 1.226754775 | G28: 1.20065361 | H28: 1.174552444 | I28: 1.148451279 | J28: 1.122350113 | K28: 1.096248948 | L28: 1.070147783 | M28: 1.044046617 | N28: 1.017945452 | O28: 0.9918442862 | P28: 0.9657431208 | Q28: 0.9396419554 | R28: 0.9135407899 | S28: 0.8874396245 | T28: 0.8613384591 | U28: 0.8352372937 | V28: 0.8091361282 | W28: 0.7830349628 | X28: 0.7569337974 | Y28: 0.730832632 | Z28: 0.7047314665 | AA28: 0.6786303011 | AB28: 0.6525291357 | AC28: 0.6264279703 | AD28: 0.6003268048 | AE28: 0.5742256394 | AF28: 0.548124474 | AG28: 0.5220233085 | AH28: 0.4959221431 | AI28: 0.4698209777 | AJ28: 0.4437198123 | AK28: 0.4176186468 | AL28: 0.3915174814 | AM28: 0.365416316 | AN28: 0.3393151506 | AO28: 0.3132139851 | AP28: 0.2871128197 | AQ28: 0.2610116543 | AR28: 0.2349104888 | AS28: 0.2088093234 | AT28: 0.182708158 | AU28: 0.1566069926 | AV28: 0.1305058271 | AW28: 0.1044046617 | AX28: 0.07830349628 | AY28: 0.05220233085 | AZ28: 0.02610116543 | BA28: 7.244528707e-17
B29: 0.4387699237 | C29: 1.272862066 | D29: 1.247404825 | E29: 1.221947584 | F29: 1.196490342 | G29: 1.171033101 | H29: 1.14557586 | I29: 1.120118618 | J29: 1.094661377 | K29: 1.069204136 | L29: 1.043746894 | M29: 1.018289653 | N29: 0.9928324117 | O29: 0.9673751704 | P29: 0.941917929 | Q29: 0.9164606877 | R29: 0.8910034464 | S29: 0.8655462051 | T29: 0.8400889637 | U29: 0.8146317224 | V29: 0.7891744811 | W29: 0.7637172398 | X29: 0.7382599984 | Y29: 0.7128027571 | Z29: 0.6873455158 | AA29: 0.6618882745 | AB29: 0.6364310331 | AC29: 0.6109737918 | AD29: 0.5855165505 | AE29: 0.5600593092 | AF29: 0.5346020678 | AG29: 0.5091448265 | AH29: 0.4836875852 | AI29: 0.4582303439 | AJ29: 0.4327731025 | AK29: 0.4073158612 | AL29: 0.3818586199 | AM29: 0.3564013786 | AN29: 0.3309441372 | AO29: 0.3054868959 | AP29: 0.2800296546 | AQ29: 0.2545724133 | AR29: 0.2291151719 | AS29: 0.2036579306 | AT29: 0.1782006893 | AU29: 0.152743448 | AV29: 0.1272862066 | AW29: 0.1018289653 | AX29: 0.07637172398 | AY29: 0.05091448265 | AZ29: 0.02545724133 | BA29: 7.065803866e-17
B30: 0.4563207206 | C30: 1.237826626 | D30: 1.213070094 | E30: 1.188313561 | F30: 1.163557028 | G30: 1.138800496 | H30: 1.114043963 | I30: 1.089287431 | J30: 1.064530898 | K30: 1.039774366 | L30: 1.015017833 | M30: 0.9902613008 | N30: 0.9655047683 | O30: 0.9407482358 | P30: 0.9159917033 | Q30: 0.8912351707 | R30: 0.8664786382 | S30: 0.8417221057 | T30: 0.8169655732 | U30: 0.7922090407 | V30: 0.7674525081 | W30: 0.7426959756 | X30: 0.7179394431 | Y30: 0.6931829106 | Z30: 0.6684263781 | AA30: 0.6436698455 | AB30: 0.618913313 | AC30: 0.5941567805 | AD30: 0.569400248 | AE30: 0.5446437155 | AF30: 0.5198871829 | AG30: 0.4951306504 | AH30: 0.4703741179 | AI30: 0.4456175854 | AJ30: 0.4208610528 | AK30: 0.3961045203 | AL30: 0.3713479878 | AM30: 0.3465914553 | AN30: 0.3218349228 | AO30: 0.2970783902 | AP30: 0.2723218577 | AQ30: 0.2475653252 | AR30: 0.2228087927 | AS30: 0.1980522602 | AT30: 0.1732957276 | AU30: 0.1485391951 | AV30: 0.1237826626 | AW30: 0.09902613008 | AX30: 0.07426959756 | AY30: 0.04951306504 | AZ30: 0.02475653252 | BA30: 6.871318104e-17
B31: 0.4738715176 | C31: 1.200234803 | D31: 1.176230107 | E31: 1.152225411 | F31: 1.128220715 | G31: 1.104216019 | H31: 1.080211323 | I31: 1.056206627 | J31: 1.032201931 | K31: 1.008197235 | L31: 0.9841925386 | M31: 0.9601878425 | N31: 0.9361831464 | O31: 0.9121784504 | P31: 0.8881737543 | Q31: 0.8641690583 | R31: 0.8401643622 | S31: 0.8161596661 | T31: 0.7921549701 | U31: 0.768150274 | V31: 0.7441455779 | W31: 0.7201408819 | X31: 0.6961361858 | Y31: 0.6721314898 | Z31: 0.6481267937 | AA31: 0.6241220976 | AB31: 0.6001174016 | AC31: 0.5761127055 | AD31: 0.5521080094 | AE31: 0.5281033134 | AF31: 0.5040986173 | AG31: 0.4800939213 | AH31: 0.4560892252 | AI31: 0.4320845291 | AJ31: 0.4080798331 | AK31: 0.384075137 | AL31: 0.3600704409 | AM31: 0.3360657449 | AN31: 0.3120610488 | AO31: 0.2880563528 | AP31: 0.2640516567 | AQ31: 0.2400469606 | AR31: 0.2160422646 | AS31: 0.1920375685 | AT31: 0.1680328724 | AU31: 0.1440281764 | AV31: 0.1200234803 | AW31: 0.09601878425 | AX31: 0.07201408819 | AY31: 0.04800939213 | AZ31: 0.02400469606 | BA31: 6.662641567e-17
B32: 0.4914223145 | C32: 1.16038746 | D32: 1.137179711 | E32: 1.113971962 | F32: 1.090764213 | G32: 1.067556464 | H32: 1.044348714 | I32: 1.021140965 | J32: 0.997933216 | K32: 0.9747254668 | L32: 0.9515177175 | M32: 0.9283099683 | N32: 0.9051022191 | O32: 0.8818944699 | P32: 0.8586867207 | Q32: 0.8354789715 | R32: 0.8122712223 | S32: 0.7890634731 | T32: 0.7658557239 | U32: 0.7426479747 | V32: 0.7194402255 | W32: 0.6962324763 | X32: 0.673024727 | Y32: 0.6498169778 | Z32: 0.6266092286 | AA32: 0.6034014794 | AB32: 0.5801937302 | AC32: 0.556985981 | AD32: 0.5337782318 | AE32: 0.5105704826 | AF32: 0.4873627334 | AG32: 0.4641549842 | AH32: 0.440947235 | AI32: 0.4177394858 | AJ32: 0.3945317365 | AK32: 0.3713239873 | AL32: 0.3481162381 | AM32: 0.3249084889 | AN32: 0.3017007397 | AO32: 0.2784929905 | AP32: 0.2552852413 | AQ32: 0.2320774921 | AR32: 0.2088697429 | AS32: 0.1856619937 | AT32: 0.1624542445 | AU32: 0.1392464953 | AV32: 0.116038746 | AW32: 0.09283099683 | AX32: 0.06962324763 | AY32: 0.04641549842 | AZ32: 0.02320774921 | BA32: 6.44144438e-17
B33: 0.5089731115 | C33: 1.118600316 | D33: 1.096228309 | E33: 1.073856303 | F33: 1.051484297 | G33: 1.02911229 | H33: 1.006740284 | I33: 0.9843682778 | J33: 0.9619962715 | K33: 0.9396242652 | L33: 0.9172522589 | M33: 0.8948802526 | N33: 0.8725082463 | O33: 0.8501362399 | P33: 0.8277642336 | Q33: 0.8053922273 | R33: 0.783020221 | S33: 0.7606482147 | T33: 0.7382762084 | U33: 0.7159042021 | V33: 0.6935321957 | W33: 0.6711601894 | X33: 0.6487881831 | Y33: 0.6264161768 | Z33: 0.6040441705 | AA33: 0.5816721642 | AB33: 0.5593001579 | AC33: 0.5369281515 | AD33: 0.5145561452 | AE33: 0.4921841389 | AF33: 0.4698121326 | AG33: 0.4474401263 | AH33: 0.42506812 | AI33: 0.4026961137 | AJ33: 0.3803241073 | AK33: 0.357952101 | AL33: 0.3355800947 | AM33: 0.3132080884 | AN33: 0.2908360821 | AO33: 0.2684640758 | AP33: 0.2460920695 | AQ33: 0.2237200631 | AR33: 0.2013480568 | AS33: 0.1789760505 | AT33: 0.1566040442 | AU33: 0.1342320379 | AV33: 0.1118600316 | AW33: 0.08948802526 | AX33: 0.06711601894 | AY33: 0.04474401263 | AZ33: 0.02237200631 | BA33: 6.209479129e-17
B34: 0.5265239084 | C34: =(4-_xlfn.NORM.INV(Speed,0,1))/8*COS(DirR)*(1 + 0.5*SIN(DirR*5)) -> 1.075200658 | D34: 1.053696645 | E34: 1.032192632 | F34: 1.010688619 | G34: 0.9891846057 | H34: 0.9676805926 | I34: 0.9461765794 | J34: 0.9246725662 | K34: 0.9031685531 | L34: 0.8816645399 | M34: =(4-_xlfn.NORM.INV(Speed,0,1))/8*COS(DirR)*(1 + 0.5*SIN(DirR*5)) -> 0.8601605267 | N34: 0.8386565136 | O34: 0.8171525004 | P34: 0.7956484872 | Q34: 0.774144474 | R34: 0.7526404609 | S34: 0.7311364477 | T34: 0.7096324345 | U34: 0.6881284214 | V34: 0.6666244082 | W34: =(4-_xlfn.NORM.INV(Speed,0,1))/8*COS(DirR)*(1 + 0.5*SIN(DirR*5)) -> 0.645120395 | X34: 0.6236163819 | Y34: 0.6021123687 | Z34: 0.5806083555 | AA34: 0.5591043424 | AB34: 0.5376003292 | AC34: 0.516096316 | AD34: 0.4945923029 | AE34: 0.4730882897 | AF34: 0.4515842765 | AG34: =(4-_xlfn.NORM.INV(Speed,0,1))/8*COS(DirR)*(1 + 0.5*SIN(DirR*5)) -> 0.4300802634 | AH34: 0.4085762502 | AI34: 0.387072237 | AJ34: 0.3655682239 | AK34: 0.3440642107 | AL34: 0.3225601975 | AM34: 0.3010561844 | AN34: 0.2795521712 | AO34: 0.258048158 | AP34: 0.2365441448 | AQ34: =(4-_xlfn.NORM.INV(Speed,0,1))/8*COS(DirR)*(1 + 0.5*SIN(DirR*5)) -> 0.2150401317 | AR34: 0.1935361185 | AS34: 0.1720321053 | AT34: 0.1505280922 | AU34: 0.129024079 | AV34: 0.1075200658 | AW34: 0.08601605267 | AX34: 0.0645120395 | AY34: 0.04300802634 | AZ34: 0.02150401317 | BA34: 5.968562635e-17
B35: 0.5440747054 | C35: 1.030523973 | D35: 1.009913494 | E35: 0.9893030141 | F35: 0.9686925346 | G35: 0.9480820551 | H35: 0.9274715757 | I35: 0.9068610962 | J35: 0.8862506168 | K35: 0.8656401373 | L35: 0.8450296578 | M35: 0.8244191784 | N35: 0.8038086989 | O35: 0.7831982195 | P35: 0.76258774 | Q35: 0.7419772605 | R35: 0.7213667811 | S35: 0.7007563016 | T35: 0.6801458222 | U35: 0.6595353427 | V35: 0.6389248632 | W35: 0.6183143838 | X35: 0.5977039043 | Y35: 0.5770934249 | Z35: 0.5564829454 | AA35: 0.5358724659 | AB35: 0.5152619865 | AC35: 0.494651507 | AD35: 0.4740410276 | AE35: 0.4534305481 | AF35: 0.4328200686 | AG35: 0.4122095892 | AH35: 0.3915991097 | AI35: 0.3709886303 | AJ35: 0.3503781508 | AK35: 0.3297676714 | AL35: 0.3091571919 | AM35: 0.2885467124 | AN35: 0.267936233 | AO35: 0.2473257535 | AP35: 0.2267152741 | AQ35: 0.2061047946 | AR35: 0.1854943151 | AS35: 0.1648838357 | AT35: 0.1442733562 | AU35: 0.1236628768 | AV35: 0.1030523973 | AW35: 0.08244191784 | AX35: 0.06183143838 | AY35: 0.04122095892 | AZ35: 0.02061047946 | BA35: 5.720557211e-17
B36: 0.5616255023 | C36: 0.9849105062 | D36: 0.9652122961 | E36: 0.945514086 | F36: 0.9258158759 | G36: 0.9061176657 | H36: 0.8864194556 | I36: 0.8667212455 | J36: 0.8470230354 | K36: 0.8273248252 | L36: 0.8076266151 | M36: 0.787928405 | N36: 0.7682301949 | O36: 0.7485319847 | P36: 0.7288337746 | Q36: 0.7091355645 | R36: 0.6894373544 | S36: 0.6697391442 | T36: 0.6500409341 | U36: 0.630342724 | V36: 0.6106445139 | W36: 0.5909463037 | X36: 0.5712480936 | Y36: 0.5515498835 | Z36: 0.5318516734 | AA36: 0.5121534632 | AB36: 0.4924552531 | AC36: 0.472757043 | AD36: 0.4530588329 | AE36: 0.4333606227 | AF36: 0.4136624126 | AG36: 0.3939642025 | AH36: 0.3742659924 | AI36: 0.3545677822 | AJ36: 0.3348695721 | AK36: 0.315171362 | AL36: 0.2954731519 | AM36: 0.2757749417 | AN36: 0.2560767316 | AO36: 0.2363785215 | AP36: 0.2166803114 | AQ36: 0.1969821012 | AR36: 0.1772838911 | AS36: 0.157585681 | AT36: 0.1378874709 | AU36: 0.1181892607 | AV36: 0.09849105062 | AW36: 0.0787928405 | AX36: 0.05909463037 | AY36: 0.03939642025 | AZ36: 0.01969821012 | BA36: 5.467351606e-17
B37: 0.5791762993 | C37: 0.9387018146 | D37: 0.9199277783 | E37: 0.901153742 | F37: 0.8823797057 | G37: 0.8636056694 | H37: 0.8448316331 | I37: 0.8260575968 | J37: 0.8072835605 | K37: 0.7885095242 | L37: 0.7697354879 | M37: 0.7509614517 | N37: 0.7321874154 | O37: 0.7134133791 | P37: 0.6946393428 | Q37: 0.6758653065 | R37: 0.6570912702 | S37: 0.6383172339 | T37: 0.6195431976 | U37: 0.6007691613 | V37: 0.581995125 | W37: 0.5632210887 | X37: 0.5444470524 | Y37: 0.5256730162 | Z37: 0.5068989799 | AA37: 0.4881249436 | AB37: 0.4693509073 | AC37: 0.450576871 | AD37: 0.4318028347 | AE37: 0.4130287984 | AF37: 0.3942547621 | AG37: 0.3754807258 | AH37: 0.3567066895 | AI37: 0.3379326532 | AJ37: 0.319158617 | AK37: 0.3003845807 | AL37: 0.2816105444 | AM37: 0.2628365081 | AN37: 0.2440624718 | AO37: 0.2252884355 | AP37: 0.2065143992 | AQ37: 0.1877403629 | AR37: 0.1689663266 | AS37: 0.1501922903 | AT37: 0.131418254 | AU37: 0.1126442177 | AV37: 0.09387018146 | AW37: 0.07509614517 | AX37: 0.05632210887 | AY37: 0.03754807258 | AZ37: 0.01877403629 | BA37: 5.210841839e-17
B38: 0.5967270962 | C38: 0.8922373284 | D38: 0.8743925818 | E38: 0.8565478352 | F38: 0.8387030887 | G38: 0.8208583421 | H38: 0.8030135955 | I38: 0.785168849 | J38: 0.7673241024 | K38: 0.7494793558 | L38: 0.7316346093 | M38: 0.7137898627 | N38: 0.6959451161 | O38: 0.6781003696 | P38: 0.660255623 | Q38: 0.6424108764 | R38: 0.6245661299 | S38: 0.6067213833 | T38: 0.5888766367 | U38: 0.5710318902 | V38: 0.5531871436 | W38: 0.535342397 | X38: 0.5174976505 | Y38: 0.4996529039 | Z38: 0.4818081573 | AA38: 0.4639634108 | AB38: 0.4461186642 | AC38: 0.4282739176 | AD38: 0.4104291711 | AE38: 0.3925844245 | AF38: 0.3747396779 | AG38: 0.3568949313 | AH38: 0.3390501848 | AI38: 0.3212054382 | AJ38: 0.3033606916 | AK38: 0.2855159451 | AL38: 0.2676711985 | AM38: 0.2498264519 | AN38: 0.2319817054 | AO38: 0.2141369588 | AP38: 0.1962922122 | AQ38: 0.1784474657 | AR38: 0.1606027191 | AS38: 0.1427579725 | AT38: 0.124913226 | AU38: 0.1070684794 | AV38: 0.08922373284 | AW38: 0.07137898627 | AX38: 0.0535342397 | AY38: 0.03568949313 | AZ38: 0.01784474657 | BA38: 4.952912127e-17
B39: 0.6142778932 | C39: 0.84585097 | D39: 0.8289339506 | E39: 0.8120169312 | F39: 0.7950999118 | G39: 0.7781828924 | H39: 0.761265873 | I39: 0.7443488536 | J39: 0.7274318342 | K39: 0.7105148148 | L39: 0.6935977954 | M39: 0.676680776 | N39: 0.6597637566 | O39: 0.6428467372 | P39: 0.6259297178 | Q39: 0.6090126984 | R39: 0.592095679 | S39: 0.5751786596 | T39: 0.5582616402 | U39: 0.5413446208 | V39: 0.5244276014 | W39: 0.507510582 | X39: 0.4905935626 | Y39: 0.4736765432 | Z39: 0.4567595238 | AA39: 0.4398425044 | AB39: 0.422925485 | AC39: 0.4060084656 | AD39: 0.3890914462 | AE39: 0.3721744268 | AF39: 0.3552574074 | AG39: 0.338340388 | AH39: 0.3214233686 | AI39: 0.3045063492 | AJ39: 0.2875893298 | AK39: 0.2706723104 | AL39: 0.253755291 | AM39: 0.2368382716 | AN39: 0.2199212522 | AO39: 0.2030042328 | AP39: 0.1860872134 | AQ39: 0.169170194 | AR39: 0.1522531746 | AS39: 0.1353361552 | AT39: 0.1184191358 | AU39: 0.1015021164 | AV39: 0.084585097 | AW39: 0.0676680776 | AX39: 0.0507510582 | AY39: 0.0338340388 | AZ39: 0.0169170194 | BA39: 4.695416111e-17
B40: 0.6318286901 | C40: 0.799867861 | D40: 0.7838705038 | E40: 0.7678731465 | F40: 0.7518757893 | G40: 0.7358784321 | H40: 0.7198810749 | I40: 0.7038837177 | J40: 0.6878863604 | K40: 0.6718890032 | L40: 0.655891646 | M40: 0.6398942888 | N40: 0.6238969316 | O40: 0.6078995743 | P40: 0.5919022171 | Q40: 0.5759048599 | R40: =(4-_xlfn.NORM.INV(Speed,0,1))/8*COS(DirR)*(1 + 0.5*SIN(DirR*5)) -> 0.5599075027 | S40: 0.5439101455 | T40: 0.5279127882 | U40: 0.511915431 | V40: 0.4959180738 | W40: 0.4799207166 | X40: 0.4639233594 | Y40: 0.4479260021 | Z40: 0.4319286449 | AA40: 0.4159312877 | AB40: 0.3999339305 | AC40: 0.3839365733 | AD40: 0.367939216 | AE40: 0.3519418588 | AF40: 0.3359445016 | AG40: 0.3199471444 | AH40: 0.3039497872 | AI40: 0.28795243 | AJ40: 0.2719550727 | AK40: 0.2559577155 | AL40: 0.2399603583 | AM40: 0.2239630011 | AN40: 0.2079656439 | AO40: 0.1919682866 | AP40: 0.1759709294 | AQ40: 0.1599735722 | AR40: 0.143976215 | AS40: 0.1279788578 | AT40: 0.1119815005 | AU40: 0.09598414332 | AV40: 0.0799867861 | AW40: 0.06398942888 | AX40: 0.04799207166 | AY40: 0.03199471444 | AZ40: 0.01599735722 | BA40: 4.44015858e-17
B41: 0.6493794871 | C41: 0.7546011532 | D41: 0.7395091301 | E41: 0.724417107 | F41: 0.709325084 | G41: 0.6942330609 | H41: 0.6791410378 | I41: 0.6640490148 | J41: 0.6489569917 | K41: 0.6338649687 | L41: 0.6187729456 | M41: 0.6036809225 | N41: 0.5885888995 | O41: 0.5734968764 | P41: 0.5584048533 | Q41: 0.5433128303 | R41: 0.5282208072 | S41: 0.5131287841 | T41: 0.4980367611 | U41: 0.482944738 | V41: 0.467852715 | W41: 0.4527606919 | X41: 0.4376686688 | Y41: 0.4225766458 | Z41: 0.4074846227 | AA41: 0.3923925996 | AB41: 0.3773005766 | AC41: 0.3622085535 | AD41: 0.3471165305 | AE41: 0.3320245074 | AF41: 0.3169324843 | AG41: 0.3018404613 | AH41: 0.2867484382 | AI41: 0.2716564151 | AJ41: 0.2565643921 | AK41: 0.241472369 | AL41: 0.2263803459 | AM41: 0.2112883229 | AN41: 0.1961962998 | AO41: 0.1811042768 | AP41: 0.1660122537 | AQ41: 0.1509202306 | AR41: 0.1358282076 | AS41: 0.1207361845 | AT41: 0.1056441614 | AU41: 0.09055213838 | AV41: 0.07546011532 | AW41: 0.06036809225 | AX41: 0.04527606919 | AY41: 0.03018404613 | AZ41: 0.01509202306 | BA41: 4.188877873e-17
B42: 0.666930284 | C42: 0.710349017 | D42: 0.6961420366 | E42: 0.6819350563 | F42: 0.667728076 | G42: 0.6535210956 | H42: 0.6393141153 | I42: 0.6251071349 | J42: 0.6109001546 | K42: 0.5966931743 | L42: 0.5824861939 | M42: 0.5682792136 | N42: 0.5540722332 | O42: 0.5398652529 | P42: 0.5256582726 | Q42: 0.5114512922 | R42: 0.4972443119 | S42: 0.4830373315 | T42: 0.4688303512 | U42: 0.4546233709 | V42: 0.4404163905 | W42: 0.4262094102 | X42: 0.4120024299 | Y42: 0.3977954495 | Z42: 0.3835884692 | AA42: 0.3693814888 | AB42: 0.3551745085 | AC42: 0.3409675282 | AD42: 0.3267605478 | AE42: 0.3125535675 | AF42: 0.2983465871 | AG42: 0.2841396068 | AH42: 0.2699326265 | AI42: 0.2557256461 | AJ42: 0.2415186658 | AK42: 0.2273116854 | AL42: 0.2131047051 | AM42: 0.1988977248 | AN42: 0.1846907444 | AO42: 0.1704837641 | AP42: 0.1562767837 | AQ42: 0.1420698034 | AR42: 0.1278628231 | AS42: 0.1136558427 | AT42: 0.09944886238 | AU42: 0.08524188204 | AV42: 0.0710349017 | AW42: 0.05682792136 | AX42: 0.04262094102 | AY42: 0.02841396068 | AZ42: 0.01420698034 | BA42: 3.943229171e-17
B43: 0.6844810809 | C43: 0.6673918179 | D43: 0.6540439816 | E43: 0.6406961452 | F43: 0.6273483089 | G43: 0.6140004725 | H43: 0.6006526361 | I43: 0.5873047998 | J43: 0.5739569634 | K43: 0.5606091271 | L43: 0.5472612907 | M43: 0.5339134544 | N43: 0.520565618 | O43: 0.5072177816 | P43: 0.4938699453 | Q43: 0.4805221089 | R43: 0.4671742726 | S43: 0.4538264362 | T43: 0.4404785998 | U43: 0.4271307635 | V43: 0.4137829271 | W43: 0.4004350908 | X43: 0.3870872544 | Y43: 0.373739418 | Z43: 0.3603915817 | AA43: 0.3470437453 | AB43: 0.333695909 | AC43: 0.3203480726 | AD43: 0.3070002363 | AE43: 0.2936523999 | AF43: 0.2803045635 | AG43: 0.2669567272 | AH43: 0.2536088908 | AI43: 0.2402610545 | AJ43: 0.2269132181 | AK43: 0.2135653817 | AL43: 0.2002175454 | AM43: 0.186869709 | AN43: 0.1735218727 | AO43: 0.1601740363 | AP43: 0.1468261999 | AQ43: 0.1334783636 | AR43: 0.1201305272 | AS43: 0.1067826909 | AT43: 0.09343485451 | AU43: 0.08008701815 | AV43: 0.06673918179 | AW43: 0.05339134544 | AX43: 0.04004350908 | AY43: 0.02669567272 | AZ43: 0.01334783636 | BA43: 3.704768814e-17
B44: 0.7020318779 | C44: =(4-_xlfn.NORM.INV(Speed,0,1))/8*COS(DirR)*(1 + 0.5*SIN(DirR*5)) -> 0.6259895105 | D44: 0.6134697203 | E44: 0.6009499301 | F44: 0.5884301399 | G44: 0.5759103497 | H44: 0.5633905595 | I44: 0.5508707693 | J44: 0.538350979 | K44: 0.5258311888 | L44: 0.5133113986 | M44: =(4-_xlfn.NORM.INV(Speed,0,1))/8*COS(DirR)*(1 + 0.5*SIN(DirR*5)) -> 0.5007916084 | N44: 0.4882718182 | O44: 0.475752028 | P44: 0.4632322378 | Q44: 0.4507124476 | R44: 0.4381926574 | S44: 0.4256728672 | T44: 0.4131530769 | U44: 0.4006332867 | V44: 0.3881134965 | W44: =(4-_xlfn.NORM.INV(Speed,0,1))/8*COS(DirR)*(1 + 0.5*SIN(DirR*5)) -> 0.3755937063 | X44: 0.3630739161 | Y44: 0.3505541259 | Z44: 0.3380343357 | AA44: 0.3255145455 | AB44: 0.3129947553 | AC44: 0.300474965 | AD44: 0.2879551748 | AE44: 0.2754353846 | AF44: 0.2629155944 | AG44: =(4-_xlfn.NORM.INV(Speed,0,1))/8*COS(DirR)*(1 + 0.5*SIN(DirR*5)) -> 0.2503958042 | AH44: 0.237876014 | AI44: 0.2253562238 | AJ44: 0.2128364336 | AK44: 0.2003166434 | AL44: 0.1877968532 | AM44: 0.1752770629 | AN44: 0.1627572727 | AO44: 0.1502374825 | AP44: 0.1377176923 | AQ44: =(4-_xlfn.NORM.INV(Speed,0,1))/8*COS(DirR)*(1 + 0.5*SIN(DirR*5)) -> 0.1251979021 | AR44: 0.1126781119 | AS44: 0.1001583217 | AT44: 0.08763853147 | AU44: 0.07511874126 | AV44: 0.06259895105 | AW44: 0.05007916084 | AX44: 0.03755937063 | AY44: 0.02503958042 | AZ44: 0.01251979021 | BA44: 3.474939839e-17
B45: 0.7195826748 | C45: 0.5863792761 | D45: 0.5746516906 | E45: 0.5629241051 | F45: 0.5511965195 | G45: 0.539468934 | H45: 0.5277413485 | I45: 0.516013763 | J45: 0.5042861774 | K45: 0.4925585919 | L45: 0.4808310064 | M45: 0.4691034209 | N45: 0.4573758354 | O45: 0.4456482498 | P45: 0.4339206643 | Q45: 0.4221930788 | R45: 0.4104654933 | S45: 0.3987379077 | T45: 0.3870103222 | U45: 0.3752827367 | V45: 0.3635551512 | W45: 0.3518275657 | X45: 0.3400999801 | Y45: 0.3283723946 | Z45: 0.3166448091 | AA45: 0.3049172236 | AB45: 0.293189638 | AC45: 0.2814620525 | AD45: 0.269734467 | AE45: 0.2580068815 | AF45: 0.246279296 | AG45: 0.2345517104 | AH45: 0.2228241249 | AI45: 0.2110965394 | AJ45: 0.1993689539 | AK45: 0.1876413684 | AL45: 0.1759137828 | AM45: 0.1641861973 | AN45: 0.1524586118 | AO45: 0.1407310263 | AP45: 0.1290034407 | AQ45: 0.1172758552 | AR45: 0.1055482697 | AS45: 0.09382068418 | AT45: 0.08209309865 | AU45: 0.07036551313 | AV45: 0.05863792761 | AW45: 0.04691034209 | AX45: 0.03518275657 | AY45: 0.02345517104 | AZ45: 0.01172758552 | BA45: 3.255058867e-17
B46: 0.7371334718 | C46: 0.5487734286 | D46: 0.53779796 | E46: 0.5268224914 | F46: 0.5158470229 | G46: 0.5048715543 | H46: 0.4938960857 | I46: 0.4829206171 | J46: 0.4719451486 | K46: 0.46096968 | L46: 0.4499942114 | M46: 0.4390187429 | N46: 0.4280432743 | O46: 0.4170678057 | P46: 0.4060923371 | Q46: 0.3951168686 | R46: 0.3841414 | S46: 0.3731659314 | T46: 0.3621904629 | U46: 0.3512149943 | V46: 0.3402395257 | W46: 0.3292640571 | X46: 0.3182885886 | Y46: 0.30731312 | Z46: 0.2963376514 | AA46: 0.2853621829 | AB46: 0.2743867143 | AC46: 0.2634112457 | AD46: 0.2524357771 | AE46: 0.2414603086 | AF46: 0.23048484 | AG46: 0.2195093714 | AH46: 0.2085339029 | AI46: 0.1975584343 | AJ46: 0.1865829657 | AK46: 0.1756074971 | AL46: 0.1646320286 | AM46: 0.15365656 | AN46: 0.1426810914 | AO46: 0.1317056229 | AP46: 0.1207301543 | AQ46: 0.1097546857 | AR46: 0.09877921714 | AS46: 0.08780374857 | AT46: 0.07682828 | AU46: 0.06585281143 | AV46: 0.05487734286 | AW46: 0.04390187429 | AX46: 0.03292640571 | AY46: 0.02195093714 | AZ46: 0.01097546857 | BA46: 3.046304478e-17
B47: 0.7546842687 | C47: 0.5133576085 | D47: 0.5030904563 | E47: 0.4928233042 | F47: 0.482556152 | G47: 0.4722889998 | H47: 0.4620218477 | I47: 0.4517546955 | J47: 0.4414875433 | K47: 0.4312203911 | L47: 0.420953239 | M47: 0.4106860868 | N47: 0.4004189346 | O47: 0.3901517825 | P47: 0.3798846303 | Q47: 0.3696174781 | R47: 0.359350326 | S47: 0.3490831738 | T47: 0.3388160216 | U47: 0.3285488694 | V47: 0.3182817173 | W47: 0.3080145651 | X47: 0.2977474129 | Y47: 0.2874802608 | Z47: 0.2772131086 | AA47: 0.2669459564 | AB47: 0.2566788043 | AC47: 0.2464116521 | AD47: 0.2361444999 | AE47: 0.2258773477 | AF47: 0.2156101956 | AG47: 0.2053430434 | AH47: 0.1950758912 | AI47: 0.1848087391 | AJ47: 0.1745415869 | AK47: 0.1642744347 | AL47: 0.1540072826 | AM47: 0.1437401304 | AN47: 0.1334729782 | AO47: 0.123205826 | AP47: 0.1129386739 | AQ47: 0.1026715217 | AR47: 0.09240436953 | AS47: 0.08213721736 | AT47: 0.07187006519 | AU47: 0.06160291302 | AV47: 0.05133576085 | AW47: 0.04106860868 | AX47: 0.03080145651 | AY47: 0.02053430434 | AZ47: 0.01026715217 | BA47: 2.849707184e-17
B48: 0.7722350657 | C48: 0.4802892833 | D48: 0.4706834976 | E48: 0.461077712 | F48: 0.4514719263 | G48: 0.4418661406 | H48: 0.432260355 | I48: 0.4226545693 | J48: 0.4130487836 | K48: 0.403442998 | L48: 0.3938372123 | M48: 0.3842314266 | N48: 0.374625641 | O48: 0.3650198553 | P48: 0.3554140696 | Q48: 0.345808284 | R48: 0.3362024983 | S48: 0.3265967126 | T48: 0.316990927 | U48: 0.3073851413 | V48: 0.2977793556 | W48: 0.28817357 | X48: 0.2785677843 | Y48: 0.2689619986 | Z48: 0.259356213 | AA48: 0.2497504273 | AB48: 0.2401446416 | AC48: 0.230538856 | AD48: 0.2209330703 | AE48: 0.2113272846 | AF48: 0.201721499 | AG48: 0.1921157133 | AH48: 0.1825099276 | AI48: 0.172904142 | AJ48: 0.1632983563 | AK48: 0.1536925707 | AL48: 0.144086785 | AM48: 0.1344809993 | AN48: 0.1248752137 | AO48: 0.115269428 | AP48: 0.1056636423 | AQ48: 0.09605785666 | AR48: 0.08645207099 | AS48: 0.07684628533 | AT48: 0.06724049966 | AU48: 0.05763471399 | AV48: 0.04802892833 | AW48: 0.03842314266 | AX48: 0.028817357 | AY48: 0.01921157133 | AZ48: 0.009605785666 | BA48: 2.666141104e-17
B49: 0.7897858626 | C49: 0.4496965673 | D49: 0.4407026359 | E49: 0.4317087046 | F49: 0.4227147732 | G49: 0.4137208419 | H49: 0.4047269105 | I49: 0.3957329792 | J49: 0.3867390479 | K49: 0.3777451165 | L49: 0.3687511852 | M49: 0.3597572538 | N49: 0.3507633225 | O49: 0.3417693911 | P49: 0.3327754598 | Q49: 0.3237815284 | R49: 0.3147875971 | S49: 0.3057936657 | T49: 0.2967997344 | U49: 0.2878058031 | V49: 0.2788118717 | W49: 0.2698179404 | X49: 0.260824009 | Y49: 0.2518300777 | Z49: 0.2428361463 | AA49: 0.233842215 | AB49: 0.2248482836 | AC49: 0.2158543523 | AD49: 0.2068604209 | AE49: 0.1978664896 | AF49: 0.1888725583 | AG49: 0.1798786269 | AH49: 0.1708846956 | AI49: 0.1618907642 | AJ49: 0.1528968329 | AK49: 0.1439029015 | AL49: 0.1349089702 | AM49: 0.1259150388 | AN49: 0.1169211075 | AO49: 0.1079271761 | AP49: 0.0989332448 | AQ49: 0.08993931346 | AR49: 0.08094538211 | AS49: 0.07195145076 | AT49: 0.06295751942 | AU49: 0.05396358807 | AV49: 0.04496965673 | AW49: 0.03597572538 | AX49: 0.02698179404 | AY49: 0.01798786269 | AZ49: 0.008993931346 | BA49: 2.496317415e-17
B50: 0.8073366596 | C50: 0.4216773725 | D50: 0.4132438251 | E50: 0.4048102776 | F50: 0.3963767302 | G50: 0.3879431827 | H50: 0.3795096353 | I50: 0.3710760878 | J50: 0.3626425404 | K50: 0.3542089929 | L50: 0.3457754455 | M50: 0.337341898 | N50: 0.3289083506 | O50: 0.3204748031 | P50: 0.3120412557 | Q50: 0.3036077082 | R50: 0.2951741608 | S50: 0.2867406133 | T50: 0.2783070659 | U50: 0.2698735184 | V50: 0.261439971 | W50: 0.2530064235 | X50: 0.2445728761 | Y50: 0.2361393286 | Z50: 0.2277057812 | AA50: 0.2192722337 | AB50: 0.2108386863 | AC50: 0.2024051388 | AD50: 0.1939715914 | AE50: 0.1855380439 | AF50: 0.1771044965 | AG50: 0.168670949 | AH50: 0.1602374016 | AI50: 0.1518038541 | AJ50: 0.1433703067 | AK50: 0.1349367592 | AL50: 0.1265032118 | AM50: 0.1180696643 | AN50: 0.1096361169 | AO50: 0.1012025694 | AP50: 0.09276902196 | AQ50: 0.08433547451 | AR50: 0.07590192706 | AS50: 0.06746837961 | AT50: 0.05903483216 | AU50: 0.0506012847 | AV50: 0.04216773725 | AW50: 0.0337341898 | AX50: 0.02530064235 | AY50: 0.0168670949 | AZ50: 0.008433547451 | BA50: 2.34077964e-17
B51: 0.8248874565 | C51: 0.3962988968 | D51: 0.3883729189 | E51: 0.3804469409 | F51: 0.372520963 | G51: 0.3645949851 | H51: 0.3566690071 | I51: 0.3487430292 | J51: 0.3408170513 | K51: 0.3328910733 | L51: 0.3249650954 | M51: 0.3170391175 | N51: 0.3091131395 | O51: 0.3011871616 | P51: 0.2932611836 | Q51: 0.2853352057 | R51: 0.2774092278 | S51: 0.2694832498 | T51: 0.2615572719 | U51: 0.253631294 | V51: 0.245705316 | W51: 0.2377793381 | X51: 0.2298533602 | Y51: 0.2219273822 | Z51: 0.2140014043 | AA51: 0.2060754263 | AB51: 0.1981494484 | AC51: 0.1902234705 | AD51: 0.1822974925 | AE51: 0.1743715146 | AF51: 0.1664455367 | AG51: 0.1585195587 | AH51: 0.1505935808 | AI51: 0.1426676029 | AJ51: 0.1347416249 | AK51: 0.126815647 | AL51: 0.118889669 | AM51: 0.1109636911 | AN51: 0.1030377132 | AO51: 0.09511173524 | AP51: 0.0871857573 | AQ51: 0.07925977936 | AR51: 0.07133380143 | AS51: 0.06340782349 | AT51: 0.05548184556 | AU51: 0.04755586762 | AV51: 0.03962988968 | AW51: 0.03170391175 | AX51: 0.02377793381 | AY51: 0.01585195587 | AZ51: 0.007925977936 | BA51: 2.199900799e-17
B52: 0.8424382535 | C52: 0.3735974519 | D52: 0.3661255029 | E52: 0.3586535538 | F52: 0.3511816048 | G52: 0.3437096558 | H52: 0.3362377067 | I52: 0.3287657577 | J52: 0.3212938087 | K52: 0.3138218596 | L52: 0.3063499106 | M52: 0.2988779615 | N52: 0.2914060125 | O52: 0.2839340635 | P52: 0.2764621144 | Q52: 0.2689901654 | R52: 0.2615182163 | S52: 0.2540462673 | T52: 0.2465743183 | U52: 0.2391023692 | V52: 0.2316304202 | W52: 0.2241584712 | X52: 0.2166865221 | Y52: 0.2092145731 | Z52: 0.201742624 | AA52: 0.194270675 | AB52: 0.186798726 | AC52: 0.1793267769 | AD52: 0.1718548279 | AE52: 0.1643828788 | AF52: 0.1569109298 | AG52: 0.1494389808 | AH52: 0.1419670317 | AI52: 0.1344950827 | AJ52: 0.1270231337 | AK52: 0.1195511846 | AL52: 0.1120792356 | AM52: 0.1046072865 | AN52: 0.0971353375 | AO52: 0.08966338846 | AP52: 0.08219143942 | AQ52: 0.07471949038 | AR52: 0.06724754135 | AS52: 0.05977559231 | AT52: 0.05230364327 | AU52: 0.04483169423 | AV52: 0.03735974519 | AW52: 0.02988779615 | AX52: 0.02241584712 | AY52: 0.01494389808 | AZ52: 0.007471949038 | BA52: 2.073882465e-17
B53: 0.8599890504 | C53: 0.3535786316 | D53: 0.346507059 | E53: 0.3394354864 | F53: 0.3323639137 | G53: 0.3252923411 | H53: 0.3182207685 | I53: 0.3111491958 | J53: 0.3040776232 | K53: 0.2970060506 | L53: 0.2899344779 | M53: 0.2828629053 | N53: 0.2757913327 | O53: 0.26871976 | P53: 0.2616481874 | Q53: 0.2545766148 | R53: 0.2475050421 | S53: 0.2404334695 | T53: 0.2333618969 | U53: 0.2262903242 | V53: 0.2192187516 | W53: 0.212147179 | X53: 0.2050756063 | Y53: 0.1980040337 | Z53: 0.1909324611 | AA53: 0.1838608884 | AB53: 0.1767893158 | AC53: 0.1697177432 | AD53: 0.1626461705 | AE53: 0.1555745979 | AF53: 0.1485030253 | AG53: 0.1414314527 | AH53: 0.13435988 | AI53: 0.1272883074 | AJ53: 0.1202167348 | AK53: 0.1131451621 | AL53: 0.1060735895 | AM53: 0.09900201686 | AN53: 0.09193044422 | AO53: 0.08485887159 | AP53: 0.07778729896 | AQ53: 0.07071572633 | AR53: 0.06364415369 | AS53: 0.05657258106 | AT53: 0.04950100843 | AU53: 0.0424294358 | AV53: 0.03535786316 | AW53: 0.02828629053 | AX53: 0.0212147179 | AY53: 0.01414314527 | AZ53: 0.007071572633 | BA53: 1.962755689e-17
B54: 0.8775398474 | C54: =(4-_xlfn.NORM.INV(Speed,0,1))/8*COS(DirR)*(1 + 0.5*SIN(DirR*5)) -> 0.3362178149 | D54: 0.3294934586 | E54: 0.3227691023 | F54: 0.316044746 | G54: 0.3093203897 | H54: 0.3025960334 | I54: 0.2958716771 | J54: 0.2891473208 | K54: 0.2824229645 | L54: 0.2756986082 | M54: =(4-_xlfn.NORM.INV(Speed,0,1))/8*COS(DirR)*(1 + 0.5*SIN(DirR*5)) -> 0.2689742519 | N54: 0.2622498956 | O54: 0.2555255393 | P54: 0.248801183 | Q54: 0.2420768267 | R54: 0.2353524704 | S54: 0.2286281141 | T54: 0.2219037578 | U54: 0.2151794015 | V54: 0.2084550452 | W54: =(4-_xlfn.NORM.INV(Speed,0,1))/8*COS(DirR)*(1 + 0.5*SIN(DirR*5)) -> 0.2017306889 | X54: 0.1950063326 | Y54: 0.1882819763 | Z54: 0.18155762 | AA54: 0.1748332637 | AB54: 0.1681089074 | AC54: 0.1613845511 | AD54: 0.1546601948 | AE54: 0.1479358385 | AF54: 0.1412114822 | AG54: =(4-_xlfn.NORM.INV(Speed,0,1))/8*COS(DirR)*(1 + 0.5*SIN(DirR*5)) -> 0.1344871259 | AH54: 0.1277627696 | AI54: 0.1210384133 | AJ54: 0.1143140571 | AK54: 0.1075897008 | AL54: 0.1008653445 | AM54: 0.09414098816 | AN54: 0.08741663186 | AO54: 0.08069227557 | AP54: 0.07396791927 | AQ54: =(4-_xlfn.NORM.INV(Speed,0,1))/8*COS(DirR)*(1 + 0.5*SIN(DirR*5)) -> 0.06724356297 | AR54: 0.06051920667 | AS54: 0.05379485038 | AT54: 0.04707049408 | AU54: 0.04034613778 | AV54: 0.03362178149 | AW54: 0.02689742519 | AX54: 0.02017306889 | AY54: 0.01344871259 | AZ54: 0.006724356297 | BA54: 1.866383797e-17
B55: 0.8950906443 | C55: 0.3214609957 | D55: 0.3150317758 | E55: 0.3086025559 | F55: 0.302173336 | G55: 0.295744116 | H55: 0.2893148961 | I55: 0.2828856762 | J55: 0.2764564563 | K55: 0.2700272364 | L55: 0.2635980165 | M55: 0.2571687966 | N55: 0.2507395766 | O55: 0.2443103567 | P55: 0.2378811368 | Q55: 0.2314519169 | R55: 0.225022697 | S55: 0.2185934771 | T55: 0.2121642572 | U55: 0.2057350372 | V55: 0.1993058173 | W55: 0.1928765974 | X55: 0.1864473775 | Y55: 0.1800181576 | Z55: 0.1735889377 | AA55: 0.1671597178 | AB55: 0.1607304979 | AC55: 0.1543012779 | AD55: 0.147872058 | AE55: 0.1414428381 | AF55: 0.1350136182 | AG55: 0.1285843983 | AH55: 0.1221551784 | AI55: 0.1157259585 | AJ55: 0.1092967385 | AK55: 0.1028675186 | AL55: 0.09643829871 | AM55: 0.0900090788 | AN55: 0.08357985888 | AO55: 0.07715063897 | AP55: 0.07072141905 | AQ55: 0.06429219914 | AR55: 0.05786297923 | AS55: 0.05143375931 | AT55: 0.0450045394 | AU55: 0.03857531948 | AV55: 0.03214609957 | AW55: 0.02571687966 | AX55: 0.01928765974 | AY55: 0.01285843983 | AZ55: 0.006429219914 | BA55: 1.784466995e-17
B56: 0.9126414413 | C56: 0.3092259288 | D56: 0.3030414102 | E56: 0.2968568916 | F56: 0.2906723731 | G56: 0.2844878545 | H56: 0.2783033359 | I56: 0.2721188173 | J56: 0.2659342988 | K56: 0.2597497802 | L56: 0.2535652616 | M56: 0.247380743 | N56: 0.2411962245 | O56: 0.2350117059 | P56: 0.2288271873 | Q56: 0.2226426687 | R56: 0.2164581502 | S56: 0.2102736316 | T56: 0.204089113 | U56: 0.1979045944 | V56: 0.1917200758 | W56: 0.1855355573 | X56: 0.1793510387 | Y56: 0.1731665201 | Z56: 0.1669820015 | AA56: 0.160797483 | AB56: 0.1546129644 | AC56: 0.1484284458 | AD56: 0.1422439272 | AE56: 0.1360594087 | AF56: 0.1298748901 | AG56: 0.1236903715 | AH56: 0.1175058529 | AI56: 0.1113213344 | AJ56: 0.1051368158 | AK56: 0.09895229721 | AL56: 0.09276777864 | AM56: 0.08658326006 | AN56: 0.08039874149 | AO56: 0.07421422291 | AP56: 0.06802970433 | AQ56: 0.06184518576 | AR56: 0.05566066718 | AS56: 0.04947614861 | AT56: 0.04329163003 | AU56: 0.03710711145 | AV56: 0.03092259288 | AW56: 0.0247380743 | AX56: 0.01855355573 | AY56: 0.01236903715 | AZ56: 0.006184518576 | BA56: 1.71654873e-17
B57: 0.9301922382 | C57: 0.2994035747 | D57: 0.2934155032 | E57: 0.2874274317 | F57: 0.2814393602 | G57: 0.2754512887 | H57: 0.2694632172 | I57: 0.2634751457 | J57: 0.2574870742 | K57: 0.2514990027 | L57: 0.2455109312 | M57: 0.2395228597 | N57: 0.2335347882 | O57: 0.2275467168 | P57: 0.2215586453 | Q57: 0.2155705738 | R57: 0.2095825023 | S57: 0.2035944308 | T57: 0.1976063593 | U57: 0.1916182878 | V57: 0.1856302163 | W57: 0.1796421448 | X57: 0.1736540733 | Y57: 0.1676660018 | Z57: 0.1616779303 | AA57: 0.1556898588 | AB57: 0.1497017873 | AC57: 0.1437137158 | AD57: 0.1377256444 | AE57: 0.1317375729 | AF57: 0.1257495014 | AG57: 0.1197614299 | AH57: 0.1137733584 | AI57: 0.1077852869 | AJ57: 0.1017972154 | AK57: 0.0958091439 | AL57: 0.0898210724 | AM57: 0.08383300091 | AN57: 0.07784492942 | AO57: 0.07185685792 | AP57: 0.06586878643 | AQ57: 0.05988071493 | AR57: 0.05389264344 | AS57: 0.04790457195 | AT57: 0.04191650045 | AU57: 0.03592842896 | AV57: 0.02994035747 | AW57: 0.02395228597 | AX57: 0.01796421448 | AY57: 0.01197614299 | AZ57: 0.005988071493 | BA57: 1.662023711e-17
B58: 0.9477430352 | C58: 0.2918598269 | D58: 0.2860226303 | E58: 0.2801854338 | F58: 0.2743482372 | G58: 0.2685110407 | H58: 0.2626738442 | I58: 0.2568366476 | J58: 0.2509994511 | K58: 0.2451622546 | L58: 0.239325058 | M58: 0.2334878615 | N58: 0.2276506649 | O58: 0.2218134684 | P58: 0.2159762719 | Q58: 0.2101390753 | R58: 0.2043018788 | S58: 0.1984646823 | T58: 0.1926274857 | U58: 0.1867902892 | V58: 0.1809530926 | W58: 0.1751158961 | X58: 0.1692786996 | Y58: 0.163441503 | Z58: 0.1576043065 | AA58: 0.15176711 | AB58: 0.1459299134 | AC58: 0.1400927169 | AD58: 0.1342555204 | AE58: 0.1284183238 | AF58: 0.1225811273 | AG58: 0.1167439307 | AH58: 0.1109067342 | AI58: 0.1050695377 | AJ58: 0.09923234113 | AK58: 0.09339514459 | AL58: 0.08755794806 | AM58: 0.08172075152 | AN58: 0.07588355498 | AO58: 0.07004635845 | AP58: 0.06420916191 | AQ58: 0.05837196537 | AR58: 0.05253476883 | AS58: 0.0466975723 | AT58: 0.04086037576 | AU58: 0.03502317922 | AV58: 0.02918598269 | AW58: 0.02334878615 | AX58: 0.01751158961 | AY58: 0.01167439307 | AZ58: 0.005837196537 | BA58: 1.620147499e-17
B59: 0.9652938321 | C59: 0.2864374989 | D59: 0.280708749 | E59: 0.274979999 | F59: 0.269251249 | G59: 0.263522499 | H59: 0.2577937491 | I59: 0.2520649991 | J59: 0.2463362491 | K59: 0.2406074991 | L59: 0.2348787491 | M59: 0.2291499992 | N59: 0.2234212492 | O59: 0.2176924992 | P59: 0.2119637492 | Q59: 0.2062349992 | R59: 0.2005062493 | S59: 0.1947774993 | T59: 0.1890487493 | U59: 0.1833199993 | V59: 0.1775912493 | W59: 0.1718624994 | X59: 0.1661337494 | Y59: 0.1604049994 | Z59: 0.1546762494 | AA59: 0.1489474995 | AB59: 0.1432187495 | AC59: 0.1374899995 | AD59: 0.1317612495 | AE59: 0.1260324995 | AF59: 0.1203037496 | AG59: 0.1145749996 | AH59: 0.1088462496 | AI59: 0.1031174996 | AJ59: 0.09738874964 | AK59: 0.09165999966 | AL59: 0.08593124968 | AM59: 0.08020249971 | AN59: 0.07447374973 | AO59: 0.06874499975 | AP59: 0.06301624977 | AQ59: 0.05728749979 | AR59: 0.05155874981 | AS59: 0.04582999983 | AT59: 0.04010124985 | AU59: 0.03437249987 | AV59: 0.02864374989 | AW59: 0.02291499992 | AX59: 0.01718624994 | AY59: 0.01145749996 | AZ59: 0.005728749979 | BA59: 1.590047532e-17
B60: 0.9828446291 | C60: 0.2829585477 | D60: 0.2772993768 | E60: 0.2716402058 | F60: 0.2659810349 | G60: 0.2603218639 | H60: 0.254662693 | I60: 0.249003522 | J60: 0.2433443511 | K60: 0.2376851801 | L60: 0.2320260092 | M60: 0.2263668382 | N60: 0.2207076672 | O60: 0.2150484963 | P60: 0.2093893253 | Q60: 0.2037301544 | R60: 0.1980709834 | S60: 0.1924118125 | T60: 0.1867526415 | U60: 0.1810934706 | V60: 0.1754342996 | W60: 0.1697751286 | X60: 0.1641159577 | Y60: 0.1584567867 | Z60: 0.1527976158 | AA60: 0.1471384448 | AB60: 0.1414792739 | AC60: 0.1358201029 | AD60: 0.130160932 | AE60: 0.124501761 | AF60: 0.1188425901 | AG60: 0.1131834191 | AH60: 0.1075242481 | AI60: 0.1018650772 | AJ60: 0.09620590623 | AK60: 0.09054673528 | AL60: 0.08488756432 | AM60: 0.07922839337 | AN60: 0.07356922241 | AO60: 0.06791005146 | AP60: 0.0622508805 | AQ60: 0.05659170955 | AR60: 0.05093253859 | AS60: 0.04527336764 | AT60: 0.03961419668 | AU60: 0.03395502573 | AV60: 0.02829585477 | AW60: 0.02263668382 | AX60: 0.01697751286 | AY60: 0.01131834191 | AZ60: 0.005659170955 | BA60: 1.570735474e-17
B61: 1.000395426 | C61: 0.2812265054 | D61: 0.2756019753 | E61: 0.2699774451 | F61: 0.264352915 | G61: 0.2587283849 | H61: 0.2531038548 | I61: 0.2474793247 | J61: 0.2418547946 | K61: 0.2362302645 | L61: 0.2306057344 | M61: 0.2249812043 | N61: 0.2193566742 | O61: 0.2137321441 | P61: 0.208107614 | Q61: 0.2024830839 | R61: 0.1968585538 | S61: 0.1912340236 | T61: 0.1856094935 | U61: 0.1799849634 | V61: 0.1743604333 | W61: 0.1687359032 | X61: 0.1631113731 | Y61: 0.157486843 | Z61: 0.1518623129 | AA61: 0.1462377828 | AB61: 0.1406132527 | AC61: 0.1349887226 | AD61: 0.1293641925 | AE61: 0.1237396624 | AF61: 0.1181151323 | AG61: 0.1124906021 | AH61: 0.106866072 | AI61: 0.1012415419 | AJ61: 0.09561701182 | AK61: 0.08999248172 | AL61: 0.08436795161 | AM61: 0.0787434215 | AN61: 0.07311889139 | AO61: 0.06749436129 | AP61: 0.06186983118 | AQ61: 0.05624530107 | AR61: 0.05062077097 | AS61: 0.04499624086 | AT61: 0.03937171075 | AU61: 0.03374718064 | AV61: 0.02812265054 | AW61: 0.02249812043 | AX61: 0.01687359032 | AY61: 0.01124906021 | AZ61: 0.005624530107 | BA61: 1.561120707e-17
B62: 1.017946223 | C62: 0.2810290915 | D62: 0.2754085096 | E62: 0.2697879278 | F62: 0.264167346 | G62: 0.2585467641 | H62: 0.2529261823 | I62: 0.2473056005 | J62: 0.2416850187 | K62: 0.2360644368 | L62: 0.230443855 | M62: 0.2248232732 | N62: 0.2192026913 | O62: 0.2135821095 | P62: 0.2079615277 | Q62: 0.2023409458 | R62: 0.196720364 | S62: 0.1910997822 | T62: 0.1854792004 | U62: 0.1798586185 | V62: 0.1742380367 | W62: 0.1686174549 | X62: 0.162996873 | Y62: 0.1573762912 | Z62: 0.1517557094 | AA62: 0.1461351276 | AB62: 0.1405145457 | AC62: 0.1348939639 | AD62: 0.1292733821 | AE62: 0.1236528002 | AF62: 0.1180322184 | AG62: 0.1124116366 | AH62: 0.1067910548 | AI62: 0.1011704729 | AJ62: 0.0955498911 | AK62: 0.08992930927 | AL62: 0.08430872744 | AM62: 0.07868814561 | AN62: 0.07306756378 | AO62: 0.06744698195 | AP62: 0.06182640012 | AQ62: 0.05620581829 | AR62: 0.05058523646 | AS62: 0.04496465463 | AT62: 0.0393440728 | AU62: 0.03372349097 | AV62: 0.02810290915 | AW62: 0.02248232732 | AX62: 0.01686174549 | AY62: 0.01124116366 | AZ62: 0.005620581829 | BA62: 1.56002484e-17
B63: 1.03549702 | C63: 0.2821409748 | D63: 0.2764981553 | E63: 0.2708553358 | F63: 0.2652125163 | G63: 0.2595696968 | H63: 0.2539268773 | I63: 0.2482840578 | J63: 0.2426412383 | K63: 0.2369984188 | L63: 0.2313555993 | M63: 0.2257127798 | N63: 0.2200699603 | O63: 0.2144271408 | P63: 0.2087843213 | Q63: 0.2031415018 | R63: 0.1974986823 | S63: 0.1918558628 | T63: 0.1862130433 | U63: 0.1805702238 | V63: 0.1749274043 | W63: 0.1692845849 | X63: 0.1636417654 | Y63: 0.1579989459 | Z63: 0.1523561264 | AA63: 0.1467133069 | AB63: 0.1410704874 | AC63: 0.1354276679 | AD63: 0.1297848484 | AE63: 0.1241420289 | AF63: 0.1184992094 | AG63: 0.1128563899 | AH63: 0.1072135704 | AI63: 0.1015707509 | AJ63: 0.09592793142 | AK63: 0.09028511192 | AL63: 0.08464229243 | AM63: 0.07899947293 | AN63: 0.07335665344 | AO63: 0.06771383394 | AP63: 0.06207101445 | AQ63: 0.05642819495 | AR63: 0.05078537546 | AS63: 0.04514255596 | AT63: 0.03949973647 | AU63: 0.03385691697 | AV63: 0.02821409748 | AW63: 0.02257127798 | AX63: 0.01692845849 | AY63: 0.01128563899 | AZ63: 0.005642819495 | BA63: 1.566197032e-17
B64: 1.053047817 | C64: =(4-_xlfn.NORM.INV(Speed,0,1))/8*COS(DirR)*(1 + 0.5*SIN(DirR*5)) -> 0.2843266514 | D64: 0.2786401183 | E64: 0.2729535853 | F64: 0.2672670523 | G64: 0.2615805192 | H64: 0.2558939862 | I64: 0.2502074532 | J64: 0.2445209202 | K64: 0.2388343871 | L64: 0.2331478541 | M64: =(4-_xlfn.NORM.INV(Speed,0,1))/8*COS(DirR)*(1 + 0.5*SIN(DirR*5)) -> 0.2274613211 | N64: 0.2217747881 | O64: 0.216088255 | P64: 0.210401722 | Q64: 0.204715189 | R64: 0.199028656 | S64: 0.1933421229 | T64: 0.1876555899 | U64: 0.1819690569 | V64: 0.1762825238 | W64: =(4-_xlfn.NORM.INV(Speed,0,1))/8*COS(DirR)*(1 + 0.5*SIN(DirR*5)) -> 0.1705959908 | X64: 0.1649094578 | Y64: 0.1592229248 | Z64: 0.1535363917 | AA64: 0.1478498587 | AB64: 0.1421633257 | AC64: 0.1364767927 | AD64: 0.1307902596 | AE64: 0.1251037266 | AF64: 0.1194171936 | AG64: =(4-_xlfn.NORM.INV(Speed,0,1))/8*COS(DirR)*(1 + 0.5*SIN(DirR*5)) -> 0.1137306605 | AH64: 0.1080441275 | AI64: 0.1023575945 | AJ64: 0.09667106146 | AK64: 0.09098452843 | AL64: 0.08529799541 | AM64: 0.07961146238 | AN64: 0.07392492935 | AO64: 0.06823839633 | AP64: 0.0625518633 | AQ64: =(4-_xlfn.NORM.INV(Speed,0,1))/8*COS(DirR)*(1 + 0.5*SIN(DirR*5)) -> 0.05686533027 | AR64: 0.05117879724 | AS64: 0.04549226422 | AT64: 0.03980573119 | AU64: 0.03411919816 | AV64: 0.02843266514 | AW64: 0.02274613211 | AX64: 0.01705959908 | AY64: 0.01137306605 | AZ64: 0.005686533027 | BA64: 1.578329974e-17
B65: 1.070598614 | C65: 0.2873434064 | D65: 0.2815965383 | E65: 0.2758496702 | F65: 0.270102802 | G65: 0.2643559339 | H65: 0.2586090658 | I65: 0.2528621976 | J65: 0.2471153295 | K65: 0.2413684614 | L65: 0.2356215933 | M65: 0.2298747251 | N65: 0.224127857 | O65: 0.2183809889 | P65: 0.2126341207 | Q65: 0.2068872526 | R65: 0.2011403845 | S65: 0.1953935164 | T65: 0.1896466482 | U65: 0.1838997801 | V65: 0.178152912 | W65: 0.1724060438 | X65: 0.1666591757 | Y65: 0.1609123076 | Z65: 0.1551654395 | AA65: 0.1494185713 | AB65: 0.1436717032 | AC65: 0.1379248351 | AD65: 0.1321779669 | AE65: 0.1264310988 | AF65: 0.1206842307 | AG65: 0.1149373626 | AH65: 0.1091904944 | AI65: 0.1034436263 | AJ65: 0.09769675818 | AK65: 0.09194989005 | AL65: 0.08620302192 | AM65: 0.08045615379 | AN65: 0.07470928567 | AO65: 0.06896241754 | AP65: 0.06321554941 | AQ65: 0.05746868128 | AR65: 0.05172181315 | AS65: 0.04597494503 | AT65: 0.0402280769 | AU65: 0.03448120877 | AV65: 0.02873434064 | AW65: 0.02298747251 | AX65: 0.01724060438 | AY65: 0.01149373626 | AZ65: 0.005746868128 | BA65: 1.595076329e-17
B66: 1.088149411 | C66: 0.2909443247 | D66: 0.2851254382 | E66: 0.2793065517 | F66: 0.2734876652 | G66: 0.2676687787 | H66: 0.2618498922 | I66: 0.2560310057 | J66: 0.2502121193 | K66: 0.2443932328 | L66: 0.2385743463 | M66: 0.2327554598 | N66: 0.2269365733 | O66: 0.2211176868 | P66: 0.2152988003 | Q66: 0.2094799138 | R66: 0.2036610273 | S66: 0.1978421408 | T66: 0.1920232543 | U66: 0.1862043678 | V66: 0.1803854813 | W66: 0.1745665948 | X66: 0.1687477083 | Y66: 0.1629288218 | Z66: 0.1571099353 | AA66: 0.1512910489 | AB66: 0.1454721624 | AC66: 0.1396532759 | AD66: 0.1338343894 | AE66: 0.1280155029 | AF66: 0.1221966164 | AG66: 0.1163777299 | AH66: 0.1105588434 | AI66: 0.1047399569 | AJ66: 0.0989210704 | AK66: 0.09310218391 | AL66: 0.08728329741 | AM66: 0.08146441092 | AN66: 0.07564552443 | AO66: 0.06982663793 | AP66: 0.06400775144 | AQ66: 0.05818886494 | AR66: 0.05236997845 | AS66: 0.04655109195 | AT66: 0.04073220546 | AU66: 0.03491331897 | AV66: 0.02909443247 | AW66: 0.02327554598 | AX66: 0.01745665948 | AY66: 0.01163777299 | AZ66: 0.005818886494 | BA66: 1.615065441e-17
B67: 1.105700208 | C67: 0.2948813157 | D67: 0.2889836894 | E67: 0.2830860631 | F67: 0.2771884367 | G67: 0.2712908104 | H67: 0.2653931841 | I67: 0.2594955578 | J67: 0.2535979315 | K67: 0.2477003052 | L67: 0.2418026789 | M67: 0.2359050525 | N67: 0.2300074262 | O67: 0.2241097999 | P67: 0.2182121736 | Q67: 0.2123145473 | R67: 0.206416921 | S67: 0.2005192947 | T67: 0.1946216683 | U67: 0.188724042 | V67: 0.1828264157 | W67: 0.1769287894 | X67: 0.1710311631 | Y67: 0.1651335368 | Z67: 0.1592359105 | AA67: 0.1533382842 | AB67: 0.1474406578 | AC67: 0.1415430315 | AD67: 0.1356454052 | AE67: 0.1297477789 | AF67: 0.1238501526 | AG67: 0.1179525263 | AH67: 0.1120549 | AI67: 0.1061572736 | AJ67: 0.1002596473 | AK67: 0.09436202102 | AL67: 0.0884643947 | AM67: 0.08256676839 | AN67: 0.07666914208 | AO67: 0.07077151576 | AP67: 0.06487388945 | AQ67: 0.05897626314 | AR67: 0.05307863682 | AS67: 0.04718101051 | AT67: 0.04128338419 | AU67: 0.03538575788 | AV67: 0.02948813157 | AW67: 0.02359050525 | AX67: 0.01769287894 | AY67: 0.01179525263 | AZ67: 0.005897626314 | BA67: 1.636920131e-17
B68: 1.123251005 | C68: 0.2989081178 | D68: 0.2929299554 | E68: 0.2869517931 | F68: 0.2809736307 | G68: 0.2749954684 | H68: 0.269017306 | I68: 0.2630391437 | J68: 0.2570609813 | K68: 0.2510828189 | L68: 0.2451046566 | M68: 0.2391264942 | N68: 0.2331483319 | O68: 0.2271701695 | P68: 0.2211920072 | Q68: 0.2152138448 | R68: 0.2092356825 | S68: 0.2032575201 | T68: 0.1972793577 | U68: 0.1913011954 | V68: 0.185323033 | W68: 0.1793448707 | X68: 0.1733667083 | Y68: 0.167388546 | Z68: 0.1614103836 | AA68: 0.1554322213 | AB68: 0.1494540589 | AC68: 0.1434758965 | AD68: 0.1374977342 | AE68: 0.1315195718 | AF68: 0.1255414095 | AG68: 0.1195632471 | AH68: 0.1135850848 | AI68: 0.1076069224 | AJ68: 0.1016287601 | AK68: 0.09565059769 | AL68: 0.08967243534 | AM68: 0.08369427298 | AN68: 0.07771611063 | AO68: 0.07173794827 | AP68: 0.06575978591 | AQ68: 0.05978162356 | AR68: 0.0538034612 | AS68: 0.04782529885 | AT68: 0.04184713649 | AU68: 0.03586897414 | AV68: 0.02989081178 | AW68: 0.02391264942 | AX68: 0.01793448707 | AY68: 0.01195632471 | AZ68: 0.005978162356 | BA68: 1.659273373e-17
B69: 1.140801802 | C69: 0.3027832484 | D69: 0.2967275835 | E69: 0.2906719185 | F69: 0.2846162535 | G69: 0.2785605886 | H69: 0.2725049236 | I69: 0.2664492586 | J69: 0.2603935936 | K69: 0.2543379287 | L69: 0.2482822637 | M69: 0.2422265987 | N69: 0.2361709338 | O69: 0.2301152688 | P69: 0.2240596038 | Q69: 0.2180039389 | R69: 0.2119482739 | S69: 0.2058926089 | T69: 0.199836944 | U69: 0.193781279 | V69: 0.187725614 | W69: 0.1816699491 | X69: 0.1756142841 | Y69: 0.1695586191 | Z69: 0.1635029542 | AA69: 0.1574472892 | AB69: 0.1513916242 | AC69: 0.1453359592 | AD69: 0.1392802943 | AE69: 0.1332246293 | AF69: 0.1271689643 | AG69: 0.1211132994 | AH69: 0.1150576344 | AI69: 0.1090019694 | AJ69: 0.1029463045 | AK69: 0.0968906395 | AL69: 0.09083497453 | AM69: 0.08477930956 | AN69: 0.07872364459 | AO69: 0.07266797962 | AP69: 0.06661231465 | AQ69: 0.06055664969 | AR69: 0.05450098472 | AS69: 0.04844531975 | AT69: 0.04238965478 | AU69: 0.03633398981 | AV69: 0.03027832484 | AW69: 0.02422265987 | AX69: 0.01816699491 | AY69: 0.01211132994 | AZ69: 0.006055664969 | BA69: 1.680784669e-17
B70: 1.158352599 | C70: 0.3062728653 | D70: 0.300147408 | E70: 0.2940219507 | F70: 0.2878964934 | G70: 0.2817710361 | H70: 0.2756455788 | I70: 0.2695201215 | J70: 0.2633946642 | K70: 0.2572692069 | L70: 0.2511437496 | M70: 0.2450182923 | N70: 0.238892835 | O70: 0.2327673776 | P70: 0.2266419203 | Q70: 0.220516463 | R70: 0.2143910057 | S70: 0.2082655484 | T70: 0.2021400911 | U70: 0.1960146338 | V70: 0.1898891765 | W70: 0.1837637192 | X70: 0.1776382619 | Y70: 0.1715128046 | Z70: 0.1653873473 | AA70: 0.15926189 | AB70: 0.1531364327 | AC70: 0.1470109754 | AD70: 0.140885518 | AE70: 0.1347600607 | AF70: 0.1286346034 | AG70: 0.1225091461 | AH70: 0.1163836888 | AI70: 0.1102582315 | AJ70: 0.1041327742 | AK70: 0.0980073169 | AL70: 0.0918818596 | AM70: 0.08575640229 | AN70: 0.07963094498 | AO70: 0.07350548768 | AP70: 0.06738003037 | AQ70: 0.06125457306 | AR70: 0.05512911576 | AS70: 0.04900365845 | AT70: 0.04287820115 | AU70: 0.03675274384 | AV70: 0.03062728653 | AW70: 0.02450182923 | AX70: 0.01837637192 | AY70: 0.01225091461 | AZ70: 0.006125457306 | BA70: 1.700155935e-17
B71: 1.175903395 | C71: 0.3091535075 | D71: 0.3029704373 | E71: 0.2967873672 | F71: 0.290604297 | G71: 0.2844212269 | H71: 0.2782381567 | I71: 0.2720550866 | J71: 0.2658720164 | K71: 0.2596889463 | L71: 0.2535058761 | M71: 0.247322806 | N71: 0.2411397358 | O71: 0.2349566657 | P71: 0.2287735955 | Q71: 0.2225905254 | R71: 0.2164074552 | S71: 0.2102243851 | T71: 0.2040413149 | U71: 0.1978582448 | V71: 0.1916751746 | W71: 0.1854921045 | X71: 0.1793090343 | Y71: 0.1731259642 | Z71: 0.166942894 | AA71: 0.1607598239 | AB71: 0.1545767537 | AC71: 0.1483936836 | AD71: 0.1422106134 | AE71: 0.1360275433 | AF71: 0.1298444731 | AG71: 0.123661403 | AH71: 0.1174783328 | AI71: 0.1112952627 | AJ71: 0.1051121925 | AK71: 0.09892912239 | AL71: 0.09274605224 | AM71: 0.08656298209 | AN71: 0.08037991194 | AO71: 0.07419684179 | AP71: 0.06801377164 | AQ71: 0.06183070149 | AR71: 0.05564763134 | AS71: 0.0494645612 | AT71: 0.04328149105 | AU71: 0.0370984209 | AV71: 0.03091535075 | AW71: 0.0247322806 | AX71: 0.01854921045 | AY71: 0.0123661403 | AZ71: 0.006183070149 | BA71: 1.716146711e-17
B72: 1.193454192 | C72: 0.3112146845 | D72: 0.3049903908 | E72: 0.2987660971 | F72: 0.2925418034 | G72: 0.2863175097 | H72: 0.280093216 | I72: 0.2738689223 | J72: 0.2676446287 | K72: 0.261420335 | L72: 0.2551960413 | M72: 0.2489717476 | N72: 0.2427474539 | O72: 0.2365231602 | P72: 0.2302988665 | Q72: 0.2240745728 | R72: 0.2178502791 | S72: 0.2116259855 | T72: 0.2054016918 | U72: 0.1991773981 | V72: 0.1929531044 | W72: 0.1867288107 | X72: 0.180504517 | Y72: 0.1742802233 | Z72: 0.1680559296 | AA72: 0.1618316359 | AB72: 0.1556073422 | AC72: 0.1493830486 | AD72: 0.1431587549 | AE72: 0.1369344612 | AF72: 0.1307101675 | AG72: 0.1244858738 | AH72: 0.1182615801 | AI72: 0.1120372864 | AJ72: 0.1058129927 | AK72: 0.09958869904 | AL72: 0.09336440535 | AM72: 0.08714011166 | AN72: 0.08091581797 | AO72: 0.07469152428 | AP72: 0.06846723059 | AQ72: 0.0622429369 | AR72: 0.05601864321 | AS72: 0.04979434952 | AT72: 0.04357005583 | AU72: 0.03734576214 | AV72: 0.03112146845 | AW72: 0.02489717476 | AX72: 0.01867288107 | AY72: 0.01244858738 | AZ72: 0.00622429369 | BA72: 1.727588542e-17
B73: 1.211004989 | C73: 0.3122612855 | D73: 0.3060160598 | E73: 0.2997708341 | F73: 0.2935256083 | G73: 0.2872803826 | H73: 0.2810351569 | I73: 0.2747899312 | J73: 0.2685447055 | K73: 0.2622994798 | L73: 0.2560542541 | M73: 0.2498090284 | N73: 0.2435638027 | O73: 0.237318577 | P73: 0.2310733513 | Q73: 0.2248281255 | R73: 0.2185828998 | S73: 0.2123376741 | T73: 0.2060924484 | U73: 0.1998472227 | V73: 0.193601997 | W73: 0.1873567713 | X73: 0.1811115456 | Y73: 0.1748663199 | Z73: 0.1686210942 | AA73: 0.1623758684 | AB73: 0.1561306427 | AC73: 0.149885417 | AD73: 0.1436401913 | AE73: 0.1373949656 | AF73: 0.1311497399 | AG73: 0.1249045142 | AH73: 0.1186592885 | AI73: 0.1124140628 | AJ73: 0.1061688371 | AK73: 0.09992361135 | AL73: 0.09367838564 | AM73: 0.08743315993 | AN73: 0.08118793422 | AO73: 0.07494270851 | AP73: 0.0686974828 | AQ73: 0.0624522571 | AR73: 0.05620703139 | AS73: 0.04996180568 | AT73: 0.04371657997 | AU73: 0.03747135426 | AV73: 0.03122612855 | AW73: 0.02498090284 | AX73: 0.01873567713 | AY73: 0.01249045142 | AZ73: 0.00624522571 | BA73: 1.733398344e-17
B74: 1.228555786 | C74: =(4-_xlfn.NORM.INV(Speed,0,1))/8*COS(DirR)*(1 + 0.5*SIN(DirR*5)) -> 0.3121157806 | D74: 0.305873465 | E74: 0.2996311494 | F74: 0.2933888337 | G74: 0.2871465181 | H74: 0.2809042025 | I74: 0.2746618869 | J74: 0.2684195713 | K74: 0.2621772557 | L74: 0.2559349401 | M74: =(4-_xlfn.NORM.INV(Speed,0,1))/8*COS(DirR)*(1 + 0.5*SIN(DirR*5)) -> 0.2496926245 | N74: 0.2434503089 | O74: 0.2372079932 | P74: 0.2309656776 | Q74: 0.224723362 | R74: 0.2184810464 | S74: 0.2122387308 | T74: 0.2059964152 | U74: 0.1997540996 | V74: 0.193511784 | W74: =(4-_xlfn.NORM.INV(Speed,0,1))/8*COS(DirR)*(1 + 0.5*SIN(DirR*5)) -> 0.1872694683 | X74: 0.1810271527 | Y74: 0.1747848371 | Z74: 0.1685425215 | AA74: 0.1623002059 | AB74: 0.1560578903 | AC74: 0.1498155747 | AD74: 0.1435732591 | AE74: 0.1373309435 | AF74: 0.1310886278 | AG74: =(4-_xlfn.NORM.INV(Speed,0,1))/8*COS(DirR)*(1 + 0.5*SIN(DirR*5)) -> 0.1248463122 | AH74: 0.1186039966 | AI74: 0.112361681 | AJ74: 0.1061193654 | AK74: 0.09987704978 | AL74: 0.09363473417 | AM74: 0.08739241856 | AN74: 0.08115010295 | AO74: 0.07490778734 | AP74: 0.06866547173 | AQ74: =(4-_xlfn.NORM.INV(Speed,0,1))/8*COS(DirR)*(1 + 0.5*SIN(DirR*5)) -> 0.06242315612 | AR74: 0.0561808405 | AS74: 0.04993852489 | AT74: 0.04369620928 | AU74: 0.03745389367 | AV74: 0.03121157806 | AW74: 0.02496926245 | AX74: 0.01872694683 | AY74: 0.01248463122 | AZ74: 0.006242315612 | BA74: 1.73259063e-17
B75: 1.246106583 | C75: 0.3106201908 | D75: 0.304407787 | E75: 0.2981953832 | F75: 0.2919829794 | G75: 0.2857705756 | H75: 0.2795581718 | I75: 0.2733457679 | J75: 0.2671333641 | K75: 0.2609209603 | L75: 0.2547085565 | M75: 0.2484961527 | N75: 0.2422837489 | O75: 0.236071345 | P75: 0.2298589412 | Q75: 0.2236465374 | R75: 0.2174341336 | S75: 0.2112217298 | T75: 0.205009326 | U75: 0.1987969221 | V75: 0.1925845183 | W75: 0.1863721145 | X75: 0.1801597107 | Y75: 0.1739473069 | Z75: 0.1677349031 | AA75: 0.1615224992 | AB75: 0.1553100954 | AC75: 0.1490976916 | AD75: 0.1428852878 | AE75: 0.136672884 | AF75: 0.1304604802 | AG75: 0.1242480763 | AH75: 0.1180356725 | AI75: 0.1118232687 | AJ75: 0.1056108649 | AK75: 0.09939846107 | AL75: 0.09318605725 | AM75: 0.08697365344 | AN75: 0.08076124962 | AO75: 0.0745488458 | AP75: 0.06833644199 | AQ75: 0.06212403817 | AR75: 0.05591163435 | AS75: 0.04969923054 | AT75: 0.04348682672 | AU75: 0.0372744229 | AV75: 0.03106201908 | AW75: 0.02484961527 | AX75: 0.01863721145 | AY75: 0.01242480763 | AZ75: 0.006212403817 | BA75: 1.724288439e-17
B76: 1.26365738 | C76: 0.3076378049 | D76: 0.3014850488 | E76: 0.2953322927 | F76: 0.2891795366 | G76: 0.2830267805 | H76: 0.2768740244 | I76: 0.2707212683 | J76: 0.2645685122 | K76: 0.2584157561 | L76: 0.252263 | M76: 0.2461102439 | N76: 0.2399574878 | O76: 0.2338047317 | P76: 0.2276519756 | Q76: 0.2214992195 | R76: 0.2153464634 | S76: 0.2091937073 | T76: 0.2030409512 | U76: 0.1968881951 | V76: 0.190735439 | W76: 0.1845826829 | X76: 0.1784299268 | Y76: 0.1722771707 | Z76: 0.1661244146 | AA76: 0.1599716585 | AB76: 0.1538189025 | AC76: 0.1476661464 | AD76: 0.1415133903 | AE76: 0.1353606342 | AF76: 0.1292078781 | AG76: 0.123055122 | AH76: 0.1169023659 | AI76: 0.1107496098 | AJ76: 0.1045968537 | AK76: 0.09844409757 | AL76: 0.09229134147 | AM76: 0.08613858537 | AN76: 0.07998582927 | AO76: 0.07383307318 | AP76: 0.06768031708 | AQ76: 0.06152756098 | AR76: 0.05537480488 | AS76: 0.04922204878 | AT76: 0.04306929269 | AU76: 0.03691653659 | AV76: 0.03076378049 | AW76: 0.02461102439 | AX76: 0.01845826829 | AY76: 0.0123055122 | AZ76: 0.006152756098 | BA76: 1.707732871e-17
B77: 1.281208177 | C77: 0.3030546237 | D77: 0.2969935312 | E77: 0.2909324387 | F77: 0.2848713463 | G77: 0.2788102538 | H77: 0.2727491613 | I77: 0.2666880688 | J77: 0.2606269764 | K77: 0.2545658839 | L77: 0.2485047914 | M77: 0.242443699 | N77: 0.2363826065 | O77: 0.230321514 | P77: 0.2242604215 | Q77: 0.2181993291 | R77: 0.2121382366 | S77: 0.2060771441 | T77: 0.2000160516 | U77: 0.1939549592 | V77: 0.1878938667 | W77: 0.1818327742 | X77: 0.1757716817 | Y77: 0.1697105893 | Z77: 0.1636494968 | AA77: 0.1575884043 | AB77: 0.1515273118 | AC77: 0.1454662194 | AD77: 0.1394051269 | AE77: 0.1333440344 | AF77: 0.127282942 | AG77: 0.1212218495 | AH77: 0.115160757 | AI77: 0.1090996645 | AJ77: 0.1030385721 | AK77: 0.09697747958 | AL77: 0.09091638711 | AM77: 0.08485529463 | AN77: 0.07879420216 | AO77: 0.07273310969 | AP77: 0.06667201721 | AQ77: 0.06061092474 | AR77: 0.05454983226 | AS77: 0.04848873979 | AT77: 0.04242764732 | AU77: 0.03636655484 | AV77: 0.03030546237 | AW77: 0.0242443699 | AX77: 0.01818327742 | AY77: 0.01212218495 | AZ77: 0.006061092474 | BA77: 1.682291105e-17
B78: 1.298758974 | C78: 0.296780518 | D78: 0.2908449077 | E78: 0.2849092973 | F78: 0.278973687 | G78: 0.2730380766 | H78: 0.2671024662 | I78: 0.2611668559 | J78: 0.2552312455 | K78: 0.2492956352 | L78: 0.2433600248 | M78: 0.2374244144 | N78: 0.2314888041 | O78: 0.2255531937 | P78: 0.2196175834 | Q78: 0.213681973 | R78: 0.2077463626 | S78: 0.2018107523 | T78: 0.1958751419 | U78: 0.1899395315 | V78: 0.1840039212 | W78: 0.1780683108 | X78: 0.1721327005 | Y78: 0.1661970901 | Z78: 0.1602614797 | AA78: 0.1543258694 | AB78: 0.148390259 | AC78: 0.1424546487 | AD78: 0.1365190383 | AE78: 0.1305834279 | AF78: 0.1246478176 | AG78: 0.1187122072 | AH78: 0.1127765969 | AI78: 0.1068409865 | AJ78: 0.1009053761 | AK78: 0.09496976577 | AL78: 0.08903415541 | AM78: 0.08309854505 | AN78: 0.07716293469 | AO78: 0.07122732433 | AP78: 0.06529171397 | AQ78: 0.05935610361 | AR78: 0.05342049325 | AS78: 0.04748488289 | AT78: 0.04154927253 | AU78: 0.03561366217 | AV78: 0.0296780518 | AW78: 0.02374244144 | AX78: 0.01780683108 | AY78: 0.01187122072 | AZ78: 0.005935610361 | BA78: 1.647462822e-17
B79: 1.316309771 | C79: 0.2887500869 | D79: 0.2829750851 | E79: 0.2772000834 | F79: 0.2714250817 | G79: 0.2656500799 | H79: 0.2598750782 | I79: 0.2541000765 | J79: 0.2483250747 | K79: 0.242550073 | L79: 0.2367750712 | M79: 0.2310000695 | N79: 0.2252250678 | O79: 0.219450066 | P79: 0.2136750643 | Q79: 0.2079000626 | R79: 0.2021250608 | S79: 0.1963500591 | T79: 0.1905750573 | U79: 0.1848000556 | V79: 0.1790250539 | W79: 0.1732500521 | X79: 0.1674750504 | Y79: 0.1617000487 | Z79: 0.1559250469 | AA79: 0.1501500452 | AB79: 0.1443750434 | AC79: 0.1386000417 | AD79: 0.13282504 | AE79: 0.1270500382 | AF79: 0.1212750365 | AG79: 0.1155000348 | AH79: 0.109725033 | AI79: 0.1039500313 | AJ79: 0.09817502954 | AK79: 0.0924000278 | AL79: 0.08662502606 | AM79: 0.08085002433 | AN79: 0.07507502259 | AO79: 0.06930002085 | AP79: 0.06352501911 | AQ79: 0.05775001738 | AR79: 0.05197501564 | AS79: 0.0462000139 | AT79: 0.04042501216 | AU79: 0.03465001043 | AV79: 0.02887500869 | AW79: 0.02310000695 | AX79: 0.01732500521 | AY79: 0.01155000348 | AZ79: 0.005775001738 | BA79: 1.602884974e-17
B80: 1.333860568 | C80: 0.2789232076 | D80: 0.2733447434 | E80: 0.2677662793 | F80: 0.2621878151 | G80: 0.256609351 | H80: 0.2510308868 | I80: 0.2454524227 | J80: 0.2398739585 | K80: 0.2342954944 | L80: 0.2287170302 | M80: 0.2231385661 | N80: 0.2175601019 | O80: 0.2119816378 | P80: 0.2064031736 | Q80: 0.2008247095 | R80: 0.1952462453 | S80: 0.1896677811 | T80: 0.184089317 | U80: 0.1785108528 | V80: 0.1729323887 | W80: 0.1673539245 | X80: 0.1617754604 | Y80: 0.1561969962 | Z80: 0.1506185321 | AA80: 0.1450400679 | AB80: 0.1394616038 | AC80: 0.1338831396 | AD80: 0.1283046755 | AE80: 0.1227262113 | AF80: 0.1171477472 | AG80: 0.111569283 | AH80: 0.1059908189 | AI80: 0.1004123547 | AJ80: 0.09483389057 | AK80: 0.08925542642 | AL80: 0.08367696227 | AM80: 0.07809849812 | AN80: 0.07252003397 | AO80: 0.06694156982 | AP80: 0.06136310567 | AQ80: 0.05578464151 | AR80: 0.05020617736 | AS80: 0.04462771321 | AT80: 0.03904924906 | AU80: 0.03347078491 | AV80: 0.02789232076 | AW80: 0.02231385661 | AX80: 0.01673539245 | AY80: 0.0111569283 | AZ80: 0.005578464151 | BA80: 1.548334836e-17
B81: 1.351411365 | C81: 0.2672852734 | D81: 0.261939568 | E81: 0.2565938625 | F81: 0.251248157 | G81: 0.2459024516 | H81: 0.2405567461 | I81: 0.2352110406 | J81: 0.2298653352 | K81: 0.2245196297 | L81: 0.2191739242 | M81: 0.2138282188 | N81: 0.2084825133 | O81: 0.2031368078 | P81: 0.1977911023 | Q81: 0.1924453969 | R81: 0.1870996914 | S81: 0.1817539859 | T81: 0.1764082805 | U81: 0.171062575 | V81: 0.1657168695 | W81: 0.1603711641 | X81: 0.1550254586 | Y81: 0.1496797531 | Z81: 0.1443340477 | AA81: 0.1389883422 | AB81: 0.1336426367 | AC81: 0.1282969313 | AD81: 0.1229512258 | AE81: 0.1176055203 | AF81: 0.1122598148 | AG81: 0.1069141094 | AH81: 0.1015684039 | AI81: 0.09622269844 | AJ81: 0.09087699297 | AK81: 0.0855312875 | AL81: 0.08018558203 | AM81: 0.07483987656 | AN81: 0.06949417109 | AO81: 0.06414846563 | AP81: 0.05880276016 | AQ81: 0.05345705469 | AR81: 0.04811134922 | AS81: 0.04276564375 | AT81: 0.03741993828 | AU81: 0.03207423281 | AV81: 0.02672852734 | AW81: 0.02138282188 | AX81: 0.01603711641 | AY81: 0.01069141094 | AZ81: 0.005345705469 | BA81: 1.483731324e-17
B82: 1.368962162 | C82: 0.2538471171 | D82: 0.2487701747 | E82: 0.2436932324 | F82: 0.2386162901 | G82: 0.2335393477 | H82: 0.2284624054 | I82: 0.223385463 | J82: 0.2183085207 | K82: 0.2132315784 | L82: 0.208154636 | M82: 0.2030776937 | N82: 0.1980007513 | O82: 0.192923809 | P82: 0.1878468666 | Q82: 0.1827699243 | R82: 0.177692982 | S82: 0.1726160396 | T82: 0.1675390973 | U82: 0.1624621549 | V82: 0.1573852126 | W82: 0.1523082703 | X82: 0.1472313279 | Y82: 0.1421543856 | Z82: 0.1370774432 | AA82: 0.1320005009 | AB82: 0.1269235585 | AC82: 0.1218466162 | AD82: 0.1167696739 | AE82: 0.1116927315 | AF82: 0.1066157892 | AG82: 0.1015388468 | AH82: 0.09646190449 | AI82: 0.09138496215 | AJ82: 0.08630801981 | AK82: 0.08123107747 | AL82: 0.07615413513 | AM82: 0.07107719279 | AN82: 0.06600025044 | AO82: 0.0609233081 | AP82: 0.05584636576 | AQ82: 0.05076942342 | AR82: 0.04569248108 | AS82: 0.04061553873 | AT82: 0.03553859639 | AU82: 0.03046165405 | AV82: 0.02538471171 | AW82: 0.02030776937 | AX82: 0.01523082703 | AY82: 0.01015388468 | AZ82: 0.005076942342 | BA82: 1.409134571e-17
B83: 1.386512959 | C83: 0.2386446218 | D83: 0.2338717293 | E83: 0.2290988369 | F83: 0.2243259445 | G83: 0.219553052 | H83: 0.2147801596 | I83: 0.2100072672 | J83: 0.2052343747 | K83: 0.2004614823 | L83: 0.1956885899 | M83: 0.1909156974 | N83: 0.186142805 | O83: 0.1813699126 | P83: 0.1765970201 | Q83: 0.1718241277 | R83: 0.1670512352 | S83: 0.1622783428 | T83: 0.1575054504 | U83: 0.1527325579 | V83: 0.1479596655 | W83: 0.1431867731 | X83: 0.1384138806 | Y83: 0.1336409882 | Z83: 0.1288680958 | AA83: 0.1240952033 | AB83: 0.1193223109 | AC83: 0.1145494185 | AD83: 0.109776526 | AE83: 0.1050036336 | AF83: 0.1002307411 | AG83: 0.09545784871 | AH83: 0.09068495628 | AI83: 0.08591206384 | AJ83: 0.08113917141 | AK83: 0.07636627897 | AL83: 0.07159338654 | AM83: 0.0668204941 | AN83: 0.06204760166 | AO83: 0.05727470923 | AP83: 0.05250181679 | AQ83: 0.04772892436 | AR83: 0.04295603192 | AS83: 0.03818313949 | AT83: 0.03341024705 | AU83: 0.02863735461 | AV83: 0.02386446218 | AW83: 0.01909156974 | AX83: 0.01431867731 | AY83: 0.009545784871 | AZ83: 0.004772892436 | BA83: 1.324743769e-17
B84: 1.404063756 | C84: =(4-_xlfn.NORM.INV(Speed,0,1))/8*COS(DirR)*(1 + 0.5*SIN(DirR*5)) -> 0.2217380268 | D84: 0.2173032663 | E84: 0.2128685058 | F84: 0.2084337452 | G84: 0.2039989847 | H84: 0.1995642241 | I84: 0.1951294636 | J84: 0.1906947031 | K84: 0.1862599425 | L84: 0.181825182 | M84: =(4-_xlfn.NORM.INV(Speed,0,1))/8*COS(DirR)*(1 + 0.5*SIN(DirR*5)) -> 0.1773904215 | N84: 0.1729556609 | O84: 0.1685209004 | P84: 0.1640861398 | Q84: 0.1596513793 | R84: 0.1552166188 | S84: 0.1507818582 | T84: 0.1463470977 | U84: 0.1419123372 | V84: 0.1374775766 | W84: =(4-_xlfn.NORM.INV(Speed,0,1))/8*COS(DirR)*(1 + 0.5*SIN(DirR*5)) -> 0.1330428161 | X84: 0.1286080556 | Y84: 0.124173295 | Z84: 0.1197385345 | AA84: 0.1153037739 | AB84: 0.1108690134 | AC84: 0.1064342529 | AD84: 0.1019994923 | AE84: 0.0975647318 | AF84: 0.09312997127 | AG84: =(4-_xlfn.NORM.INV(Speed,0,1))/8*COS(DirR)*(1 + 0.5*SIN(DirR*5)) -> 0.08869521073 | AH84: 0.08426045019 | AI84: 0.07982568966 | AJ84: 0.07539092912 | AK84: 0.07095616858 | AL84: 0.06652140805 | AM84: 0.06208664751 | AN84: 0.05765188697 | AO84: 0.05321712644 | AP84: 0.0487823659 | AQ84: =(4-_xlfn.NORM.INV(Speed,0,1))/8*COS(DirR)*(1 + 0.5*SIN(DirR*5)) -> 0.04434760536 | AR84: 0.03991284483 | AS84: 0.03547808429 | AT84: 0.03104332376 | AU84: 0.02660856322 | AV84: 0.02217380268 | AW84: 0.01773904215 | AX84: 0.01330428161 | AY84: 0.008869521073 | AZ84: 0.004434760536 | BA84: 1.230893314e-17
B85: 1.421614553 | C85: 0.2032109363 | D85: 0.1991467176 | E85: 0.1950824989 | F85: 0.1910182801 | G85: 0.1869540614 | H85: 0.1828898427 | I85: 0.178825624 | J85: 0.1747614052 | K85: 0.1706971865 | L85: 0.1666329678 | M85: 0.1625687491 | N85: 0.1585045303 | O85: 0.1544403116 | P85: 0.1503760929 | Q85: 0.1463118742 | R85: 0.1422476554 | S85: 0.1381834367 | T85: 0.134119218 | U85: 0.1300549992 | V85: 0.1259907805 | W85: 0.1219265618 | X85: 0.1178623431 | Y85: 0.1137981243 | Z85: 0.1097339056 | AA85: 0.1056696869 | AB85: 0.1016054682 | AC85: 0.09754124943 | AD85: 0.09347703071 | AE85: 0.08941281198 | AF85: 0.08534859325 | AG85: 0.08128437453 | AH85: 0.0772201558 | AI85: 0.07315593708 | AJ85: 0.06909171835 | AK85: 0.06502749962 | AL85: 0.0609632809 | AM85: 0.05689906217 | AN85: 0.05283484344 | AO85: 0.04877062472 | AP85: 0.04470640599 | AQ85: 0.04064218726 | AR85: 0.03657796854 | AS85: 0.03251374981 | AT85: 0.02844953108 | AU85: 0.02438531236 | AV85: 0.02032109363 | AW85: 0.01625687491 | AX85: 0.01219265618 | AY85: 0.008128437453 | AZ85: 0.004064218726 | BA85: 1.128047302e-17
B86: 1.43916535 | C86: 0.1831690442 | D86: 0.1795056633 | E86: 0.1758422824 | F86: 0.1721789016 | G86: 0.1685155207 | H86: 0.1648521398 | I86: 0.1611887589 | J86: 0.157525378 | K86: 0.1538619971 | L86: 0.1501986163 | M86: 0.1465352354 | N86: 0.1428718545 | O86: 0.1392084736 | P86: 0.1355450927 | Q86: 0.1318817118 | R86: 0.1282183309 | S86: 0.1245549501 | T86: 0.1208915692 | U86: 0.1172281883 | V86: 0.1135648074 | W86: 0.1099014265 | X86: 0.1062380456 | Y86: 0.1025746648 | Z86: 0.09891128387 | AA86: 0.09524790299 | AB86: 0.09158452211 | AC86: 0.08792114122 | AD86: 0.08425776034 | AE86: 0.08059437945 | AF86: 0.07693099857 | AG86: 0.07326761769 | AH86: 0.0696042368 | AI86: 0.06594085592 | AJ86: 0.06227747503 | AK86: 0.05861409415 | AL86: 0.05495071326 | AM86: 0.05128733238 | AN86: 0.0476239515 | AO86: 0.04396057061 | AP86: 0.04029718973 | AQ86: 0.03663380884 | AR86: 0.03297042796 | AS86: 0.02930704707 | AT86: 0.02564366619 | AU86: 0.02198028531 | AV86: 0.01831690442 | AW86: 0.01465352354 | AX86: 0.01099014265 | AY86: 0.007326761769 | AZ86: 0.003663380884 | BA86: 1.016792451e-17
B87: 1.456716147 | C87: 0.1617385916 | D87: 0.1585038198 | E87: 0.155269048 | F87: 0.1520342761 | G87: 0.1487995043 | H87: 0.1455647325 | I87: 0.1423299606 | J87: 0.1390951888 | K87: 0.135860417 | L87: 0.1326256451 | M87: 0.1293908733 | N87: 0.1261561015 | O87: 0.1229213296 | P87: 0.1196865578 | Q87: 0.116451786 | R87: 0.1132170141 | S87: 0.1099822423 | T87: 0.1067474705 | U87: 0.1035126986 | V87: 0.1002779268 | W87: 0.09704315497 | X87: 0.09380838314 | Y87: 0.09057361131 | Z87: 0.08733883948 | AA87: 0.08410406764 | AB87: 0.08086929581 | AC87: 0.07763452398 | AD87: 0.07439975215 | AE87: 0.07116498031 | AF87: 0.06793020848 | AG87: 0.06469543665 | AH87: 0.06146066482 | AI87: 0.05822589298 | AJ87: 0.05499112115 | AK87: 0.05175634932 | AL87: 0.04852157749 | AM87: 0.04528680565 | AN87: 0.04205203382 | AO87: 0.03881726199 | AP87: 0.03558249016 | AQ87: 0.03234771832 | AR87: 0.02911294649 | AS87: 0.02587817466 | AT87: 0.02264340283 | AU87: 0.01940863099 | AV87: 0.01617385916 | AW87: 0.01293908733 | AX87: 0.009704315497 | AY87: 0.006469543665 | AZ87: 0.003234771832 | BA87: 8.978295419e-18
B88: 1.474266944 | C88: 0.1390645758 | D88: 0.1362832842 | E88: 0.1335019927 | F88: 0.1307207012 | G88: 0.1279394097 | H88: 0.1251581182 | I88: 0.1223768267 | J88: 0.1195955351 | K88: 0.1168142436 | L88: 0.1140329521 | M88: 0.1112516606 | N88: 0.1084703691 | O88: 0.1056890776 | P88: 0.1029077861 | Q88: 0.1001264945 | R88: 0.09734520303 | S88: 0.09456391151 | T88: 0.09178262 | U88: 0.08900132848 | V88: 0.08622003697 | W88: 0.08343874545 | X88: 0.08065745394 | Y88: 0.07787616242 | Z88: 0.07509487091 | AA88: 0.07231357939 | AB88: 0.06953228788 | AC88: 0.06675099636 | AD88: 0.06396970485 | AE88: 0.06118841333 | AF88: 0.05840712182 | AG88: 0.0556258303 | AH88: 0.05284453879 | AI88: 0.05006324727 | AJ88: 0.04728195576 | AK88: 0.04450066424 | AL88: 0.04171937273 | AM88: 0.03893808121 | AN88: 0.0361567897 | AO88: 0.03337549818 | AP88: 0.03059420667 | AQ88: 0.02781291515 | AR88: 0.02503162364 | AS88: 0.02225033212 | AT88: 0.01946904061 | AU88: 0.01668774909 | AV88: 0.01390645758 | AW88: 0.01112516606 | AX88: 0.008343874545 | AY88: 0.00556258303 | AZ88: 0.002781291515 | BA88: 7.719634695e-18
B89: 1.491817741 | C89: 0.1153087324 | D89: 0.1130025577 | E89: 0.1106963831 | F89: 0.1083902084 | G89: 0.1060840338 | H89: 0.1037778591 | I89: 0.1014716845 | J89: 0.09916550983 | K89: 0.09685933518 | L89: 0.09455316053 | M89: 0.09224698589 | N89: 0.08994081124 | O89: 0.08763463659 | P89: 0.08532846195 | Q89: 0.0830222873 | R89: 0.08071611265 | S89: 0.078409938 | T89: 0.07610376336 | U89: 0.07379758871 | V89: 0.07149141406 | W89: 0.06918523942 | X89: 0.06687906477 | Y89: 0.06457289012 | Z89: 0.06226671547 | AA89: 0.05996054083 | AB89: 0.05765436618 | AC89: 0.05534819153 | AD89: 0.05304201689 | AE89: 0.05073584224 | AF89: 0.04842966759 | AG89: 0.04612349294 | AH89: 0.0438173183 | AI89: 0.04151114365 | AJ89: 0.039204969 | AK89: 0.03689879435 | AL89: 0.03459261971 | AM89: 0.03228644506 | AN89: 0.02998027041 | AO89: 0.02767409577 | AP89: 0.02536792112 | AQ89: 0.02306174647 | AR89: 0.02075557182 | AS89: 0.01844939718 | AT89: 0.01614322253 | AU89: 0.01383704788 | AV89: 0.01153087324 | AW89: 0.009224698589 | AX89: 0.006918523942 | AY89: 0.004612349294 | AZ89: 0.002306174647 | BA89: 6.40092048e-18
B90: 1.509368537 | C90: 0.09064731646 | D90: 0.08883437013 | E90: 0.0870214238 | F90: 0.08520847747 | G90: 0.08339553114 | H90: 0.08158258481 | I90: 0.07976963849 | J90: 0.07795669216 | K90: 0.07614374583 | L90: 0.0743307995 | M90: 0.07251785317 | N90: 0.07070490684 | O90: 0.06889196051 | P90: 0.06707901418 | Q90: 0.06526606785 | R90: 0.06345312152 | S90: 0.06164017519 | T90: 0.05982722886 | U90: 0.05801428253 | V90: 0.05620133621 | W90: 0.05438838988 | X90: 0.05257544355 | Y90: 0.05076249722 | Z90: 0.04894955089 | AA90: 0.04713660456 | AB90: 0.04532365823 | AC90: 0.0435107119 | AD90: 0.04169776557 | AE90: 0.03988481924 | AF90: 0.03807187291 | AG90: 0.03625892658 | AH90: 0.03444598026 | AI90: 0.03263303393 | AJ90: 0.0308200876 | AK90: 0.02900714127 | AL90: 0.02719419494 | AM90: 0.02538124861 | AN90: 0.02356830228 | AO90: 0.02175535595 | AP90: 0.01994240962 | AQ90: 0.01812946329 | AR90: 0.01631651696 | AS90: 0.01450357063 | AT90: 0.0126906243 | AU90: 0.01087767798 | AV90: 0.009064731646 | AW90: 0.007251785317 | AX90: 0.005438838988 | AY90: 0.003625892658 | AZ90: 0.001812946329 | BA90: 5.031936893e-18
B91: 1.526919334 | C91: 0.06526870821 | D91: 0.06396333404 | E91: 0.06265795988 | F91: 0.06135258572 | G91: 0.06004721155 | H91: 0.05874183739 | I91: 0.05743646322 | J91: 0.05613108906 | K91: 0.0548257149 | L91: 0.05352034073 | M91: 0.05221496657 | N91: 0.0509095924 | O91: 0.04960421824 | P91: 0.04829884407 | Q91: 0.04699346991 | R91: 0.04568809575 | S91: 0.04438272158 | T91: 0.04307734742 | U91: 0.04177197325 | V91: 0.04046659909 | W91: 0.03916122493 | X91: 0.03785585076 | Y91: 0.0365504766 | Z91: 0.03524510243 | AA91: 0.03393972827 | AB91: 0.0326343541 | AC91: 0.03132897994 | AD91: 0.03002360578 | AE91: 0.02871823161 | AF91: 0.02741285745 | AG91: 0.02610748328 | AH91: 0.02480210912 | AI91: 0.02349673496 | AJ91: 0.02219136079 | AK91: 0.02088598663 | AL91: 0.01958061246 | AM91: 0.0182752383 | AN91: 0.01696986413 | AO91: 0.01566448997 | AP91: 0.01435911581 | AQ91: 0.01305374164 | AR91: 0.01174836748 | AS91: 0.01044299331 | AT91: 0.009137619149 | AU91: 0.007832244985 | AV91: 0.006526870821 | AW91: 0.005221496657 | AX91: 0.003916122493 | AY91: 0.002610748328 | AZ91: 0.001305374164 | BA91: 3.623141132e-18
B92: 1.544470131 | C92: 0.03937087292 | D92: 0.03858345547 | E92: 0.03779603801 | F92: 0.03700862055 | G92: 0.03622120309 | H92: 0.03543378563 | I92: 0.03464636817 | J92: 0.03385895071 | K92: 0.03307153326 | L92: 0.0322841158 | M92: 0.03149669834 | N92: 0.03070928088 | O92: 0.02992186342 | P92: 0.02913444596 | Q92: 0.02834702851 | R92: 0.02755961105 | S92: 0.02677219359 | T92: 0.02598477613 | U92: 0.02519735867 | V92: 0.02440994121 | W92: 0.02362252375 | X92: 0.0228351063 | Y92: 0.02204768884 | Z92: 0.02126027138 | AA92: 0.02047285392 | AB92: 0.01968543646 | AC92: 0.018898019 | AD92: 0.01811060155 | AE92: 0.01732318409 | AF92: 0.01653576663 | AG92: 0.01574834917 | AH92: 0.01496093171 | AI92: 0.01417351425 | AJ92: 0.01338609679 | AK92: 0.01259867934 | AL92: 0.01181126188 | AM92: 0.01102384442 | AN92: 0.01023642696 | AO92: 0.009449009502 | AP92: 0.008661592043 | AQ92: 0.007874174585 | AR92: 0.007086757126 | AS92: 0.006299339668 | AT92: 0.005511922209 | AU92: 0.004724504751 | AV92: 0.003937087292 | AW92: 0.003149669834 | AX92: 0.002362252375 | AY92: 0.001574834917 | AZ92: 0.0007874174585 | BA92: 2.185522481e-18
B93: 1.562020928 | C93: 0.01315870592 | D93: 0.0128955318 | E93: 0.01263235768 | F93: 0.01236918357 | G93: 0.01210600945 | H93: 0.01184283533 | I93: 0.01157966121 | J93: 0.01131648709 | K93: 0.01105331297 | L93: 0.01079013886 | M93: 0.01052696474 | N93: 0.01026379062 | O93: 0.0100006165 | P93: 0.009737442382 | Q93: 0.009474268263 | R93: 0.009211094145 | S93: 0.008947920027 | T93: 0.008684745908 | U93: 0.00842157179 | V93: 0.008158397671 | W93: 0.007895223553 | X93: 0.007632049434 | Y93: 0.007368875316 | Z93: 0.007105701198 | AA93: 0.006842527079 | AB93: 0.006579352961 | AC93: 0.006316178842 | AD93: 0.006053004724 | AE93: 0.005789830605 | AF93: 0.005526656487 | AG93: 0.005263482369 | AH93: 0.00500030825 | AI93: 0.004737134132 | AJ93: 0.004473960013 | AK93: 0.004210785895 | AL93: 0.003947611776 | AM93: 0.003684437658 | AN93: 0.00342126354 | AO93: 0.003158089421 | AP93: 0.002894915303 | AQ93: 0.002631741184 | AR93: 0.002368567066 | AS93: 0.002105392947 | AT93: 0.001842218829 | AU93: 0.001579044711 | AV93: 0.001315870592 | AW93: 0.001052696474 | AX93: 0.0007895223553 | AY93: 0.0005263482369 | AZ93: 0.0002631741184 | BA93: 7.304549144e-19
B94: 1.579571725 | C94: =(4-_xlfn.NORM.INV(Speed,0,1))/8*COS(DirR)*(1 + 0.5*SIN(DirR*5)) -> -0.01315870592 | D94: -0.0128955318 | E94: -0.01263235768 | F94: -0.01236918357 | G94: -0.01210600945 | H94: -0.01184283533 | I94: -0.01157966121 | J94: -0.01131648709 | K94: -0.01105331297 | L94: -0.01079013886 | M94: =(4-_xlfn.NORM.INV(Speed,0,1))/8*COS(DirR)*(1 + 0.5*SIN(DirR*5)) -> -0.01052696474 | N94: -0.01026379062 | O94: -0.0100006165 | P94: -0.009737442382 | Q94: -0.009474268263 | R94: -0.009211094145 | S94: -0.008947920027 | T94: -0.008684745908 | U94: -0.00842157179 | V94: -0.008158397671 | W94: =(4-_xlfn.NORM.INV(Speed,0,1))/8*COS(DirR)*(1 + 0.5*SIN(DirR*5)) -> -0.007895223553 | X94: -0.007632049434 | Y94: -0.007368875316 | Z94: -0.007105701198 | AA94: -0.006842527079 | AB94: -0.006579352961 | AC94: -0.006316178842 | AD94: -0.006053004724 | AE94: -0.005789830605 | AF94: -0.005526656487 | AG94: =(4-_xlfn.NORM.INV(Speed,0,1))/8*COS(DirR)*(1 + 0.5*SIN(DirR*5)) -> -0.005263482369 | AH94: -0.00500030825 | AI94: -0.004737134132 | AJ94: -0.004473960013 | AK94: -0.004210785895 | AL94: -0.003947611776 | AM94: -0.003684437658 | AN94: -0.00342126354 | AO94: -0.003158089421 | AP94: -0.002894915303 | AQ94: =(4-_xlfn.NORM.INV(Speed,0,1))/8*COS(DirR)*(1 + 0.5*SIN(DirR*5)) -> -0.002631741184 | AR94: -0.002368567066 | AS94: -0.002105392947 | AT94: -0.001842218829 | AU94: -0.001579044711 | AV94: -0.001315870592 | AW94: -0.001052696474 | AX94: -0.0007895223553 | AY94: -0.0005263482369 | AZ94: -0.0002631741184 | BA94: -7.304549144e-19
B95: 1.597122522 | C95: -0.03937087292 | D95: -0.03858345547 | E95: -0.03779603801 | F95: -0.03700862055 | G95: -0.03622120309 | H95: -0.03543378563 | I95: -0.03464636817 | J95: -0.03385895071 | K95: -0.03307153326 | L95: -0.0322841158 | M95: -0.03149669834 | N95: -0.03070928088 | O95: -0.02992186342 | P95: -0.02913444596 | Q95: -0.02834702851 | R95: -0.02755961105 | S95: -0.02677219359 | T95: -0.02598477613 | U95: -0.02519735867 | V95: -0.02440994121 | W95: -0.02362252375 | X95: -0.0228351063 | Y95: -0.02204768884 | Z95: -0.02126027138 | AA95: -0.02047285392 | AB95: -0.01968543646 | AC95: -0.018898019 | AD95: -0.01811060155 | AE95: -0.01732318409 | AF95: -0.01653576663 | AG95: -0.01574834917 | AH95: -0.01496093171 | AI95: -0.01417351425 | AJ95: -0.01338609679 | AK95: -0.01259867934 | AL95: -0.01181126188 | AM95: -0.01102384442 | AN95: -0.01023642696 | AO95: -0.009449009502 | AP95: -0.008661592043 | AQ95: -0.007874174585 | AR95: -0.007086757126 | AS95: -0.006299339668 | AT95: -0.005511922209 | AU95: -0.004724504751 | AV95: -0.003937087292 | AW95: -0.003149669834 | AX95: -0.002362252375 | AY95: -0.001574834917 | AZ95: -0.0007874174585 | BA95: -2.185522481e-18
B96: 1.614673319 | C96: -0.06526870821 | D96: -0.06396333404 | E96: -0.06265795988 | F96: -0.06135258572 | G96: -0.06004721155 | H96: -0.05874183739 | I96: -0.05743646322 | J96: -0.05613108906 | K96: -0.0548257149 | L96: -0.05352034073 | M96: -0.05221496657 | N96: -0.0509095924 | O96: -0.04960421824 | P96: -0.04829884407 | Q96: -0.04699346991 | R96: -0.04568809575 | S96: -0.04438272158 | T96: -0.04307734742 | U96: -0.04177197325 | V96: -0.04046659909 | W96: -0.03916122493 | X96: -0.03785585076 | Y96: -0.0365504766 | Z96: -0.03524510243 | AA96: -0.03393972827 | AB96: -0.0326343541 | AC96: -0.03132897994 | AD96: -0.03002360578 | AE96: -0.02871823161 | AF96: -0.02741285745 | AG96: -0.02610748328 | AH96: -0.02480210912 | AI96: -0.02349673496 | AJ96: -0.02219136079 | AK96: -0.02088598663 | AL96: -0.01958061246 | AM96: -0.0182752383 | AN96: -0.01696986413 | AO96: -0.01566448997 | AP96: -0.01435911581 | AQ96: -0.01305374164 | AR96: -0.01174836748 | AS96: -0.01044299331 | AT96: -0.009137619149 | AU96: -0.007832244985 | AV96: -0.006526870821 | AW96: -0.005221496657 | AX96: -0.003916122493 | AY96: -0.002610748328 | AZ96: -0.001305374164 | BA96: -3.623141132e-18
B97: 1.632224116 | C97: -0.09064731646 | D97: -0.08883437013 | E97: -0.0870214238 | F97: -0.08520847747 | G97: -0.08339553114 | H97: -0.08158258481 | I97: -0.07976963849 | J97: -0.07795669216 | K97: -0.07614374583 | L97: -0.0743307995 | M97: -0.07251785317 | N97: -0.07070490684 | O97: -0.06889196051 | P97: -0.06707901418 | Q97: -0.06526606785 | R97: -0.06345312152 | S97: -0.06164017519 | T97: -0.05982722886 | U97: -0.05801428253 | V97: -0.05620133621 | W97: -0.05438838988 | X97: -0.05257544355 | Y97: -0.05076249722 | Z97: -0.04894955089 | AA97: -0.04713660456 | AB97: -0.04532365823 | AC97: -0.0435107119 | AD97: -0.04169776557 | AE97: -0.03988481924 | AF97: -0.03807187291 | AG97: -0.03625892658 | AH97: -0.03444598026 | AI97: -0.03263303393 | AJ97: -0.0308200876 | AK97: -0.02900714127 | AL97: -0.02719419494 | AM97: -0.02538124861 | AN97: -0.02356830228 | AO97: -0.02175535595 | AP97: -0.01994240962 | AQ97: -0.01812946329 | AR97: -0.01631651696 | AS97: -0.01450357063 | AT97: -0.0126906243 | AU97: -0.01087767798 | AV97: -0.009064731646 | AW97: -0.007251785317 | AX97: -0.005438838988 | AY97: -0.003625892658 | AZ97: -0.001812946329 | BA97: -5.031936893e-18
B98: 1.649774913 | C98: -0.1153087324 | D98: -0.1130025577 | E98: -0.1106963831 | F98: -0.1083902084 | G98: -0.1060840338 | H98: -0.1037778591 | I98: -0.1014716845 | J98: -0.09916550983 | K98: -0.09685933518 | L98: -0.09455316053 | M98: -0.09224698589 | N98: -0.08994081124 | O98: -0.08763463659 | P98: -0.08532846195 | Q98: -0.0830222873 | R98: -0.08071611265 | S98: -0.078409938 | T98: -0.07610376336 | U98: -0.07379758871 | V98: -0.07149141406 | W98: -0.06918523942 | X98: -0.06687906477 | Y98: -0.06457289012 | Z98: -0.06226671547 | AA98: -0.05996054083 | AB98: -0.05765436618 | AC98: -0.05534819153 | AD98: -0.05304201689 | AE98: -0.05073584224 | AF98: -0.04842966759 | AG98: -0.04612349294 | AH98: -0.0438173183 | AI98: -0.04151114365 | AJ98: -0.039204969 | AK98: -0.03689879435 | AL98: -0.03459261971 | AM98: -0.03228644506 | AN98: -0.02998027041 | AO98: -0.02767409577 | AP98: -0.02536792112 | AQ98: -0.02306174647 | AR98: -0.02075557182 | AS98: -0.01844939718 | AT98: -0.01614322253 | AU98: -0.01383704788 | AV98: -0.01153087324 | AW98: -0.009224698589 | AX98: -0.006918523942 | AY98: -0.004612349294 | AZ98: -0.002306174647 | BA98: -6.40092048e-18
B99: 1.66732571 | C99: -0.1390645758 | D99: -0.1362832842 | E99: -0.1335019927 | F99: -0.1307207012 | G99: -0.1279394097 | H99: -0.1251581182 | I99: -0.1223768267 | J99: -0.1195955351 | K99: -0.1168142436 | L99: -0.1140329521 | M99: -0.1112516606 | N99: -0.1084703691 | O99: -0.1056890776 | P99: -0.1029077861 | Q99: -0.1001264945 | R99: -0.09734520303 | S99: -0.09456391151 | T99: -0.09178262 | U99: -0.08900132848 | V99: -0.08622003697 | W99: -0.08343874545 | X99: -0.08065745394 | Y99: -0.07787616242 | Z99: -0.07509487091 | AA99: -0.07231357939 | AB99: -0.06953228788 | AC99: -0.06675099636 | AD99: -0.06396970485 | AE99: -0.06118841333 | AF99: -0.05840712182 | AG99: -0.0556258303 | AH99: -0.05284453879 | AI99: -0.05006324727 | AJ99: -0.04728195576 | AK99: -0.04450066424 | AL99: -0.04171937273 | AM99: -0.03893808121 | AN99: -0.0361567897 | AO99: -0.03337549818 | AP99: -0.03059420667 | AQ99: -0.02781291515 | AR99: -0.02503162364 | AS99: -0.02225033212 | AT99: -0.01946904061 | AU99: -0.01668774909 | AV99: -0.01390645758 | AW99: -0.01112516606 | AX99: -0.008343874545 | AY99: -0.00556258303 | AZ99: -0.002781291515 | BA99: -7.719634695e-18
B100: 1.684876507 | C100: -0.1617385916 | D100: -0.1585038198 | E100: -0.155269048 | F100: -0.1520342761 | G100: -0.1487995043 | H100: -0.1455647325 | I100: -0.1423299606 | J100: -0.1390951888 | K100: -0.135860417 | L100: -0.1326256451 | M100: -0.1293908733 | N100: -0.1261561015 | O100: -0.1229213296 | P100: -0.1196865578 | Q100: -0.116451786 | R100: -0.1132170141 | S100: -0.1099822423 | T100: -0.1067474705 | U100: -0.1035126986 | V100: -0.1002779268 | W100: -0.09704315497 | X100: -0.09380838314 | Y100: -0.09057361131 | Z100: -0.08733883948 | AA100: -0.08410406764 | AB100: -0.08086929581 | AC100: -0.07763452398 | AD100: -0.07439975215 | AE100: -0.07116498031 | AF100: -0.06793020848 | AG100: -0.06469543665 | AH100: -0.06146066482 | AI100: -0.05822589298 | AJ100: -0.05499112115 | AK100: -0.05175634932 | AL100: -0.04852157749 | AM100: -0.04528680565 | AN100: -0.04205203382 | AO100: -0.03881726199 | AP100: -0.03558249016 | AQ100: -0.03234771832 | AR100: -0.02911294649 | AS100: -0.02587817466 | AT100: -0.02264340283 | AU100: -0.01940863099 | AV100: -0.01617385916 | AW100: -0.01293908733 | AX100: -0.009704315497 | AY100: -0.006469543665 | AZ100: -0.003234771832 | BA100: -8.978295419e-18
B101: 1.702427304 | C101: -0.1831690442 | D101: -0.1795056633 | E101: -0.1758422824 | F101: -0.1721789016 | G101: -0.1685155207 | H101: -0.1648521398 | I101: -0.1611887589 | J101: -0.157525378 | K101: -0.1538619971 | L101: -0.1501986163 | M101: -0.1465352354 | N101: -0.1428718545 | O101: -0.1392084736 | P101: -0.1355450927 | Q101: -0.1318817118 | R101: -0.1282183309 | S101: -0.1245549501 | T101: -0.1208915692 | U101: -0.1172281883 | V101: -0.1135648074 | W101: -0.1099014265 | X101: -0.1062380456 | Y101: -0.1025746648 | Z101: -0.09891128387 | AA101: -0.09524790299 | AB101: -0.09158452211 | AC101: -0.08792114122 | AD101: -0.08425776034 | AE101: -0.08059437945 | AF101: -0.07693099857 | AG101: -0.07326761769 | AH101: -0.0696042368 | AI101: -0.06594085592 | AJ101: -0.06227747503 | AK101: -0.05861409415 | AL101: -0.05495071326 | AM101: -0.05128733238 | AN101: -0.0476239515 | AO101: -0.04396057061 | AP101: -0.04029718973 | AQ101: -0.03663380884 | AR101: -0.03297042796 | AS101: -0.02930704707 | AT101: -0.02564366619 | AU101: -0.02198028531 | AV101: -0.01831690442 | AW101: -0.01465352354 | AX101: -0.01099014265 | AY101: -0.007326761769 | AZ101: -0.003663380884 | BA101: -1.016792451e-17
B102: 1.719978101 | C102: -0.2032109363 | D102: -0.1991467176 | E102: -0.1950824989 | F102: -0.1910182801 | G102: -0.1869540614 | H102: -0.1828898427 | I102: -0.178825624 | J102: -0.1747614052 | K102: -0.1706971865 | L102: -0.1666329678 | M102: -0.1625687491 | N102: -0.1585045303 | O102: -0.1544403116 | P102: -0.1503760929 | Q102: -0.1463118742 | R102: -0.1422476554 | S102: -0.1381834367 | T102: -0.134119218 | U102: -0.1300549992 | V102: -0.1259907805 | W102: -0.1219265618 | X102: -0.1178623431 | Y102: -0.1137981243 | Z102: -0.1097339056 | AA102: -0.1056696869 | AB102: -0.1016054682 | AC102: -0.09754124943 | AD102: -0.09347703071 | AE102: -0.08941281198 | AF102: -0.08534859325 | AG102: -0.08128437453 | AH102: -0.0772201558 | AI102: -0.07315593708 | AJ102: -0.06909171835 | AK102: -0.06502749962 | AL102: -0.0609632809 | AM102: -0.05689906217 | AN102: -0.05283484344 | AO102: -0.04877062472 | AP102: -0.04470640599 | AQ102: -0.04064218726 | AR102: -0.03657796854 | AS102: -0.03251374981 | AT102: -0.02844953108 | AU102: -0.02438531236 | AV102: -0.02032109363 | AW102: -0.01625687491 | AX102: -0.01219265618 | AY102: -0.008128437453 | AZ102: -0.004064218726 | BA102: -1.128047302e-17
B103: 1.737528898 | C103: -0.2217380268 | D103: -0.2173032663 | E103: -0.2128685058 | F103: -0.2084337452 | G103: -0.2039989847 | H103: -0.1995642241 | I103: -0.1951294636 | J103: -0.1906947031 | K103: -0.1862599425 | L103: -0.181825182 | M103: -0.1773904215 | N103: -0.1729556609 | O103: -0.1685209004 | P103: -0.1640861398 | Q103: -0.1596513793 | R103: -0.1552166188 | S103: -0.1507818582 | T103: -0.1463470977 | U103: -0.1419123372 | V103: -0.1374775766 | W103: -0.1330428161 | X103: -0.1286080556 | Y103: -0.124173295 | Z103: -0.1197385345 | AA103: -0.1153037739 | AB103: -0.1108690134 | AC103: -0.1064342529 | AD103: -0.1019994923 | AE103: -0.0975647318 | AF103: -0.09312997127 | AG103: -0.08869521073 | AH103: -0.08426045019 | AI103: -0.07982568966 | AJ103: -0.07539092912 | AK103: -0.07095616858 | AL103: -0.06652140805 | AM103: -0.06208664751 | AN103: -0.05765188697 | AO103: -0.05321712644 | AP103: -0.0487823659 | AQ103: -0.04434760536 | AR103: -0.03991284483 | AS103: -0.03547808429 | AT103: -0.03104332376 | AU103: -0.02660856322 | AV103: -0.02217380268 | AW103: -0.01773904215 | AX103: -0.01330428161 | AY103: -0.008869521073 | AZ103: -0.004434760536 | BA103: -1.230893314e-17
B104: 1.755079695 | C104: =(4-_xlfn.NORM.INV(Speed,0,1))/8*COS(DirR)*(1 + 0.5*SIN(DirR*5)) -> -0.2386446218 | D104: -0.2338717293 | E104: -0.2290988369 | F104: -0.2243259445 | G104: -0.219553052 | H104: -0.2147801596 | I104: -0.2100072672 | J104: -0.2052343747 | K104: -0.2004614823 | L104: -0.1956885899 | M104: =(4-_xlfn.NORM.INV(Speed,0,1))/8*COS(DirR)*(1 + 0.5*SIN(DirR*5)) -> -0.1909156974 | N104: -0.186142805 | O104: -0.1813699126 | P104: -0.1765970201 | Q104: -0.1718241277 | R104: -0.1670512352 | S104: -0.1622783428 | T104: -0.1575054504 | U104: -0.1527325579 | V104: -0.1479596655 | W104: =(4-_xlfn.NORM.INV(Speed,0,1))/8*COS(DirR)*(1 + 0.5*SIN(DirR*5)) -> -0.1431867731 | X104: -0.1384138806 | Y104: -0.1336409882 | Z104: -0.1288680958 | AA104: -0.1240952033 | AB104: -0.1193223109 | AC104: -0.1145494185 | AD104: -0.109776526 | AE104: -0.1050036336 | AF104: -0.1002307411 | AG104: =(4-_xlfn.NORM.INV(Speed,0,1))/8*COS(DirR)*(1 + 0.5*SIN(DirR*5)) -> -0.09545784871 | AH104: -0.09068495628 | AI104: -0.08591206384 | AJ104: -0.08113917141 | AK104: -0.07636627897 | AL104: -0.07159338654 | AM104: -0.0668204941 | AN104: -0.06204760166 | AO104: -0.05727470923 | AP104: -0.05250181679 | AQ104: =(4-_xlfn.NORM.INV(Speed,0,1))/8*COS(DirR)*(1 + 0.5*SIN(DirR*5)) -> -0.04772892436 | AR104: -0.04295603192 | AS104: -0.03818313949 | AT104: -0.03341024705 | AU104: -0.02863735461 | AV104: -0.02386446218 | AW104: -0.01909156974 | AX104: -0.01431867731 | AY104: -0.009545784871 | AZ104: -0.004772892436 | BA104: -1.324743769e-17
B105: 1.772630492 | C105: -0.2538471171 | D105: -0.2487701747 | E105: -0.2436932324 | F105: -0.2386162901 | G105: -0.2335393477 | H105: -0.2284624054 | I105: -0.223385463 | J105: -0.2183085207 | K105: -0.2132315784 | L105: -0.208154636 | M105: -0.2030776937 | N105: -0.1980007513 | O105: -0.192923809 | P105: -0.1878468666 | Q105: -0.1827699243 | R105: -0.177692982 | S105: -0.1726160396 | T105: -0.1675390973 | U105: -0.1624621549 | V105: -0.1573852126 | W105: -0.1523082703 | X105: -0.1472313279 | Y105: -0.1421543856 | Z105: -0.1370774432 | AA105: -0.1320005009 | AB105: -0.1269235585 | AC105: -0.1218466162 | AD105: -0.1167696739 | AE105: -0.1116927315 | AF105: -0.1066157892 | AG105: -0.1015388468 | AH105: -0.09646190449 | AI105: -0.09138496215 | AJ105: -0.08630801981 | AK105: -0.08123107747 | AL105: -0.07615413513 | AM105: -0.07107719279 | AN105: -0.06600025044 | AO105: -0.0609233081 | AP105: -0.05584636576 | AQ105: -0.05076942342 | AR105: -0.04569248108 | AS105: -0.04061553873 | AT105: -0.03553859639 | AU105: -0.03046165405 | AV105: -0.02538471171 | AW105: -0.02030776937 | AX105: -0.01523082703 | AY105: -0.01015388468 | AZ105: -0.005076942342 | BA105: -1.409134571e-17
B106: 1.790181289 | C106: -0.2672852734 | D106: -0.261939568 | E106: -0.2565938625 | F106: -0.251248157 | G106: -0.2459024516 | H106: -0.2405567461 | I106: -0.2352110406 | J106: -0.2298653352 | K106: -0.2245196297 | L106: -0.2191739242 | M106: -0.2138282188 | N106: -0.2084825133 | O106: -0.2031368078 | P106: -0.1977911023 | Q106: -0.1924453969 | R106: -0.1870996914 | S106: -0.1817539859 | T106: -0.1764082805 | U106: -0.171062575 | V106: -0.1657168695 | W106: -0.1603711641 | X106: -0.1550254586 | Y106: -0.1496797531 | Z106: -0.1443340477 | AA106: -0.1389883422 | AB106: -0.1336426367 | AC106: -0.1282969313 | AD106: -0.1229512258 | AE106: -0.1176055203 | AF106: -0.1122598148 | AG106: -0.1069141094 | AH106: -0.1015684039 | AI106: -0.09622269844 | AJ106: -0.09087699297 | AK106: -0.0855312875 | AL106: -0.08018558203 | AM106: -0.07483987656 | AN106: -0.06949417109 | AO106: -0.06414846563 | AP106: -0.05880276016 | AQ106: -0.05345705469 | AR106: -0.04811134922 | AS106: -0.04276564375 | AT106: -0.03741993828 | AU106: -0.03207423281 | AV106: -0.02672852734 | AW106: -0.02138282188 | AX106: -0.01603711641 | AY106: -0.01069141094 | AZ106: -0.005345705469 | BA106: -1.483731324e-17
B107: 1.807732086 | C107: -0.2789232076 | D107: -0.2733447434 | E107: -0.2677662793 | F107: -0.2621878151 | G107: -0.256609351 | H107: -0.2510308868 | I107: -0.2454524227 | J107: -0.2398739585 | K107: -0.2342954944 | L107: -0.2287170302 | M107: -0.2231385661 | N107: -0.2175601019 | O107: -0.2119816378 | P107: -0.2064031736 | Q107: -0.2008247095 | R107: -0.1952462453 | S107: -0.1896677811 | T107: -0.184089317 | U107: -0.1785108528 | V107: -0.1729323887 | W107: -0.1673539245 | X107: -0.1617754604 | Y107: -0.1561969962 | Z107: -0.1506185321 | AA107: -0.1450400679 | AB107: -0.1394616038 | AC107: -0.1338831396 | AD107: -0.1283046755 | AE107: -0.1227262113 | AF107: -0.1171477472 | AG107: -0.111569283 | AH107: -0.1059908189 | AI107: -0.1004123547 | AJ107: -0.09483389057 | AK107: -0.08925542642 | AL107: -0.08367696227 | AM107: -0.07809849812 | AN107: -0.07252003397 | AO107: -0.06694156982 | AP107: -0.06136310567 | AQ107: -0.05578464151 | AR107: -0.05020617736 | AS107: -0.04462771321 | AT107: -0.03904924906 | AU107: -0.03347078491 | AV107: -0.02789232076 | AW107: -0.02231385661 | AX107: -0.01673539245 | AY107: -0.0111569283 | AZ107: -0.005578464151 | BA107: -1.548334836e-17
B108: 1.825282883 | C108: -0.2887500869 | D108: -0.2829750851 | E108: -0.2772000834 | F108: -0.2714250817 | G108: -0.2656500799 | H108: -0.2598750782 | I108: -0.2541000765 | J108: -0.2483250747 | K108: -0.242550073 | L108: -0.2367750712 | M108: -0.2310000695 | N108: -0.2252250678 | O108: -0.219450066 | P108: -0.2136750643 | Q108: -0.2079000626 | R108: -0.2021250608 | S108: -0.1963500591 | T108: -0.1905750573 | U108: -0.1848000556 | V108: -0.1790250539 | W108: -0.1732500521 | X108: -0.1674750504 | Y108: -0.1617000487 | Z108: -0.1559250469 | AA108: -0.1501500452 | AB108: -0.1443750434 | AC108: -0.1386000417 | AD108: -0.13282504 | AE108: -0.1270500382 | AF108: -0.1212750365 | AG108: -0.1155000348 | AH108: -0.109725033 | AI108: -0.1039500313 | AJ108: -0.09817502954 | AK108: -0.0924000278 | AL108: -0.08662502606 | AM108: -0.08085002433 | AN108: -0.07507502259 | AO108: -0.06930002085 | AP108: -0.06352501911 | AQ108: -0.05775001738 | AR108: -0.05197501564 | AS108: -0.0462000139 | AT108: -0.04042501216 | AU108: -0.03465001043 | AV108: -0.02887500869 | AW108: -0.02310000695 | AX108: -0.01732500521 | AY108: -0.01155000348 | AZ108: -0.005775001738 | BA108: -1.602884974e-17
B109: 1.842833679 | C109: -0.296780518 | D109: -0.2908449077 | E109: -0.2849092973 | F109: -0.278973687 | G109: -0.2730380766 | H109: -0.2671024662 | I109: -0.2611668559 | J109: -0.2552312455 | K109: -0.2492956352 | L109: -0.2433600248 | M109: -0.2374244144 | N109: -0.2314888041 | O109: -0.2255531937 | P109: -0.2196175834 | Q109: -0.213681973 | R109: -0.2077463626 | S109: -0.2018107523 | T109: -0.1958751419 | U109: -0.1899395315 | V109: -0.1840039212 | W109: -0.1780683108 | X109: -0.1721327005 | Y109: -0.1661970901 | Z109: -0.1602614797 | AA109: -0.1543258694 | AB109: -0.148390259 | AC109: -0.1424546487 | AD109: -0.1365190383 | AE109: -0.1305834279 | AF109: -0.1246478176 | AG109: -0.1187122072 | AH109: -0.1127765969 | AI109: -0.1068409865 | AJ109: -0.1009053761 | AK109: -0.09496976577 | AL109: -0.08903415541 | AM109: -0.08309854505 | AN109: -0.07716293469 | AO109: -0.07122732433 | AP109: -0.06529171397 | AQ109: -0.05935610361 | AR109: -0.05342049325 | AS109: -0.04748488289 | AT109: -0.04154927253 | AU109: -0.03561366217 | AV109: -0.0296780518 | AW109: -0.02374244144 | AX109: -0.01780683108 | AY109: -0.01187122072 | AZ109: -0.005935610361 | BA109: -1.647462822e-17
B110: 1.860384476 | C110: -0.3030546237 | D110: -0.2969935312 | E110: -0.2909324387 | F110: -0.2848713463 | G110: -0.2788102538 | H110: -0.2727491613 | I110: -0.2666880688 | J110: -0.2606269764 | K110: -0.2545658839 | L110: -0.2485047914 | M110: -0.242443699 | N110: -0.2363826065 | O110: -0.230321514 | P110: -0.2242604215 | Q110: -0.2181993291 | R110: -0.2121382366 | S110: -0.2060771441 | T110: -0.2000160516 | U110: -0.1939549592 | V110: -0.1878938667 | W110: -0.1818327742 | X110: -0.1757716817 | Y110: -0.1697105893 | Z110: -0.1636494968 | AA110: -0.1575884043 | AB110: -0.1515273118 | AC110: -0.1454662194 | AD110: -0.1394051269 | AE110: -0.1333440344 | AF110: -0.127282942 | AG110: -0.1212218495 | AH110: -0.115160757 | AI110: -0.1090996645 | AJ110: -0.1030385721 | AK110: -0.09697747958 | AL110: -0.09091638711 | AM110: -0.08485529463 | AN110: -0.07879420216 | AO110: -0.07273310969 | AP110: -0.06667201721 | AQ110: -0.06061092474 | AR110: -0.05454983226 | AS110: -0.04848873979 | AT110: -0.04242764732 | AU110: -0.03636655484 | AV110: -0.03030546237 | AW110: -0.0242443699 | AX110: -0.01818327742 | AY110: -0.01212218495 | AZ110: -0.006061092474 | BA110: -1.682291105e-17
B111: 1.877935273 | C111: -0.3076378049 | D111: -0.3014850488 | E111: -0.2953322927 | F111: -0.2891795366 | G111: -0.2830267805 | H111: -0.2768740244 | I111: -0.2707212683 | J111: -0.2645685122 | K111: -0.2584157561 | L111: -0.252263 | M111: -0.2461102439 | N111: -0.2399574878 | O111: -0.2338047317 | P111: -0.2276519756 | Q111: -0.2214992195 | R111: -0.2153464634 | S111: -0.2091937073 | T111: -0.2030409512 | U111: -0.1968881951 | V111: -0.190735439 | W111: -0.1845826829 | X111: -0.1784299268 | Y111: -0.1722771707 | Z111: -0.1661244146 | AA111: -0.1599716585 | AB111: -0.1538189025 | AC111: -0.1476661464 | AD111: -0.1415133903 | AE111: -0.1353606342 | AF111: -0.1292078781 | AG111: -0.123055122 | AH111: -0.1169023659 | AI111: -0.1107496098 | AJ111: -0.1045968537 | AK111: -0.09844409757 | AL111: -0.09229134147 | AM111: -0.08613858537 | AN111: -0.07998582927 | AO111: -0.07383307318 | AP111: -0.06768031708 | AQ111: -0.06152756098 | AR111: -0.05537480488 | AS111: -0.04922204878 | AT111: -0.04306929269 | AU111: -0.03691653659 | AV111: -0.03076378049 | AW111: -0.02461102439 | AX111: -0.01845826829 | AY111: -0.0123055122 | AZ111: -0.006152756098 | BA111: -1.707732871e-17
B112: 1.89548607 | C112: -0.3106201908 | D112: -0.304407787 | E112: -0.2981953832 | F112: -0.2919829794 | G112: -0.2857705756 | H112: -0.2795581718 | I112: -0.2733457679 | J112: -0.2671333641 | K112: -0.2609209603 | L112: -0.2547085565 | M112: -0.2484961527 | N112: -0.2422837489 | O112: -0.236071345 | P112: -0.2298589412 | Q112: -0.2236465374 | R112: -0.2174341336 | S112: -0.2112217298 | T112: -0.205009326 | U112: -0.1987969221 | V112: -0.1925845183 | W112: -0.1863721145 | X112: -0.1801597107 | Y112: -0.1739473069 | Z112: -0.1677349031 | AA112: -0.1615224992 | AB112: -0.1553100954 | AC112: -0.1490976916 | AD112: -0.1428852878 | AE112: -0.136672884 | AF112: -0.1304604802 | AG112: -0.1242480763 | AH112: -0.1180356725 | AI112: -0.1118232687 | AJ112: -0.1056108649 | AK112: -0.09939846107 | AL112: -0.09318605725 | AM112: -0.08697365344 | AN112: -0.08076124962 | AO112: -0.0745488458 | AP112: -0.06833644199 | AQ112: -0.06212403817 | AR112: -0.05591163435 | AS112: -0.04969923054 | AT112: -0.04348682672 | AU112: -0.0372744229 | AV112: -0.03106201908 | AW112: -0.02484961527 | AX112: -0.01863721145 | AY112: -0.01242480763 | AZ112: -0.006212403817 | BA112: -1.724288439e-17
B113: 1.913036867 | C113: -0.3121157806 | D113: -0.305873465 | E113: -0.2996311494 | F113: -0.2933888337 | G113: -0.2871465181 | H113: -0.2809042025 | I113: -0.2746618869 | J113: -0.2684195713 | K113: -0.2621772557 | L113: -0.2559349401 | M113: -0.2496926245 | N113: -0.2434503089 | O113: -0.2372079932 | P113: -0.2309656776 | Q113: -0.224723362 | R113: -0.2184810464 | S113: -0.2122387308 | T113: -0.2059964152 | U113: -0.1997540996 | V113: -0.193511784 | W113: -0.1872694683 | X113: -0.1810271527 | Y113: -0.1747848371 | Z113: -0.1685425215 | AA113: -0.1623002059 | AB113: -0.1560578903 | AC113: -0.1498155747 | AD113: -0.1435732591 | AE113: -0.1373309435 | AF113: -0.1310886278 | AG113: -0.1248463122 | AH113: -0.1186039966 | AI113: -0.112361681 | AJ113: -0.1061193654 | AK113: -0.09987704978 | AL113: -0.09363473417 | AM113: -0.08739241856 | AN113: -0.08115010295 | AO113: -0.07490778734 | AP113: -0.06866547173 | AQ113: -0.06242315612 | AR113: -0.0561808405 | AS113: -0.04993852489 | AT113: -0.04369620928 | AU113: -0.03745389367 | AV113: -0.03121157806 | AW113: -0.02496926245 | AX113: -0.01872694683 | AY113: -0.01248463122 | AZ113: -0.006242315612 | BA113: -1.73259063e-17
B114: 1.930587664 | C114: =(4-_xlfn.NORM.INV(Speed,0,1))/8*COS(DirR)*(1 + 0.5*SIN(DirR*5)) -> -0.3122612855 | D114: -0.3060160598 | E114: -0.2997708341 | F114: -0.2935256083 | G114: -0.2872803826 | H114: -0.2810351569 | I114: -0.2747899312 | J114: -0.2685447055 | K114: -0.2622994798 | L114: -0.2560542541 | M114: =(4-_xlfn.NORM.INV(Speed,0,1))/8*COS(DirR)*(1 + 0.5*SIN(DirR*5)) -> -0.2498090284 | N114: -0.2435638027 | O114: -0.237318577 | P114: -0.2310733513 | Q114: -0.2248281255 | R114: -0.2185828998 | S114: -0.2123376741 | T114: -0.2060924484 | U114: -0.1998472227 | V114: -0.193601997 | W114: =(4-_xlfn.NORM.INV(Speed,0,1))/8*COS(DirR)*(1 + 0.5*SIN(DirR*5)) -> -0.1873567713 | X114: -0.1811115456 | Y114: -0.1748663199 | Z114: -0.1686210942 | AA114: -0.1623758684 | AB114: -0.1561306427 | AC114: -0.149885417 | AD114: -0.1436401913 | AE114: -0.1373949656 | AF114: -0.1311497399 | AG114: =(4-_xlfn.NORM.INV(Speed,0,1))/8*COS(DirR)*(1 + 0.5*SIN(DirR*5)) -> -0.1249045142 | AH114: -0.1186592885 | AI114: -0.1124140628 | AJ114: -0.1061688371 | AK114: -0.09992361135 | AL114: -0.09367838564 | AM114: -0.08743315993 | AN114: -0.08118793422 | AO114: -0.07494270851 | AP114: -0.0686974828 | AQ114: =(4-_xlfn.NORM.INV(Speed,0,1))/8*COS(DirR)*(1 + 0.5*SIN(DirR*5)) -> -0.0624522571 | AR114: -0.05620703139 | AS114: -0.04996180568 | AT114: -0.04371657997 | AU114: -0.03747135426 | AV114: -0.03122612855 | AW114: -0.02498090284 | AX114: -0.01873567713 | AY114: -0.01249045142 | AZ114: -0.00624522571 | BA114: -1.733398344e-17
B115: 1.948138461 | C115: -0.3112146845 | D115: -0.3049903908 | E115: -0.2987660971 | F115: -0.2925418034 | G115: -0.2863175097 | H115: -0.280093216 | I115: -0.2738689223 | J115: -0.2676446287 | K115: -0.261420335 | L115: -0.2551960413 | M115: -0.2489717476 | N115: -0.2427474539 | O115: -0.2365231602 | P115: -0.2302988665 | Q115: -0.2240745728 | R115: -0.2178502791 | S115: -0.2116259855 | T115: -0.2054016918 | U115: -0.1991773981 | V115: -0.1929531044 | W115: -0.1867288107 | X115: -0.180504517 | Y115: -0.1742802233 | Z115: -0.1680559296 | AA115: -0.1618316359 | AB115: -0.1556073422 | AC115: -0.1493830486 | AD115: -0.1431587549 | AE115: -0.1369344612 | AF115: -0.1307101675 | AG115: -0.1244858738 | AH115: -0.1182615801 | AI115: -0.1120372864 | AJ115: -0.1058129927 | AK115: -0.09958869904 | AL115: -0.09336440535 | AM115: -0.08714011166 | AN115: -0.08091581797 | AO115: -0.07469152428 | AP115: -0.06846723059 | AQ115: -0.0622429369 | AR115: -0.05601864321 | AS115: -0.04979434952 | AT115: -0.04357005583 | AU115: -0.03734576214 | AV115: -0.03112146845 | AW115: -0.02489717476 | AX115: -0.01867288107 | AY115: -0.01244858738 | AZ115: -0.00622429369 | BA115: -1.727588542e-17
B116: 1.965689258 | C116: -0.3091535075 | D116: -0.3029704373 | E116: -0.2967873672 | F116: -0.290604297 | G116: -0.2844212269 | H116: -0.2782381567 | I116: -0.2720550866 | J116: -0.2658720164 | K116: -0.2596889463 | L116: -0.2535058761 | M116: -0.247322806 | N116: -0.2411397358 | O116: -0.2349566657 | P116: -0.2287735955 | Q116: -0.2225905254 | R116: -0.2164074552 | S116: -0.2102243851 | T116: -0.2040413149 | U116: -0.1978582448 | V116: -0.1916751746 | W116: -0.1854921045 | X116: -0.1793090343 | Y116: -0.1731259642 | Z116: -0.166942894 | AA116: -0.1607598239 | AB116: -0.1545767537 | AC116: -0.1483936836 | AD116: -0.1422106134 | AE116: -0.1360275433 | AF116: -0.1298444731 | AG116: -0.123661403 | AH116: -0.1174783328 | AI116: -0.1112952627 | AJ116: -0.1051121925 | AK116: -0.09892912239 | AL116: -0.09274605224 | AM116: -0.08656298209 | AN116: -0.08037991194 | AO116: -0.07419684179 | AP116: -0.06801377164 | AQ116: -0.06183070149 | AR116: -0.05564763134 | AS116: -0.0494645612 | AT116: -0.04328149105 | AU116: -0.0370984209 | AV116: -0.03091535075 | AW116: -0.0247322806 | AX116: -0.01854921045 | AY116: -0.0123661403 | AZ116: -0.006183070149 | BA116: -1.716146711e-17
B117: 1.983240055 | C117: -0.3062728653 | D117: -0.300147408 | E117: -0.2940219507 | F117: -0.2878964934 | G117: -0.2817710361 | H117: -0.2756455788 | I117: -0.2695201215 | J117: -0.2633946642 | K117: -0.2572692069 | L117: -0.2511437496 | M117: -0.2450182923 | N117: -0.238892835 | O117: -0.2327673776 | P117: -0.2266419203 | Q117: -0.220516463 | R117: -0.2143910057 | S117: -0.2082655484 | T117: -0.2021400911 | U117: -0.1960146338 | V117: -0.1898891765 | W117: -0.1837637192 | X117: -0.1776382619 | Y117: -0.1715128046 | Z117: -0.1653873473 | AA117: -0.15926189 | AB117: -0.1531364327 | AC117: -0.1470109754 | AD117: -0.140885518 | AE117: -0.1347600607 | AF117: -0.1286346034 | AG117: -0.1225091461 | AH117: -0.1163836888 | AI117: -0.1102582315 | AJ117: -0.1041327742 | AK117: -0.0980073169 | AL117: -0.0918818596 | AM117: -0.08575640229 | AN117: -0.07963094498 | AO117: -0.07350548768 | AP117: -0.06738003037 | AQ117: -0.06125457306 | AR117: -0.05512911576 | AS117: -0.04900365845 | AT117: -0.04287820115 | AU117: -0.03675274384 | AV117: -0.03062728653 | AW117: -0.02450182923 | AX117: -0.01837637192 | AY117: -0.01225091461 | AZ117: -0.006125457306 | BA117: -1.700155935e-17
B118: 2.000790852 | C118: -0.3027832484 | D118: -0.2967275835 | E118: -0.2906719185 | F118: -0.2846162535 | G118: -0.2785605886 | H118: -0.2725049236 | I118: -0.2664492586 | J118: -0.2603935936 | K118: -0.2543379287 | L118: -0.2482822637 | M118: -0.2422265987 | N118: -0.2361709338 | O118: -0.2301152688 | P118: -0.2240596038 | Q118: -0.2180039389 | R118: -0.2119482739 | S118: -0.2058926089 | T118: -0.199836944 | U118: -0.193781279 | V118: -0.187725614 | W118: -0.1816699491 | X118: -0.1756142841 | Y118: -0.1695586191 | Z118: -0.1635029542 | AA118: -0.1574472892 | AB118: -0.1513916242 | AC118: -0.1453359592 | AD118: -0.1392802943 | AE118: -0.1332246293 | AF118: -0.1271689643 | AG118: -0.1211132994 | AH118: -0.1150576344 | AI118: -0.1090019694 | AJ118: -0.1029463045 | AK118: -0.0968906395 | AL118: -0.09083497453 | AM118: -0.08477930956 | AN118: -0.07872364459 | AO118: -0.07266797962 | AP118: -0.06661231465 | AQ118: -0.06055664969 | AR118: -0.05450098472 | AS118: -0.04844531975 | AT118: -0.04238965478 | AU118: -0.03633398981 | AV118: -0.03027832484 | AW118: -0.02422265987 | AX118: -0.01816699491 | AY118: -0.01211132994 | AZ118: -0.006055664969 | BA118: -1.680784669e-17
B119: 2.018341649 | C119: -0.2989081178 | D119: -0.2929299554 | E119: -0.2869517931 | F119: -0.2809736307 | G119: -0.2749954684 | H119: -0.269017306 | I119: -0.2630391437 | J119: -0.2570609813 | K119: -0.2510828189 | L119: -0.2451046566 | M119: -0.2391264942 | N119: -0.2331483319 | O119: -0.2271701695 | P119: -0.2211920072 | Q119: -0.2152138448 | R119: -0.2092356825 | S119: -0.2032575201 | T119: -0.1972793577 | U119: -0.1913011954 | V119: -0.185323033 | W119: -0.1793448707 | X119: -0.1733667083 | Y119: -0.167388546 | Z119: -0.1614103836 | AA119: -0.1554322213 | AB119: -0.1494540589 | AC119: -0.1434758965 | AD119: -0.1374977342 | AE119: -0.1315195718 | AF119: -0.1255414095 | AG119: -0.1195632471 | AH119: -0.1135850848 | AI119: -0.1076069224 | AJ119: -0.1016287601 | AK119: -0.09565059769 | AL119: -0.08967243534 | AM119: -0.08369427298 | AN119: -0.07771611063 | AO119: -0.07173794827 | AP119: -0.06575978591 | AQ119: -0.05978162356 | AR119: -0.0538034612 | AS119: -0.04782529885 | AT119: -0.04184713649 | AU119: -0.03586897414 | AV119: -0.02989081178 | AW119: -0.02391264942 | AX119: -0.01793448707 | AY119: -0.01195632471 | AZ119: -0.005978162356 | BA119: -1.659273373e-17
B120: 2.035892446 | C120: -0.2948813157 | D120: -0.2889836894 | E120: -0.2830860631 | F120: -0.2771884367 | G120: -0.2712908104 | H120: -0.2653931841 | I120: -0.2594955578 | J120: -0.2535979315 | K120: -0.2477003052 | L120: -0.2418026789 | M120: -0.2359050525 | N120: -0.2300074262 | O120: -0.2241097999 | P120: -0.2182121736 | Q120: -0.2123145473 | R120: -0.206416921 | S120: -0.2005192947 | T120: -0.1946216683 | U120: -0.188724042 | V120: -0.1828264157 | W120: -0.1769287894 | X120: -0.1710311631 | Y120: -0.1651335368 | Z120: -0.1592359105 | AA120: -0.1533382842 | AB120: -0.1474406578 | AC120: -0.1415430315 | AD120: -0.1356454052 | AE120: -0.1297477789 | AF120: -0.1238501526 | AG120: -0.1179525263 | AH120: -0.1120549 | AI120: -0.1061572736 | AJ120: -0.1002596473 | AK120: -0.09436202102 | AL120: -0.0884643947 | AM120: -0.08256676839 | AN120: -0.07666914208 | AO120: -0.07077151576 | AP120: -0.06487388945 | AQ120: -0.05897626314 | AR120: -0.05307863682 | AS120: -0.04718101051 | AT120: -0.04128338419 | AU120: -0.03538575788 | AV120: -0.02948813157 | AW120: -0.02359050525 | AX120: -0.01769287894 | AY120: -0.01179525263 | AZ120: -0.005897626314 | BA120: -1.636920131e-17
B121: 2.053443243 | C121: -0.2909443247 | D121: -0.2851254382 | E121: -0.2793065517 | F121: -0.2734876652 | G121: -0.2676687787 | H121: -0.2618498922 | I121: -0.2560310057 | J121: -0.2502121193 | K121: -0.2443932328 | L121: -0.2385743463 | M121: -0.2327554598 | N121: -0.2269365733 | O121: -0.2211176868 | P121: -0.2152988003 | Q121: -0.2094799138 | R121: -0.2036610273 | S121: -0.1978421408 | T121: -0.1920232543 | U121: -0.1862043678 | V121: -0.1803854813 | W121: -0.1745665948 | X121: -0.1687477083 | Y121: -0.1629288218 | Z121: -0.1571099353 | AA121: -0.1512910489 | AB121: -0.1454721624 | AC121: -0.1396532759 | AD121: -0.1338343894 | AE121: -0.1280155029 | AF121: -0.1221966164 | AG121: -0.1163777299 | AH121: -0.1105588434 | AI121: -0.1047399569 | AJ121: -0.0989210704 | AK121: -0.09310218391 | AL121: -0.08728329741 | AM121: -0.08146441092 | AN121: -0.07564552443 | AO121: -0.06982663793 | AP121: -0.06400775144 | AQ121: -0.05818886494 | AR121: -0.05236997845 | AS121: -0.04655109195 | AT121: -0.04073220546 | AU121: -0.03491331897 | AV121: -0.02909443247 | AW121: -0.02327554598 | AX121: -0.01745665948 | AY121: -0.01163777299 | AZ121: -0.005818886494 | BA121: -1.615065441e-17
B122: 2.07099404 | C122: -0.2873434064 | D122: -0.2815965383 | E122: -0.2758496702 | F122: -0.270102802 | G122: -0.2643559339 | H122: -0.2586090658 | I122: -0.2528621976 | J122: -0.2471153295 | K122: -0.2413684614 | L122: -0.2356215933 | M122: -0.2298747251 | N122: -0.224127857 | O122: -0.2183809889 | P122: -0.2126341207 | Q122: -0.2068872526 | R122: -0.2011403845 | S122: -0.1953935164 | T122: -0.1896466482 | U122: -0.1838997801 | V122: -0.178152912 | W122: -0.1724060438 | X122: -0.1666591757 | Y122: -0.1609123076 | Z122: -0.1551654395 | AA122: -0.1494185713 | AB122: -0.1436717032 | AC122: -0.1379248351 | AD122: -0.1321779669 | AE122: -0.1264310988 | AF122: -0.1206842307 | AG122: -0.1149373626 | AH122: -0.1091904944 | AI122: -0.1034436263 | AJ122: -0.09769675818 | AK122: -0.09194989005 | AL122: -0.08620302192 | AM122: -0.08045615379 | AN122: -0.07470928567 | AO122: -0.06896241754 | AP122: -0.06321554941 | AQ122: -0.05746868128 | AR122: -0.05172181315 | AS122: -0.04597494503 | AT122: -0.0402280769 | AU122: -0.03448120877 | AV122: -0.02873434064 | AW122: -0.02298747251 | AX122: -0.01724060438 | AY122: -0.01149373626 | AZ122: -0.005746868128 | BA122: -1.595076329e-17
B123: 2.088544837 | C123: -0.2843266514 | D123: -0.2786401183 | E123: -0.2729535853 | F123: -0.2672670523 | G123: -0.2615805192 | H123: -0.2558939862 | I123: -0.2502074532 | J123: -0.2445209202 | K123: -0.2388343871 | L123: -0.2331478541 | M123: -0.2274613211 | N123: -0.2217747881 | O123: -0.216088255 | P123: -0.210401722 | Q123: -0.204715189 | R123: -0.199028656 | S123: -0.1933421229 | T123: -0.1876555899 | U123: -0.1819690569 | V123: -0.1762825238 | W123: -0.1705959908 | X123: -0.1649094578 | Y123: -0.1592229248 | Z123: -0.1535363917 | AA123: -0.1478498587 | AB123: -0.1421633257 | AC123: -0.1364767927 | AD123: -0.1307902596 | AE123: -0.1251037266 | AF123: -0.1194171936 | AG123: -0.1137306605 | AH123: -0.1080441275 | AI123: -0.1023575945 | AJ123: -0.09667106146 | AK123: -0.09098452843 | AL123: -0.08529799541 | AM123: -0.07961146238 | AN123: -0.07392492935 | AO123: -0.06823839633 | AP123: -0.0625518633 | AQ123: -0.05686533027 | AR123: -0.05117879724 | AS123: -0.04549226422 | AT123: -0.03980573119 | AU123: -0.03411919816 | AV123: -0.02843266514 | AW123: -0.02274613211 | AX123: -0.01705959908 | AY123: -0.01137306605 | AZ123: -0.005686533027 | BA123: -1.578329974e-17
B124: 2.106095634 | C124: =(4-_xlfn.NORM.INV(Speed,0,1))/8*COS(DirR)*(1 + 0.5*SIN(DirR*5)) -> -0.2821409748 | D124: -0.2764981553 | E124: -0.2708553358 | F124: -0.2652125163 | G124: -0.2595696968 | H124: -0.2539268773 | I124: -0.2482840578 | J124: -0.2426412383 | K124: -0.2369984188 | L124: -0.2313555993 | M124: =(4-_xlfn.NORM.INV(Speed,0,1))/8*COS(DirR)*(1 + 0.5*SIN(DirR*5)) -> -0.2257127798 | N124: -0.2200699603 | O124: -0.2144271408 | P124: -0.2087843213 | Q124: -0.2031415018 | R124: -0.1974986823 | S124: -0.1918558628 | T124: -0.1862130433 | U124: -0.1805702238 | V124: -0.1749274043 | W124: =(4-_xlfn.NORM.INV(Speed,0,1))/8*COS(DirR)*(1 + 0.5*SIN(DirR*5)) -> -0.1692845849 | X124: -0.1636417654 | Y124: -0.1579989459 | Z124: -0.1523561264 | AA124: -0.1467133069 | AB124: -0.1410704874 | AC124: -0.1354276679 | AD124: -0.1297848484 | AE124: -0.1241420289 | AF124: -0.1184992094 | AG124: =(4-_xlfn.NORM.INV(Speed,0,1))/8*COS(DirR)*(1 + 0.5*SIN(DirR*5)) -> -0.1128563899 | AH124: -0.1072135704 | AI124: -0.1015707509 | AJ124: -0.09592793142 | AK124: -0.09028511192 | AL124: -0.08464229243 | AM124: -0.07899947293 | AN124: -0.07335665344 | AO124: -0.06771383394 | AP124: -0.06207101445 | AQ124: =(4-_xlfn.NORM.INV(Speed,0,1))/8*COS(DirR)*(1 + 0.5*SIN(DirR*5)) -> -0.05642819495 | AR124: -0.05078537546 | AS124: -0.04514255596 | AT124: -0.03949973647 | AU124: -0.03385691697 | AV124: -0.02821409748 | AW124: -0.02257127798 | AX124: -0.01692845849 | AY124: -0.01128563899 | AZ124: -0.005642819495 | BA124: -1.566197032e-17
B125: 2.123646431 | C125: -0.2810290915 | D125: -0.2754085096 | E125: -0.2697879278 | F125: -0.264167346 | G125: -0.2585467641 | H125: -0.2529261823 | I125: -0.2473056005 | J125: -0.2416850187 | K125: -0.2360644368 | L125: -0.230443855 | M125: -0.2248232732 | N125: -0.2192026913 | O125: -0.2135821095 | P125: -0.2079615277 | Q125: -0.2023409458 | R125: -0.196720364 | S125: -0.1910997822 | T125: -0.1854792004 | U125: -0.1798586185 | V125: -0.1742380367 | W125: -0.1686174549 | X125: -0.162996873 | Y125: -0.1573762912 | Z125: -0.1517557094 | AA125: -0.1461351276 | AB125: -0.1405145457 | AC125: -0.1348939639 | AD125: -0.1292733821 | AE125: -0.1236528002 | AF125: -0.1180322184 | AG125: -0.1124116366 | AH125: -0.1067910548 | AI125: -0.1011704729 | AJ125: -0.0955498911 | AK125: -0.08992930927 | AL125: -0.08430872744 | AM125: -0.07868814561 | AN125: -0.07306756378 | AO125: -0.06744698195 | AP125: -0.06182640012 | AQ125: -0.05620581829 | AR125: -0.05058523646 | AS125: -0.04496465463 | AT125: -0.0393440728 | AU125: -0.03372349097 | AV125: -0.02810290915 | AW125: -0.02248232732 | AX125: -0.01686174549 | AY125: -0.01124116366 | AZ125: -0.005620581829 | BA125: -1.56002484e-17
B126: 2.141197228 | C126: -0.2812265054 | D126: -0.2756019753 | E126: -0.2699774451 | F126: -0.264352915 | G126: -0.2587283849 | H126: -0.2531038548 | I126: -0.2474793247 | J126: -0.2418547946 | K126: -0.2362302645 | L126: -0.2306057344 | M126: -0.2249812043 | N126: -0.2193566742 | O126: -0.2137321441 | P126: -0.208107614 | Q126: -0.2024830839 | R126: -0.1968585538 | S126: -0.1912340236 | T126: -0.1856094935 | U126: -0.1799849634 | V126: -0.1743604333 | W126: -0.1687359032 | X126: -0.1631113731 | Y126: -0.157486843 | Z126: -0.1518623129 | AA126: -0.1462377828 | AB126: -0.1406132527 | AC126: -0.1349887226 | AD126: -0.1293641925 | AE126: -0.1237396624 | AF126: -0.1181151323 | AG126: -0.1124906021 | AH126: -0.106866072 | AI126: -0.1012415419 | AJ126: -0.09561701182 | AK126: -0.08999248172 | AL126: -0.08436795161 | AM126: -0.0787434215 | AN126: -0.07311889139 | AO126: -0.06749436129 | AP126: -0.06186983118 | AQ126: -0.05624530107 | AR126: -0.05062077097 | AS126: -0.04499624086 | AT126: -0.03937171075 | AU126: -0.03374718064 | AV126: -0.02812265054 | AW126: -0.02249812043 | AX126: -0.01687359032 | AY126: -0.01124906021 | AZ126: -0.005624530107 | BA126: -1.561120707e-17
B127: 2.158748025 | C127: -0.2829585477 | D127: -0.2772993768 | E127: -0.2716402058 | F127: -0.2659810349 | G127: -0.2603218639 | H127: -0.254662693 | I127: -0.249003522 | J127: -0.2433443511 | K127: -0.2376851801 | L127: -0.2320260092 | M127: -0.2263668382 | N127: -0.2207076672 | O127: -0.2150484963 | P127: -0.2093893253 | Q127: -0.2037301544 | R127: -0.1980709834 | S127: -0.1924118125 | T127: -0.1867526415 | U127: -0.1810934706 | V127: -0.1754342996 | W127: -0.1697751286 | X127: -0.1641159577 | Y127: -0.1584567867 | Z127: -0.1527976158 | AA127: -0.1471384448 | AB127: -0.1414792739 | AC127: -0.1358201029 | AD127: -0.130160932 | AE127: -0.124501761 | AF127: -0.1188425901 | AG127: -0.1131834191 | AH127: -0.1075242481 | AI127: -0.1018650772 | AJ127: -0.09620590623 | AK127: -0.09054673528 | AL127: -0.08488756432 | AM127: -0.07922839337 | AN127: -0.07356922241 | AO127: -0.06791005146 | AP127: -0.0622508805 | AQ127: -0.05659170955 | AR127: -0.05093253859 | AS127: -0.04527336764 | AT127: -0.03961419668 | AU127: -0.03395502573 | AV127: -0.02829585477 | AW127: -0.02263668382 | AX127: -0.01697751286 | AY127: -0.01131834191 | AZ127: -0.005659170955 | BA127: -1.570735474e-17
B128: 2.176298821 | C128: -0.2864374989 | D128: -0.280708749 | E128: -0.274979999 | F128: -0.269251249 | G128: -0.263522499 | H128: -0.2577937491 | I128: -0.2520649991 | J128: -0.2463362491 | K128: -0.2406074991 | L128: -0.2348787491 | M128: -0.2291499992 | N128: -0.2234212492 | O128: -0.2176924992 | P128: -0.2119637492 | Q128: -0.2062349992 | R128: -0.2005062493 | S128: -0.1947774993 | T128: -0.1890487493 | U128: -0.1833199993 | V128: -0.1775912493 | W128: -0.1718624994 | X128: -0.1661337494 | Y128: -0.1604049994 | Z128: -0.1546762494 | AA128: -0.1489474995 | AB128: -0.1432187495 | AC128: -0.1374899995 | AD128: -0.1317612495 | AE128: -0.1260324995 | AF128: -0.1203037496 | AG128: -0.1145749996 | AH128: -0.1088462496 | AI128: -0.1031174996 | AJ128: -0.09738874964 | AK128: -0.09165999966 | AL128: -0.08593124968 | AM128: -0.08020249971 | AN128: -0.07447374973 | AO128: -0.06874499975 | AP128: -0.06301624977 | AQ128: -0.05728749979 | AR128: -0.05155874981 | AS128: -0.04582999983 | AT128: -0.04010124985 | AU128: -0.03437249987 | AV128: -0.02864374989 | AW128: -0.02291499992 | AX128: -0.01718624994 | AY128: -0.01145749996 | AZ128: -0.005728749979 | BA128: -1.590047532e-17
B129: 2.193849618 | C129: -0.2918598269 | D129: -0.2860226303 | E129: -0.2801854338 | F129: -0.2743482372 | G129: -0.2685110407 | H129: -0.2626738442 | I129: -0.2568366476 | J129: -0.2509994511 | K129: -0.2451622546 | L129: -0.239325058 | M129: -0.2334878615 | N129: -0.2276506649 | O129: -0.2218134684 | P129: -0.2159762719 | Q129: -0.2101390753 | R129: -0.2043018788 | S129: -0.1984646823 | T129: -0.1926274857 | U129: -0.1867902892 | V129: -0.1809530926 | W129: -0.1751158961 | X129: -0.1692786996 | Y129: -0.163441503 | Z129: -0.1576043065 | AA129: -0.15176711 | AB129: -0.1459299134 | AC129: -0.1400927169 | AD129: -0.1342555204 | AE129: -0.1284183238 | AF129: -0.1225811273 | AG129: -0.1167439307 | AH129: -0.1109067342 | AI129: -0.1050695377 | AJ129: -0.09923234113 | AK129: -0.09339514459 | AL129: -0.08755794806 | AM129: -0.08172075152 | AN129: -0.07588355498 | AO129: -0.07004635845 | AP129: -0.06420916191 | AQ129: -0.05837196537 | AR129: -0.05253476883 | AS129: -0.0466975723 | AT129: -0.04086037576 | AU129: -0.03502317922 | AV129: -0.02918598269 | AW129: -0.02334878615 | AX129: -0.01751158961 | AY129: -0.01167439307 | AZ129: -0.005837196537 | BA129: -1.620147499e-17
B130: 2.211400415 | C130: -0.2994035747 | D130: -0.2934155032 | E130: -0.2874274317 | F130: -0.2814393602 | G130: -0.2754512887 | H130: -0.2694632172 | I130: -0.2634751457 | J130: -0.2574870742 | K130: -0.2514990027 | L130: -0.2455109312 | M130: -0.2395228597 | N130: -0.2335347882 | O130: -0.2275467168 | P130: -0.2215586453 | Q130: -0.2155705738 | R130: -0.2095825023 | S130: -0.2035944308 | T130: -0.1976063593 | U130: -0.1916182878 | V130: -0.1856302163 | W130: -0.1796421448 | X130: -0.1736540733 | Y130: -0.1676660018 | Z130: -0.1616779303 | AA130: -0.1556898588 | AB130: -0.1497017873 | AC130: -0.1437137158 | AD130: -0.1377256444 | AE130: -0.1317375729 | AF130: -0.1257495014 | AG130: -0.1197614299 | AH130: -0.1137733584 | AI130: -0.1077852869 | AJ130: -0.1017972154 | AK130: -0.0958091439 | AL130: -0.0898210724 | AM130: -0.08383300091 | AN130: -0.07784492942 | AO130: -0.07185685792 | AP130: -0.06586878643 | AQ130: -0.05988071493 | AR130: -0.05389264344 | AS130: -0.04790457195 | AT130: -0.04191650045 | AU130: -0.03592842896 | AV130: -0.02994035747 | AW130: -0.02395228597 | AX130: -0.01796421448 | AY130: -0.01197614299 | AZ130: -0.005988071493 | BA130: -1.662023711e-17
B131: 2.228951212 | C131: -0.3092259288 | D131: -0.3030414102 | E131: -0.2968568916 | F131: -0.2906723731 | G131: -0.2844878545 | H131: -0.2783033359 | I131: -0.2721188173 | J131: -0.2659342988 | K131: -0.2597497802 | L131: -0.2535652616 | M131: -0.247380743 | N131: -0.2411962245 | O131: -0.2350117059 | P131: -0.2288271873 | Q131: -0.2226426687 | R131: -0.2164581502 | S131: -0.2102736316 | T131: -0.204089113 | U131: -0.1979045944 | V131: -0.1917200758 | W131: -0.1855355573 | X131: -0.1793510387 | Y131: -0.1731665201 | Z131: -0.1669820015 | AA131: -0.160797483 | AB131: -0.1546129644 | AC131: -0.1484284458 | AD131: -0.1422439272 | AE131: -0.1360594087 | AF131: -0.1298748901 | AG131: -0.1236903715 | AH131: -0.1175058529 | AI131: -0.1113213344 | AJ131: -0.1051368158 | AK131: -0.09895229721 | AL131: -0.09276777864 | AM131: -0.08658326006 | AN131: -0.08039874149 | AO131: -0.07421422291 | AP131: -0.06802970433 | AQ131: -0.06184518576 | AR131: -0.05566066718 | AS131: -0.04947614861 | AT131: -0.04329163003 | AU131: -0.03710711145 | AV131: -0.03092259288 | AW131: -0.0247380743 | AX131: -0.01855355573 | AY131: -0.01236903715 | AZ131: -0.006184518576 | BA131: -1.71654873e-17
B132: 2.246502009 | C132: -0.3214609957 | D132: -0.3150317758 | E132: -0.3086025559 | F132: -0.302173336 | G132: -0.295744116 | H132: -0.2893148961 | I132: -0.2828856762 | J132: -0.2764564563 | K132: -0.2700272364 | L132: -0.2635980165 | M132: -0.2571687966 | N132: -0.2507395766 | O132: -0.2443103567 | P132: -0.2378811368 | Q132: -0.2314519169 | R132: -0.225022697 | S132: -0.2185934771 | T132: -0.2121642572 | U132: -0.2057350372 | V132: -0.1993058173 | W132: -0.1928765974 | X132: -0.1864473775 | Y132: -0.1800181576 | Z132: -0.1735889377 | AA132: -0.1671597178 | AB132: -0.1607304979 | AC132: -0.1543012779 | AD132: -0.147872058 | AE132: -0.1414428381 | AF132: -0.1350136182 | AG132: -0.1285843983 | AH132: -0.1221551784 | AI132: -0.1157259585 | AJ132: -0.1092967385 | AK132: -0.1028675186 | AL132: -0.09643829871 | AM132: -0.0900090788 | AN132: -0.08357985888 | AO132: -0.07715063897 | AP132: -0.07072141905 | AQ132: -0.06429219914 | AR132: -0.05786297923 | AS132: -0.05143375931 | AT132: -0.0450045394 | AU132: -0.03857531948 | AV132: -0.03214609957 | AW132: -0.02571687966 | AX132: -0.01928765974 | AY132: -0.01285843983 | AZ132: -0.006429219914 | BA132: -1.784466995e-17
B133: 2.264052806 | C133: -0.3362178149 | D133: -0.3294934586 | E133: -0.3227691023 | F133: -0.316044746 | G133: -0.3093203897 | H133: -0.3025960334 | I133: -0.2958716771 | J133: -0.2891473208 | K133: -0.2824229645 | L133: -0.2756986082 | M133: -0.2689742519 | N133: -0.2622498956 | O133: -0.2555255393 | P133: -0.248801183 | Q133: -0.2420768267 | R133: -0.2353524704 | S133: -0.2286281141 | T133: -0.2219037578 | U133: -0.2151794015 | V133: -0.2084550452 | W133: -0.2017306889 | X133: -0.1950063326 | Y133: -0.1882819763 | Z133: -0.18155762 | AA133: -0.1748332637 | AB133: -0.1681089074 | AC133: -0.1613845511 | AD133: -0.1546601948 | AE133: -0.1479358385 | AF133: -0.1412114822 | AG133: -0.1344871259 | AH133: -0.1277627696 | AI133: -0.1210384133 | AJ133: -0.1143140571 | AK133: -0.1075897008 | AL133: -0.1008653445 | AM133: -0.09414098816 | AN133: -0.08741663186 | AO133: -0.08069227557 | AP133: -0.07396791927 | AQ133: -0.06724356297 | AR133: -0.06051920667 | AS133: -0.05379485038 | AT133: -0.04707049408 | AU133: -0.04034613778 | AV133: -0.03362178149 | AW133: -0.02689742519 | AX133: -0.02017306889 | AY133: -0.01344871259 | AZ133: -0.006724356297 | BA133: -1.866383797e-17
B134: 2.281603603 | C134: =(4-_xlfn.NORM.INV(Speed,0,1))/8*COS(DirR)*(1 + 0.5*SIN(DirR*5)) -> -0.3535786316 | D134: -0.346507059 | E134: -0.3394354864 | F134: -0.3323639137 | G134: -0.3252923411 | H134: -0.3182207685 | I134: -0.3111491958 | J134: -0.3040776232 | K134: -0.2970060506 | L134: -0.2899344779 | M134: =(4-_xlfn.NORM.INV(Speed,0,1))/8*COS(DirR)*(1 + 0.5*SIN(DirR*5)) -> -0.2828629053 | N134: -0.2757913327 | O134: -0.26871976 | P134: -0.2616481874 | Q134: -0.2545766148 | R134: -0.2475050421 | S134: -0.2404334695 | T134: -0.2333618969 | U134: -0.2262903242 | V134: -0.2192187516 | W134: =(4-_xlfn.NORM.INV(Speed,0,1))/8*COS(DirR)*(1 + 0.5*SIN(DirR*5)) -> -0.212147179 | X134: -0.2050756063 | Y134: -0.1980040337 | Z134: -0.1909324611 | AA134: -0.1838608884 | AB134: -0.1767893158 | AC134: -0.1697177432 | AD134: -0.1626461705 | AE134: -0.1555745979 | AF134: -0.1485030253 | AG134: =(4-_xlfn.NORM.INV(Speed,0,1))/8*COS(DirR)*(1 + 0.5*SIN(DirR*5)) -> -0.1414314527 | AH134: -0.13435988 | AI134: -0.1272883074 | AJ134: -0.1202167348 | AK134: -0.1131451621 | AL134: -0.1060735895 | AM134: -0.09900201686 | AN134: -0.09193044422 | AO134: -0.08485887159 | AP134: -0.07778729896 | AQ134: =(4-_xlfn.NORM.INV(Speed,0,1))/8*COS(DirR)*(1 + 0.5*SIN(DirR*5)) -> -0.07071572633 | AR134: -0.06364415369 | AS134: -0.05657258106 | AT134: -0.04950100843 | AU134: -0.0424294358 | AV134: -0.03535786316 | AW134: -0.02828629053 | AX134: -0.0212147179 | AY134: -0.01414314527 | AZ134: -0.007071572633 | BA134: -1.962755689e-17
B135: 2.2991544 | C135: -0.3735974519 | D135: -0.3661255029 | E135: -0.3586535538 | F135: -0.3511816048 | G135: -0.3437096558 | H135: -0.3362377067 | I135: -0.3287657577 | J135: -0.3212938087 | K135: -0.3138218596 | L135: -0.3063499106 | M135: -0.2988779615 | N135: -0.2914060125 | O135: -0.2839340635 | P135: -0.2764621144 | Q135: -0.2689901654 | R135: -0.2615182163 | S135: -0.2540462673 | T135: -0.2465743183 | U135: -0.2391023692 | V135: -0.2316304202 | W135: -0.2241584712 | X135: -0.2166865221 | Y135: -0.2092145731 | Z135: -0.201742624 | AA135: -0.194270675 | AB135: -0.186798726 | AC135: -0.1793267769 | AD135: -0.1718548279 | AE135: -0.1643828788 | AF135: -0.1569109298 | AG135: -0.1494389808 | AH135: -0.1419670317 | AI135: -0.1344950827 | AJ135: -0.1270231337 | AK135: -0.1195511846 | AL135: -0.1120792356 | AM135: -0.1046072865 | AN135: -0.0971353375 | AO135: -0.08966338846 | AP135: -0.08219143942 | AQ135: -0.07471949038 | AR135: -0.06724754135 | AS135: -0.05977559231 | AT135: -0.05230364327 | AU135: -0.04483169423 | AV135: -0.03735974519 | AW135: -0.02988779615 | AX135: -0.02241584712 | AY135: -0.01494389808 | AZ135: -0.007471949038 | BA135: -2.073882465e-17
B136: 2.316705197 | C136: -0.3962988968 | D136: -0.3883729189 | E136: -0.3804469409 | F136: -0.372520963 | G136: -0.3645949851 | H136: -0.3566690071 | I136: -0.3487430292 | J136: -0.3408170513 | K136: -0.3328910733 | L136: -0.3249650954 | M136: -0.3170391175 | N136: -0.3091131395 | O136: -0.3011871616 | P136: -0.2932611836 | Q136: -0.2853352057 | R136: -0.2774092278 | S136: -0.2694832498 | T136: -0.2615572719 | U136: -0.253631294 | V136: -0.245705316 | W136: -0.2377793381 | X136: -0.2298533602 | Y136: -0.2219273822 | Z136: -0.2140014043 | AA136: -0.2060754263 | AB136: -0.1981494484 | AC136: -0.1902234705 | AD136: -0.1822974925 | AE136: -0.1743715146 | AF136: -0.1664455367 | AG136: -0.1585195587 | AH136: -0.1505935808 | AI136: -0.1426676029 | AJ136: -0.1347416249 | AK136: -0.126815647 | AL136: -0.118889669 | AM136: -0.1109636911 | AN136: -0.1030377132 | AO136: -0.09511173524 | AP136: -0.0871857573 | AQ136: -0.07925977936 | AR136: -0.07133380143 | AS136: -0.06340782349 | AT136: -0.05548184556 | AU136: -0.04755586762 | AV136: -0.03962988968 | AW136: -0.03170391175 | AX136: -0.02377793381 | AY136: -0.01585195587 | AZ136: -0.007925977936 | BA136: -2.199900799e-17
B137: 2.334255994 | C137: -0.4216773725 | D137: -0.4132438251 | E137: -0.4048102776 | F137: -0.3963767302 | G137: -0.3879431827 | H137: -0.3795096353 | I137: -0.3710760878 | J137: -0.3626425404 | K137: -0.3542089929 | L137: -0.3457754455 | M137: -0.337341898 | N137: -0.3289083506 | O137: -0.3204748031 | P137: -0.3120412557 | Q137: -0.3036077082 | R137: -0.2951741608 | S137: -0.2867406133 | T137: -0.2783070659 | U137: -0.2698735184 | V137: -0.261439971 | W137: -0.2530064235 | X137: -0.2445728761 | Y137: -0.2361393286 | Z137: -0.2277057812 | AA137: -0.2192722337 | AB137: -0.2108386863 | AC137: -0.2024051388 | AD137: -0.1939715914 | AE137: -0.1855380439 | AF137: -0.1771044965 | AG137: -0.168670949 | AH137: -0.1602374016 | AI137: -0.1518038541 | AJ137: -0.1433703067 | AK137: -0.1349367592 | AL137: -0.1265032118 | AM137: -0.1180696643 | AN137: -0.1096361169 | AO137: -0.1012025694 | AP137: -0.09276902196 | AQ137: -0.08433547451 | AR137: -0.07590192706 | AS137: -0.06746837961 | AT137: -0.05903483216 | AU137: -0.0506012847 | AV137: -0.04216773725 | AW137: -0.0337341898 | AX137: -0.02530064235 | AY137: -0.0168670949 | AZ137: -0.008433547451 | BA137: -2.34077964e-17
B138: 2.351806791 | C138: -0.4496965673 | D138: -0.4407026359 | E138: -0.4317087046 | F138: -0.4227147732 | G138: -0.4137208419 | H138: -0.4047269105 | I138: -0.3957329792 | J138: -0.3867390479 | K138: -0.3777451165 | L138: -0.3687511852 | M138: -0.3597572538 | N138: -0.3507633225 | O138: -0.3417693911 | P138: -0.3327754598 | Q138: -0.3237815284 | R138: -0.3147875971 | S138: -0.3057936657 | T138: -0.2967997344 | U138: -0.2878058031 | V138: -0.2788118717 | W138: -0.2698179404 | X138: -0.260824009 | Y138: -0.2518300777 | Z138: -0.2428361463 | AA138: -0.233842215 | AB138: -0.2248482836 | AC138: -0.2158543523 | AD138: -0.2068604209 | AE138: -0.1978664896 | AF138: -0.1888725583 | AG138: -0.1798786269 | AH138: -0.1708846956 | AI138: -0.1618907642 | AJ138: -0.1528968329 | AK138: -0.1439029015 | AL138: -0.1349089702 | AM138: -0.1259150388 | AN138: -0.1169211075 | AO138: -0.1079271761 | AP138: -0.0989332448 | AQ138: -0.08993931346 | AR138: -0.08094538211 | AS138: -0.07195145076 | AT138: -0.06295751942 | AU138: -0.05396358807 | AV138: -0.04496965673 | AW138: -0.03597572538 | AX138: -0.02698179404 | AY138: -0.01798786269 | AZ138: -0.008993931346 | BA138: -2.496317415e-17
B139: 2.369357588 | C139: -0.4802892833 | D139: -0.4706834976 | E139: -0.461077712 | F139: -0.4514719263 | G139: -0.4418661406 | H139: -0.432260355 | I139: -0.4226545693 | J139: -0.4130487836 | K139: -0.403442998 | L139: -0.3938372123 | M139: -0.3842314266 | N139: -0.374625641 | O139: -0.3650198553 | P139: -0.3554140696 | Q139: -0.345808284 | R139: -0.3362024983 | S139: -0.3265967126 | T139: -0.316990927 | U139: -0.3073851413 | V139: -0.2977793556 | W139: -0.28817357 | X139: -0.2785677843 | Y139: -0.2689619986 | Z139: -0.259356213 | AA139: -0.2497504273 | AB139: -0.2401446416 | AC139: -0.230538856 | AD139: -0.2209330703 | AE139: -0.2113272846 | AF139: -0.201721499 | AG139: -0.1921157133 | AH139: -0.1825099276 | AI139: -0.172904142 | AJ139: -0.1632983563 | AK139: -0.1536925707 | AL139: -0.144086785 | AM139: -0.1344809993 | AN139: -0.1248752137 | AO139: -0.115269428 | AP139: -0.1056636423 | AQ139: -0.09605785666 | AR139: -0.08645207099 | AS139: -0.07684628533 | AT139: -0.06724049966 | AU139: -0.05763471399 | AV139: -0.04802892833 | AW139: -0.03842314266 | AX139: -0.028817357 | AY139: -0.01921157133 | AZ139: -0.009605785666 | BA139: -2.666141104e-17
B140: 2.386908385 | C140: -0.5133576085 | D140: -0.5030904563 | E140: -0.4928233042 | F140: -0.482556152 | G140: -0.4722889998 | H140: -0.4620218477 | I140: -0.4517546955 | J140: -0.4414875433 | K140: -0.4312203911 | L140: -0.420953239 | M140: -0.4106860868 | N140: -0.4004189346 | O140: -0.3901517825 | P140: -0.3798846303 | Q140: -0.3696174781 | R140: -0.359350326 | S140: -0.3490831738 | T140: -0.3388160216 | U140: -0.3285488694 | V140: -0.3182817173 | W140: -0.3080145651 | X140: -0.2977474129 | Y140: -0.2874802608 | Z140: -0.2772131086 | AA140: -0.2669459564 | AB140: -0.2566788043 | AC140: -0.2464116521 | AD140: -0.2361444999 | AE140: -0.2258773477 | AF140: -0.2156101956 | AG140: -0.2053430434 | AH140: -0.1950758912 | AI140: -0.1848087391 | AJ140: -0.1745415869 | AK140: -0.1642744347 | AL140: -0.1540072826 | AM140: -0.1437401304 | AN140: -0.1334729782 | AO140: -0.123205826 | AP140: -0.1129386739 | AQ140: -0.1026715217 | AR140: -0.09240436953 | AS140: -0.08213721736 | AT140: -0.07187006519 | AU140: -0.06160291302 | AV140: -0.05133576085 | AW140: -0.04106860868 | AX140: -0.03080145651 | AY140: -0.02053430434 | AZ140: -0.01026715217 | BA140: -2.849707184e-17
B141: 2.404459182 | C141: -0.5487734286 | D141: -0.53779796 | E141: -0.5268224914 | F141: -0.5158470229 | G141: -0.5048715543 | H141: -0.4938960857 | I141: -0.4829206171 | J141: -0.4719451486 | K141: -0.46096968 | L141: -0.4499942114 | M141: -0.4390187429 | N141: -0.4280432743 | O141: -0.4170678057 | P141: -0.4060923371 | Q141: -0.3951168686 | R141: -0.3841414 | S141: -0.3731659314 | T141: -0.3621904629 | U141: -0.3512149943 | V141: -0.3402395257 | W141: -0.3292640571 | X141: -0.3182885886 | Y141: -0.30731312 | Z141: -0.2963376514 | AA141: -0.2853621829 | AB141: -0.2743867143 | AC141: -0.2634112457 | AD141: -0.2524357771 | AE141: -0.2414603086 | AF141: -0.23048484 | AG141: -0.2195093714 | AH141: -0.2085339029 | AI141: -0.1975584343 | AJ141: -0.1865829657 | AK141: -0.1756074971 | AL141: -0.1646320286 | AM141: -0.15365656 | AN141: -0.1426810914 | AO141: -0.1317056229 | AP141: -0.1207301543 | AQ141: -0.1097546857 | AR141: -0.09877921714 | AS141: -0.08780374857 | AT141: -0.07682828 | AU141: -0.06585281143 | AV141: -0.05487734286 | AW141: -0.04390187429 | AX141: -0.03292640571 | AY141: -0.02195093714 | AZ141: -0.01097546857 | BA141: -3.046304478e-17
B142: 2.422009979 | C142: -0.5863792761 | D142: -0.5746516906 | E142: -0.5629241051 | F142: -0.5511965195 | G142: -0.539468934 | H142: -0.5277413485 | I142: -0.516013763 | J142: -0.5042861774 | K142: -0.4925585919 | L142: -0.4808310064 | M142: -0.4691034209 | N142: -0.4573758354 | O142: -0.4456482498 | P142: -0.4339206643 | Q142: -0.4221930788 | R142: -0.4104654933 | S142: -0.3987379077 | T142: -0.3870103222 | U142: -0.3752827367 | V142: -0.3635551512 | W142: -0.3518275657 | X142: -0.3400999801 | Y142: -0.3283723946 | Z142: -0.3166448091 | AA142: -0.3049172236 | AB142: -0.293189638 | AC142: -0.2814620525 | AD142: -0.269734467 | AE142: -0.2580068815 | AF142: -0.246279296 | AG142: -0.2345517104 | AH142: -0.2228241249 | AI142: -0.2110965394 | AJ142: -0.1993689539 | AK142: -0.1876413684 | AL142: -0.1759137828 | AM142: -0.1641861973 | AN142: -0.1524586118 | AO142: -0.1407310263 | AP142: -0.1290034407 | AQ142: -0.1172758552 | AR142: -0.1055482697 | AS142: -0.09382068418 | AT142: -0.08209309865 | AU142: -0.07036551313 | AV142: -0.05863792761 | AW142: -0.04691034209 | AX142: -0.03518275657 | AY142: -0.02345517104 | AZ142: -0.01172758552 | BA142: -3.255058867e-17
B143: 2.439560776 | C143: -0.6259895105 | D143: -0.6134697203 | E143: -0.6009499301 | F143: -0.5884301399 | G143: -0.5759103497 | H143: -0.5633905595 | I143: -0.5508707693 | J143: -0.538350979 | K143: -0.5258311888 | L143: -0.5133113986 | M143: -0.5007916084 | N143: -0.4882718182 | O143: -0.475752028 | P143: -0.4632322378 | Q143: -0.4507124476 | R143: -0.4381926574 | S143: -0.4256728672 | T143: -0.4131530769 | U143: -0.4006332867 | V143: -0.3881134965 | W143: -0.3755937063 | X143: -0.3630739161 | Y143: -0.3505541259 | Z143: -0.3380343357 | AA143: -0.3255145455 | AB143: -0.3129947553 | AC143: -0.300474965 | AD143: -0.2879551748 | AE143: -0.2754353846 | AF143: -0.2629155944 | AG143: -0.2503958042 | AH143: -0.237876014 | AI143: -0.2253562238 | AJ143: -0.2128364336 | AK143: -0.2003166434 | AL143: -0.1877968532 | AM143: -0.1752770629 | AN143: -0.1627572727 | AO143: -0.1502374825 | AP143: -0.1377176923 | AQ143: -0.1251979021 | AR143: -0.1126781119 | AS143: -0.1001583217 | AT143: -0.08763853147 | AU143: -0.07511874126 | AV143: -0.06259895105 | AW143: -0.05007916084 | AX143: -0.03755937063 | AY143: -0.02503958042 | AZ143: -0.01251979021 | BA143: -3.474939839e-17
B144: 2.457111573 | C144: =(4-_xlfn.NORM.INV(Speed,0,1))/8*COS(DirR)*(1 + 0.5*SIN(DirR*5)) -> -0.6673918179 | D144: -0.6540439816 | E144: -0.6406961452 | F144: -0.6273483089 | G144: -0.6140004725 | H144: -0.6006526361 | I144: -0.5873047998 | J144: -0.5739569634 | K144: -0.5606091271 | L144: -0.5472612907 | M144: =(4-_xlfn.NORM.INV(Speed,0,1))/8*COS(DirR)*(1 + 0.5*SIN(DirR*5)) -> -0.5339134544 | N144: -0.520565618 | O144: -0.5072177816 | P144: -0.4938699453 | Q144: -0.4805221089 | R144: -0.4671742726 | S144: -0.4538264362 | T144: -0.4404785998 | U144: -0.4271307635 | V144: -0.4137829271 | W144: =(4-_xlfn.NORM.INV(Speed,0,1))/8*COS(DirR)*(1 + 0.5*SIN(DirR*5)) -> -0.4004350908 | X144: -0.3870872544 | Y144: -0.373739418 | Z144: -0.3603915817 | AA144: -0.3470437453 | AB144: -0.333695909 | AC144: -0.3203480726 | AD144: -0.3070002363 | AE144: -0.2936523999 | AF144: -0.2803045635 | AG144: =(4-_xlfn.NORM.INV(Speed,0,1))/8*COS(DirR)*(1 + 0.5*SIN(DirR*5)) -> -0.2669567272 | AH144: -0.2536088908 | AI144: -0.2402610545 | AJ144: -0.2269132181 | AK144: -0.2135653817 | AL144: -0.2002175454 | AM144: -0.186869709 | AN144: -0.1735218727 | AO144: -0.1601740363 | AP144: -0.1468261999 | AQ144: =(4-_xlfn.NORM.INV(Speed,0,1))/8*COS(DirR)*(1 + 0.5*SIN(DirR*5)) -> -0.1334783636 | AR144: -0.1201305272 | AS144: -0.1067826909 | AT144: -0.09343485451 | AU144: -0.08008701815 | AV144: -0.06673918179 | AW144: -0.05339134544 | AX144: -0.04004350908 | AY144: -0.02669567272 | AZ144: -0.01334783636 | BA144: -3.704768814e-17
B145: 2.47466237 | C145: -0.710349017 | D145: -0.6961420366 | E145: -0.6819350563 | F145: -0.667728076 | G145: -0.6535210956 | H145: -0.6393141153 | I145: -0.6251071349 | J145: -0.6109001546 | K145: -0.5966931743 | L145: -0.5824861939 | M145: -0.5682792136 | N145: -0.5540722332 | O145: -0.5398652529 | P145: -0.5256582726 | Q145: -0.5114512922 | R145: -0.4972443119 | S145: -0.4830373315 | T145: -0.4688303512 | U145: -0.4546233709 | V145: -0.4404163905 | W145: -0.4262094102 | X145: -0.4120024299 | Y145: -0.3977954495 | Z145: -0.3835884692 | AA145: -0.3693814888 | AB145: -0.3551745085 | AC145: -0.3409675282 | AD145: -0.3267605478 | AE145: -0.3125535675 | AF145: -0.2983465871 | AG145: -0.2841396068 | AH145: -0.2699326265 | AI145: -0.2557256461 | AJ145: -0.2415186658 | AK145: -0.2273116854 | AL145: -0.2131047051 | AM145: -0.1988977248 | AN145: -0.1846907444 | AO145: -0.1704837641 | AP145: -0.1562767837 | AQ145: -0.1420698034 | AR145: -0.1278628231 | AS145: -0.1136558427 | AT145: -0.09944886238 | AU145: -0.08524188204 | AV145: -0.0710349017 | AW145: -0.05682792136 | AX145: -0.04262094102 | AY145: -0.02841396068 | AZ145: -0.01420698034 | BA145: -3.943229171e-17
B146: 2.492213167 | C146: -0.7546011532 | D146: -0.7395091301 | E146: -0.724417107 | F146: -0.709325084 | G146: -0.6942330609 | H146: -0.6791410378 | I146: -0.6640490148 | J146: -0.6489569917 | K146: -0.6338649687 | L146: -0.6187729456 | M146: -0.6036809225 | N146: -0.5885888995 | O146: -0.5734968764 | P146: -0.5584048533 | Q146: -0.5433128303 | R146: -0.5282208072 | S146: -0.5131287841 | T146: -0.4980367611 | U146: -0.482944738 | V146: -0.467852715 | W146: -0.4527606919 | X146: -0.4376686688 | Y146: -0.4225766458 | Z146: -0.4074846227 | AA146: -0.3923925996 | AB146: -0.3773005766 | AC146: -0.3622085535 | AD146: -0.3471165305 | AE146: -0.3320245074 | AF146: -0.3169324843 | AG146: -0.3018404613 | AH146: -0.2867484382 | AI146: -0.2716564151 | AJ146: -0.2565643921 | AK146: -0.241472369 | AL146: -0.2263803459 | AM146: -0.2112883229 | AN146: -0.1961962998 | AO146: -0.1811042768 | AP146: -0.1660122537 | AQ146: -0.1509202306 | AR146: -0.1358282076 | AS146: -0.1207361845 | AT146: -0.1056441614 | AU146: -0.09055213838 | AV146: -0.07546011532 | AW146: -0.06036809225 | AX146: -0.04527606919 | AY146: -0.03018404613 | AZ146: -0.01509202306 | BA146: -4.188877873e-17
B147: 2.509763963 | C147: -0.799867861 | D147: -0.7838705038 | E147: -0.7678731465 | F147: -0.7518757893 | G147: -0.7358784321 | H147: -0.7198810749 | I147: -0.7038837177 | J147: -0.6878863604 | K147: -0.6718890032 | L147: -0.655891646 | M147: -0.6398942888 | N147: -0.6238969316 | O147: -0.6078995743 | P147: -0.5919022171 | Q147: -0.5759048599 | R147: -0.5599075027 | S147: -0.5439101455 | T147: -0.5279127882 | U147: -0.511915431 | V147: -0.4959180738 | W147: -0.4799207166 | X147: -0.4639233594 | Y147: -0.4479260021 | Z147: -0.4319286449 | AA147: -0.4159312877 | AB147: -0.3999339305 | AC147: -0.3839365733 | AD147: -0.367939216 | AE147: -0.3519418588 | AF147: -0.3359445016 | AG147: -0.3199471444 | AH147: -0.3039497872 | AI147: -0.28795243 | AJ147: -0.2719550727 | AK147: -0.2559577155 | AL147: -0.2399603583 | AM147: -0.2239630011 | AN147: -0.2079656439 | AO147: -0.1919682866 | AP147: -0.1759709294 | AQ147: -0.1599735722 | AR147: -0.143976215 | AS147: -0.1279788578 | AT147: -0.1119815005 | AU147: -0.09598414332 | AV147: -0.0799867861 | AW147: -0.06398942888 | AX147: -0.04799207166 | AY147: -0.03199471444 | AZ147: -0.01599735722 | BA147: -4.44015858e-17
B148: 2.52731476 | C148: -0.84585097 | D148: -0.8289339506 | E148: -0.8120169312 | F148: -0.7950999118 | G148: -0.7781828924 | H148: -0.761265873 | I148: -0.7443488536 | J148: -0.7274318342 | K148: -0.7105148148 | L148: -0.6935977954 | M148: -0.676680776 | N148: -0.6597637566 | O148: -0.6428467372 | P148: -0.6259297178 | Q148: -0.6090126984 | R148: -0.592095679 | S148: -0.5751786596 | T148: -0.5582616402 | U148: -0.5413446208 | V148: -0.5244276014 | W148: -0.507510582 | X148: -0.4905935626 | Y148: -0.4736765432 | Z148: -0.4567595238 | AA148: -0.4398425044 | AB148: -0.422925485 | AC148: -0.4060084656 | AD148: -0.3890914462 | AE148: -0.3721744268 | AF148: -0.3552574074 | AG148: -0.338340388 | AH148: -0.3214233686 | AI148: -0.3045063492 | AJ148: -0.2875893298 | AK148: -0.2706723104 | AL148: -0.253755291 | AM148: -0.2368382716 | AN148: -0.2199212522 | AO148: -0.2030042328 | AP148: -0.1860872134 | AQ148: -0.169170194 | AR148: -0.1522531746 | AS148: -0.1353361552 | AT148: -0.1184191358 | AU148: -0.1015021164 | AV148: -0.084585097 | AW148: -0.0676680776 | AX148: -0.0507510582 | AY148: -0.0338340388 | AZ148: -0.0169170194 | BA148: -4.695416111e-17
B149: 2.544865557 | C149: -0.8922373284 | D149: -0.8743925818 | E149: -0.8565478352 | F149: -0.8387030887 | G149: -0.8208583421 | H149: -0.8030135955 | I149: -0.785168849 | J149: -0.7673241024 | K149: -0.7494793558 | L149: -0.7316346093 | M149: -0.7137898627 | N149: -0.6959451161 | O149: -0.6781003696 | P149: -0.660255623 | Q149: -0.6424108764 | R149: -0.6245661299 | S149: -0.6067213833 | T149: -0.5888766367 | U149: -0.5710318902 | V149: -0.5531871436 | W149: -0.535342397 | X149: -0.5174976505 | Y149: -0.4996529039 | Z149: -0.4818081573 | AA149: -0.4639634108 | AB149: -0.4461186642 | AC149: -0.4282739176 | AD149: -0.4104291711 | AE149: -0.3925844245 | AF149: -0.3747396779 | AG149: -0.3568949313 | AH149: -0.3390501848 | AI149: -0.3212054382 | AJ149: -0.3033606916 | AK149: -0.2855159451 | AL149: -0.2676711985 | AM149: -0.2498264519 | AN149: -0.2319817054 | AO149: -0.2141369588 | AP149: -0.1962922122 | AQ149: -0.1784474657 | AR149: -0.1606027191 | AS149: -0.1427579725 | AT149: -0.124913226 | AU149: -0.1070684794 | AV149: -0.08922373284 | AW149: -0.07137898627 | AX149: -0.0535342397 | AY149: -0.03568949313 | AZ149: -0.01784474657 | BA149: -4.952912127e-17
B150: 2.562416354 | C150: -0.9387018146 | D150: -0.9199277783 | E150: -0.901153742 | F150: -0.8823797057 | G150: -0.8636056694 | H150: -0.8448316331 | I150: -0.8260575968 | J150: -0.8072835605 | K150: -0.7885095242 | L150: -0.7697354879 | M150: -0.7509614517 | N150: -0.7321874154 | O150: -0.7134133791 | P150: -0.6946393428 | Q150: -0.6758653065 | R150: -0.6570912702 | S150: -0.6383172339 | T150: -0.6195431976 | U150: -0.6007691613 | V150: -0.581995125 | W150: -0.5632210887 | X150: -0.5444470524 | Y150: -0.5256730162 | Z150: -0.5068989799 | AA150: -0.4881249436 | AB150: -0.4693509073 | AC150: -0.450576871 | AD150: -0.4318028347 | AE150: -0.4130287984 | AF150: -0.3942547621 | AG150: -0.3754807258 | AH150: -0.3567066895 | AI150: -0.3379326532 | AJ150: -0.319158617 | AK150: -0.3003845807 | AL150: -0.2816105444 | AM150: -0.2628365081 | AN150: -0.2440624718 | AO150: -0.2252884355 | AP150: -0.2065143992 | AQ150: -0.1877403629 | AR150: -0.1689663266 | AS150: -0.1501922903 | AT150: -0.131418254 | AU150: -0.1126442177 | AV150: -0.09387018146 | AW150: -0.07509614517 | AX150: -0.05632210887 | AY150: -0.03754807258 | AZ150: -0.01877403629 | BA150: -5.210841839e-17
B151: 2.579967151 | C151: -0.9849105062 | D151: -0.9652122961 | E151: -0.945514086 | F151: -0.9258158759 | G151: -0.9061176657 | H151: -0.8864194556 | I151: -0.8667212455 | J151: -0.8470230354 | K151: -0.8273248252 | L151: -0.8076266151 | M151: -0.787928405 | N151: -0.7682301949 | O151: -0.7485319847 | P151: -0.7288337746 | Q151: -0.7091355645 | R151: -0.6894373544 | S151: -0.6697391442 | T151: -0.6500409341 | U151: -0.630342724 | V151: -0.6106445139 | W151: -0.5909463037 | X151: -0.5712480936 | Y151: -0.5515498835 | Z151: -0.5318516734 | AA151: -0.5121534632 | AB151: -0.4924552531 | AC151: -0.472757043 | AD151: -0.4530588329 | AE151: -0.4333606227 | AF151: -0.4136624126 | AG151: -0.3939642025 | AH151: -0.3742659924 | AI151: -0.3545677822 | AJ151: -0.3348695721 | AK151: -0.315171362 | AL151: -0.2954731519 | AM151: -0.2757749417 | AN151: -0.2560767316 | AO151: -0.2363785215 | AP151: -0.2166803114 | AQ151: -0.1969821012 | AR151: -0.1772838911 | AS151: -0.157585681 | AT151: -0.1378874709 | AU151: -0.1181892607 | AV151: -0.09849105062 | AW151: -0.0787928405 | AX151: -0.05909463037 | AY151: -0.03939642025 | AZ151: -0.01969821012 | BA151: -5.467351606e-17
B152: 2.597517948 | C152: -1.030523973 | D152: -1.009913494 | E152: -0.9893030141 | F152: -0.9686925346 | G152: -0.9480820551 | H152: -0.9274715757 | I152: -0.9068610962 | J152: -0.8862506168 | K152: -0.8656401373 | L152: -0.8450296578 | M152: -0.8244191784 | N152: -0.8038086989 | O152: -0.7831982195 | P152: -0.76258774 | Q152: -0.7419772605 | R152: -0.7213667811 | S152: -0.7007563016 | T152: -0.6801458222 | U152: -0.6595353427 | V152: -0.6389248632 | W152: -0.6183143838 | X152: -0.5977039043 | Y152: -0.5770934249 | Z152: -0.5564829454 | AA152: -0.5358724659 | AB152: -0.5152619865 | AC152: -0.494651507 | AD152: -0.4740410276 | AE152: -0.4534305481 | AF152: -0.4328200686 | AG152: -0.4122095892 | AH152: -0.3915991097 | AI152: -0.3709886303 | AJ152: -0.3503781508 | AK152: -0.3297676714 | AL152: -0.3091571919 | AM152: -0.2885467124 | AN152: -0.267936233 | AO152: -0.2473257535 | AP152: -0.2267152741 | AQ152: -0.2061047946 | AR152: -0.1854943151 | AS152: -0.1648838357 | AT152: -0.1442733562 | AU152: -0.1236628768 | AV152: -0.1030523973 | AW152: -0.08244191784 | AX152: -0.06183143838 | AY152: -0.04122095892 | AZ152: -0.02061047946 | BA152: -5.720557211e-17
B153: 2.615068745 | C153: -1.075200658 | D153: -1.053696645 | E153: -1.032192632 | F153: -1.010688619 | G153: -0.9891846057 | H153: -0.9676805926 | I153: -0.9461765794 | J153: -0.9246725662 | K153: -0.9031685531 | L153: -0.8816645399 | M153: -0.8601605267 | N153: -0.8386565136 | O153: -0.8171525004 | P153: -0.7956484872 | Q153: -0.774144474 | R153: -0.7526404609 | S153: -0.7311364477 | T153: -0.7096324345 | U153: -0.6881284214 | V153: -0.6666244082 | W153: -0.645120395 | X153: -0.6236163819 | Y153: -0.6021123687 | Z153: -0.5806083555 | AA153: -0.5591043424 | AB153: -0.5376003292 | AC153: -0.516096316 | AD153: -0.4945923029 | AE153: -0.4730882897 | AF153: -0.4515842765 | AG153: -0.4300802634 | AH153: -0.4085762502 | AI153: -0.387072237 | AJ153: -0.3655682239 | AK153: -0.3440642107 | AL153: -0.3225601975 | AM153: -0.3010561844 | AN153: -0.2795521712 | AO153: -0.258048158 | AP153: -0.2365441448 | AQ153: -0.2150401317 | AR153: -0.1935361185 | AS153: -0.1720321053 | AT153: -0.1505280922 | AU153: -0.129024079 | AV153: -0.1075200658 | AW153: -0.08601605267 | AX153: -0.0645120395 | AY153: -0.04300802634 | AZ153: -0.02150401317 | BA153: -5.968562635e-17
B154: 2.632619542 | C154: =(4-_xlfn.NORM.INV(Speed,0,1))/8*COS(DirR)*(1 + 0.5*SIN(DirR*5)) -> -1.118600316 | D154: -1.096228309 | E154: -1.073856303 | F154: -1.051484297 | G154: -1.02911229 | H154: -1.006740284 | I154: -0.9843682778 | J154: -0.9619962715 | K154: -0.9396242652 | L154: -0.9172522589 | M154: =(4-_xlfn.NORM.INV(Speed,0,1))/8*COS(DirR)*(1 + 0.5*SIN(DirR*5)) -> -0.8948802526 | N154: -0.8725082463 | O154: -0.8501362399 | P154: -0.8277642336 | Q154: -0.8053922273 | R154: -0.783020221 | S154: -0.7606482147 | T154: -0.7382762084 | U154: -0.7159042021 | V154: -0.6935321957 | W154: =(4-_xlfn.NORM.INV(Speed,0,1))/8*COS(DirR)*(1 + 0.5*SIN(DirR*5)) -> -0.6711601894 | X154: -0.6487881831 | Y154: -0.6264161768 | Z154: -0.6040441705 | AA154: -0.5816721642 | AB154: -0.5593001579 | AC154: -0.5369281515 | AD154: -0.5145561452 | AE154: -0.4921841389 | AF154: -0.4698121326 | AG154: =(4-_xlfn.NORM.INV(Speed,0,1))/8*COS(DirR)*(1 + 0.5*SIN(DirR*5)) -> -0.4474401263 | AH154: -0.42506812 | AI154: -0.4026961137 | AJ154: -0.3803241073 | AK154: -0.357952101 | AL154: -0.3355800947 | AM154: -0.3132080884 | AN154: -0.2908360821 | AO154: -0.2684640758 | AP154: -0.2460920695 | AQ154: =(4-_xlfn.NORM.INV(Speed,0,1))/8*COS(DirR)*(1 + 0.5*SIN(DirR*5)) -> -0.2237200631 | AR154: -0.2013480568 | AS154: -0.1789760505 | AT154: -0.1566040442 | AU154: -0.1342320379 | AV154: -0.1118600316 | AW154: -0.08948802526 | AX154: -0.06711601894 | AY154: -0.04474401263 | AZ154: -0.02237200631 | BA154: -6.209479129e-17
B155: 2.650170339 | C155: -1.16038746 | D155: -1.137179711 | E155: -1.113971962 | F155: -1.090764213 | G155: -1.067556464 | H155: -1.044348714 | I155: -1.021140965 | J155: -0.997933216 | K155: -0.9747254668 | L155: -0.9515177175 | M155: -0.9283099683 | N155: -0.9051022191 | O155: -0.8818944699 | P155: -0.8586867207 | Q155: -0.8354789715 | R155: -0.8122712223 | S155: -0.7890634731 | T155: -0.7658557239 | U155: -0.7426479747 | V155: -0.7194402255 | W155: -0.6962324763 | X155: -0.673024727 | Y155: -0.6498169778 | Z155: -0.6266092286 | AA155: -0.6034014794 | AB155: -0.5801937302 | AC155: -0.556985981 | AD155: -0.5337782318 | AE155: -0.5105704826 | AF155: -0.4873627334 | AG155: -0.4641549842 | AH155: -0.440947235 | AI155: -0.4177394858 | AJ155: -0.3945317365 | AK155: -0.3713239873 | AL155: -0.3481162381 | AM155: -0.3249084889 | AN155: -0.3017007397 | AO155: -0.2784929905 | AP155: -0.2552852413 | AQ155: -0.2320774921 | AR155: -0.2088697429 | AS155: -0.1856619937 | AT155: -0.1624542445 | AU155: -0.1392464953 | AV155: -0.116038746 | AW155: -0.09283099683 | AX155: -0.06962324763 | AY155: -0.04641549842 | AZ155: -0.02320774921 | BA155: -6.44144438e-17
